Workbook

Sheet Přehled_body
C1: 2021 | D1: 2. pololetí | E1: 2021-07-13 | J1: 2021-07-20 | O1: 2021-07-27 | T1: 2021-08-10 | Y1: 2021-08-31 | AD1: 2021-09-07 | AI1: 2021-09-14 | AN1: 2021-09-21 | AS1: 2021-10-05 | AX1: 2021-10-12 | BC1: 2021-10-19 | BH1: 2021-10-26 | BM1: 2021-11-02 | BR1: 2021-11-09 | BW1: 2021-11-23 | CB1: 2021-11-30 | CG1: 2021-12-07 | EE1: =Tabulka!AE2 -> Součet | EF1: =Tabulka!AF2 -> Body | EL1: 1. pololetí
D2: Kolo | E2: 1 | F2: 2 | G2: 3 | H2: 4 | I2: 5 | J2: 1 | K2: 2 | L2: 3 | M2: 4 | N2: 5 | O2: 1 | P2: 2 | Q2: 3 | R2: 4 | S2: 5 | T2: 1 | U2: 2 | V2: 3 | W2: 4 | X2: 5 | Y2: 1 | Z2: 2 | AA2: 3 | AB2: 4 | AC2: 5 | AD2: 1 | AE2: 2 | AF2: 3 | AG2: 4 | AH2: 5 | AI2: 1 | AJ2: 2 | AK2: 3 | AL2: 4 | AM2: 5 | AN2: 1 | AO2: 2 | AP2: 3 | AQ2: 4 | AR2: 5 | AS2: 1 | AT2: 2 | AU2: 3 | AV2: 4 | AW2: 5 | AX2: 1 | AY2: 2 | AZ2: 3 | BA2: 4 | BB2: 5 | BC2: 1 | BD2: 2 | BE2: 3 | BF2: 4 | BG2: 5 | BH2: 1 | BI2: 2 | BJ2: 3 | BK2: 4 | BL2: 5 | BM2: 1 | BN2: 2 | BO2: 3 | BP2: 4 | BQ2: 5 | BR2: 1 | BS2: 2 | BT2: 3 | BU2: 4 | BV2: 5 | BW2: 1 | BX2: 2 | BY2: 3 | BZ2: 4 | CA2: 5 | CB2: 1 | CC2: 2 | CD2: 3 | CE2: 4 | CF2: 5 | CG2: 1 | CH2: 2 | CI2: 3 | CJ2: 4 | CK2: 5 | CL2: 1 | CM2: 2 | CN2: 3 | CO2: 4 | CP2: 5 | CQ2: 1 | CR2: 2 | CS2: 3 | CT2: 4 | CU2: 5 | CV2: 1 | CW2: 2 | CX2: 3 | CY2: 4 | CZ2: 5 | DA2: 1 | DB2: 2 | DC2: 3 | DD2: 4 | DE2: 5 | DF2: 1 | DG2: 2 | DH2: 3 | DI2: 4 | DJ2: 5 | DK2: 1 | DL2: 2 | DM2: 3 | DN2: 4 | DO2: 5 | DP2: 1 | DQ2: 2 | DR2: 3 | DS2: 4 | DT2: 5 | DU2: 1 | DV2: 2 | DW2: 3 | DX2: 4 | DY2: 5 | DZ2: 1 | EA2: 2 | EB2: 3 | EC2: 4 | ED2: 5 | EE2: =Tabulka!AE3 -> celkem | EF2: =Tabulka!AF3 -> 0 | EL2: 2. pololetí
A3: =CONCATENATE($C$4," ",$C$5,D3) -> Jiří FialaVýhry | B3: =CONCATENATE(C4," ",C5) -> Jiří Fiala | C3: =Tabulka!B4 -> 0 | D3: Výhry | EE3: =IF(AND(SUM(Tabulka!$AG$4)>0.99,(SUM(Tabulka!$AG$4)<2)),-50000+(SUM(E3:ED3)),IF(OR(SUM(Tabulka!$AG$4)<2),-90000,SUM(E3:ED3))) -> -90000 | EG3: =SUM(E3:ED3) -> 0
A4: =CONCATENATE($C$4," ",$C$5,D4) -> Jiří FialaProhry | B4: =CONCATENATE(C4," ",C5) -> Jiří Fiala | C4: =Tabulka!B5 -> Jiří | D4: Prohry | EE4: =IF(AND(SUM(Tabulka!$AG$4)>0.99,(SUM(Tabulka!$AG$4)<2)),-50000+(SUM(E4:ED4)),IF(OR(SUM(Tabulka!$AG$4)<2),-90000,SUM(E4:ED4))) -> -90000 | EF4: =SUM(EE3-EE4) -> 0 | EG4: 0
A5: Jiří FialaPlaceno panáků | B5: =CONCATENATE(C4," ",C5) -> Jiří Fiala | C5: =Tabulka!B6 -> Fiala | D5: Placeno panáků | EE5: =IF(AND(SUM(Tabulka!$AG$4)>0.99,(SUM(Tabulka!$AG$4)<2)),-50000+(SUM(E5:ED5)),IF(OR(SUM(Tabulka!$AG$4)<2),-90000,SUM(E5:ED5))) -> -90000 | EG5: 0
A6: Jiří FialaPřehozy | B6: =CONCATENATE(C4," ",C5) -> Jiří Fiala | C6: =Tabulka!B7 -> 0 | D6: Přehozy | EE6: =IF(AND(SUM(Tabulka!$AG$4)>0.99,(SUM(Tabulka!$AG$4)<2)),-50000+(SUM(E6:ED6)),IF(OR(SUM(Tabulka!$AG$4)<2),-90000,SUM(E6:ED6))) -> -90000 | EG6: 0
A7: Jiří FialaPoč. kol | B7: =CONCATENATE(C4," ",C5) -> Jiří Fiala | C7: =Tabulka!B8 -> 0 | D7: Poč. kol | EE7: =IF(AND(SUM(Tabulka!$AG$4)>0.99,(SUM(Tabulka!$AG$4)<2)),-50000+(SUM(E7:ED7)),IF(OR(SUM(Tabulka!$AG$4)<2),-90000,SUM(E7:ED7))) -> -90000 | EG7: 0
A8: Jiří FialaPočet konečných bodů | B8: =CONCATENATE(C4," ",C5) -> Jiří Fiala | D8: Počet konečných bodů | EE8: =IF(AND(SUM(Tabulka!$AG$4)>0.99,(SUM(Tabulka!$AG$4)<2)),-50000-(SUM(E8:ED8)),IF(OR(SUM(Tabulka!$AG$4)<2),-90000,SUM(E8:ED8))) -> -90000 | EG8: 0
A9: Jiří FialaPrůměr konečných bodů na kolo | B9: =CONCATENATE(C4," ",C5) -> Jiří Fiala | D9: Průměr konečných bodů na kolo | E9: =IF(E8<>"",AVERAGE($E8:E8)+$EI9,"") ->  | F9: =IF(F8<>"",AVERAGE($E8:F8)+$EI9,"") ->  | G9: =IF(G8<>"",AVERAGE($E8:G8)+$EI9,"") ->  | H9: =IF(H8<>"",AVERAGE($E8:H8)+$EI9,"") ->  | I9: =IF(I8<>"",AVERAGE($E8:I8)+$EI9,"") ->  | J9: =IF(J8<>"",AVERAGE($E8:J8)+$EI9,"") ->  | K9: =IF(K8<>"",AVERAGE($E8:K8)+$EI9,"") ->  | L9: =IF(L8<>"",AVERAGE($E8:L8)+$EI9,"") ->  | M9: =IF(M8<>"",AVERAGE($E8:M8)+$EI9,"") ->  | N9: =IF(N8<>"",AVERAGE($E8:N8)+$EI9,"") ->  | O9: =IF(O8<>"",AVERAGE($E8:O8)+$EI9,"") ->  | P9: =IF(P8<>"",AVERAGE($E8:P8)+$EI9,"") ->  | Q9: =IF(Q8<>"",AVERAGE($E8:Q8)+$EI9,"") ->  | R9: =IF(R8<>"",AVERAGE($E8:R8)+$EI9,"") ->  | S9: =IF(S8<>"",AVERAGE($E8:S8)+$EI9,"") ->  | T9: =IF(T8<>"",AVERAGE($E8:T8)+$EI9,"") ->  | U9: =IF(U8<>"",AVERAGE($E8:U8)+$EI9,"") ->  | V9: =IF(V8<>"",AVERAGE($E8:V8)+$EI9,"") ->  | W9: =IF(W8<>"",AVERAGE($E8:W8)+$EI9,"") ->  | X9: =IF(X8<>"",AVERAGE($E8:X8)+$EI9,"") ->  | Y9: =IF(Y8<>"",AVERAGE($E8:Y8)+$EI9,"") ->  | Z9: =IF(Z8<>"",AVERAGE($E8:Z8)+$EI9,"") ->  | AA9: =IF(AA8<>"",AVERAGE($E8:AA8)+$EI9,"") ->  | AB9: =IF(AB8<>"",AVERAGE($E8:AB8)+$EI9,"") ->  | AC9: =IF(AC8<>"",AVERAGE($E8:AC8)+$EI9,"") ->  | AD9: =IF(AD8<>"",AVERAGE($E8:AD8)+$EI9,"") ->  | AE9: =IF(AE8<>"",AVERAGE($E8:AE8)+$EI9,"") ->  | AF9: =IF(AF8<>"",AVERAGE($E8:AF8)+$EI9,"") ->  | AG9: =IF(AG8<>"",AVERAGE($E8:AG8)+$EI9,"") ->  | AH9: =IF(AH8<>"",AVERAGE($E8:AH8)+$EI9,"") ->  | AI9: =IF(AI8<>"",AVERAGE($E8:AI8)+$EI9,"") ->  | AJ9: =IF(AJ8<>"",AVERAGE($E8:AJ8)+$EI9,"") ->  | AK9: =IF(AK8<>"",AVERAGE($E8:AK8)+$EI9,"") ->  | AL9: =IF(AL8<>"",AVERAGE($E8:AL8)+$EI9,"") ->  | AM9: =IF(AM8<>"",AVERAGE($E8:AM8)+$EI9,"") ->  | AN9: =IF(AN8<>"",AVERAGE($E8:AN8)+$EI9,"") ->  | AO9: =IF(AO8<>"",AVERAGE($E8:AO8)+$EI9,"") ->  | AP9: =IF(AP8<>"",AVERAGE($E8:AP8)+$EI9,"") ->  | AQ9: =IF(AQ8<>"",AVERAGE($E8:AQ8)+$EI9,"") ->  | AR9: =IF(AR8<>"",AVERAGE($E8:AR8)+$EI9,"") ->  | AS9: =IF(AS8<>"",AVERAGE($E8:AS8)+$EI9,"") ->  | AT9: =IF(AT8<>"",AVERAGE($E8:AT8)+$EI9,"") ->  | AU9: =IF(AU8<>"",AVERAGE($E8:AU8)+$EI9,"") ->  | AV9: =IF(AV8<>"",AVERAGE($E8:AV8)+$EI9,"") ->  | AW9: =IF(AW8<>"",AVERAGE($E8:AW8)+$EI9,"") ->  | AX9: =IF(AX8<>"",AVERAGE($E8:AX8)+$EI9,"") ->  | AY9: =IF(AY8<>"",AVERAGE($E8:AY8)+$EI9,"") ->  | AZ9: =IF(AZ8<>"",AVERAGE($E8:AZ8)+$EI9,"") ->  | BA9: =IF(BA8<>"",AVERAGE($E8:BA8)+$EI9,"") ->  | BB9: =IF(BB8<>"",AVERAGE($E8:BB8)+$EI9,"") ->  | BC9: =IF(BC8<>"",AVERAGE($E8:BC8)+$EI9,"") ->  | BD9: =IF(BD8<>"",AVERAGE($E8:BD8)+$EI9,"") ->  | BE9: =IF(BE8<>"",AVERAGE($E8:BE8)+$EI9,"") ->  | BF9: =IF(BF8<>"",AVERAGE($E8:BF8)+$EI9,"") ->  | BG9: =IF(BG8<>"",AVERAGE($E8:BG8)+$EI9,"") ->  | BH9: =IF(BH8<>"",AVERAGE($E8:BH8)+$EI9,"") ->  | BI9: =IF(BI8<>"",AVERAGE($E8:BI8)+$EI9,"") ->  | BJ9: =IF(BJ8<>"",AVERAGE($E8:BJ8)+$EI9,"") ->  | BK9: =IF(BK8<>"",AVERAGE($E8:BK8)+$EI9,"") ->  | BL9: =IF(BL8<>"",AVERAGE($E8:BL8)+$EI9,"") ->  | BM9: =IF(BM8<>"",AVERAGE($E8:BM8)+$EI9,"") ->  | BN9: =IF(BN8<>"",AVERAGE($E8:BN8)+$EI9,"") ->  | BO9: =IF(BO8<>"",AVERAGE($E8:BO8)+$EI9,"") ->  | BP9: =IF(BP8<>"",AVERAGE($E8:BP8)+$EI9,"") ->  | BQ9: =IF(BQ8<>"",AVERAGE($E8:BQ8)+$EI9,"") ->  | BR9: =IF(BR8<>"",AVERAGE($E8:BR8)+$EI9,"") ->  | BS9: =IF(BS8<>"",AVERAGE($E8:BS8)+$EI9,"") ->  | BT9: =IF(BT8<>"",AVERAGE($E8:BT8)+$EI9,"") ->  | BU9: =IF(BU8<>"",AVERAGE($E8:BU8)+$EI9,"") ->  | BV9: =IF(BV8<>"",AVERAGE($E8:BV8)+$EI9,"") ->  | BW9: =IF(BW8<>"",AVERAGE($E8:BW8)+$EI9,"") ->  | BX9: =IF(BX8<>"",AVERAGE($E8:BX8)+$EI9,"") ->  | BY9: =IF(BY8<>"",AVERAGE($E8:BY8)+$EI9,"") ->  | BZ9: =IF(BZ8<>"",AVERAGE($E8:BZ8)+$EI9,"") ->  | CA9: =IF(CA8<>"",AVERAGE($E8:CA8)+$EI9,"") ->  | CB9: =IF(CB8<>"",AVERAGE($E8:CB8)+$EI9,"") ->  | CC9: =IF(CC8<>"",AVERAGE($E8:CC8)+$EI9,"") ->  | CD9: =IF(CD8<>"",AVERAGE($E8:CD8)+$EI9,"") ->  | CE9: =IF(CE8<>"",AVERAGE($E8:CE8)+$EI9,"") ->  | CF9: =IF(CF8<>"",AVERAGE($E8:CF8)+$EI9,"") ->  | CG9: =IF(CG8<>"",AVERAGE($E8:CG8)+$EI9,"") ->  | CH9: =IF(CH8<>"",AVERAGE($E8:CH8)+$EI9,"") ->  | CI9: =IF(CI8<>"",AVERAGE($E8:CI8)+$EI9,"") ->  | CJ9: =IF(CJ8<>"",AVERAGE($E8:CJ8)+$EI9,"") ->  | CK9: =IF(CK8<>"",AVERAGE($E8:CK8)+$EI9,"") ->  | CL9: =IF(CL8<>"",AVERAGE($E8:CL8)+$EI9,"") ->  | CM9: =IF(CM8<>"",AVERAGE($E8:CM8)+$EI9,"") ->  | CN9: =IF(CN8<>"",AVERAGE($E8:CN8)+$EI9,"") ->  | CO9: =IF(CO8<>"",AVERAGE($E8:CO8)+$EI9,"") ->  | CP9: =IF(CP8<>"",AVERAGE($E8:CP8)+$EI9,"") ->  | CQ9: =IF(CQ8<>"",AVERAGE($E8:CQ8)+$EI9,"") ->  | CR9: =IF(CR8<>"",AVERAGE($E8:CR8)+$EI9,"") ->  | CS9: =IF(CS8<>"",AVERAGE($E8:CS8)+$EI9,"") ->  | CT9: =IF(CT8<>"",AVERAGE($E8:CT8)+$EI9,"") ->  | CU9: =IF(CU8<>"",AVERAGE($E8:CU8)+$EI9,"") ->  | CV9: =IF(CV8<>"",AVERAGE($E8:CV8)+$EI9,"") ->  | CW9: =IF(CW8<>"",AVERAGE($E8:CW8)+$EI9,"") ->  | CX9: =IF(CX8<>"",AVERAGE($E8:CX8)+$EI9,"") ->  | CY9: =IF(CY8<>"",AVERAGE($E8:CY8)+$EI9,"") ->  | CZ9: =IF(CZ8<>"",AVERAGE($E8:CZ8)+$EI9,"") ->  | DA9: =IF(DA8<>"",AVERAGE($E8:DA8)+$EI9,"") ->  | DB9: =IF(DB8<>"",AVERAGE($E8:DB8)+$EI9,"") ->  | DC9: =IF(DC8<>"",AVERAGE($E8:DC8)+$EI9,"") ->  | DD9: =IF(DD8<>"",AVERAGE($E8:DD8)+$EI9,"") ->  | DE9: =IF(DE8<>"",AVERAGE($E8:DE8)+$EI9,"") ->  | DF9: =IF(DF8<>"",AVERAGE($E8:DF8)+$EI9,"") ->  | DG9: =IF(DG8<>"",AVERAGE($E8:DG8)+$EI9,"") ->  | DH9: =IF(DH8<>"",AVERAGE($E8:DH8)+$EI9,"") ->  | DI9: =IF(DI8<>"",AVERAGE($E8:DI8)+$EI9,"") ->  | DJ9: =IF(DJ8<>"",AVERAGE($E8:DJ8)+$EI9,"") ->  | DK9: =IF(DK8<>"",AVERAGE($E8:DK8)+$EI9,"") ->  | DL9: =IF(DL8<>"",AVERAGE($E8:DL8)+$EI9,"") ->  | DM9: =IF(DM8<>"",AVERAGE($E8:DM8)+$EI9,"") ->  | DN9: =IF(DN8<>"",AVERAGE($E8:DN8)+$EI9,"") ->  | DO9: =IF(DO8<>"",AVERAGE($E8:DO8)+$EI9,"") ->  | DP9: =IF(DP8<>"",AVERAGE($E8:DP8)+$EI9,"") ->  | DQ9: =IF(DQ8<>"",AVERAGE($E8:DQ8)+$EI9,"") ->  | DR9: =IF(DR8<>"",AVERAGE($E8:DR8)+$EI9,"") ->  | DS9: =IF(DS8<>"",AVERAGE($E8:DS8)+$EI9,"") ->  | DT9: =IF(DT8<>"",AVERAGE($E8:DT8)+$EI9,"") ->  | DU9: =IF(DU8<>"",AVERAGE($E8:DU8)+$EI9,"") ->  | DV9: =IF(DV8<>"",AVERAGE($E8:DV8)+$EI9,"") ->  | DW9: =IF(DW8<>"",AVERAGE($E8:DW8)+$EI9,"") ->  | DX9: =IF(DX8<>"",AVERAGE($E8:DX8)+$EI9,"") ->  | DY9: =IF(DY8<>"",AVERAGE($E8:DY8)+$EI9,"") ->  | DZ9: =IF(DZ8<>"",AVERAGE($E8:DZ8)+$EI9,"") ->  | EA9: =IF(EA8<>"",AVERAGE($E8:EA8)+$EI9,"") ->  | EB9: =IF(EB8<>"",AVERAGE($E8:EB8)+$EI9,"") ->  | EC9: =IF(EC8<>"",AVERAGE($E8:EC8)+$EI9,"") ->  | ED9: =IF(ED8<>"",AVERAGE($E8:ED8)+$EI9,"") ->  | EE9: =IF(AND(SUM(Tabulka!$AG$4)>0.99,(SUM(Tabulka!$AG$4)<2)),-50000+(SUM(E8:ED8)/COUNT(E9:ED9)),IF(OR(SUM(Tabulka!$AG$4)<2),-90000,SUM(E8:ED8)/COUNT(E9:ED9))) -> -90000 | EG9: =IFERROR(SUM(E8:ED8)/COUNT(E8:ED8),) -> 0 | EH9: =CONCATENATE(C4," ",C5) -> Jiří Fiala | EI9: =INDEX(List4!$E$2:$E$17,MATCH(CONCATENATE(C4," ",C5),Tabulka1128[Jmeno_prijmeni],0),1) -> -2.1e-08
A10: Jiří FialaPočet šipek | B10: =CONCATENATE(C4," ",C5) -> Jiří Fiala | D10: Počet šipek | EE10: =IF(AND(SUM(Tabulka!$AG$4)>0.99,(SUM(Tabulka!$AG$4)<2)),-50000+(SUM(E10:ED10)),IF(OR(SUM(Tabulka!$AG$4)<2),-90000,SUM(E10:ED10))) -> -90000 | EG10: =SUM(E10:ED10) -> 0
A11: =CONCATENATE($C$12," ",$C$13,D11) -> Libor HruškaVýhry | B11: =CONCATENATE(C12," ",C13) -> Libor Hruška | C11: =Tabulka!B9 -> 0 | D11: Výhry | E11: 1 | J11: 3 | O11: 1 | T11: 1 | Y11: 0 | AD11: 0 | AI11: 1 | AN11: 0 | AS11: 1 | AX11: 0 | BC11: 1 | BH11: 0 | BM11: 1 | BR11: 0 | BW11: 2 | CB11: 0 | CG11: 0 | EE11: =IF(AND(SUM(Tabulka!$AG$9)>0.99,(SUM(Tabulka!$AG$9)<2)),-50000+(SUM(E11:ED11)),IF(OR(SUM(Tabulka!$AG$9)<2),-90000,SUM(E11:ED11))) -> 12 | EG11: 12
A12: Libor HruškaProhry | B12: Libor Hruška | C12: =Tabulka!B10 -> Libor | D12: Prohry | E12: 0 | J12: 0 | O12: 0 | T12: 2 | Y12: 0 | AD12: 0 | AI12: 0 | AN12: 0 | AS12: 0 | AX12: 0 | BC12: 2 | BH12: 0 | BM12: 0 | BR12: 1 | BW12: 0 | CB12: 1 | CG12: 0 | EE12: =IF(AND(SUM(Tabulka!$AG$9)>0.99,(SUM(Tabulka!$AG$9)<2)),-50000+(SUM(E12:ED12)),IF(OR(SUM(Tabulka!$AG$9)<2),-90000,SUM(E12:ED12))) -> 6 | EF12: =SUM(EE11-EE12) -> 6 | EG12: 6
A13: Libor HruškaPlaceno panáků | B13: =CONCATENATE(C12," ",C13) -> Libor Hruška | C13: =Tabulka!B11 -> Hruška | D13: Placeno panáků | E13: 0 | J13: 0 | O13: 0 | T13: 2 | Y13: 0 | AD13: 0 | AI13: 0 | AN13: 0 | AS13: 0 | AX13: 0 | BC13: 6 | BH13: 0 | BM13: 0 | BR13: 1 | BW13: 0 | CB13: 1 | CG13: 0 | EE13: =IF(AND(SUM(Tabulka!$AG$9)>0.99,(SUM(Tabulka!$AG$9)<2)),-50000+(SUM(E13:ED13)),IF(OR(SUM(Tabulka!$AG$9)<2),-90000,SUM(E13:ED13))) -> 10 | EG13: 10
A14: Libor HruškaPřehozy | B14: =CONCATENATE(C12," ",C13) -> Libor Hruška | C14: =Tabulka!B12 -> 0 | D14: Přehozy | E14: 1 | J14: 2 | O14: 0 | T14: 1 | Y14: 1 | AD14: 3 | AI14: 0 | AN14: 0 | AS14: 0 | AX14: 2 | BC14: 2 | BH14: 1 | BM14: 1 | BR14: 1 | BW14: 0 | CB14: 0 | CG14: 0 | EE14: =IF(AND(SUM(Tabulka!$AG$9)>0.99,(SUM(Tabulka!$AG$9)<2)),-50000+(SUM(E14:ED14)),IF(OR(SUM(Tabulka!$AG$9)<2),-90000,SUM(E14:ED14))) -> 15 | EG14: 15
A15: Libor HruškaPoč. kol | B15: =CONCATENATE(C12," ",C13) -> Libor Hruška | C15: =Tabulka!B13 -> 0 | D15: Poč. kol | E15: 4 | J15: 4 | O15: 4 | T15: 4 | Y15: 4 | AD15: 4 | AI15: 4 | AN15: 4 | AS15: 3 | AX15: 4 | BC15: 5 | BH15: 4 | BM15: 4 | BR15: 5 | BW15: 4 | CB15: 4 | CG15: 4 | EE15: =IF(AND(SUM(Tabulka!$AG$9)>0.99,(SUM(Tabulka!$AG$9)<2)),-50000+(SUM(E15:ED15)),IF(OR(SUM(Tabulka!$AG$9)<2),-90000,SUM(E15:ED15))) -> 69 | EG15: 69
A16: Libor HruškaPočet konečných bodů | B16: =CONCATENATE(C12," ",C13) -> Libor Hruška | D16: Počet konečných bodů | E16: 19 | F16: 45 | G16: 98 | H16: 0 | J16: 0 | K16: 0 | L16: 25 | M16: 0 | O16: 0 | P16: 16 | Q16: 70 | R16: 74 | T16: 140 | U16: 0 | V16: 56 | W16: 182 | Y16: 118 | Z16: 178 | AA16: 33 | AB16: 21 | AD16: 33 | AE16: 74 | AF16: 3 | AG16: 67 | AI16: 85 | AJ16: 0 | AK16: 11 | AL16: 90 | AN16: 71 | AO16: 108 | AP16: 41 | AQ16: 33 | AS16: 26 | AT16: 0 | AU16: 23 | AX16: 16 | AY16: 22 | AZ16: 23 | BA16: 28 | BC16: 50 | BD16: 54 | BE16: 0 | BF16: 53 | BG16: 21 | BH16: 30 | BI16: 67 | BJ16: 98 | BK16: 91 | BM16: 56 | BN16: 0 | BO16: 110 | BP16: 15 | BR16: 9 | BS16: 52 | BT16: 122 | BU16: 64 | BV16: 44 | BW16: 31 | BX16: 0 | BY16: 0 | BZ16: 23 | CB16: 96 | CC16: 122 | CD16: 52 | CE16: 69 | CG16: 145 | CH16: 36 | CI16: 22 | CJ16: 38 | EE16: =IF(AND(SUM(Tabulka!$AG$9)>0.99,(SUM(Tabulka!$AG$9)<2)),-50000-(SUM(E16:ED16)),IF(OR(SUM(Tabulka!$AG$9)<2),-90000,SUM(E16:ED16))) -> 3399 | EG16: 3399
A17: Libor HruškaPrůměr konečných bodů na kolo | B17: =CONCATENATE(C12," ",C13) -> Libor Hruška | D17: Průměr konečných bodů na kolo | E17: =IF(E16<>"",AVERAGE($E16:E16)+$EI17,"") -> 18.99999997 | F17: =IF(F16<>"",AVERAGE($E16:F16)+$EI17,"") -> 31.99999997 | G17: =IF(G16<>"",AVERAGE($E16:G16)+$EI17,"") -> 53.99999997 | H17: =IF(H16<>"",AVERAGE($E16:H16)+$EI17,"") -> 40.49999997 | I17: =IF(I16<>"",AVERAGE($E16:I16)+$EI17,"") ->  | J17: =IF(J16<>"",AVERAGE($E16:J16)+$EI17,"") -> 32.39999997 | K17: =IF(K16<>"",AVERAGE($E16:K16)+$EI17,"") -> 26.99999997 | L17: =IF(L16<>"",AVERAGE($E16:L16)+$EI17,"") -> 26.71428568 | M17: =IF(M16<>"",AVERAGE($E16:M16)+$EI17,"") -> 23.37499997 | N17: =IF(N16<>"",AVERAGE($E16:N16)+$EI17,"") ->  | O17: =IF(O16<>"",AVERAGE($E16:O16)+$EI17,"") -> 20.77777775 | P17: =IF(P16<>"",AVERAGE($E16:P16)+$EI17,"") -> 20.29999997 | Q17: =IF(Q16<>"",AVERAGE($E16:Q16)+$EI17,"") -> 24.81818179 | R17: =IF(R16<>"",AVERAGE($E16:R16)+$EI17,"") -> 28.91666664 | S17: =IF(S16<>"",AVERAGE($E16:S16)+$EI17,"") ->  | T17: =IF(T16<>"",AVERAGE($E16:T16)+$EI17,"") -> 37.46153843 | U17: =IF(U16<>"",AVERAGE($E16:U16)+$EI17,"") -> 34.78571425 | V17: =IF(V16<>"",AVERAGE($E16:V16)+$EI17,"") -> 36.19999997 | W17: =IF(W16<>"",AVERAGE($E16:W16)+$EI17,"") -> 45.31249997 | X17: =IF(X16<>"",AVERAGE($E16:X16)+$EI17,"") ->  | Y17: =IF(Y16<>"",AVERAGE($E16:Y16)+$EI17,"") -> 49.58823526 | Z17: =IF(Z16<>"",AVERAGE($E16:Z16)+$EI17,"") -> 56.72222219 | AA17: =IF(AA16<>"",AVERAGE($E16:AA16)+$EI17,"") -> 55.47368418 | AB17: =IF(AB16<>"",AVERAGE($E16:AB16)+$EI17,"") -> 53.74999997 | AC17: =IF(AC16<>"",AVERAGE($E16:AC16)+$EI17,"") ->  | AD17: =IF(AD16<>"",AVERAGE($E16:AD16)+$EI17,"") -> 52.76190473 | AE17: =IF(AE16<>"",AVERAGE($E16:AE16)+$EI17,"") -> 53.7272727 | AF17: =IF(AF16<>"",AVERAGE($E16:AF16)+$EI17,"") -> 51.5217391 | AG17: =IF(AG16<>"",AVERAGE($E16:AG16)+$EI17,"") -> 52.16666664 | AH17: =IF(AH16<>"",AVERAGE($E16:AH16)+$EI17,"") ->  | AI17: =IF(AI16<>"",AVERAGE($E16:AI16)+$EI17,"") -> 53.47999997 | AJ17: =IF(AJ16<>"",AVERAGE($E16:AJ16)+$EI17,"") -> 51.42307689 | AK17: =IF(AK16<>"",AVERAGE($E16:AK16)+$EI17,"") -> 49.92592589 | AL17: =IF(AL16<>"",AVERAGE($E16:AL16)+$EI17,"") -> 51.35714283 | AM17: =IF(AM16<>"",AVERAGE($E16:AM16)+$EI17,"") ->  | AN17: =IF(AN16<>"",AVERAGE($E16:AN16)+$EI17,"") -> 52.03448273 | AO17: =IF(AO16<>"",AVERAGE($E16:AO16)+$EI17,"") -> 53.89999997 | AP17: =IF(AP16<>"",AVERAGE($E16:AP16)+$EI17,"") -> 53.48387094 | AQ17: =IF(AQ16<>"",AVERAGE($E16:AQ16)+$EI17,"") -> 52.84374997 | AR17: =IF(AR16<>"",AVERAGE($E16:AR16)+$EI17,"") ->  | AS17: =IF(AS16<>"",AVERAGE($E16:AS16)+$EI17,"") -> 52.030303 | AT17: =IF(AT16<>"",AVERAGE($E16:AT16)+$EI17,"") -> 50.49999997 | AU17: =IF(AU16<>"",AVERAGE($E16:AU16)+$EI17,"") -> 49.71428568 | AV17: =IF(AV16<>"",AVERAGE($E16:AV16)+$EI17,"") ->  | AW17: =IF(AW16<>"",AVERAGE($E16:AW16)+$EI17,"") ->  | AX17: =IF(AX16<>"",AVERAGE($E16:AX16)+$EI17,"") -> 48.77777775 | AY17: =IF(AY16<>"",AVERAGE($E16:AY16)+$EI17,"") -> 48.05405402 | AZ17: =IF(AZ16<>"",AVERAGE($E16:AZ16)+$EI17,"") -> 47.39473681 | BA17: =IF(BA16<>"",AVERAGE($E16:BA16)+$EI17,"") -> 46.89743587 | BB17: =IF(BB16<>"",AVERAGE($E16:BB16)+$EI17,"") ->  | BC17: =IF(BC16<>"",AVERAGE($E16:BC16)+$EI17,"") -> 46.97499997 | BD17: =IF(BD16<>"",AVERAGE($E16:BD16)+$EI17,"") -> 47.14634143 | BE17: =IF(BE16<>"",AVERAGE($E16:BE16)+$EI17,"") -> 46.02380949 | BF17: =IF(BF16<>"",AVERAGE($E16:BF16)+$EI17,"") -> 46.18604648 | BG17: =IF(BG16<>"",AVERAGE($E16:BG16)+$EI17,"") -> 45.61363633 | BH17: =IF(BH16<>"",AVERAGE($E16:BH16)+$EI17,"") -> 45.26666664 | BI17: =IF(BI16<>"",AVERAGE($E16:BI16)+$EI17,"") -> 45.7391304 | BJ17: =IF(BJ16<>"",AVERAGE($E16:BJ16)+$EI17,"") -> 46.8510638 | BK17: =IF(BK16<>"",AVERAGE($E16:BK16)+$EI17,"") -> 47.7708333 | BL17: =IF(BL16<>"",AVERAGE($E16:BL16)+$EI17,"") ->  | BM17: =IF(BM16<>"",AVERAGE($E16:BM16)+$EI17,"") -> 47.93877548 | BN17: =IF(BN16<>"",AVERAGE($E16:BN16)+$EI17,"") -> 46.97999997 | BO17: =IF(BO16<>"",AVERAGE($E16:BO16)+$EI17,"") -> 48.21568624 | BP17: =IF(BP16<>"",AVERAGE($E16:BP16)+$EI17,"") -> 47.57692305 | BQ17: =IF(BQ16<>"",AVERAGE($E16:BQ16)+$EI17,"") ->  | BR17: =IF(BR16<>"",AVERAGE($E16:BR16)+$EI17,"") -> 46.84905657 | BS17: =IF(BS16<>"",AVERAGE($E16:BS16)+$EI17,"") -> 46.94444441 | BT17: =IF(BT16<>"",AVERAGE($E16:BT16)+$EI17,"") -> 48.30909088 | BU17: =IF(BU16<>"",AVERAGE($E16:BU16)+$EI17,"") -> 48.58928568 | BV17: =IF(BV16<>"",AVERAGE($E16:BV16)+$EI17,"") -> 48.5087719 | BW17: =IF(BW16<>"",AVERAGE($E16:BW16)+$EI17,"") -> 48.20689652 | BX17: =IF(BX16<>"",AVERAGE($E16:BX16)+$EI17,"") -> 47.38983048 | BY17: =IF(BY16<>"",AVERAGE($E16:BY16)+$EI17,"") -> 46.59999997 | BZ17: =IF(BZ16<>"",AVERAGE($E16:BZ16)+$EI17,"") -> 46.21311472 | CA17: =IF(CA16<>"",AVERAGE($E16:CA16)+$EI17,"") ->  | CB17: =IF(CB16<>"",AVERAGE($E16:CB16)+$EI17,"") -> 47.016129 | CC17: =IF(CC16<>"",AVERAGE($E16:CC16)+$EI17,"") -> 48.20634918 | CD17: =IF(CD16<>"",AVERAGE($E16:CD16)+$EI17,"") -> 48.26562497 | CE17: =IF(CE16<>"",AVERAGE($E16:CE16)+$EI17,"") -> 48.58461535 | CF17: =IF(CF16<>"",AVERAGE($E16:CF16)+$EI17,"") ->  | CG17: =IF(CG16<>"",AVERAGE($E16:CG16)+$EI17,"") -> 50.04545451 | CH17: =IF(CH16<>"",AVERAGE($E16:CH16)+$EI17,"") -> 49.83582086 | CI17: =IF(CI16<>"",AVERAGE($E16:CI16)+$EI17,"") -> 49.42647056 | CJ17: =IF(CJ16<>"",AVERAGE($E16:CJ16)+$EI17,"") -> 49.26086953 | CK17: =IF(CK16<>"",AVERAGE($E16:CK16)+$EI17,"") ->  | CL17: =IF(CL16<>"",AVERAGE($E16:CL16)+$EI17,"") ->  | CM17: =IF(CM16<>"",AVERAGE($E16:CM16)+$EI17,"") ->  | CN17: =IF(CN16<>"",AVERAGE($E16:CN16)+$EI17,"") ->  | CO17: =IF(CO16<>"",AVERAGE($E16:CO16)+$EI17,"") ->  | CP17: =IF(CP16<>"",AVERAGE($E16:CP16)+$EI17,"") ->  | CQ17: =IF(CQ16<>"",AVERAGE($E16:CQ16)+$EI17,"") ->  | CR17: =IF(CR16<>"",AVERAGE($E16:CR16)+$EI17,"") ->  | CS17: =IF(CS16<>"",AVERAGE($E16:CS16)+$EI17,"") ->  | CT17: =IF(CT16<>"",AVERAGE($E16:CT16)+$EI17,"") ->  | CU17: =IF(CU16<>"",AVERAGE($E16:CU16)+$EI17,"") ->  | CV17: =IF(CV16<>"",AVERAGE($E16:CV16)+$EI17,"") ->  | CW17: =IF(CW16<>"",AVERAGE($E16:CW16)+$EI17,"") ->  | CX17: =IF(CX16<>"",AVERAGE($E16:CX16)+$EI17,"") ->  | CY17: =IF(CY16<>"",AVERAGE($E16:CY16)+$EI17,"") ->  | CZ17: =IF(CZ16<>"",AVERAGE($E16:CZ16)+$EI17,"") ->  | DA17: =IF(DA16<>"",AVERAGE($E16:DA16)+$EI17,"") ->  | DB17: =IF(DB16<>"",AVERAGE($E16:DB16)+$EI17,"") ->  | DC17: =IF(DC16<>"",AVERAGE($E16:DC16)+$EI17,"") ->  | DD17: =IF(DD16<>"",AVERAGE($E16:DD16)+$EI17,"") ->  | DE17: =IF(DE16<>"",AVERAGE($E16:DE16)+$EI17,"") ->  | DF17: =IF(DF16<>"",AVERAGE($E16:DF16)+$EI17,"") ->  | DG17: =IF(DG16<>"",AVERAGE($E16:DG16)+$EI17,"") ->  | DH17: =IF(DH16<>"",AVERAGE($E16:DH16)+$EI17,"") ->  | DI17: =IF(DI16<>"",AVERAGE($E16:DI16)+$EI17,"") ->  | DJ17: =IF(DJ16<>"",AVERAGE($E16:DJ16)+$EI17,"") ->  | DK17: =IF(DK16<>"",AVERAGE($E16:DK16)+$EI17,"") ->  | DL17: =IF(DL16<>"",AVERAGE($E16:DL16)+$EI17,"") ->  | DM17: =IF(DM16<>"",AVERAGE($E16:DM16)+$EI17,"") ->  | DN17: =IF(DN16<>"",AVERAGE($E16:DN16)+$EI17,"") ->  | DO17: =IF(DO16<>"",AVERAGE($E16:DO16)+$EI17,"") ->  | DP17: =IF(DP16<>"",AVERAGE($E16:DP16)+$EI17,"") ->  | DQ17: =IF(DQ16<>"",AVERAGE($E16:DQ16)+$EI17,"") ->  | DR17: =IF(DR16<>"",AVERAGE($E16:DR16)+$EI17,"") ->  | DS17: =IF(DS16<>"",AVERAGE($E16:DS16)+$EI17,"") ->  | DT17: =IF(DT16<>"",AVERAGE($E16:DT16)+$EI17,"") ->  | DU17: =IF(DU16<>"",AVERAGE($E16:DU16)+$EI17,"") ->  | DV17: =IF(DV16<>"",AVERAGE($E16:DV16)+$EI17,"") ->  | DW17: =IF(DW16<>"",AVERAGE($E16:DW16)+$EI17,"") ->  | DX17: =IF(DX16<>"",AVERAGE($E16:DX16)+$EI17,"") ->  | DY17: =IF(DY16<>"",AVERAGE($E16:DY16)+$EI17,"") ->  | DZ17: =IF(DZ16<>"",AVERAGE($E16:DZ16)+$EI17,"") ->  | EA17: =IF(EA16<>"",AVERAGE($E16:EA16)+$EI17,"") ->  | EB17: =IF(EB16<>"",AVERAGE($E16:EB16)+$EI17,"") ->  | EC17: =IF(EC16<>"",AVERAGE($E16:EC16)+$EI17,"") ->  | ED17: =IF(ED16<>"",AVERAGE($E16:ED16)+$EI17,"") ->  | EE17: =IF(AND(SUM(Tabulka!$AG$9)>0.99,(SUM(Tabulka!$AG$9)<2)),-50000+(SUM(E16:ED16)/COUNT(E17:ED17)),IF(OR(SUM(Tabulka!$AG$9)<2),-90000,SUM(E16:ED16)/COUNT(E17:ED17))) -> 49.26086957 | EG17: =IFERROR(SUM(E16:ED16)/COUNT(E16:ED16),) -> 49.26086957 | EH17: =CONCATENATE(C12," ",C13) -> Libor Hruška | EI17: =INDEX(List4!$E$2:$E$17,MATCH(CONCATENATE(C12," ",C13),Tabulka1128[Jmeno_prijmeni],0),1) -> -3.1e-08
A18: Libor HruškaPočet šipek | B18: =CONCATENATE(C12," ",C13) -> Libor Hruška | D18: Počet šipek | EE18: =IF(AND(SUM(Tabulka!$AG$9)>0.99,(SUM(Tabulka!$AG$9)<2)),-50000+(SUM(E18:ED18)),IF(OR(SUM(Tabulka!$AG$9)<2),-90000,SUM(E18:ED18))) -> 0 | EG18: 0
A19: =CONCATENATE($C$20," ",$C$21,D19) -> Petr ŠumVýhry | B19: =CONCATENATE(C20," ",C21) -> Petr Šum | C19: =Tabulka!B14 -> 0 | D19: Výhry | CG19: 0 | EE19: =IF(AND(SUM(Tabulka!$AG$14)>0.99,(SUM(Tabulka!$AG$14)<2)),-50000+(SUM(E19:ED19)),IF(OR(SUM(Tabulka!$AG$14)<2),-90000,SUM(E19:ED19))) -> -50000 | EG19: 0
A20: Petr ŠumProhry | B20: Petr Šum | C20: =Tabulka!B15 -> Petr | D20: Prohry | CG20: 4 | EE20: =IF(AND(SUM(Tabulka!$AG$14)>0.99,(SUM(Tabulka!$AG$14)<2)),-50000+(SUM(E20:ED20)),IF(OR(SUM(Tabulka!$AG$14)<2),-90000,SUM(E20:ED20))) -> -49996 | EF20: =SUM(EE19-EE20) -> -4 | EG20: 4
A21: Petr ŠumPlaceno panáků | B21: =CONCATENATE(C20," ",C21) -> Petr Šum | C21: =Tabulka!B16 -> Šum | D21: Placeno panáků | CG21: 4 | EE21: =IF(AND(SUM(Tabulka!$AG$14)>0.99,(SUM(Tabulka!$AG$14)<2)),-50000+(SUM(E21:ED21)),IF(OR(SUM(Tabulka!$AG$14)<2),-90000,SUM(E21:ED21))) -> -49996 | EG21: 4
A22: Petr ŠumPřehozy | B22: =CONCATENATE(C20," ",C21) -> Petr Šum | C22: =Tabulka!B17 -> 0 | D22: Přehozy | CG22: 0 | EE22: =IF(AND(SUM(Tabulka!$AG$14)>0.99,(SUM(Tabulka!$AG$14)<2)),-50000+(SUM(E22:ED22)),IF(OR(SUM(Tabulka!$AG$14)<2),-90000,SUM(E22:ED22))) -> -50000 | EG22: 0
A23: Petr ŠumPoč. kol | B23: =CONCATENATE(C20," ",C21) -> Petr Šum | C23: =Tabulka!B18 -> 0 | D23: Poč. kol | CG23: 4 | EE23: =IF(AND(SUM(Tabulka!$AG$14)>0.99,(SUM(Tabulka!$AG$14)<2)),-50000+(SUM(E23:ED23)),IF(OR(SUM(Tabulka!$AG$14)<2),-90000,SUM(E23:ED23))) -> -49996 | EG23: 4
A24: Petr ŠumPočet konečných bodů | B24: =CONCATENATE(C20," ",C21) -> Petr Šum | D24: Počet konečných bodů | CG24: 186 | CH24: 262 | CI24: 55 | CJ24: 124 | EE24: =IF(AND(SUM(Tabulka!$AG$14)>0.99,(SUM(Tabulka!$AG$14)<2)),-50000-(SUM(E24:ED24)),IF(OR(SUM(Tabulka!$AG$14)<2),-90000,SUM(E24:ED24))) -> -50627 | EG24: 627
A25: Petr ŠumPrůměr konečných bodů na kolo | B25: =CONCATENATE(C20," ",C21) -> Petr Šum | D25: Průměr konečných bodů na kolo | E25: =IF(E24<>"",AVERAGE($E24:E24)+$EI25,"") ->  | F25: =IF(F24<>"",AVERAGE($E24:F24)+$EI25,"") ->  | G25: =IF(G24<>"",AVERAGE($E24:G24)+$EI25,"") ->  | H25: =IF(H24<>"",AVERAGE($E24:H24)+$EI25,"") ->  | I25: =IF(I24<>"",AVERAGE($E24:I24)+$EI25,"") ->  | J25: =IF(J24<>"",AVERAGE($E24:J24)+$EI25,"") ->  | K25: =IF(K24<>"",AVERAGE($E24:K24)+$EI25,"") ->  | L25: =IF(L24<>"",AVERAGE($E24:L24)+$EI25,"") ->  | M25: =IF(M24<>"",AVERAGE($E24:M24)+$EI25,"") ->  | N25: =IF(N24<>"",AVERAGE($E24:N24)+$EI25,"") ->  | O25: =IF(O24<>"",AVERAGE($E24:O24)+$EI25,"") ->  | P25: =IF(P24<>"",AVERAGE($E24:P24)+$EI25,"") ->  | Q25: =IF(Q24<>"",AVERAGE($E24:Q24)+$EI25,"") ->  | R25: =IF(R24<>"",AVERAGE($E24:R24)+$EI25,"") ->  | S25: =IF(S24<>"",AVERAGE($E24:S24)+$EI25,"") ->  | T25: =IF(T24<>"",AVERAGE($E24:T24)+$EI25,"") ->  | U25: =IF(U24<>"",AVERAGE($E24:U24)+$EI25,"") ->  | V25: =IF(V24<>"",AVERAGE($E24:V24)+$EI25,"") ->  | W25: =IF(W24<>"",AVERAGE($E24:W24)+$EI25,"") ->  | X25: =IF(X24<>"",AVERAGE($E24:X24)+$EI25,"") ->  | Y25: =IF(Y24<>"",AVERAGE($E24:Y24)+$EI25,"") ->  | Z25: =IF(Z24<>"",AVERAGE($E24:Z24)+$EI25,"") ->  | AA25: =IF(AA24<>"",AVERAGE($E24:AA24)+$EI25,"") ->  | AB25: =IF(AB24<>"",AVERAGE($E24:AB24)+$EI25,"") ->  | AC25: =IF(AC24<>"",AVERAGE($E24:AC24)+$EI25,"") ->  | AD25: =IF(AD24<>"",AVERAGE($E24:AD24)+$EI25,"") ->  | AE25: =IF(AE24<>"",AVERAGE($E24:AE24)+$EI25,"") ->  | AF25: =IF(AF24<>"",AVERAGE($E24:AF24)+$EI25,"") ->  | AG25: =IF(AG24<>"",AVERAGE($E24:AG24)+$EI25,"") ->  | AH25: =IF(AH24<>"",AVERAGE($E24:AH24)+$EI25,"") ->  | AI25: =IF(AI24<>"",AVERAGE($E24:AI24)+$EI25,"") ->  | AJ25: =IF(AJ24<>"",AVERAGE($E24:AJ24)+$EI25,"") ->  | AK25: =IF(AK24<>"",AVERAGE($E24:AK24)+$EI25,"") ->  | AL25: =IF(AL24<>"",AVERAGE($E24:AL24)+$EI25,"") ->  | AM25: =IF(AM24<>"",AVERAGE($E24:AM24)+$EI25,"") ->  | AN25: =IF(AN24<>"",AVERAGE($E24:AN24)+$EI25,"") ->  | AO25: =IF(AO24<>"",AVERAGE($E24:AO24)+$EI25,"") ->  | AP25: =IF(AP24<>"",AVERAGE($E24:AP24)+$EI25,"") ->  | AQ25: =IF(AQ24<>"",AVERAGE($E24:AQ24)+$EI25,"") ->  | AR25: =IF(AR24<>"",AVERAGE($E24:AR24)+$EI25,"") ->  | AS25: =IF(AS24<>"",AVERAGE($E24:AS24)+$EI25,"") ->  | AT25: =IF(AT24<>"",AVERAGE($E24:AT24)+$EI25,"") ->  | AU25: =IF(AU24<>"",AVERAGE($E24:AU24)+$EI25,"") ->  | AV25: =IF(AV24<>"",AVERAGE($E24:AV24)+$EI25,"") ->  | AW25: =IF(AW24<>"",AVERAGE($E24:AW24)+$EI25,"") ->  | AX25: =IF(AX24<>"",AVERAGE($E24:AX24)+$EI25,"") ->  | AY25: =IF(AY24<>"",AVERAGE($E24:AY24)+$EI25,"") ->  | AZ25: =IF(AZ24<>"",AVERAGE($E24:AZ24)+$EI25,"") ->  | BA25: =IF(BA24<>"",AVERAGE($E24:BA24)+$EI25,"") ->  | BB25: =IF(BB24<>"",AVERAGE($E24:BB24)+$EI25,"") ->  | BC25: =IF(BC24<>"",AVERAGE($E24:BC24)+$EI25,"") ->  | BD25: =IF(BD24<>"",AVERAGE($E24:BD24)+$EI25,"") ->  | BE25: =IF(BE24<>"",AVERAGE($E24:BE24)+$EI25,"") ->  | BF25: =IF(BF24<>"",AVERAGE($E24:BF24)+$EI25,"") ->  | BG25: =IF(BG24<>"",AVERAGE($E24:BG24)+$EI25,"") ->  | BH25: =IF(BH24<>"",AVERAGE($E24:BH24)+$EI25,"") ->  | BI25: =IF(BI24<>"",AVERAGE($E24:BI24)+$EI25,"") ->  | BJ25: =IF(BJ24<>"",AVERAGE($E24:BJ24)+$EI25,"") ->  | BK25: =IF(BK24<>"",AVERAGE($E24:BK24)+$EI25,"") ->  | BL25: =IF(BL24<>"",AVERAGE($E24:BL24)+$EI25,"") ->  | BM25: =IF(BM24<>"",AVERAGE($E24:BM24)+$EI25,"") ->  | BN25: =IF(BN24<>"",AVERAGE($E24:BN24)+$EI25,"") ->  | BO25: =IF(BO24<>"",AVERAGE($E24:BO24)+$EI25,"") ->  | BP25: =IF(BP24<>"",AVERAGE($E24:BP24)+$EI25,"") ->  | BQ25: =IF(BQ24<>"",AVERAGE($E24:BQ24)+$EI25,"") ->  | BR25: =IF(BR24<>"",AVERAGE($E24:BR24)+$EI25,"") ->  | BS25: =IF(BS24<>"",AVERAGE($E24:BS24)+$EI25,"") ->  | BT25: =IF(BT24<>"",AVERAGE($E24:BT24)+$EI25,"") ->  | BU25: =IF(BU24<>"",AVERAGE($E24:BU24)+$EI25,"") ->  | BV25: =IF(BV24<>"",AVERAGE($E24:BV24)+$EI25,"") ->  | BW25: =IF(BW24<>"",AVERAGE($E24:BW24)+$EI25,"") ->  | BX25: =IF(BX24<>"",AVERAGE($E24:BX24)+$EI25,"") ->  | BY25: =IF(BY24<>"",AVERAGE($E24:BY24)+$EI25,"") ->  | BZ25: =IF(BZ24<>"",AVERAGE($E24:BZ24)+$EI25,"") ->  | CA25: =IF(CA24<>"",AVERAGE($E24:CA24)+$EI25,"") ->  | CB25: =IF(CB24<>"",AVERAGE($E24:CB24)+$EI25,"") ->  | CC25: =IF(CC24<>"",AVERAGE($E24:CC24)+$EI25,"") ->  | CD25: =IF(CD24<>"",AVERAGE($E24:CD24)+$EI25,"") ->  | CE25: =IF(CE24<>"",AVERAGE($E24:CE24)+$EI25,"") ->  | CF25: =IF(CF24<>"",AVERAGE($E24:CF24)+$EI25,"") ->  | CG25: =IF(CG24<>"",AVERAGE($E24:CG24)+$EI25,"") -> 185.9999998 | CH25: =IF(CH24<>"",AVERAGE($E24:CH24)+$EI25,"") -> 223.9999998 | CI25: =IF(CI24<>"",AVERAGE($E24:CI24)+$EI25,"") -> 167.6666665 | CJ25: =IF(CJ24<>"",AVERAGE($E24:CJ24)+$EI25,"") -> 156.7499998 | CK25: =IF(CK24<>"",AVERAGE($E24:CK24)+$EI25,"") ->  | CL25: =IF(CL24<>"",AVERAGE($E24:CL24)+$EI25,"") ->  | CM25: =IF(CM24<>"",AVERAGE($E24:CM24)+$EI25,"") ->  | CN25: =IF(CN24<>"",AVERAGE($E24:CN24)+$EI25,"") ->  | CO25: =IF(CO24<>"",AVERAGE($E24:CO24)+$EI25,"") ->  | CP25: =IF(CP24<>"",AVERAGE($E24:CP24)+$EI25,"") ->  | CQ25: =IF(CQ24<>"",AVERAGE($E24:CQ24)+$EI25,"") ->  | CR25: =IF(CR24<>"",AVERAGE($E24:CR24)+$EI25,"") ->  | CS25: =IF(CS24<>"",AVERAGE($E24:CS24)+$EI25,"") ->  | CT25: =IF(CT24<>"",AVERAGE($E24:CT24)+$EI25,"") ->  | CU25: =IF(CU24<>"",AVERAGE($E24:CU24)+$EI25,"") ->  | CV25: =IF(CV24<>"",AVERAGE($E24:CV24)+$EI25,"") ->  | CW25: =IF(CW24<>"",AVERAGE($E24:CW24)+$EI25,"") ->  | CX25: =IF(CX24<>"",AVERAGE($E24:CX24)+$EI25,"") ->  | CY25: =IF(CY24<>"",AVERAGE($E24:CY24)+$EI25,"") ->  | CZ25: =IF(CZ24<>"",AVERAGE($E24:CZ24)+$EI25,"") ->  | DA25: =IF(DA24<>"",AVERAGE($E24:DA24)+$EI25,"") ->  | DB25: =IF(DB24<>"",AVERAGE($E24:DB24)+$EI25,"") ->  | DC25: =IF(DC24<>"",AVERAGE($E24:DC24)+$EI25,"") ->  | DD25: =IF(DD24<>"",AVERAGE($E24:DD24)+$EI25,"") ->  | DE25: =IF(DE24<>"",AVERAGE($E24:DE24)+$EI25,"") ->  | DF25: =IF(DF24<>"",AVERAGE($E24:DF24)+$EI25,"") ->  | DG25: =IF(DG24<>"",AVERAGE($E24:DG24)+$EI25,"") ->  | DH25: =IF(DH24<>"",AVERAGE($E24:DH24)+$EI25,"") ->  | DI25: =IF(DI24<>"",AVERAGE($E24:DI24)+$EI25,"") ->  | DJ25: =IF(DJ24<>"",AVERAGE($E24:DJ24)+$EI25,"") ->  | DK25: =IF(DK24<>"",AVERAGE($E24:DK24)+$EI25,"") ->  | DL25: =IF(DL24<>"",AVERAGE($E24:DL24)+$EI25,"") ->  | DM25: =IF(DM24<>"",AVERAGE($E24:DM24)+$EI25,"") ->  | DN25: =IF(DN24<>"",AVERAGE($E24:DN24)+$EI25,"") ->  | DO25: =IF(DO24<>"",AVERAGE($E24:DO24)+$EI25,"") ->  | DP25: =IF(DP24<>"",AVERAGE($E24:DP24)+$EI25,"") ->  | DQ25: =IF(DQ24<>"",AVERAGE($E24:DQ24)+$EI25,"") ->  | DR25: =IF(DR24<>"",AVERAGE($E24:DR24)+$EI25,"") ->  | DS25: =IF(DS24<>"",AVERAGE($E24:DS24)+$EI25,"") ->  | DT25: =IF(DT24<>"",AVERAGE($E24:DT24)+$EI25,"") ->  | DU25: =IF(DU24<>"",AVERAGE($E24:DU24)+$EI25,"") ->  | DV25: =IF(DV24<>"",AVERAGE($E24:DV24)+$EI25,"") ->  | DW25: =IF(DW24<>"",AVERAGE($E24:DW24)+$EI25,"") ->  | DX25: =IF(DX24<>"",AVERAGE($E24:DX24)+$EI25,"") ->  | DY25: =IF(DY24<>"",AVERAGE($E24:DY24)+$EI25,"") ->  | DZ25: =IF(DZ24<>"",AVERAGE($E24:DZ24)+$EI25,"") ->  | EA25: =IF(EA24<>"",AVERAGE($E24:EA24)+$EI25,"") ->  | EB25: =IF(EB24<>"",AVERAGE($E24:EB24)+$EI25,"") ->  | EC25: =IF(EC24<>"",AVERAGE($E24:EC24)+$EI25,"") ->  | ED25: =IF(ED24<>"",AVERAGE($E24:ED24)+$EI25,"") ->  | EE25: =IF(AND(SUM(Tabulka!$AG$14)>0.99,(SUM(Tabulka!$AG$14)<2)),-50000+(SUM(E24:ED24)/COUNT(E25:ED25)),IF(OR(SUM(Tabulka!$AG$14)<2),-90000,SUM(E24:ED24)/COUNT(E25:ED25))) -> -49843.25 | EG25: =IFERROR(SUM(E24:ED24)/COUNT(E24:ED24),) -> 156.75 | EH25: =CONCATENATE(C20," ",C21) -> Petr Šum | EI25: =INDEX(List4!$E$2:$E$17,MATCH(CONCATENATE(C20," ",C21),Tabulka1128[Jmeno_prijmeni],0),1) -> -1.51e-07
A26: Petr ŠumPočet šipek | B26: =CONCATENATE(C20," ",C21) -> Petr Šum | D26: Počet šipek | EE26: =IF(AND(SUM(Tabulka!$AG$14)>0.99,(SUM(Tabulka!$AG$14)<2)),-50000+(SUM(E26:ED26)),IF(OR(SUM(Tabulka!$AG$14)<2),-90000,SUM(E26:ED26))) -> -50000 | EG26: 0
A27: =CONCATENATE($C$28," ",$C$29,D27) -> Pavel PernekrVýhry | B27: =CONCATENATE(C28," ",C29) -> Pavel Pernekr | C27: =Tabulka!B19 -> 0 | D27: Výhry | EE27: =IF(AND(SUM(Tabulka!$AG$19)>0.99,(SUM(Tabulka!$AG$19)<2)),-50000+(SUM(E27:ED27)),IF(OR(SUM(Tabulka!$AG$19)<2),-90000,SUM(E27:ED27))) -> -90000 | EG27: 0
A28: Pavel PernekrProhry | B28: Pavel Pernekr | C28: =Tabulka!B20 -> Pavel | D28: Prohry | EE28: =IF(AND(SUM(Tabulka!$AG$19)>0.99,(SUM(Tabulka!$AG$19)<2)),-50000+(SUM(E28:ED28)),IF(OR(SUM(Tabulka!$AG$19)<2),-90000,SUM(E28:ED28))) -> -90000 | EF28: =SUM(EE27-EE28) -> 0 | EG28: 0
A29: Pavel PernekrPlaceno panáků | B29: =CONCATENATE(C28," ",C29) -> Pavel Pernekr | C29: =Tabulka!B21 -> Pernekr | D29: Placeno panáků | EE29: =IF(AND(SUM(Tabulka!$AG$19)>0.99,(SUM(Tabulka!$AG$19)<2)),-50000+(SUM(E29:ED29)),IF(OR(SUM(Tabulka!$AG$19)<2),-90000,SUM(E29:ED29))) -> -90000 | EG29: 0
A30: Pavel PernekrPřehozy | B30: =CONCATENATE(C28," ",C29) -> Pavel Pernekr | C30: =Tabulka!B22 -> 0 | D30: Přehozy | EE30: =IF(AND(SUM(Tabulka!$AG$19)>0.99,(SUM(Tabulka!$AG$19)<2)),-50000+(SUM(E30:ED30)),IF(OR(SUM(Tabulka!$AG$19)<2),-90000,SUM(E30:ED30))) -> -90000 | EG30: 0
A31: Pavel PernekrPoč. kol | B31: =CONCATENATE(C28," ",C29) -> Pavel Pernekr | C31: =Tabulka!B23 -> 0 | D31: Poč. kol | EE31: =IF(AND(SUM(Tabulka!$AG$19)>0.99,(SUM(Tabulka!$AG$19)<2)),-50000+(SUM(E31:ED31)),IF(OR(SUM(Tabulka!$AG$19)<2),-90000,SUM(E31:ED31))) -> -90000 | EG31: 0
A32: Pavel PernekrPočet konečných bodů | B32: =CONCATENATE(C28," ",C29) -> Pavel Pernekr | D32: Počet konečných bodů | EE32: =IF(AND(SUM(Tabulka!$AG$19)>0.99,(SUM(Tabulka!$AG$19)<2)),-50000-(SUM(E32:ED32)),IF(OR(SUM(Tabulka!$AG$19)<2),-90000,SUM(E32:ED32))) -> -90000 | EG32: 0
A33: Pavel PernekrPrůměr konečných bodů na kolo | B33: =CONCATENATE(C28," ",C29) -> Pavel Pernekr | D33: Průměr konečných bodů na kolo | E33: =IF(E32<>"",AVERAGE($E32:E32)+$EI33,"") ->  | F33: =IF(F32<>"",AVERAGE($E32:F32)+$EI33,"") ->  | G33: =IF(G32<>"",AVERAGE($E32:G32)+$EI33,"") ->  | H33: =IF(H32<>"",AVERAGE($E32:H32)+$EI33,"") ->  | I33: =IF(I32<>"",AVERAGE($E32:I32)+$EI33,"") ->  | J33: =IF(J32<>"",AVERAGE($E32:J32)+$EI33,"") ->  | K33: =IF(K32<>"",AVERAGE($E32:K32)+$EI33,"") ->  | L33: =IF(L32<>"",AVERAGE($E32:L32)+$EI33,"") ->  | M33: =IF(M32<>"",AVERAGE($E32:M32)+$EI33,"") ->  | N33: =IF(N32<>"",AVERAGE($E32:N32)+$EI33,"") ->  | O33: =IF(O32<>"",AVERAGE($E32:O32)+$EI33,"") ->  | P33: =IF(P32<>"",AVERAGE($E32:P32)+$EI33,"") ->  | Q33: =IF(Q32<>"",AVERAGE($E32:Q32)+$EI33,"") ->  | R33: =IF(R32<>"",AVERAGE($E32:R32)+$EI33,"") ->  | S33: =IF(S32<>"",AVERAGE($E32:S32)+$EI33,"") ->  | T33: =IF(T32<>"",AVERAGE($E32:T32)+$EI33,"") ->  | U33: =IF(U32<>"",AVERAGE($E32:U32)+$EI33,"") ->  | V33: =IF(V32<>"",AVERAGE($E32:V32)+$EI33,"") ->  | W33: =IF(W32<>"",AVERAGE($E32:W32)+$EI33,"") ->  | X33: =IF(X32<>"",AVERAGE($E32:X32)+$EI33,"") ->  | Y33: =IF(Y32<>"",AVERAGE($E32:Y32)+$EI33,"") ->  | Z33: =IF(Z32<>"",AVERAGE($E32:Z32)+$EI33,"") ->  | AA33: =IF(AA32<>"",AVERAGE($E32:AA32)+$EI33,"") ->  | AB33: =IF(AB32<>"",AVERAGE($E32:AB32)+$EI33,"") ->  | AC33: =IF(AC32<>"",AVERAGE($E32:AC32)+$EI33,"") ->  | AD33: =IF(AD32<>"",AVERAGE($E32:AD32)+$EI33,"") ->  | AE33: =IF(AE32<>"",AVERAGE($E32:AE32)+$EI33,"") ->  | AF33: =IF(AF32<>"",AVERAGE($E32:AF32)+$EI33,"") ->  | AG33: =IF(AG32<>"",AVERAGE($E32:AG32)+$EI33,"") ->  | AH33: =IF(AH32<>"",AVERAGE($E32:AH32)+$EI33,"") ->  | AI33: =IF(AI32<>"",AVERAGE($E32:AI32)+$EI33,"") ->  | AJ33: =IF(AJ32<>"",AVERAGE($E32:AJ32)+$EI33,"") ->  | AK33: =IF(AK32<>"",AVERAGE($E32:AK32)+$EI33,"") ->  | AL33: =IF(AL32<>"",AVERAGE($E32:AL32)+$EI33,"") ->  | AM33: =IF(AM32<>"",AVERAGE($E32:AM32)+$EI33,"") ->  | AN33: =IF(AN32<>"",AVERAGE($E32:AN32)+$EI33,"") ->  | AO33: =IF(AO32<>"",AVERAGE($E32:AO32)+$EI33,"") ->  | AP33: =IF(AP32<>"",AVERAGE($E32:AP32)+$EI33,"") ->  | AQ33: =IF(AQ32<>"",AVERAGE($E32:AQ32)+$EI33,"") ->  | AR33: =IF(AR32<>"",AVERAGE($E32:AR32)+$EI33,"") ->  | AS33: =IF(AS32<>"",AVERAGE($E32:AS32)+$EI33,"") ->  | AT33: =IF(AT32<>"",AVERAGE($E32:AT32)+$EI33,"") ->  | AU33: =IF(AU32<>"",AVERAGE($E32:AU32)+$EI33,"") ->  | AV33: =IF(AV32<>"",AVERAGE($E32:AV32)+$EI33,"") ->  | AW33: =IF(AW32<>"",AVERAGE($E32:AW32)+$EI33,"") ->  | AX33: =IF(AX32<>"",AVERAGE($E32:AX32)+$EI33,"") ->  | AY33: =IF(AY32<>"",AVERAGE($E32:AY32)+$EI33,"") ->  | AZ33: =IF(AZ32<>"",AVERAGE($E32:AZ32)+$EI33,"") ->  | BA33: =IF(BA32<>"",AVERAGE($E32:BA32)+$EI33,"") ->  | BB33: =IF(BB32<>"",AVERAGE($E32:BB32)+$EI33,"") ->  | BC33: =IF(BC32<>"",AVERAGE($E32:BC32)+$EI33,"") ->  | BD33: =IF(BD32<>"",AVERAGE($E32:BD32)+$EI33,"") ->  | BE33: =IF(BE32<>"",AVERAGE($E32:BE32)+$EI33,"") ->  | BF33: =IF(BF32<>"",AVERAGE($E32:BF32)+$EI33,"") ->  | BG33: =IF(BG32<>"",AVERAGE($E32:BG32)+$EI33,"") ->  | BH33: =IF(BH32<>"",AVERAGE($E32:BH32)+$EI33,"") ->  | BI33: =IF(BI32<>"",AVERAGE($E32:BI32)+$EI33,"") ->  | BJ33: =IF(BJ32<>"",AVERAGE($E32:BJ32)+$EI33,"") ->  | BK33: =IF(BK32<>"",AVERAGE($E32:BK32)+$EI33,"") ->  | BL33: =IF(BL32<>"",AVERAGE($E32:BL32)+$EI33,"") ->  | BM33: =IF(BM32<>"",AVERAGE($E32:BM32)+$EI33,"") ->  | BN33: =IF(BN32<>"",AVERAGE($E32:BN32)+$EI33,"") ->  | BO33: =IF(BO32<>"",AVERAGE($E32:BO32)+$EI33,"") ->  | BP33: =IF(BP32<>"",AVERAGE($E32:BP32)+$EI33,"") ->  | BQ33: =IF(BQ32<>"",AVERAGE($E32:BQ32)+$EI33,"") ->  | BR33: =IF(BR32<>"",AVERAGE($E32:BR32)+$EI33,"") ->  | BS33: =IF(BS32<>"",AVERAGE($E32:BS32)+$EI33,"") ->  | BT33: =IF(BT32<>"",AVERAGE($E32:BT32)+$EI33,"") ->  | BU33: =IF(BU32<>"",AVERAGE($E32:BU32)+$EI33,"") ->  | BV33: =IF(BV32<>"",AVERAGE($E32:BV32)+$EI33,"") ->  | BW33: =IF(BW32<>"",AVERAGE($E32:BW32)+$EI33,"") ->  | BX33: =IF(BX32<>"",AVERAGE($E32:BX32)+$EI33,"") ->  | BY33: =IF(BY32<>"",AVERAGE($E32:BY32)+$EI33,"") ->  | BZ33: =IF(BZ32<>"",AVERAGE($E32:BZ32)+$EI33,"") ->  | CA33: =IF(CA32<>"",AVERAGE($E32:CA32)+$EI33,"") ->  | CB33: =IF(CB32<>"",AVERAGE($E32:CB32)+$EI33,"") ->  | CC33: =IF(CC32<>"",AVERAGE($E32:CC32)+$EI33,"") ->  | CD33: =IF(CD32<>"",AVERAGE($E32:CD32)+$EI33,"") ->  | CE33: =IF(CE32<>"",AVERAGE($E32:CE32)+$EI33,"") ->  | CF33: =IF(CF32<>"",AVERAGE($E32:CF32)+$EI33,"") ->  | CG33: =IF(CG32<>"",AVERAGE($E32:CG32)+$EI33,"") ->  | CH33: =IF(CH32<>"",AVERAGE($E32:CH32)+$EI33,"") ->  | CI33: =IF(CI32<>"",AVERAGE($E32:CI32)+$EI33,"") ->  | CJ33: =IF(CJ32<>"",AVERAGE($E32:CJ32)+$EI33,"") ->  | CK33: =IF(CK32<>"",AVERAGE($E32:CK32)+$EI33,"") ->  | CL33: =IF(CL32<>"",AVERAGE($E32:CL32)+$EI33,"") ->  | CM33: =IF(CM32<>"",AVERAGE($E32:CM32)+$EI33,"") ->  | CN33: =IF(CN32<>"",AVERAGE($E32:CN32)+$EI33,"") ->  | CO33: =IF(CO32<>"",AVERAGE($E32:CO32)+$EI33,"") ->  | CP33: =IF(CP32<>"",AVERAGE($E32:CP32)+$EI33,"") ->  | CQ33: =IF(CQ32<>"",AVERAGE($E32:CQ32)+$EI33,"") ->  | CR33: =IF(CR32<>"",AVERAGE($E32:CR32)+$EI33,"") ->  | CS33: =IF(CS32<>"",AVERAGE($E32:CS32)+$EI33,"") ->  | CT33: =IF(CT32<>"",AVERAGE($E32:CT32)+$EI33,"") ->  | CU33: =IF(CU32<>"",AVERAGE($E32:CU32)+$EI33,"") ->  | CV33: =IF(CV32<>"",AVERAGE($E32:CV32)+$EI33,"") ->  | CW33: =IF(CW32<>"",AVERAGE($E32:CW32)+$EI33,"") ->  | CX33: =IF(CX32<>"",AVERAGE($E32:CX32)+$EI33,"") ->  | CY33: =IF(CY32<>"",AVERAGE($E32:CY32)+$EI33,"") ->  | CZ33: =IF(CZ32<>"",AVERAGE($E32:CZ32)+$EI33,"") ->  | DA33: =IF(DA32<>"",AVERAGE($E32:DA32)+$EI33,"") ->  | DB33: =IF(DB32<>"",AVERAGE($E32:DB32)+$EI33,"") ->  | DC33: =IF(DC32<>"",AVERAGE($E32:DC32)+$EI33,"") ->  | DD33: =IF(DD32<>"",AVERAGE($E32:DD32)+$EI33,"") ->  | DE33: =IF(DE32<>"",AVERAGE($E32:DE32)+$EI33,"") ->  | DF33: =IF(DF32<>"",AVERAGE($E32:DF32)+$EI33,"") ->  | DG33: =IF(DG32<>"",AVERAGE($E32:DG32)+$EI33,"") ->  | DH33: =IF(DH32<>"",AVERAGE($E32:DH32)+$EI33,"") ->  | DI33: =IF(DI32<>"",AVERAGE($E32:DI32)+$EI33,"") ->  | DJ33: =IF(DJ32<>"",AVERAGE($E32:DJ32)+$EI33,"") ->  | DK33: =IF(DK32<>"",AVERAGE($E32:DK32)+$EI33,"") ->  | DL33: =IF(DL32<>"",AVERAGE($E32:DL32)+$EI33,"") ->  | DM33: =IF(DM32<>"",AVERAGE($E32:DM32)+$EI33,"") ->  | DN33: =IF(DN32<>"",AVERAGE($E32:DN32)+$EI33,"") ->  | DO33: =IF(DO32<>"",AVERAGE($E32:DO32)+$EI33,"") ->  | DP33: =IF(DP32<>"",AVERAGE($E32:DP32)+$EI33,"") ->  | DQ33: =IF(DQ32<>"",AVERAGE($E32:DQ32)+$EI33,"") ->  | DR33: =IF(DR32<>"",AVERAGE($E32:DR32)+$EI33,"") ->  | DS33: =IF(DS32<>"",AVERAGE($E32:DS32)+$EI33,"") ->  | DT33: =IF(DT32<>"",AVERAGE($E32:DT32)+$EI33,"") ->  | DU33: =IF(DU32<>"",AVERAGE($E32:DU32)+$EI33,"") ->  | DV33: =IF(DV32<>"",AVERAGE($E32:DV32)+$EI33,"") ->  | DW33: =IF(DW32<>"",AVERAGE($E32:DW32)+$EI33,"") ->  | DX33: =IF(DX32<>"",AVERAGE($E32:DX32)+$EI33,"") ->  | DY33: =IF(DY32<>"",AVERAGE($E32:DY32)+$EI33,"") ->  | DZ33: =IF(DZ32<>"",AVERAGE($E32:DZ32)+$EI33,"") ->  | EA33: =IF(EA32<>"",AVERAGE($E32:EA32)+$EI33,"") ->  | EB33: =IF(EB32<>"",AVERAGE($E32:EB32)+$EI33,"") ->  | EC33: =IF(EC32<>"",AVERAGE($E32:EC32)+$EI33,"") ->  | ED33: =IF(ED32<>"",AVERAGE($E32:ED32)+$EI33,"") ->  | EE33: =IF(AND(SUM(Tabulka!$AG$19)>0.99,(SUM(Tabulka!$AG$19)<2)),-50000+(SUM(E32:ED32)/COUNT(E33:ED33)),IF(OR(SUM(Tabulka!$AG$19)<2),-90000,SUM(E32:ED32)/COUNT(E33:ED33))) -> -90000 | EG33: =IFERROR(SUM(E32:ED32)/COUNT(E32:ED32),) -> 0 | EH33: =CONCATENATE(C28," ",C29) -> Pavel Pernekr | EI33: =INDEX(List4!$E$2:$E$17,MATCH(CONCATENATE(C28," ",C29),Tabulka1128[Jmeno_prijmeni],0),1) -> -1.01e-07
A34: Pavel PernekrPočet šipek | B34: =CONCATENATE(C28," ",C29) -> Pavel Pernekr | D34: Počet šipek | EE34: =IF(AND(SUM(Tabulka!$AG$19)>0.99,(SUM(Tabulka!$AG$19)<2)),-50000+(SUM(E34:ED34)),IF(OR(SUM(Tabulka!$AG$19)<2),-90000,SUM(E34:ED34))) -> -90000 | EG34: 0
A35: =CONCATENATE($C$36," ",$C$37,D35) -> Milan VeselýVýhry | B35: =CONCATENATE(C36," ",C37) -> Milan Veselý | C35: =Tabulka!B24 -> 0 | D35: Výhry | E35: 1 | J35: 3 | O35: 2 | T35: 1 | Y35: 2 | AD35: 2 | AI35: 2 | AN35: 2 | AS35: 1 | AX35: 2 | BC35: 3 | BH35: 1 | BM35: 1 | BR35: 1 | BW35: 0 | CB35: 3 | CG35: 0 | EE35: =IF(AND(SUM(Tabulka!$AG$24)>0.99,(SUM(Tabulka!$AG$24)<2)),-50000+(SUM(E35:ED35)),IF(OR(SUM(Tabulka!$AG$24)<2),-90000,SUM(E35:ED35))) -> 27 | EG35: 27
A36: Milan VeselýProhry | B36: Milan Veselý | C36: =Tabulka!B25 -> Milan | D36: Prohry | E36: 1 | J36: 0 | O36: 1 | T36: 1 | Y36: 0 | AD36: 1 | AI36: 0 | AN36: 0 | AS36: 0 | AX36: 1 | BC36: 1 | BH36: 2 | BM36: 1 | BR36: 1 | BW36: 1 | CB36: 0 | CG36: 0 | EE36: =IF(AND(SUM(Tabulka!$AG$24)>0.99,(SUM(Tabulka!$AG$24)<2)),-50000+(SUM(E36:ED36)),IF(OR(SUM(Tabulka!$AG$24)<2),-90000,SUM(E36:ED36))) -> 11 | EF36: =SUM(EE35-EE36) -> 16 | EG36: 11
A37: Milan VeselýPlaceno panáků | B37: =CONCATENATE(C36," ",C37) -> Milan Veselý | C37: =Tabulka!B26 -> Veselý | D37: Placeno panáků | E37: 1 | J37: 0 | O37: 1 | T37: 2 | Y37: 0 | AD37: 1 | AI37: 0 | AN37: 0 | AS37: 0 | AX37: 1 | BC37: 1 | BH37: 2 | BM37: 1 | BR37: 2 | BW37: 1 | CB37: 0 | CG37: 0 | EE37: =IF(AND(SUM(Tabulka!$AG$24)>0.99,(SUM(Tabulka!$AG$24)<2)),-50000+(SUM(E37:ED37)),IF(OR(SUM(Tabulka!$AG$24)<2),-90000,SUM(E37:ED37))) -> 13 | EG37: 13
A38: Milan VeselýPřehozy | B38: =CONCATENATE(C36," ",C37) -> Milan Veselý | C38: =Tabulka!B27 -> 0 | D38: Přehozy | E38: 0 | J38: 3 | O38: 0 | T38: 1 | Y38: 1 | AD38: 0 | AI38: 0 | AN38: 1 | AS38: 1 | AX38: 3 | BC38: 0 | BH38: 0 | BM38: 0 | BR38: 1 | BW38: 3 | CB38: 0 | CG38: 2 | EE38: =IF(AND(SUM(Tabulka!$AG$24)>0.99,(SUM(Tabulka!$AG$24)<2)),-50000+(SUM(E38:ED38)),IF(OR(SUM(Tabulka!$AG$24)<2),-90000,SUM(E38:ED38))) -> 16 | EG38: 16
A39: Milan VeselýPoč. kol | B39: =CONCATENATE(C36," ",C37) -> Milan Veselý | C39: =Tabulka!B28 -> 0 | D39: Poč. kol | E39: 4 | J39: 4 | O39: 4 | T39: 4 | Y39: 4 | AD39: 4 | AI39: 4 | AN39: 4 | AS39: 3 | AX39: 4 | BC39: 5 | BH39: 4 | BM39: 4 | BR39: 5 | BW39: 4 | CB39: 4 | CG39: 4 | EE39: =IF(AND(SUM(Tabulka!$AG$24)>0.99,(SUM(Tabulka!$AG$24)<2)),-50000+(SUM(E39:ED39)),IF(OR(SUM(Tabulka!$AG$24)<2),-90000,SUM(E39:ED39))) -> 69 | EG39: 69
A40: Milan VeselýPočet konečných bodů | B40: =CONCATENATE(C36," ",C37) -> Milan Veselý | D40: Počet konečných bodů | E40: 0 | F40: 23 | G40: 46 | H40: 101 | J40: 0 | K40: 61 | L40: 0 | M40: 0 | O40: 4 | P40: 141 | Q40: 0 | R40: 0 | T40: 0 | U40: 82 | V40: 31 | W40: 8 | Y40: 0 | Z40: 0 | AA40: 26 | AB40: 75 | AD40: 84 | AE40: 0 | AF40: 25 | AG40: 0 | AI40: 0 | AJ40: 43 | AK40: 0 | AL40: 77 | AN40: 0 | AO40: 0 | AP40: 34 | AQ40: 33 | AS40: 35 | AT40: 0 | AU40: 8 | AX40: 126 | AY40: 26 | AZ40: 0 | BA40: 0 | BC40: 0 | BD40: 83 | BE40: 116 | BF40: 0 | BG40: 0 | BH40: 126 | BI40: 0 | BJ40: 78 | BK40: 63 | BM40: 0 | BN40: 113 | BO40: 71 | BP40: 162 | BR40: 0 | BS40: 98 | BT40: 50 | BU40: 96 | BV40: 22 | BW40: 70 | BX40: 16 | BY40: 56 | BZ40: 45 | CB40: 0 | CC40: 46 | CD40: 0 | CE40: 0 | CG40: 152 | CH40: 82 | CI40: 8 | CJ40: 103 | EE40: =IF(AND(SUM(Tabulka!$AG$24)>0.99,(SUM(Tabulka!$AG$24)<2)),-50000-(SUM(E40:ED40)),IF(OR(SUM(Tabulka!$AG$24)<2),-90000,SUM(E40:ED40))) -> 2745 | EG40: 2745
A41: Milan VeselýPrůměr konečných bodů na kolo | B41: =CONCATENATE(C36," ",C37) -> Milan Veselý | D41: Průměr konečných bodů na kolo | E41: =IF(E40<>"",AVERAGE($E40:E40)+$EI41,"") -> -1.61e-07 | F41: =IF(F40<>"",AVERAGE($E40:F40)+$EI41,"") -> 11.49999984 | G41: =IF(G40<>"",AVERAGE($E40:G40)+$EI41,"") -> 22.99999984 | H41: =IF(H40<>"",AVERAGE($E40:H40)+$EI41,"") -> 42.49999984 | I41: =IF(I40<>"",AVERAGE($E40:I40)+$EI41,"") ->  | J41: =IF(J40<>"",AVERAGE($E40:J40)+$EI41,"") -> 33.99999984 | K41: =IF(K40<>"",AVERAGE($E40:K40)+$EI41,"") -> 38.49999984 | L41: =IF(L40<>"",AVERAGE($E40:L40)+$EI41,"") -> 32.99999984 | M41: =IF(M40<>"",AVERAGE($E40:M40)+$EI41,"") -> 28.87499984 | N41: =IF(N40<>"",AVERAGE($E40:N40)+$EI41,"") ->  | O41: =IF(O40<>"",AVERAGE($E40:O40)+$EI41,"") -> 26.11111095 | P41: =IF(P40<>"",AVERAGE($E40:P40)+$EI41,"") -> 37.59999984 | Q41: =IF(Q40<>"",AVERAGE($E40:Q40)+$EI41,"") -> 34.18181802 | R41: =IF(R40<>"",AVERAGE($E40:R40)+$EI41,"") -> 31.33333317 | S41: =IF(S40<>"",AVERAGE($E40:S40)+$EI41,"") ->  | T41: =IF(T40<>"",AVERAGE($E40:T40)+$EI41,"") -> 28.92307676 | U41: =IF(U40<>"",AVERAGE($E40:U40)+$EI41,"") -> 32.71428555 | V41: =IF(V40<>"",AVERAGE($E40:V40)+$EI41,"") -> 32.59999984 | W41: =IF(W40<>"",AVERAGE($E40:W40)+$EI41,"") -> 31.06249984 | X41: =IF(X40<>"",AVERAGE($E40:X40)+$EI41,"") ->  | Y41: =IF(Y40<>"",AVERAGE($E40:Y40)+$EI41,"") -> 29.23529396 | Z41: =IF(Z40<>"",AVERAGE($E40:Z40)+$EI41,"") -> 27.61111095 | AA41: =IF(AA40<>"",AVERAGE($E40:AA40)+$EI41,"") -> 27.52631563 | AB41: =IF(AB40<>"",AVERAGE($E40:AB40)+$EI41,"") -> 29.89999984 | AC41: =IF(AC40<>"",AVERAGE($E40:AC40)+$EI41,"") ->  | AD41: =IF(AD40<>"",AVERAGE($E40:AD40)+$EI41,"") -> 32.47619032 | AE41: =IF(AE40<>"",AVERAGE($E40:AE40)+$EI41,"") -> 30.99999984 | AF41: =IF(AF40<>"",AVERAGE($E40:AF40)+$EI41,"") -> 30.73913027 | AG41: =IF(AG40<>"",AVERAGE($E40:AG40)+$EI41,"") -> 29.45833317 | AH41: =IF(AH40<>"",AVERAGE($E40:AH40)+$EI41,"") ->  | AI41: =IF(AI40<>"",AVERAGE($E40:AI40)+$EI41,"") -> 28.27999984 | AJ41: =IF(AJ40<>"",AVERAGE($E40:AJ40)+$EI41,"") -> 28.84615369 | AK41: =IF(AK40<>"",AVERAGE($E40:AK40)+$EI41,"") -> 27.77777762 | AL41: =IF(AL40<>"",AVERAGE($E40:AL40)+$EI41,"") -> 29.53571412 | AM41: =IF(AM40<>"",AVERAGE($E40:AM40)+$EI41,"") ->  | AN41: =IF(AN40<>"",AVERAGE($E40:AN40)+$EI41,"") -> 28.51724122 | AO41: =IF(AO40<>"",AVERAGE($E40:AO40)+$EI41,"") -> 27.56666651 | AP41: =IF(AP40<>"",AVERAGE($E40:AP40)+$EI41,"") -> 27.77419339 | AQ41: =IF(AQ40<>"",AVERAGE($E40:AQ40)+$EI41,"") -> 27.93749984 | AR41: =IF(AR40<>"",AVERAGE($E40:AR40)+$EI41,"") ->  | AS41: =IF(AS40<>"",AVERAGE($E40:AS40)+$EI41,"") -> 28.15151499 | AT41: =IF(AT40<>"",AVERAGE($E40:AT40)+$EI41,"") -> 27.32352925 | AU41: =IF(AU40<>"",AVERAGE($E40:AU40)+$EI41,"") -> 26.77142841 | AV41: =IF(AV40<>"",AVERAGE($E40:AV40)+$EI41,"") ->  | AW41: =IF(AW40<>"",AVERAGE($E40:AW40)+$EI41,"") ->  | AX41: =IF(AX40<>"",AVERAGE($E40:AX40)+$EI41,"") -> 29.52777762 | AY41: =IF(AY40<>"",AVERAGE($E40:AY40)+$EI41,"") -> 29.43243227 | AZ41: =IF(AZ40<>"",AVERAGE($E40:AZ40)+$EI41,"") -> 28.65789458 | BA41: =IF(BA40<>"",AVERAGE($E40:BA40)+$EI41,"") -> 27.92307676 | BB41: =IF(BB40<>"",AVERAGE($E40:BB40)+$EI41,"") ->  | BC41: =IF(BC40<>"",AVERAGE($E40:BC40)+$EI41,"") -> 27.22499984 | BD41: =IF(BD40<>"",AVERAGE($E40:BD40)+$EI41,"") -> 28.58536569 | BE41: =IF(BE40<>"",AVERAGE($E40:BE40)+$EI41,"") -> 30.66666651 | BF41: =IF(BF40<>"",AVERAGE($E40:BF40)+$EI41,"") -> 29.95348821 | BG41: =IF(BG40<>"",AVERAGE($E40:BG40)+$EI41,"") -> 29.27272711 | BH41: =IF(BH40<>"",AVERAGE($E40:BH40)+$EI41,"") -> 31.42222206 | BI41: =IF(BI40<>"",AVERAGE($E40:BI40)+$EI41,"") -> 30.73913027 | BJ41: =IF(BJ40<>"",AVERAGE($E40:BJ40)+$EI41,"") -> 31.74468069 | BK41: =IF(BK40<>"",AVERAGE($E40:BK40)+$EI41,"") -> 32.39583317 | BL41: =IF(BL40<>"",AVERAGE($E40:BL40)+$EI41,"") ->  | BM41: =IF(BM40<>"",AVERAGE($E40:BM40)+$EI41,"") -> 31.73469372 | BN41: =IF(BN40<>"",AVERAGE($E40:BN40)+$EI41,"") -> 33.35999984 | BO41: =IF(BO40<>"",AVERAGE($E40:BO40)+$EI41,"") -> 34.09803905 | BP41: =IF(BP40<>"",AVERAGE($E40:BP40)+$EI41,"") -> 36.55769215 | BQ41: =IF(BQ40<>"",AVERAGE($E40:BQ40)+$EI41,"") ->  | BR41: =IF(BR40<>"",AVERAGE($E40:BR40)+$EI41,"") -> 35.86792437 | BS41: =IF(BS40<>"",AVERAGE($E40:BS40)+$EI41,"") -> 37.01851836 | BT41: =IF(BT40<>"",AVERAGE($E40:BT40)+$EI41,"") -> 37.25454529 | BU41: =IF(BU40<>"",AVERAGE($E40:BU40)+$EI41,"") -> 38.30357127 | BV41: =IF(BV40<>"",AVERAGE($E40:BV40)+$EI41,"") -> 38.0175437 | BW41: =IF(BW40<>"",AVERAGE($E40:BW40)+$EI41,"") -> 38.56896536 | BX41: =IF(BX40<>"",AVERAGE($E40:BX40)+$EI41,"") -> 38.18644052 | BY41: =IF(BY40<>"",AVERAGE($E40:BY40)+$EI41,"") -> 38.48333317 | BZ41: =IF(BZ40<>"",AVERAGE($E40:BZ40)+$EI41,"") -> 38.59016377 | CA41: =IF(CA40<>"",AVERAGE($E40:CA40)+$EI41,"") ->  | CB41: =IF(CB40<>"",AVERAGE($E40:CB40)+$EI41,"") -> 37.96774177 | CC41: =IF(CC40<>"",AVERAGE($E40:CC40)+$EI41,"") -> 38.09523793 | CD41: =IF(CD40<>"",AVERAGE($E40:CD40)+$EI41,"") -> 37.49999984 | CE41: =IF(CE40<>"",AVERAGE($E40:CE40)+$EI41,"") -> 36.92307676 | CF41: =IF(CF40<>"",AVERAGE($E40:CF40)+$EI41,"") ->  | CG41: =IF(CG40<>"",AVERAGE($E40:CG40)+$EI41,"") -> 38.66666651 | CH41: =IF(CH40<>"",AVERAGE($E40:CH40)+$EI41,"") -> 39.31343267 | CI41: =IF(CI40<>"",AVERAGE($E40:CI40)+$EI41,"") -> 38.85294102 | CJ41: =IF(CJ40<>"",AVERAGE($E40:CJ40)+$EI41,"") -> 39.78260853 | CK41: =IF(CK40<>"",AVERAGE($E40:CK40)+$EI41,"") ->  | CL41: =IF(CL40<>"",AVERAGE($E40:CL40)+$EI41,"") ->  | CM41: =IF(CM40<>"",AVERAGE($E40:CM40)+$EI41,"") ->  | CN41: =IF(CN40<>"",AVERAGE($E40:CN40)+$EI41,"") ->  | CO41: =IF(CO40<>"",AVERAGE($E40:CO40)+$EI41,"") ->  | CP41: =IF(CP40<>"",AVERAGE($E40:CP40)+$EI41,"") ->  | CQ41: =IF(CQ40<>"",AVERAGE($E40:CQ40)+$EI41,"") ->  | CR41: =IF(CR40<>"",AVERAGE($E40:CR40)+$EI41,"") ->  | CS41: =IF(CS40<>"",AVERAGE($E40:CS40)+$EI41,"") ->  | CT41: =IF(CT40<>"",AVERAGE($E40:CT40)+$EI41,"") ->  | CU41: =IF(CU40<>"",AVERAGE($E40:CU40)+$EI41,"") ->  | CV41: =IF(CV40<>"",AVERAGE($E40:CV40)+$EI41,"") ->  | CW41: =IF(CW40<>"",AVERAGE($E40:CW40)+$EI41,"") ->  | CX41: =IF(CX40<>"",AVERAGE($E40:CX40)+$EI41,"") ->  | CY41: =IF(CY40<>"",AVERAGE($E40:CY40)+$EI41,"") ->  | CZ41: =IF(CZ40<>"",AVERAGE($E40:CZ40)+$EI41,"") ->  | DA41: =IF(DA40<>"",AVERAGE($E40:DA40)+$EI41,"") ->  | DB41: =IF(DB40<>"",AVERAGE($E40:DB40)+$EI41,"") ->  | DC41: =IF(DC40<>"",AVERAGE($E40:DC40)+$EI41,"") ->  | DD41: =IF(DD40<>"",AVERAGE($E40:DD40)+$EI41,"") ->  | DE41: =IF(DE40<>"",AVERAGE($E40:DE40)+$EI41,"") ->  | DF41: =IF(DF40<>"",AVERAGE($E40:DF40)+$EI41,"") ->  | DG41: =IF(DG40<>"",AVERAGE($E40:DG40)+$EI41,"") ->  | DH41: =IF(DH40<>"",AVERAGE($E40:DH40)+$EI41,"") ->  | DI41: =IF(DI40<>"",AVERAGE($E40:DI40)+$EI41,"") ->  | DJ41: =IF(DJ40<>"",AVERAGE($E40:DJ40)+$EI41,"") ->  | DK41: =IF(DK40<>"",AVERAGE($E40:DK40)+$EI41,"") ->  | DL41: =IF(DL40<>"",AVERAGE($E40:DL40)+$EI41,"") ->  | DM41: =IF(DM40<>"",AVERAGE($E40:DM40)+$EI41,"") ->  | DN41: =IF(DN40<>"",AVERAGE($E40:DN40)+$EI41,"") ->  | DO41: =IF(DO40<>"",AVERAGE($E40:DO40)+$EI41,"") ->  | DP41: =IF(DP40<>"",AVERAGE($E40:DP40)+$EI41,"") ->  | DQ41: =IF(DQ40<>"",AVERAGE($E40:DQ40)+$EI41,"") ->  | DR41: =IF(DR40<>"",AVERAGE($E40:DR40)+$EI41,"") ->  | DS41: =IF(DS40<>"",AVERAGE($E40:DS40)+$EI41,"") ->  | DT41: =IF(DT40<>"",AVERAGE($E40:DT40)+$EI41,"") ->  | DU41: =IF(DU40<>"",AVERAGE($E40:DU40)+$EI41,"") ->  | DV41: =IF(DV40<>"",AVERAGE($E40:DV40)+$EI41,"") ->  | DW41: =IF(DW40<>"",AVERAGE($E40:DW40)+$EI41,"") ->  | DX41: =IF(DX40<>"",AVERAGE($E40:DX40)+$EI41,"") ->  | DY41: =IF(DY40<>"",AVERAGE($E40:DY40)+$EI41,"") ->  | DZ41: =IF(DZ40<>"",AVERAGE($E40:DZ40)+$EI41,"") ->  | EA41: =IF(EA40<>"",AVERAGE($E40:EA40)+$EI41,"") ->  | EB41: =IF(EB40<>"",AVERAGE($E40:EB40)+$EI41,"") ->  | EC41: =IF(EC40<>"",AVERAGE($E40:EC40)+$EI41,"") ->  | ED41: =IF(ED40<>"",AVERAGE($E40:ED40)+$EI41,"") ->  | EE41: =IF(AND(SUM(Tabulka!$AG$24)>0.99,(SUM(Tabulka!$AG$24)<2)),-50000+(SUM(E40:ED40)/COUNT(E41:ED41)),IF(OR(SUM(Tabulka!$AG$24)<2),-90000,SUM(E40:ED40)/COUNT(E41:ED41))) -> 39.7826087 | EG41: =IFERROR(SUM(E40:ED40)/COUNT(E40:ED40),) -> 39.7826087 | EH41: =CONCATENATE(C36," ",C37) -> Milan Veselý | EI41: =INDEX(List4!$E$2:$E$17,MATCH(CONCATENATE(C36," ",C37),Tabulka1128[Jmeno_prijmeni],0),1) -> -1.61e-07
A42: Milan VeselýPočet šipek | B42: =CONCATENATE(C36," ",C37) -> Milan Veselý | D42: Počet šipek | EE42: =IF(AND(SUM(Tabulka!$AG$24)>0.99,(SUM(Tabulka!$AG$24)<2)),-50000+(SUM(E42:ED42)),IF(OR(SUM(Tabulka!$AG$24)<2),-90000,SUM(E42:ED42))) -> 0 | EG42: 0
A43: =CONCATENATE($C$44," ",$C$45,D43) -> Míra ŠedivýVýhry | B43: =CONCATENATE(C44," ",C45) -> Míra Šedivý | C43: =Tabulka!B29 -> 0 | D43: Výhry | O43: 0 | T43: 0 | AD43: 0 | AI43: 0 | AN43: 0 | BC43: 2 | BR43: 3 | EE43: =IF(AND(SUM(Tabulka!$AG$29)>0.99,(SUM(Tabulka!$AG$29)<2)),-50000+(SUM(E43:ED43)),IF(OR(SUM(Tabulka!$AG$29)<2),-90000,SUM(E43:ED43))) -> 5 | EG43: 5
A44: Míra ŠedivýProhry | B44: Míra Šedivý | C44: =Tabulka!B30 -> Míra | D44: Prohry | O44: 0 | T44: 0 | AD44: 1 | AI44: 2 | AN44: 1 | BC44: 1 | BR44: 1 | EE44: =IF(AND(SUM(Tabulka!$AG$29)>0.99,(SUM(Tabulka!$AG$29)<2)),-50000+(SUM(E44:ED44)),IF(OR(SUM(Tabulka!$AG$29)<2),-90000,SUM(E44:ED44))) -> 6 | EF44: =SUM(EE43-EE44) -> -1 | EG44: 6
A45: Míra ŠedivýPlaceno panáků | B45: =CONCATENATE(C44," ",C45) -> Míra Šedivý | C45: =Tabulka!B31 -> Šedivý | D45: Placeno panáků | O45: 0 | T45: 0 | AD45: 1 | AI45: 2 | AN45: 1 | BC45: 1 | BR45: 1 | EE45: =IF(AND(SUM(Tabulka!$AG$29)>0.99,(SUM(Tabulka!$AG$29)<2)),-50000+(SUM(E45:ED45)),IF(OR(SUM(Tabulka!$AG$29)<2),-90000,SUM(E45:ED45))) -> 6 | EG45: 6
A46: Míra ŠedivýPřehozy | B46: =CONCATENATE(C44," ",C45) -> Míra Šedivý | C46: =Tabulka!B32 -> 0 | D46: Přehozy | O46: 0 | T46: 0 | AD46: 0 | AI46: 0 | AN46: 0 | BC46: 1 | BR46: 1 | EE46: =IF(AND(SUM(Tabulka!$AG$29)>0.99,(SUM(Tabulka!$AG$29)<2)),-50000+(SUM(E46:ED46)),IF(OR(SUM(Tabulka!$AG$29)<2),-90000,SUM(E46:ED46))) -> 2 | EG46: 2
A47: Míra ŠedivýPoč. kol | B47: =CONCATENATE(C44," ",C45) -> Míra Šedivý | C47: =Tabulka!B33 -> 0 | D47: Poč. kol | O47: 4 | T47: 4 | AD47: 4 | AI47: 4 | AN47: 4 | BC47: 5 | BR47: 5 | EE47: =IF(AND(SUM(Tabulka!$AG$29)>0.99,(SUM(Tabulka!$AG$29)<2)),-50000+(SUM(E47:ED47)),IF(OR(SUM(Tabulka!$AG$29)<2),-90000,SUM(E47:ED47))) -> 30 | EG47: 30
A48: Míra ŠedivýPočet konečných bodů | B48: =CONCATENATE(C44," ",C45) -> Míra Šedivý | D48: Počet konečných bodů | O48: 109 | P48: 109 | Q48: 20 | R48: 33 | T48: 101 | U48: 46 | V48: 28 | W48: 102 | AD48: 30 | AE48: 21 | AF48: 49 | AG48: 141 | AI48: 154 | AJ48: 15 | AK48: 77 | AL48: 114 | AN48: 48 | AO48: 75 | AP48: 100 | AQ48: 90 | BC48: 0 | BD48: 159 | BE48: 102 | BF48: 36 | BG48: 0 | BR48: 0 | BS48: 0 | BT48: 69 | BU48: 166 | BV48: 0 | EE48: =IF(AND(SUM(Tabulka!$AG$29)>0.99,(SUM(Tabulka!$AG$29)<2)),-50000-(SUM(E48:ED48)),IF(OR(SUM(Tabulka!$AG$29)<2),-90000,SUM(E48:ED48))) -> 1994 | EG48: 1994
A49: Míra ŠedivýPrůměr konečných bodů na kolo | B49: =CONCATENATE(C44," ",C45) -> Míra Šedivý | D49: Průměr konečných bodů na kolo | E49: =IF(E48<>"",AVERAGE($E48:E48)+$EI49,"") ->  | F49: =IF(F48<>"",AVERAGE($E48:F48)+$EI49,"") ->  | G49: =IF(G48<>"",AVERAGE($E48:G48)+$EI49,"") ->  | H49: =IF(H48<>"",AVERAGE($E48:H48)+$EI49,"") ->  | I49: =IF(I48<>"",AVERAGE($E48:I48)+$EI49,"") ->  | J49: =IF(J48<>"",AVERAGE($E48:J48)+$EI49,"") ->  | K49: =IF(K48<>"",AVERAGE($E48:K48)+$EI49,"") ->  | L49: =IF(L48<>"",AVERAGE($E48:L48)+$EI49,"") ->  | M49: =IF(M48<>"",AVERAGE($E48:M48)+$EI49,"") ->  | N49: =IF(N48<>"",AVERAGE($E48:N48)+$EI49,"") ->  | O49: =IF(O48<>"",AVERAGE($E48:O48)+$EI49,"") -> 108.9999999 | P49: =IF(P48<>"",AVERAGE($E48:P48)+$EI49,"") -> 108.9999999 | Q49: =IF(Q48<>"",AVERAGE($E48:Q48)+$EI49,"") -> 79.3333332 | R49: =IF(R48<>"",AVERAGE($E48:R48)+$EI49,"") -> 67.74999987 | S49: =IF(S48<>"",AVERAGE($E48:S48)+$EI49,"") ->  | T49: =IF(T48<>"",AVERAGE($E48:T48)+$EI49,"") -> 74.39999987 | U49: =IF(U48<>"",AVERAGE($E48:U48)+$EI49,"") -> 69.66666654 | V49: =IF(V48<>"",AVERAGE($E48:V48)+$EI49,"") -> 63.71428558 | W49: =IF(W48<>"",AVERAGE($E48:W48)+$EI49,"") -> 68.49999987 | X49: =IF(X48<>"",AVERAGE($E48:X48)+$EI49,"") ->  | Y49: =IF(Y48<>"",AVERAGE($E48:Y48)+$EI49,"") ->  | Z49: =IF(Z48<>"",AVERAGE($E48:Z48)+$EI49,"") ->  | AA49: =IF(AA48<>"",AVERAGE($E48:AA48)+$EI49,"") ->  | AB49: =IF(AB48<>"",AVERAGE($E48:AB48)+$EI49,"") ->  | AC49: =IF(AC48<>"",AVERAGE($E48:AC48)+$EI49,"") ->  | AD49: =IF(AD48<>"",AVERAGE($E48:AD48)+$EI49,"") -> 64.22222209 | AE49: =IF(AE48<>"",AVERAGE($E48:AE48)+$EI49,"") -> 59.89999987 | AF49: =IF(AF48<>"",AVERAGE($E48:AF48)+$EI49,"") -> 58.90909078 | AG49: =IF(AG48<>"",AVERAGE($E48:AG48)+$EI49,"") -> 65.74999987 | AH49: =IF(AH48<>"",AVERAGE($E48:AH48)+$EI49,"") ->  | AI49: =IF(AI48<>"",AVERAGE($E48:AI48)+$EI49,"") -> 72.53846141 | AJ49: =IF(AJ48<>"",AVERAGE($E48:AJ48)+$EI49,"") -> 68.4285713 | AK49: =IF(AK48<>"",AVERAGE($E48:AK48)+$EI49,"") -> 68.99999987 | AL49: =IF(AL48<>"",AVERAGE($E48:AL48)+$EI49,"") -> 71.81249987 | AM49: =IF(AM48<>"",AVERAGE($E48:AM48)+$EI49,"") ->  | AN49: =IF(AN48<>"",AVERAGE($E48:AN48)+$EI49,"") -> 70.41176457 | AO49: =IF(AO48<>"",AVERAGE($E48:AO48)+$EI49,"") -> 70.66666654 | AP49: =IF(AP48<>"",AVERAGE($E48:AP48)+$EI49,"") -> 72.21052618 | AQ49: =IF(AQ48<>"",AVERAGE($E48:AQ48)+$EI49,"") -> 73.09999987 | AR49: =IF(AR48<>"",AVERAGE($E48:AR48)+$EI49,"") ->  | AS49: =IF(AS48<>"",AVERAGE($E48:AS48)+$EI49,"") ->  | AT49: =IF(AT48<>"",AVERAGE($E48:AT48)+$EI49,"") ->  | AU49: =IF(AU48<>"",AVERAGE($E48:AU48)+$EI49,"") ->  | AV49: =IF(AV48<>"",AVERAGE($E48:AV48)+$EI49,"") ->  | AW49: =IF(AW48<>"",AVERAGE($E48:AW48)+$EI49,"") ->  | AX49: =IF(AX48<>"",AVERAGE($E48:AX48)+$EI49,"") ->  | AY49: =IF(AY48<>"",AVERAGE($E48:AY48)+$EI49,"") ->  | AZ49: =IF(AZ48<>"",AVERAGE($E48:AZ48)+$EI49,"") ->  | BA49: =IF(BA48<>"",AVERAGE($E48:BA48)+$EI49,"") ->  | BB49: =IF(BB48<>"",AVERAGE($E48:BB48)+$EI49,"") ->  | BC49: =IF(BC48<>"",AVERAGE($E48:BC48)+$EI49,"") -> 69.61904749 | BD49: =IF(BD48<>"",AVERAGE($E48:BD48)+$EI49,"") -> 73.68181805 | BE49: =IF(BE48<>"",AVERAGE($E48:BE48)+$EI49,"") -> 74.91304335 | BF49: =IF(BF48<>"",AVERAGE($E48:BF48)+$EI49,"") -> 73.29166654 | BG49: =IF(BG48<>"",AVERAGE($E48:BG48)+$EI49,"") -> 70.35999987 | BH49: =IF(BH48<>"",AVERAGE($E48:BH48)+$EI49,"") ->  | BI49: =IF(BI48<>"",AVERAGE($E48:BI48)+$EI49,"") ->  | BJ49: =IF(BJ48<>"",AVERAGE($E48:BJ48)+$EI49,"") ->  | BK49: =IF(BK48<>"",AVERAGE($E48:BK48)+$EI49,"") ->  | BL49: =IF(BL48<>"",AVERAGE($E48:BL48)+$EI49,"") ->  | BM49: =IF(BM48<>"",AVERAGE($E48:BM48)+$EI49,"") ->  | BN49: =IF(BN48<>"",AVERAGE($E48:BN48)+$EI49,"") ->  | BO49: =IF(BO48<>"",AVERAGE($E48:BO48)+$EI49,"") ->  | BP49: =IF(BP48<>"",AVERAGE($E48:BP48)+$EI49,"") ->  | BQ49: =IF(BQ48<>"",AVERAGE($E48:BQ48)+$EI49,"") ->  | BR49: =IF(BR48<>"",AVERAGE($E48:BR48)+$EI49,"") -> 67.65384602 | BS49: =IF(BS48<>"",AVERAGE($E48:BS48)+$EI49,"") -> 65.14814802 | BT49: =IF(BT48<>"",AVERAGE($E48:BT48)+$EI49,"") -> 65.28571415 | BU49: =IF(BU48<>"",AVERAGE($E48:BU48)+$EI49,"") -> 68.75862056 | BV49: =IF(BV48<>"",AVERAGE($E48:BV48)+$EI49,"") -> 66.46666654 | BW49: =IF(BW48<>"",AVERAGE($E48:BW48)+$EI49,"") ->  | BX49: =IF(BX48<>"",AVERAGE($E48:BX48)+$EI49,"") ->  | BY49: =IF(BY48<>"",AVERAGE($E48:BY48)+$EI49,"") ->  | BZ49: =IF(BZ48<>"",AVERAGE($E48:BZ48)+$EI49,"") ->  | CA49: =IF(CA48<>"",AVERAGE($E48:CA48)+$EI49,"") ->  | CB49: =IF(CB48<>"",AVERAGE($E48:CB48)+$EI49,"") ->  | CC49: =IF(CC48<>"",AVERAGE($E48:CC48)+$EI49,"") ->  | CD49: =IF(CD48<>"",AVERAGE($E48:CD48)+$EI49,"") ->  | CE49: =IF(CE48<>"",AVERAGE($E48:CE48)+$EI49,"") ->  | CF49: =IF(CF48<>"",AVERAGE($E48:CF48)+$EI49,"") ->  | CG49: =IF(CG48<>"",AVERAGE($E48:CG48)+$EI49,"") ->  | CH49: =IF(CH48<>"",AVERAGE($E48:CH48)+$EI49,"") ->  | CI49: =IF(CI48<>"",AVERAGE($E48:CI48)+$EI49,"") ->  | CJ49: =IF(CJ48<>"",AVERAGE($E48:CJ48)+$EI49,"") ->  | CK49: =IF(CK48<>"",AVERAGE($E48:CK48)+$EI49,"") ->  | CL49: =IF(CL48<>"",AVERAGE($E48:CL48)+$EI49,"") ->  | CM49: =IF(CM48<>"",AVERAGE($E48:CM48)+$EI49,"") ->  | CN49: =IF(CN48<>"",AVERAGE($E48:CN48)+$EI49,"") ->  | CO49: =IF(CO48<>"",AVERAGE($E48:CO48)+$EI49,"") ->  | CP49: =IF(CP48<>"",AVERAGE($E48:CP48)+$EI49,"") ->  | CQ49: =IF(CQ48<>"",AVERAGE($E48:CQ48)+$EI49,"") ->  | CR49: =IF(CR48<>"",AVERAGE($E48:CR48)+$EI49,"") ->  | CS49: =IF(CS48<>"",AVERAGE($E48:CS48)+$EI49,"") ->  | CT49: =IF(CT48<>"",AVERAGE($E48:CT48)+$EI49,"") ->  | CU49: =IF(CU48<>"",AVERAGE($E48:CU48)+$EI49,"") ->  | CV49: =IF(CV48<>"",AVERAGE($E48:CV48)+$EI49,"") ->  | CW49: =IF(CW48<>"",AVERAGE($E48:CW48)+$EI49,"") ->  | CX49: =IF(CX48<>"",AVERAGE($E48:CX48)+$EI49,"") ->  | CY49: =IF(CY48<>"",AVERAGE($E48:CY48)+$EI49,"") ->  | CZ49: =IF(CZ48<>"",AVERAGE($E48:CZ48)+$EI49,"") ->  | DA49: =IF(DA48<>"",AVERAGE($E48:DA48)+$EI49,"") ->  | DB49: =IF(DB48<>"",AVERAGE($E48:DB48)+$EI49,"") ->  | DC49: =IF(DC48<>"",AVERAGE($E48:DC48)+$EI49,"") ->  | DD49: =IF(DD48<>"",AVERAGE($E48:DD48)+$EI49,"") ->  | DE49: =IF(DE48<>"",AVERAGE($E48:DE48)+$EI49,"") ->  | DF49: =IF(DF48<>"",AVERAGE($E48:DF48)+$EI49,"") ->  | DG49: =IF(DG48<>"",AVERAGE($E48:DG48)+$EI49,"") ->  | DH49: =IF(DH48<>"",AVERAGE($E48:DH48)+$EI49,"") ->  | DI49: =IF(DI48<>"",AVERAGE($E48:DI48)+$EI49,"") ->  | DJ49: =IF(DJ48<>"",AVERAGE($E48:DJ48)+$EI49,"") ->  | DK49: =IF(DK48<>"",AVERAGE($E48:DK48)+$EI49,"") ->  | DL49: =IF(DL48<>"",AVERAGE($E48:DL48)+$EI49,"") ->  | DM49: =IF(DM48<>"",AVERAGE($E48:DM48)+$EI49,"") ->  | DN49: =IF(DN48<>"",AVERAGE($E48:DN48)+$EI49,"") ->  | DO49: =IF(DO48<>"",AVERAGE($E48:DO48)+$EI49,"") ->  | DP49: =IF(DP48<>"",AVERAGE($E48:DP48)+$EI49,"") ->  | DQ49: =IF(DQ48<>"",AVERAGE($E48:DQ48)+$EI49,"") ->  | DR49: =IF(DR48<>"",AVERAGE($E48:DR48)+$EI49,"") ->  | DS49: =IF(DS48<>"",AVERAGE($E48:DS48)+$EI49,"") ->  | DT49: =IF(DT48<>"",AVERAGE($E48:DT48)+$EI49,"") ->  | DU49: =IF(DU48<>"",AVERAGE($E48:DU48)+$EI49,"") ->  | DV49: =IF(DV48<>"",AVERAGE($E48:DV48)+$EI49,"") ->  | DW49: =IF(DW48<>"",AVERAGE($E48:DW48)+$EI49,"") ->  | DX49: =IF(DX48<>"",AVERAGE($E48:DX48)+$EI49,"") ->  | DY49: =IF(DY48<>"",AVERAGE($E48:DY48)+$EI49,"") ->  | DZ49: =IF(DZ48<>"",AVERAGE($E48:DZ48)+$EI49,"") ->  | EA49: =IF(EA48<>"",AVERAGE($E48:EA48)+$EI49,"") ->  | EB49: =IF(EB48<>"",AVERAGE($E48:EB48)+$EI49,"") ->  | EC49: =IF(EC48<>"",AVERAGE($E48:EC48)+$EI49,"") ->  | ED49: =IF(ED48<>"",AVERAGE($E48:ED48)+$EI49,"") ->  | EE49: =IF(AND(SUM(Tabulka!$AG$29)>0.99,(SUM(Tabulka!$AG$29)<2)),-50000+(SUM(E48:ED48)/COUNT(E49:ED49)),IF(OR(SUM(Tabulka!$AG$29)<2),-90000,SUM(E48:ED48)/COUNT(E49:ED49))) -> 66.46666667 | EG49: =IFERROR(SUM(E48:ED48)/COUNT(E48:ED48),) -> 66.46666667 | EH49: =CONCATENATE(C44," ",C45) -> Míra Šedivý | EI49: =INDEX(List4!$E$2:$E$17,MATCH(CONCATENATE(C44," ",C45),Tabulka1128[Jmeno_prijmeni],0),1) -> -1.31e-07
A50: Míra ŠedivýPočet šipek | B50: =CONCATENATE(C44," ",C45) -> Míra Šedivý | D50: Počet šipek | EE50: =IF(AND(SUM(Tabulka!$AG$29)>0.99,(SUM(Tabulka!$AG$29)<2)),-50000+(SUM(E50:ED50)),IF(OR(SUM(Tabulka!$AG$29)<2),-90000,SUM(E50:ED50))) -> 0 | EG50: 0
A51: =CONCATENATE($C$52," ",$C$53,D51) -> Jiří BlínVýhry | B51: =CONCATENATE(C52," ",C53) -> Jiří Blín | C51: =Tabulka!B34 -> 0 | D51: Výhry | E51: 1 | J51: 0 | O51: 0 | T51: 0 | Y51: 0 | AD51: 0 | AI51: 0 | AN51: 1 | AS51: 0 | AX51: 1 | BC51: 2 | BH51: 2 | BM51: 0 | BR51: 0 | BW51: 2 | CB51: 0 | CG51: 0 | EE51: =IF(AND(SUM(Tabulka!$AG$34)>0.99,(SUM(Tabulka!$AG$34)<2)),-50000+(SUM(E51:ED51)),IF(OR(SUM(Tabulka!$AG$34)<2),-90000,SUM(E51:ED51))) -> 9 | EG51: 9
A52: Jiří BlínProhry | B52: Jiří Blín | C52: =Tabulka!B35 -> Jiří | D52: Prohry | E52: 1 | J52: 2 | O52: 3 | T52: 0 | Y52: 0 | AD52: 1 | AI52: 1 | AN52: 2 | AS52: 1 | AX52: 0 | BC52: 1 | BH52: 1 | BM52: 1 | BR52: 1 | BW52: 0 | CB52: 3 | CG52: 0 | EE52: =IF(AND(SUM(Tabulka!$AG$34)>0.99,(SUM(Tabulka!$AG$34)<2)),-50000+(SUM(E52:ED52)),IF(OR(SUM(Tabulka!$AG$34)<2),-90000,SUM(E52:ED52))) -> 18 | EF52: =SUM(EE51-EE52) -> -9 | EG52: 18
A53: Jiří BlínPlaceno panáků | B53: =CONCATENATE(C52," ",C53) -> Jiří Blín | C53: =Tabulka!B36 -> Blín | D53: Placeno panáků | E53: 2 | J53: 4 | O53: 4 | T53: 0 | Y53: 0 | AD53: 1 | AI53: 1 | AN53: 2 | AS53: 1 | AX53: 0 | BC53: 2 | BH53: 1 | BM53: 1 | BR53: 2 | BW53: 0 | CB53: 3 | CG53: 0 | EE53: =IF(AND(SUM(Tabulka!$AG$34)>0.99,(SUM(Tabulka!$AG$34)<2)),-50000+(SUM(E53:ED53)),IF(OR(SUM(Tabulka!$AG$34)<2),-90000,SUM(E53:ED53))) -> 24 | EG53: 24
A54: Jiří BlínPřehozy | B54: =CONCATENATE(C52," ",C53) -> Jiří Blín | C54: =Tabulka!B37 -> 0 | D54: Přehozy | E54: 0 | J54: 0 | O54: 0 | T54: 0 | Y54: 1 | AD54: 3 | AI54: 2 | AN54: 0 | AS54: 0 | AX54: 0 | BC54: 1 | BH54: 0 | BM54: 0 | BR54: 0 | BW54: 2 | CB54: 1 | CG54: 1 | EE54: =IF(AND(SUM(Tabulka!$AG$34)>0.99,(SUM(Tabulka!$AG$34)<2)),-50000+(SUM(E54:ED54)),IF(OR(SUM(Tabulka!$AG$34)<2),-90000,SUM(E54:ED54))) -> 11 | EG54: 11
A55: Jiří BlínPoč. kol | B55: =CONCATENATE(C52," ",C53) -> Jiří Blín | C55: =Tabulka!B38 -> 0 | D55: Poč. kol | E55: 4 | J55: 4 | O55: 4 | T55: 4 | Y55: 4 | AD55: 4 | AI55: 4 | AN55: 4 | AS55: 3 | AX55: 4 | BC55: 5 | BH55: 4 | BM55: 4 | BR55: 5 | BW55: 4 | CB55: 4 | CG55: 4 | EE55: =IF(AND(SUM(Tabulka!$AG$34)>0.99,(SUM(Tabulka!$AG$34)<2)),-50000+(SUM(E55:ED55)),IF(OR(SUM(Tabulka!$AG$34)<2),-90000,SUM(E55:ED55))) -> 69 | EG55: 69
A56: Jiří BlínPočet konečných bodů | B56: =CONCATENATE(C52," ",C53) -> Jiří Blín | D56: Počet konečných bodů | E56: 105 | F56: 61 | G56: 0 | H56: 68 | J56: 90 | K56: 81 | L56: 28 | M56: 16 | O56: 164 | P56: 84 | Q56: 193 | R56: 89 | T56: 139 | U56: 66 | V56: 22 | W56: 71 | Y56: 42 | Z56: 95 | AA56: 37 | AB56: 65 | AD56: 27 | AE56: 125 | AF56: 16 | AG56: 168 | AI56: 37 | AJ56: 2 | AK56: 31 | AL56: 151 | AN56: 164 | AO56: 149 | AP56: 136 | AQ56: 0 | AS56: 12 | AT56: 104 | AU56: 135 | AX56: 0 | AY56: 21 | AZ56: 55 | BA56: 67 | BC56: 0 | BD56: 0 | BE56: 23 | BF56: 51 | BG56: 109 | BH56: 0 | BI56: 165 | BJ56: 26 | BK56: 0 | BM56: 202 | BN56: 92 | BO56: 40 | BP56: 121 | BR56: 184 | BS56: 67 | BT56: 14 | BU56: 49 | BV56: 81 | BW56: 0 | BX56: 0 | BY56: 97 | BZ56: 19 | CB56: 21 | CC56: 159 | CD56: 125 | CE56: 158 | CG56: 179 | CH56: 1 | CI56: 32 | CJ56: 22 | EE56: =IF(AND(SUM(Tabulka!$AG$34)>0.99,(SUM(Tabulka!$AG$34)<2)),-50000-(SUM(E56:ED56)),IF(OR(SUM(Tabulka!$AG$34)<2),-90000,SUM(E56:ED56))) -> 4953 | EG56: 4953
A57: Jiří BlínPrůměr konečných bodů na kolo | B57: =CONCATENATE(C52," ",C53) -> Jiří Blín | D57: Průměr konečných bodů na kolo | E57: =IF(E56<>"",AVERAGE($E56:E56)+$EI57,"") -> 105 | F57: =IF(F56<>"",AVERAGE($E56:F56)+$EI57,"") -> 82.99999999 | G57: =IF(G56<>"",AVERAGE($E56:G56)+$EI57,"") -> 55.33333332 | H57: =IF(H56<>"",AVERAGE($E56:H56)+$EI57,"") -> 58.49999999 | I57: =IF(I56<>"",AVERAGE($E56:I56)+$EI57,"") ->  | J57: =IF(J56<>"",AVERAGE($E56:J56)+$EI57,"") -> 64.79999999 | K57: =IF(K56<>"",AVERAGE($E56:K56)+$EI57,"") -> 67.49999999 | L57: =IF(L56<>"",AVERAGE($E56:L56)+$EI57,"") -> 61.85714285 | M57: =IF(M56<>"",AVERAGE($E56:M56)+$EI57,"") -> 56.12499999 | N57: =IF(N56<>"",AVERAGE($E56:N56)+$EI57,"") ->  | O57: =IF(O56<>"",AVERAGE($E56:O56)+$EI57,"") -> 68.1111111 | P57: =IF(P56<>"",AVERAGE($E56:P56)+$EI57,"") -> 69.69999999 | Q57: =IF(Q56<>"",AVERAGE($E56:Q56)+$EI57,"") -> 80.9090909 | R57: =IF(R56<>"",AVERAGE($E56:R56)+$EI57,"") -> 81.58333332 | S57: =IF(S56<>"",AVERAGE($E56:S56)+$EI57,"") ->  | T57: =IF(T56<>"",AVERAGE($E56:T56)+$EI57,"") -> 85.99999999 | U57: =IF(U56<>"",AVERAGE($E56:U56)+$EI57,"") -> 84.57142856 | V57: =IF(V56<>"",AVERAGE($E56:V56)+$EI57,"") -> 80.39999999 | W57: =IF(W56<>"",AVERAGE($E56:W56)+$EI57,"") -> 79.81249999 | X57: =IF(X56<>"",AVERAGE($E56:X56)+$EI57,"") ->  | Y57: =IF(Y56<>"",AVERAGE($E56:Y56)+$EI57,"") -> 77.58823528 | Z57: =IF(Z56<>"",AVERAGE($E56:Z56)+$EI57,"") -> 78.55555554 | AA57: =IF(AA56<>"",AVERAGE($E56:AA56)+$EI57,"") -> 76.36842104 | AB57: =IF(AB56<>"",AVERAGE($E56:AB56)+$EI57,"") -> 75.79999999 | AC57: =IF(AC56<>"",AVERAGE($E56:AC56)+$EI57,"") ->  | AD57: =IF(AD56<>"",AVERAGE($E56:AD56)+$EI57,"") -> 73.47619047 | AE57: =IF(AE56<>"",AVERAGE($E56:AE56)+$EI57,"") -> 75.81818181 | AF57: =IF(AF56<>"",AVERAGE($E56:AF56)+$EI57,"") -> 73.21739129 | AG57: =IF(AG56<>"",AVERAGE($E56:AG56)+$EI57,"") -> 77.16666666 | AH57: =IF(AH56<>"",AVERAGE($E56:AH56)+$EI57,"") ->  | AI57: =IF(AI56<>"",AVERAGE($E56:AI56)+$EI57,"") -> 75.55999999 | AJ57: =IF(AJ56<>"",AVERAGE($E56:AJ56)+$EI57,"") -> 72.73076922 | AK57: =IF(AK56<>"",AVERAGE($E56:AK56)+$EI57,"") -> 71.18518517 | AL57: =IF(AL56<>"",AVERAGE($E56:AL56)+$EI57,"") -> 74.03571427 | AM57: =IF(AM56<>"",AVERAGE($E56:AM56)+$EI57,"") ->  | AN57: =IF(AN56<>"",AVERAGE($E56:AN56)+$EI57,"") -> 77.13793102 | AO57: =IF(AO56<>"",AVERAGE($E56:AO56)+$EI57,"") -> 79.53333332 | AP57: =IF(AP56<>"",AVERAGE($E56:AP56)+$EI57,"") -> 81.3548387 | AQ57: =IF(AQ56<>"",AVERAGE($E56:AQ56)+$EI57,"") -> 78.81249999 | AR57: =IF(AR56<>"",AVERAGE($E56:AR56)+$EI57,"") ->  | AS57: =IF(AS56<>"",AVERAGE($E56:AS56)+$EI57,"") -> 76.78787878 | AT57: =IF(AT56<>"",AVERAGE($E56:AT56)+$EI57,"") -> 77.58823528 | AU57: =IF(AU56<>"",AVERAGE($E56:AU56)+$EI57,"") -> 79.22857142 | AV57: =IF(AV56<>"",AVERAGE($E56:AV56)+$EI57,"") ->  | AW57: =IF(AW56<>"",AVERAGE($E56:AW56)+$EI57,"") ->  | AX57: =IF(AX56<>"",AVERAGE($E56:AX56)+$EI57,"") -> 77.02777777 | AY57: =IF(AY56<>"",AVERAGE($E56:AY56)+$EI57,"") -> 75.5135135 | AZ57: =IF(AZ56<>"",AVERAGE($E56:AZ56)+$EI57,"") -> 74.9736842 | BA57: =IF(BA56<>"",AVERAGE($E56:BA56)+$EI57,"") -> 74.76923076 | BB57: =IF(BB56<>"",AVERAGE($E56:BB56)+$EI57,"") ->  | BC57: =IF(BC56<>"",AVERAGE($E56:BC56)+$EI57,"") -> 72.89999999 | BD57: =IF(BD56<>"",AVERAGE($E56:BD56)+$EI57,"") -> 71.12195121 | BE57: =IF(BE56<>"",AVERAGE($E56:BE56)+$EI57,"") -> 69.97619047 | BF57: =IF(BF56<>"",AVERAGE($E56:BF56)+$EI57,"") -> 69.53488371 | BG57: =IF(BG56<>"",AVERAGE($E56:BG56)+$EI57,"") -> 70.43181817 | BH57: =IF(BH56<>"",AVERAGE($E56:BH56)+$EI57,"") -> 68.86666666 | BI57: =IF(BI56<>"",AVERAGE($E56:BI56)+$EI57,"") -> 70.95652173 | BJ57: =IF(BJ56<>"",AVERAGE($E56:BJ56)+$EI57,"") -> 69.99999999 | BK57: =IF(BK56<>"",AVERAGE($E56:BK56)+$EI57,"") -> 68.54166666 | BL57: =IF(BL56<>"",AVERAGE($E56:BL56)+$EI57,"") ->  | BM57: =IF(BM56<>"",AVERAGE($E56:BM56)+$EI57,"") -> 71.26530611 | BN57: =IF(BN56<>"",AVERAGE($E56:BN56)+$EI57,"") -> 71.67999999 | BO57: =IF(BO56<>"",AVERAGE($E56:BO56)+$EI57,"") -> 71.05882352 | BP57: =IF(BP56<>"",AVERAGE($E56:BP56)+$EI57,"") -> 72.01923076 | BQ57: =IF(BQ56<>"",AVERAGE($E56:BQ56)+$EI57,"") ->  | BR57: =IF(BR56<>"",AVERAGE($E56:BR56)+$EI57,"") -> 74.13207546 | BS57: =IF(BS56<>"",AVERAGE($E56:BS56)+$EI57,"") -> 73.99999999 | BT57: =IF(BT56<>"",AVERAGE($E56:BT56)+$EI57,"") -> 72.9090909 | BU57: =IF(BU56<>"",AVERAGE($E56:BU56)+$EI57,"") -> 72.48214285 | BV57: =IF(BV56<>"",AVERAGE($E56:BV56)+$EI57,"") -> 72.63157894 | BW57: =IF(BW56<>"",AVERAGE($E56:BW56)+$EI57,"") -> 71.37931033 | BX57: =IF(BX56<>"",AVERAGE($E56:BX56)+$EI57,"") -> 70.16949151 | BY57: =IF(BY56<>"",AVERAGE($E56:BY56)+$EI57,"") -> 70.61666666 | BZ57: =IF(BZ56<>"",AVERAGE($E56:BZ56)+$EI57,"") -> 69.77049179 | CA57: =IF(CA56<>"",AVERAGE($E56:CA56)+$EI57,"") ->  | CB57: =IF(CB56<>"",AVERAGE($E56:CB56)+$EI57,"") -> 68.98387096 | CC57: =IF(CC56<>"",AVERAGE($E56:CC56)+$EI57,"") -> 70.4126984 | CD57: =IF(CD56<>"",AVERAGE($E56:CD56)+$EI57,"") -> 71.26562499 | CE57: =IF(CE56<>"",AVERAGE($E56:CE56)+$EI57,"") -> 72.59999999 | CF57: =IF(CF56<>"",AVERAGE($E56:CF56)+$EI57,"") ->  | CG57: =IF(CG56<>"",AVERAGE($E56:CG56)+$EI57,"") -> 74.2121212 | CH57: =IF(CH56<>"",AVERAGE($E56:CH56)+$EI57,"") -> 73.11940297 | CI57: =IF(CI56<>"",AVERAGE($E56:CI56)+$EI57,"") -> 72.51470587 | CJ57: =IF(CJ56<>"",AVERAGE($E56:CJ56)+$EI57,"") -> 71.78260868 | CK57: =IF(CK56<>"",AVERAGE($E56:CK56)+$EI57,"") ->  | CL57: =IF(CL56<>"",AVERAGE($E56:CL56)+$EI57,"") ->  | CM57: =IF(CM56<>"",AVERAGE($E56:CM56)+$EI57,"") ->  | CN57: =IF(CN56<>"",AVERAGE($E56:CN56)+$EI57,"") ->  | CO57: =IF(CO56<>"",AVERAGE($E56:CO56)+$EI57,"") ->  | CP57: =IF(CP56<>"",AVERAGE($E56:CP56)+$EI57,"") ->  | CQ57: =IF(CQ56<>"",AVERAGE($E56:CQ56)+$EI57,"") ->  | CR57: =IF(CR56<>"",AVERAGE($E56:CR56)+$EI57,"") ->  | CS57: =IF(CS56<>"",AVERAGE($E56:CS56)+$EI57,"") ->  | CT57: =IF(CT56<>"",AVERAGE($E56:CT56)+$EI57,"") ->  | CU57: =IF(CU56<>"",AVERAGE($E56:CU56)+$EI57,"") ->  | CV57: =IF(CV56<>"",AVERAGE($E56:CV56)+$EI57,"") ->  | CW57: =IF(CW56<>"",AVERAGE($E56:CW56)+$EI57,"") ->  | CX57: =IF(CX56<>"",AVERAGE($E56:CX56)+$EI57,"") ->  | CY57: =IF(CY56<>"",AVERAGE($E56:CY56)+$EI57,"") ->  | CZ57: =IF(CZ56<>"",AVERAGE($E56:CZ56)+$EI57,"") ->  | DA57: =IF(DA56<>"",AVERAGE($E56:DA56)+$EI57,"") ->  | DB57: =IF(DB56<>"",AVERAGE($E56:DB56)+$EI57,"") ->  | DC57: =IF(DC56<>"",AVERAGE($E56:DC56)+$EI57,"") ->  | DD57: =IF(DD56<>"",AVERAGE($E56:DD56)+$EI57,"") ->  | DE57: =IF(DE56<>"",AVERAGE($E56:DE56)+$EI57,"") ->  | DF57: =IF(DF56<>"",AVERAGE($E56:DF56)+$EI57,"") ->  | DG57: =IF(DG56<>"",AVERAGE($E56:DG56)+$EI57,"") ->  | DH57: =IF(DH56<>"",AVERAGE($E56:DH56)+$EI57,"") ->  | DI57: =IF(DI56<>"",AVERAGE($E56:DI56)+$EI57,"") ->  | DJ57: =IF(DJ56<>"",AVERAGE($E56:DJ56)+$EI57,"") ->  | DK57: =IF(DK56<>"",AVERAGE($E56:DK56)+$EI57,"") ->  | DL57: =IF(DL56<>"",AVERAGE($E56:DL56)+$EI57,"") ->  | DM57: =IF(DM56<>"",AVERAGE($E56:DM56)+$EI57,"") ->  | DN57: =IF(DN56<>"",AVERAGE($E56:DN56)+$EI57,"") ->  | DO57: =IF(DO56<>"",AVERAGE($E56:DO56)+$EI57,"") ->  | DP57: =IF(DP56<>"",AVERAGE($E56:DP56)+$EI57,"") ->  | DQ57: =IF(DQ56<>"",AVERAGE($E56:DQ56)+$EI57,"") ->  | DR57: =IF(DR56<>"",AVERAGE($E56:DR56)+$EI57,"") ->  | DS57: =IF(DS56<>"",AVERAGE($E56:DS56)+$EI57,"") ->  | DT57: =IF(DT56<>"",AVERAGE($E56:DT56)+$EI57,"") ->  | DU57: =IF(DU56<>"",AVERAGE($E56:DU56)+$EI57,"") ->  | DV57: =IF(DV56<>"",AVERAGE($E56:DV56)+$EI57,"") ->  | DW57: =IF(DW56<>"",AVERAGE($E56:DW56)+$EI57,"") ->  | DX57: =IF(DX56<>"",AVERAGE($E56:DX56)+$EI57,"") ->  | DY57: =IF(DY56<>"",AVERAGE($E56:DY56)+$EI57,"") ->  | DZ57: =IF(DZ56<>"",AVERAGE($E56:DZ56)+$EI57,"") ->  | EA57: =IF(EA56<>"",AVERAGE($E56:EA56)+$EI57,"") ->  | EB57: =IF(EB56<>"",AVERAGE($E56:EB56)+$EI57,"") ->  | EC57: =IF(EC56<>"",AVERAGE($E56:EC56)+$EI57,"") ->  | ED57: =IF(ED56<>"",AVERAGE($E56:ED56)+$EI57,"") ->  | EE57: =IF(AND(SUM(Tabulka!$AG$34)>0.99,(SUM(Tabulka!$AG$34)<2)),-50000+(SUM(E56:ED56)/COUNT(E57:ED57)),IF(OR(SUM(Tabulka!$AG$34)<2),-90000,SUM(E56:ED56)/COUNT(E57:ED57))) -> 71.7826087 | EG57: =IFERROR(SUM(E56:ED56)/COUNT(E56:ED56),) -> 71.7826087 | EH57: =CONCATENATE(C52," ",C53) -> Jiří Blín | EI57: =INDEX(List4!$E$2:$E$17,MATCH(CONCATENATE(C52," ",C53),Tabulka1128[Jmeno_prijmeni],0),1) -> -1.1e-08
A58: Jiří BlínPočet šipek | B58: =CONCATENATE(C52," ",C53) -> Jiří Blín | D58: Počet šipek | EE58: =IF(AND(SUM(Tabulka!$AG$34)>0.99,(SUM(Tabulka!$AG$34)<2)),-50000+(SUM(E58:ED58)),IF(OR(SUM(Tabulka!$AG$34)<2),-90000,SUM(E58:ED58))) -> 0 | EG58: 0
A59: =CONCATENATE($C$60," ",$C$61,D59) -> Adam ŠmídVýhry | B59: =CONCATENATE(C60," ",C61) -> Adam Šmíd | C59: =Tabulka!B39 -> 0 | D59: Výhry | E59: 0 | O59: 0 | T59: 0 | Y59: 0 | AI59: 0 | AN59: 0 | AS59: 0 | BH59: 0 | BM59: 0 | BW59: 0 | EE59: =IF(AND(SUM(Tabulka!$AG$39)>0.99,(SUM(Tabulka!$AG$39)<2)),-50000+(SUM(E59:ED59)),IF(OR(SUM(Tabulka!$AG$39)<2),-90000,SUM(E59:ED59))) -> 0 | EG59: 0
A60: Adam ŠmídProhry | B60: Adam Šmíd | C60: =Tabulka!B40 -> Adam | D60: Prohry | E60: 0 | O60: 0 | T60: 1 | Y60: 1 | AI60: 0 | AN60: 1 | AS60: 1 | BH60: 0 | BM60: 0 | BW60: 3 | EE60: =IF(AND(SUM(Tabulka!$AG$39)>0.99,(SUM(Tabulka!$AG$39)<2)),-50000+(SUM(E60:ED60)),IF(OR(SUM(Tabulka!$AG$39)<2),-90000,SUM(E60:ED60))) -> 7 | EF60: =SUM(EE59-EE60) -> -7 | EG60: 7
A61: Adam ŠmídPlaceno panáků | B61: =CONCATENATE(C60," ",C61) -> Adam Šmíd | C61: =Tabulka!B41 -> Šmíd | D61: Placeno panáků | E61: 0 | O61: 5 | T61: 1 | Y61: 1 | AI61: 0 | AN61: 1 | AS61: 2 | BH61: 0 | BM61: 0 | BW61: 4 | EE61: =IF(AND(SUM(Tabulka!$AG$39)>0.99,(SUM(Tabulka!$AG$39)<2)),-50000+(SUM(E61:ED61)),IF(OR(SUM(Tabulka!$AG$39)<2),-90000,SUM(E61:ED61))) -> 14 | EG61: 14
A62: Adam ŠmídPřehozy | B62: =CONCATENATE(C60," ",C61) -> Adam Šmíd | C62: =Tabulka!B42 -> 0 | D62: Přehozy | E62: 0 | O62: 0 | T62: 0 | Y62: 0 | AI62: 2 | AN62: 0 | AS62: 0 | BH62: 0 | BM62: 0 | BW62: 0 | EE62: =IF(AND(SUM(Tabulka!$AG$39)>0.99,(SUM(Tabulka!$AG$39)<2)),-50000+(SUM(E62:ED62)),IF(OR(SUM(Tabulka!$AG$39)<2),-90000,SUM(E62:ED62))) -> 2 | EG62: 2
A63: Adam ŠmídPoč. kol | B63: =CONCATENATE(C60," ",C61) -> Adam Šmíd | C63: =Tabulka!B43 -> 0 | D63: Poč. kol | E63: 1 | O63: 2 | T63: 2 | Y63: 1 | AI63: 2 | AN63: 2 | AS63: 2 | BH63: 1 | BM63: 3 | BW63: 3 | EE63: =IF(AND(SUM(Tabulka!$AG$39)>0.99,(SUM(Tabulka!$AG$39)<2)),-50000+(SUM(E63:ED63)),IF(OR(SUM(Tabulka!$AG$39)<2),-90000,SUM(E63:ED63))) -> 19 | EG63: 19
A64: Adam ŠmídPočet konečných bodů | B64: =CONCATENATE(C60," ",C61) -> Adam Šmíd | D64: Počet konečných bodů | H64: 15 | Q64: 156 | R64: 49 | V64: 115 | W64: 132 | AB64: 85 | AK64: 49 | AL64: 65 | AP64: 195 | AQ64: 53 | AT64: 132 | AU64: 81 | BK64: 12 | BN64: 60 | BO64: 106 | BP64: 97 | BX64: 109 | BY64: 232 | BZ64: 85 | EE64: =IF(AND(SUM(Tabulka!$AG$39)>0.99,(SUM(Tabulka!$AG$39)<2)),-50000-(SUM(E64:ED64)),IF(OR(SUM(Tabulka!$AG$39)<2),-90000,SUM(E64:ED64))) -> 1828 | EG64: 1828
A65: Adam ŠmídPrůměr konečných bodů na kolo | B65: =CONCATENATE(C60," ",C61) -> Adam Šmíd | D65: Průměr konečných bodů na kolo | E65: =IF(E64<>"",AVERAGE($E64:E64)+$EI65,"") ->  | F65: =IF(F64<>"",AVERAGE($E64:F64)+$EI65,"") ->  | G65: =IF(G64<>"",AVERAGE($E64:G64)+$EI65,"") ->  | H65: =IF(H64<>"",AVERAGE($E64:H64)+$EI65,"") -> 14.99999986 | I65: =IF(I64<>"",AVERAGE($E64:I64)+$EI65,"") ->  | J65: =IF(J64<>"",AVERAGE($E64:J64)+$EI65,"") ->  | K65: =IF(K64<>"",AVERAGE($E64:K64)+$EI65,"") ->  | L65: =IF(L64<>"",AVERAGE($E64:L64)+$EI65,"") ->  | M65: =IF(M64<>"",AVERAGE($E64:M64)+$EI65,"") ->  | N65: =IF(N64<>"",AVERAGE($E64:N64)+$EI65,"") ->  | O65: =IF(O64<>"",AVERAGE($E64:O64)+$EI65,"") ->  | P65: =IF(P64<>"",AVERAGE($E64:P64)+$EI65,"") ->  | Q65: =IF(Q64<>"",AVERAGE($E64:Q64)+$EI65,"") -> 85.49999986 | R65: =IF(R64<>"",AVERAGE($E64:R64)+$EI65,"") -> 73.33333319 | S65: =IF(S64<>"",AVERAGE($E64:S64)+$EI65,"") ->  | T65: =IF(T64<>"",AVERAGE($E64:T64)+$EI65,"") ->  | U65: =IF(U64<>"",AVERAGE($E64:U64)+$EI65,"") ->  | V65: =IF(V64<>"",AVERAGE($E64:V64)+$EI65,"") -> 83.74999986 | W65: =IF(W64<>"",AVERAGE($E64:W64)+$EI65,"") -> 93.39999986 | X65: =IF(X64<>"",AVERAGE($E64:X64)+$EI65,"") ->  | Y65: =IF(Y64<>"",AVERAGE($E64:Y64)+$EI65,"") ->  | Z65: =IF(Z64<>"",AVERAGE($E64:Z64)+$EI65,"") ->  | AA65: =IF(AA64<>"",AVERAGE($E64:AA64)+$EI65,"") ->  | AB65: =IF(AB64<>"",AVERAGE($E64:AB64)+$EI65,"") -> 91.99999986 | AC65: =IF(AC64<>"",AVERAGE($E64:AC64)+$EI65,"") ->  | AD65: =IF(AD64<>"",AVERAGE($E64:AD64)+$EI65,"") ->  | AE65: =IF(AE64<>"",AVERAGE($E64:AE64)+$EI65,"") ->  | AF65: =IF(AF64<>"",AVERAGE($E64:AF64)+$EI65,"") ->  | AG65: =IF(AG64<>"",AVERAGE($E64:AG64)+$EI65,"") ->  | AH65: =IF(AH64<>"",AVERAGE($E64:AH64)+$EI65,"") ->  | AI65: =IF(AI64<>"",AVERAGE($E64:AI64)+$EI65,"") ->  | AJ65: =IF(AJ64<>"",AVERAGE($E64:AJ64)+$EI65,"") ->  | AK65: =IF(AK64<>"",AVERAGE($E64:AK64)+$EI65,"") -> 85.85714272 | AL65: =IF(AL64<>"",AVERAGE($E64:AL64)+$EI65,"") -> 83.24999986 | AM65: =IF(AM64<>"",AVERAGE($E64:AM64)+$EI65,"") ->  | AN65: =IF(AN64<>"",AVERAGE($E64:AN64)+$EI65,"") ->  | AO65: =IF(AO64<>"",AVERAGE($E64:AO64)+$EI65,"") ->  | AP65: =IF(AP64<>"",AVERAGE($E64:AP64)+$EI65,"") -> 95.66666653 | AQ65: =IF(AQ64<>"",AVERAGE($E64:AQ64)+$EI65,"") -> 91.39999986 | AR65: =IF(AR64<>"",AVERAGE($E64:AR64)+$EI65,"") ->  | AS65: =IF(AS64<>"",AVERAGE($E64:AS64)+$EI65,"") ->  | AT65: =IF(AT64<>"",AVERAGE($E64:AT64)+$EI65,"") -> 95.09090895 | AU65: =IF(AU64<>"",AVERAGE($E64:AU64)+$EI65,"") -> 93.91666653 | AV65: =IF(AV64<>"",AVERAGE($E64:AV64)+$EI65,"") ->  | AW65: =IF(AW64<>"",AVERAGE($E64:AW64)+$EI65,"") ->  | AX65: =IF(AX64<>"",AVERAGE($E64:AX64)+$EI65,"") ->  | AY65: =IF(AY64<>"",AVERAGE($E64:AY64)+$EI65,"") ->  | AZ65: =IF(AZ64<>"",AVERAGE($E64:AZ64)+$EI65,"") ->  | BA65: =IF(BA64<>"",AVERAGE($E64:BA64)+$EI65,"") ->  | BB65: =IF(BB64<>"",AVERAGE($E64:BB64)+$EI65,"") ->  | BC65: =IF(BC64<>"",AVERAGE($E64:BC64)+$EI65,"") ->  | BD65: =IF(BD64<>"",AVERAGE($E64:BD64)+$EI65,"") ->  | BE65: =IF(BE64<>"",AVERAGE($E64:BE64)+$EI65,"") ->  | BF65: =IF(BF64<>"",AVERAGE($E64:BF64)+$EI65,"") ->  | BG65: =IF(BG64<>"",AVERAGE($E64:BG64)+$EI65,"") ->  | BH65: =IF(BH64<>"",AVERAGE($E64:BH64)+$EI65,"") ->  | BI65: =IF(BI64<>"",AVERAGE($E64:BI64)+$EI65,"") ->  | BJ65: =IF(BJ64<>"",AVERAGE($E64:BJ64)+$EI65,"") ->  | BK65: =IF(BK64<>"",AVERAGE($E64:BK64)+$EI65,"") -> 87.61538447 | BL65: =IF(BL64<>"",AVERAGE($E64:BL64)+$EI65,"") ->  | BM65: =IF(BM64<>"",AVERAGE($E64:BM64)+$EI65,"") ->  | BN65: =IF(BN64<>"",AVERAGE($E64:BN64)+$EI65,"") -> 85.642857 | BO65: =IF(BO64<>"",AVERAGE($E64:BO64)+$EI65,"") -> 86.99999986 | BP65: =IF(BP64<>"",AVERAGE($E64:BP64)+$EI65,"") -> 87.62499986 | BQ65: =IF(BQ64<>"",AVERAGE($E64:BQ64)+$EI65,"") ->  | BR65: =IF(BR64<>"",AVERAGE($E64:BR64)+$EI65,"") ->  | BS65: =IF(BS64<>"",AVERAGE($E64:BS64)+$EI65,"") ->  | BT65: =IF(BT64<>"",AVERAGE($E64:BT64)+$EI65,"") ->  | BU65: =IF(BU64<>"",AVERAGE($E64:BU64)+$EI65,"") ->  | BV65: =IF(BV64<>"",AVERAGE($E64:BV64)+$EI65,"") ->  | BW65: =IF(BW64<>"",AVERAGE($E64:BW64)+$EI65,"") ->  | BX65: =IF(BX64<>"",AVERAGE($E64:BX64)+$EI65,"") -> 88.8823528 | BY65: =IF(BY64<>"",AVERAGE($E64:BY64)+$EI65,"") -> 96.83333319 | BZ65: =IF(BZ64<>"",AVERAGE($E64:BZ64)+$EI65,"") -> 96.21052617 | CA65: =IF(CA64<>"",AVERAGE($E64:CA64)+$EI65,"") ->  | CB65: =IF(CB64<>"",AVERAGE($E64:CB64)+$EI65,"") ->  | CC65: =IF(CC64<>"",AVERAGE($E64:CC64)+$EI65,"") ->  | CD65: =IF(CD64<>"",AVERAGE($E64:CD64)+$EI65,"") ->  | CE65: =IF(CE64<>"",AVERAGE($E64:CE64)+$EI65,"") ->  | CF65: =IF(CF64<>"",AVERAGE($E64:CF64)+$EI65,"") ->  | CG65: =IF(CG64<>"",AVERAGE($E64:CG64)+$EI65,"") ->  | CH65: =IF(CH64<>"",AVERAGE($E64:CH64)+$EI65,"") ->  | CI65: =IF(CI64<>"",AVERAGE($E64:CI64)+$EI65,"") ->  | CJ65: =IF(CJ64<>"",AVERAGE($E64:CJ64)+$EI65,"") ->  | CK65: =IF(CK64<>"",AVERAGE($E64:CK64)+$EI65,"") ->  | CL65: =IF(CL64<>"",AVERAGE($E64:CL64)+$EI65,"") ->  | CM65: =IF(CM64<>"",AVERAGE($E64:CM64)+$EI65,"") ->  | CN65: =IF(CN64<>"",AVERAGE($E64:CN64)+$EI65,"") ->  | CO65: =IF(CO64<>"",AVERAGE($E64:CO64)+$EI65,"") ->  | CP65: =IF(CP64<>"",AVERAGE($E64:CP64)+$EI65,"") ->  | CQ65: =IF(CQ64<>"",AVERAGE($E64:CQ64)+$EI65,"") ->  | CR65: =IF(CR64<>"",AVERAGE($E64:CR64)+$EI65,"") ->  | CS65: =IF(CS64<>"",AVERAGE($E64:CS64)+$EI65,"") ->  | CT65: =IF(CT64<>"",AVERAGE($E64:CT64)+$EI65,"") ->  | CU65: =IF(CU64<>"",AVERAGE($E64:CU64)+$EI65,"") ->  | CV65: =IF(CV64<>"",AVERAGE($E64:CV64)+$EI65,"") ->  | CW65: =IF(CW64<>"",AVERAGE($E64:CW64)+$EI65,"") ->  | CX65: =IF(CX64<>"",AVERAGE($E64:CX64)+$EI65,"") ->  | CY65: =IF(CY64<>"",AVERAGE($E64:CY64)+$EI65,"") ->  | CZ65: =IF(CZ64<>"",AVERAGE($E64:CZ64)+$EI65,"") ->  | DA65: =IF(DA64<>"",AVERAGE($E64:DA64)+$EI65,"") ->  | DB65: =IF(DB64<>"",AVERAGE($E64:DB64)+$EI65,"") ->  | DC65: =IF(DC64<>"",AVERAGE($E64:DC64)+$EI65,"") ->  | DD65: =IF(DD64<>"",AVERAGE($E64:DD64)+$EI65,"") ->  | DE65: =IF(DE64<>"",AVERAGE($E64:DE64)+$EI65,"") ->  | DF65: =IF(DF64<>"",AVERAGE($E64:DF64)+$EI65,"") ->  | DG65: =IF(DG64<>"",AVERAGE($E64:DG64)+$EI65,"") ->  | DH65: =IF(DH64<>"",AVERAGE($E64:DH64)+$EI65,"") ->  | DI65: =IF(DI64<>"",AVERAGE($E64:DI64)+$EI65,"") ->  | DJ65: =IF(DJ64<>"",AVERAGE($E64:DJ64)+$EI65,"") ->  | DK65: =IF(DK64<>"",AVERAGE($E64:DK64)+$EI65,"") ->  | DL65: =IF(DL64<>"",AVERAGE($E64:DL64)+$EI65,"") ->  | DM65: =IF(DM64<>"",AVERAGE($E64:DM64)+$EI65,"") ->  | DN65: =IF(DN64<>"",AVERAGE($E64:DN64)+$EI65,"") ->  | DO65: =IF(DO64<>"",AVERAGE($E64:DO64)+$EI65,"") ->  | DP65: =IF(DP64<>"",AVERAGE($E64:DP64)+$EI65,"") ->  | DQ65: =IF(DQ64<>"",AVERAGE($E64:DQ64)+$EI65,"") ->  | DR65: =IF(DR64<>"",AVERAGE($E64:DR64)+$EI65,"") ->  | DS65: =IF(DS64<>"",AVERAGE($E64:DS64)+$EI65,"") ->  | DT65: =IF(DT64<>"",AVERAGE($E64:DT64)+$EI65,"") ->  | DU65: =IF(DU64<>"",AVERAGE($E64:DU64)+$EI65,"") ->  | DV65: =IF(DV64<>"",AVERAGE($E64:DV64)+$EI65,"") ->  | DW65: =IF(DW64<>"",AVERAGE($E64:DW64)+$EI65,"") ->  | DX65: =IF(DX64<>"",AVERAGE($E64:DX64)+$EI65,"") ->  | DY65: =IF(DY64<>"",AVERAGE($E64:DY64)+$EI65,"") ->  | DZ65: =IF(DZ64<>"",AVERAGE($E64:DZ64)+$EI65,"") ->  | EA65: =IF(EA64<>"",AVERAGE($E64:EA64)+$EI65,"") ->  | EB65: =IF(EB64<>"",AVERAGE($E64:EB64)+$EI65,"") ->  | EC65: =IF(EC64<>"",AVERAGE($E64:EC64)+$EI65,"") ->  | ED65: =IF(ED64<>"",AVERAGE($E64:ED64)+$EI65,"") ->  | EE65: =IF(AND(SUM(Tabulka!$AG$39)>0.99,(SUM(Tabulka!$AG$39)<2)),-50000+(SUM(E64:ED64)/COUNT(E65:ED65)),IF(OR(SUM(Tabulka!$AG$39)<2),-90000,SUM(E64:ED64)/COUNT(E65:ED65))) -> 96.21052632 | EG65: =IFERROR(SUM(E64:ED64)/COUNT(E64:ED64),) -> 96.21052632 | EH65: =CONCATENATE(C60," ",C61) -> Adam Šmíd | EI65: =INDEX(List4!$E$2:$E$17,MATCH(CONCATENATE(C60," ",C61),Tabulka1128[Jmeno_prijmeni],0),1) -> -1.41e-07
A66: Adam ŠmídPočet šipek | B66: =CONCATENATE(C60," ",C61) -> Adam Šmíd | D66: Počet šipek | EE66: =IF(AND(SUM(Tabulka!$AG$39)>0.99,(SUM(Tabulka!$AG$39)<2)),-50000+(SUM(E66:ED66)),IF(OR(SUM(Tabulka!$AG$39)<2),-90000,SUM(E66:ED66))) -> 0 | EG66: 0
A67: =CONCATENATE($C$68," ",$C$69,D67) -> Míra ChalupníkVýhry | B67: =CONCATENATE(C68," ",C69) -> Míra Chalupník | C67: =Tabulka!B44 -> 0 | D67: Výhry | E67: 0 | EE67: =IF(AND(SUM(Tabulka!$AG$44)>0.99,(SUM(Tabulka!$AG$44)<2)),-50000+(SUM(E67:ED67)),IF(OR(SUM(Tabulka!$AG$44)<2),-90000,SUM(E67:ED67))) -> -50000 | EG67: =SUM(E67:ED67) -> 0
A68: Míra ChalupníkProhry | B68: =CONCATENATE(C68," ",C69) -> Míra Chalupník | C68: =Tabulka!B45 -> Míra | D68: Prohry | E68: 2 | EE68: =IF(AND(SUM(Tabulka!$AG$44)>0.99,(SUM(Tabulka!$AG$44)<2)),-50000+(SUM(E68:ED68)),IF(OR(SUM(Tabulka!$AG$44)<2),-90000,SUM(E68:ED68))) -> -49998 | EF68: =SUM(EE67-EE68) -> -2 | EG68: 2
A69: Míra ChalupníkPlaceno panáků | B69: =CONCATENATE(C68," ",C69) -> Míra Chalupník | C69: =Tabulka!B46 -> Chalupník | D69: Placeno panáků | E69: 2 | EE69: =IF(AND(SUM(Tabulka!$AG$44)>0.99,(SUM(Tabulka!$AG$44)<2)),-50000+(SUM(E69:ED69)),IF(OR(SUM(Tabulka!$AG$44)<2),-90000,SUM(E69:ED69))) -> -49998 | EG69: =SUM(E69:ED69) -> 2
A70: Míra ChalupníkPřehozy | B70: =CONCATENATE(C68," ",C69) -> Míra Chalupník | C70: =Tabulka!B47 -> 0 | D70: Přehozy | E70: 1 | EE70: =IF(AND(SUM(Tabulka!$AG$44)>0.99,(SUM(Tabulka!$AG$44)<2)),-50000+(SUM(E70:ED70)),IF(OR(SUM(Tabulka!$AG$44)<2),-90000,SUM(E70:ED70))) -> -49999 | EG70: =SUM(E70:ED70) -> 1
A71: Míra ChalupníkPoč. kol | B71: =CONCATENATE(C68," ",C69) -> Míra Chalupník | C71: =Tabulka!B48 -> 0 | D71: Poč. kol | E71: 4 | EE71: =IF(AND(SUM(Tabulka!$AG$44)>0.99,(SUM(Tabulka!$AG$44)<2)),-50000+(SUM(E71:ED71)),IF(OR(SUM(Tabulka!$AG$44)<2),-90000,SUM(E71:ED71))) -> -49996 | EG71: 4
A72: Míra ChalupníkPočet konečných bodů | B72: =CONCATENATE(C68," ",C69) -> Míra Chalupník | D72: Počet konečných bodů | E72: 28 | F72: 138 | G72: 116 | H72: 43 | EE72: =IF(AND(SUM(Tabulka!$AG$44)>0.99,(SUM(Tabulka!$AG$44)<2)),-50000-(SUM(E72:ED72)),IF(OR(SUM(Tabulka!$AG$44)<2),-90000,SUM(E72:ED72))) -> -50325 | EG72: =SUM(E72:ED72) -> 325 | EI72: =-49918.74999761-List4!E5 -> -49918.75
A73: Míra ChalupníkPrůměr konečných bodů na kolo | B73: =CONCATENATE(C68," ",C69) -> Míra Chalupník | D73: Průměr konečných bodů na kolo | E73: =IF(E72<>"",AVERAGE($E72:E72)+$EI73,"") -> 27.99999996 | F73: =IF(F72<>"",AVERAGE($E72:F72)+$EI73,"") -> 82.99999996 | G73: =IF(G72<>"",AVERAGE($E72:G72)+$EI73,"") -> 93.99999996 | H73: =IF(H72<>"",AVERAGE($E72:H72)+$EI73,"") -> 81.24999996 | I73: =IF(I72<>"",AVERAGE($E72:I72)+$EI73,"") ->  | J73: =IF(J72<>"",AVERAGE($E72:J72)+$EI73,"") ->  | K73: =IF(K72<>"",AVERAGE($E72:K72)+$EI73,"") ->  | L73: =IF(L72<>"",AVERAGE($E72:L72)+$EI73,"") ->  | M73: =IF(M72<>"",AVERAGE($E72:M72)+$EI73,"") ->  | N73: =IF(N72<>"",AVERAGE($E72:N72)+$EI73,"") ->  | O73: =IF(O72<>"",AVERAGE($E72:O72)+$EI73,"") ->  | P73: =IF(P72<>"",AVERAGE($E72:P72)+$EI73,"") ->  | Q73: =IF(Q72<>"",AVERAGE($E72:Q72)+$EI73,"") ->  | R73: =IF(R72<>"",AVERAGE($E72:R72)+$EI73,"") ->  | S73: =IF(S72<>"",AVERAGE($E72:S72)+$EI73,"") ->  | T73: =IF(T72<>"",AVERAGE($E72:T72)+$EI73,"") ->  | U73: =IF(U72<>"",AVERAGE($E72:U72)+$EI73,"") ->  | V73: =IF(V72<>"",AVERAGE($E72:V72)+$EI73,"") ->  | W73: =IF(W72<>"",AVERAGE($E72:W72)+$EI73,"") ->  | X73: =IF(X72<>"",AVERAGE($E72:X72)+$EI73,"") ->  | Y73: =IF(Y72<>"",AVERAGE($E72:Y72)+$EI73,"") ->  | Z73: =IF(Z72<>"",AVERAGE($E72:Z72)+$EI73,"") ->  | AA73: =IF(AA72<>"",AVERAGE($E72:AA72)+$EI73,"") ->  | AB73: =IF(AB72<>"",AVERAGE($E72:AB72)+$EI73,"") ->  | AC73: =IF(AC72<>"",AVERAGE($E72:AC72)+$EI73,"") ->  | AD73: =IF(AD72<>"",AVERAGE($E72:AD72)+$EI73,"") ->  | AE73: =IF(AE72<>"",AVERAGE($E72:AE72)+$EI73,"") ->  | AF73: =IF(AF72<>"",AVERAGE($E72:AF72)+$EI73,"") ->  | AG73: =IF(AG72<>"",AVERAGE($E72:AG72)+$EI73,"") ->  | AH73: =IF(AH72<>"",AVERAGE($E72:AH72)+$EI73,"") ->  | AI73: =IF(AI72<>"",AVERAGE($E72:AI72)+$EI73,"") ->  | AJ73: =IF(AJ72<>"",AVERAGE($E72:AJ72)+$EI73,"") ->  | AK73: =IF(AK72<>"",AVERAGE($E72:AK72)+$EI73,"") ->  | AL73: =IF(AL72<>"",AVERAGE($E72:AL72)+$EI73,"") ->  | AM73: =IF(AM72<>"",AVERAGE($E72:AM72)+$EI73,"") ->  | AN73: =IF(AN72<>"",AVERAGE($E72:AN72)+$EI73,"") ->  | AO73: =IF(AO72<>"",AVERAGE($E72:AO72)+$EI73,"") ->  | AP73: =IF(AP72<>"",AVERAGE($E72:AP72)+$EI73,"") ->  | AQ73: =IF(AQ72<>"",AVERAGE($E72:AQ72)+$EI73,"") ->  | AR73: =IF(AR72<>"",AVERAGE($E72:AR72)+$EI73,"") ->  | AS73: =IF(AS72<>"",AVERAGE($E72:AS72)+$EI73,"") ->  | AT73: =IF(AT72<>"",AVERAGE($E72:AT72)+$EI73,"") ->  | AU73: =IF(AU72<>"",AVERAGE($E72:AU72)+$EI73,"") ->  | AV73: =IF(AV72<>"",AVERAGE($E72:AV72)+$EI73,"") ->  | AW73: =IF(AW72<>"",AVERAGE($E72:AW72)+$EI73,"") ->  | AX73: =IF(AX72<>"",AVERAGE($E72:AX72)+$EI73,"") ->  | AY73: =IF(AY72<>"",AVERAGE($E72:AY72)+$EI73,"") ->  | AZ73: =IF(AZ72<>"",AVERAGE($E72:AZ72)+$EI73,"") ->  | BA73: =IF(BA72<>"",AVERAGE($E72:BA72)+$EI73,"") ->  | BB73: =IF(BB72<>"",AVERAGE($E72:BB72)+$EI73,"") ->  | BC73: =IF(BC72<>"",AVERAGE($E72:BC72)+$EI73,"") ->  | BD73: =IF(BD72<>"",AVERAGE($E72:BD72)+$EI73,"") ->  | BE73: =IF(BE72<>"",AVERAGE($E72:BE72)+$EI73,"") ->  | BF73: =IF(BF72<>"",AVERAGE($E72:BF72)+$EI73,"") ->  | BG73: =IF(BG72<>"",AVERAGE($E72:BG72)+$EI73,"") ->  | BH73: =IF(BH72<>"",AVERAGE($E72:BH72)+$EI73,"") ->  | BI73: =IF(BI72<>"",AVERAGE($E72:BI72)+$EI73,"") ->  | BJ73: =IF(BJ72<>"",AVERAGE($E72:BJ72)+$EI73,"") ->  | BK73: =IF(BK72<>"",AVERAGE($E72:BK72)+$EI73,"") ->  | BL73: =IF(BL72<>"",AVERAGE($E72:BL72)+$EI73,"") ->  | BM73: =IF(BM72<>"",AVERAGE($E72:BM72)+$EI73,"") ->  | BN73: =IF(BN72<>"",AVERAGE($E72:BN72)+$EI73,"") ->  | BO73: =IF(BO72<>"",AVERAGE($E72:BO72)+$EI73,"") ->  | BP73: =IF(BP72<>"",AVERAGE($E72:BP72)+$EI73,"") ->  | BQ73: =IF(BQ72<>"",AVERAGE($E72:BQ72)+$EI73,"") ->  | BR73: =IF(BR72<>"",AVERAGE($E72:BR72)+$EI73,"") ->  | BS73: =IF(BS72<>"",AVERAGE($E72:BS72)+$EI73,"") ->  | BT73: =IF(BT72<>"",AVERAGE($E72:BT72)+$EI73,"") ->  | BU73: =IF(BU72<>"",AVERAGE($E72:BU72)+$EI73,"") ->  | BV73: =IF(BV72<>"",AVERAGE($E72:BV72)+$EI73,"") ->  | BW73: =IF(BW72<>"",AVERAGE($E72:BW72)+$EI73,"") ->  | BX73: =IF(BX72<>"",AVERAGE($E72:BX72)+$EI73,"") ->  | BY73: =IF(BY72<>"",AVERAGE($E72:BY72)+$EI73,"") ->  | BZ73: =IF(BZ72<>"",AVERAGE($E72:BZ72)+$EI73,"") ->  | CA73: =IF(CA72<>"",AVERAGE($E72:CA72)+$EI73,"") ->  | CB73: =IF(CB72<>"",AVERAGE($E72:CB72)+$EI73,"") ->  | CC73: =IF(CC72<>"",AVERAGE($E72:CC72)+$EI73,"") ->  | CD73: =IF(CD72<>"",AVERAGE($E72:CD72)+$EI73,"") ->  | CE73: =IF(CE72<>"",AVERAGE($E72:CE72)+$EI73,"") ->  | CF73: =IF(CF72<>"",AVERAGE($E72:CF72)+$EI73,"") ->  | CG73: =IF(CG72<>"",AVERAGE($E72:CG72)+$EI73,"") ->  | CH73: =IF(CH72<>"",AVERAGE($E72:CH72)+$EI73,"") ->  | CI73: =IF(CI72<>"",AVERAGE($E72:CI72)+$EI73,"") ->  | CJ73: =IF(CJ72<>"",AVERAGE($E72:CJ72)+$EI73,"") ->  | CK73: =IF(CK72<>"",AVERAGE($E72:CK72)+$EI73,"") ->  | CL73: =IF(CL72<>"",AVERAGE($E72:CL72)+$EI73,"") ->  | CM73: =IF(CM72<>"",AVERAGE($E72:CM72)+$EI73,"") ->  | CN73: =IF(CN72<>"",AVERAGE($E72:CN72)+$EI73,"") ->  | CO73: =IF(CO72<>"",AVERAGE($E72:CO72)+$EI73,"") ->  | CP73: =IF(CP72<>"",AVERAGE($E72:CP72)+$EI73,"") ->  | CQ73: =IF(CQ72<>"",AVERAGE($E72:CQ72)+$EI73,"") ->  | CR73: =IF(CR72<>"",AVERAGE($E72:CR72)+$EI73,"") ->  | CS73: =IF(CS72<>"",AVERAGE($E72:CS72)+$EI73,"") ->  | CT73: =IF(CT72<>"",AVERAGE($E72:CT72)+$EI73,"") ->  | CU73: =IF(CU72<>"",AVERAGE($E72:CU72)+$EI73,"") ->  | CV73: =IF(CV72<>"",AVERAGE($E72:CV72)+$EI73,"") ->  | CW73: =IF(CW72<>"",AVERAGE($E72:CW72)+$EI73,"") ->  | CX73: =IF(CX72<>"",AVERAGE($E72:CX72)+$EI73,"") ->  | CY73: =IF(CY72<>"",AVERAGE($E72:CY72)+$EI73,"") ->  | CZ73: =IF(CZ72<>"",AVERAGE($E72:CZ72)+$EI73,"") ->  | DA73: =IF(DA72<>"",AVERAGE($E72:DA72)+$EI73,"") ->  | DB73: =IF(DB72<>"",AVERAGE($E72:DB72)+$EI73,"") ->  | DC73: =IF(DC72<>"",AVERAGE($E72:DC72)+$EI73,"") ->  | DD73: =IF(DD72<>"",AVERAGE($E72:DD72)+$EI73,"") ->  | DE73: =IF(DE72<>"",AVERAGE($E72:DE72)+$EI73,"") ->  | DF73: =IF(DF72<>"",AVERAGE($E72:DF72)+$EI73,"") ->  | DG73: =IF(DG72<>"",AVERAGE($E72:DG72)+$EI73,"") ->  | DH73: =IF(DH72<>"",AVERAGE($E72:DH72)+$EI73,"") ->  | DI73: =IF(DI72<>"",AVERAGE($E72:DI72)+$EI73,"") ->  | DJ73: =IF(DJ72<>"",AVERAGE($E72:DJ72)+$EI73,"") ->  | DK73: =IF(DK72<>"",AVERAGE($E72:DK72)+$EI73,"") ->  | DL73: =IF(DL72<>"",AVERAGE($E72:DL72)+$EI73,"") ->  | DM73: =IF(DM72<>"",AVERAGE($E72:DM72)+$EI73,"") ->  | DN73: =IF(DN72<>"",AVERAGE($E72:DN72)+$EI73,"") ->  | DO73: =IF(DO72<>"",AVERAGE($E72:DO72)+$EI73,"") ->  | DP73: =IF(DP72<>"",AVERAGE($E72:DP72)+$EI73,"") ->  | DQ73: =IF(DQ72<>"",AVERAGE($E72:DQ72)+$EI73,"") ->  | DR73: =IF(DR72<>"",AVERAGE($E72:DR72)+$EI73,"") ->  | DS73: =IF(DS72<>"",AVERAGE($E72:DS72)+$EI73,"") ->  | DT73: =IF(DT72<>"",AVERAGE($E72:DT72)+$EI73,"") ->  | DU73: =IF(DU72<>"",AVERAGE($E72:DU72)+$EI73,"") ->  | DV73: =IF(DV72<>"",AVERAGE($E72:DV72)+$EI73,"") ->  | DW73: =IF(DW72<>"",AVERAGE($E72:DW72)+$EI73,"") ->  | DX73: =IF(DX72<>"",AVERAGE($E72:DX72)+$EI73,"") ->  | DY73: =IF(DY72<>"",AVERAGE($E72:DY72)+$EI73,"") ->  | DZ73: =IF(DZ72<>"",AVERAGE($E72:DZ72)+$EI73,"") ->  | EA73: =IF(EA72<>"",AVERAGE($E72:EA72)+$EI73,"") ->  | EB73: =IF(EB72<>"",AVERAGE($E72:EB72)+$EI73,"") ->  | EC73: =IF(EC72<>"",AVERAGE($E72:EC72)+$EI73,"") ->  | ED73: =IF(ED72<>"",AVERAGE($E72:ED72)+$EI73,"") ->  | EE73: =IF(AND(SUM(Tabulka!$AG$44)>0.99,(SUM(Tabulka!$AG$44)<2)),-50000-(SUM(E72:ED72)/COUNT(E73:ED73)),IF(OR(SUM(Tabulka!$AG$44)<2),-90000,SUM(E72:ED72)/COUNT(E73:ED73))) -> -50081.25 | EG73: =IFERROR(SUM(E72:ED72)/COUNT(E72:ED72),) -> 81.25 | EH73: =CONCATENATE(C68," ",C69) -> Míra Chalupník | EI73: =INDEX(List4!$E$2:$E$17,MATCH(CONCATENATE(C68," ",C69),Tabulka1128[Jmeno_prijmeni],0),1) -> -4.1e-08
A74: Míra ChalupníkPočet šipek | B74: =CONCATENATE(C68," ",C69) -> Míra Chalupník | D74: Počet šipek | EE74: =IF(AND(SUM(Tabulka!$AG$44)>0.99,(SUM(Tabulka!$AG$44)<2)),-50000+(SUM(E74:ED74)),IF(OR(SUM(Tabulka!$AG$44)<2),-90000,SUM(E74:ED74))) -> -50000 | EG74: =SUM(E74:ED74) -> 0
A75: =CONCATENATE($C$76," ",$C$77,D75) -> Jarda KleinVýhry | B75: =CONCATENATE(C76," ",C77) -> Jarda Klein | C75: =Tabulka!B49 -> 0 | D75: Výhry | E75: 1 | J75: 0 | O75: 2 | T75: 3 | Y75: 2 | AD75: 1 | AI75: 0 | AS75: 1 | AX75: 1 | BC75: 2 | BH75: 0 | BM75: 0 | BR75: 1 | CB75: 0 | CG75: 2 | EE75: =IF(AND(SUM(Tabulka!$AG$49)>0.99,(SUM(Tabulka!$AG$49)<2)),-50000+(SUM(E75:ED75)),IF(OR(SUM(Tabulka!$AG$49)<2),-90000,SUM(E75:ED75))) -> 16 | EG75: 16
A76: Jarda KleinProhry | B76: Jarda Klein | C76: =Tabulka!B50 -> Jarda | D76: Prohry | E76: 0 | J76: 2 | O76: 0 | T76: 0 | Y76: 0 | AD76: 1 | AI76: 0 | AS76: 1 | AX76: 1 | BC76: 0 | BH76: 1 | BM76: 2 | BR76: 0 | CB76: 0 | CG76: 0 | EE76: =IF(AND(SUM(Tabulka!$AG$49)>0.99,(SUM(Tabulka!$AG$49)<2)),-50000+(SUM(E76:ED76)),IF(OR(SUM(Tabulka!$AG$49)<2),-90000,SUM(E76:ED76))) -> 8 | EF76: =SUM(EE75-EE76) -> 8 | EG76: 8
A77: Jarda KleinPlaceno panáků | B77: =CONCATENATE(C76," ",C77) -> Jarda Klein | C77: =Tabulka!B51 -> Klein | D77: Placeno panáků | E77: 0 | J77: 4 | O77: 0 | T77: 0 | Y77: 0 | AD77: 1 | AI77: 0 | AS77: 1 | AX77: 1 | BC77: 0 | BH77: 1 | BM77: 2 | BR77: 0 | CB77: 0 | CG77: 0 | EE77: =IF(AND(SUM(Tabulka!$AG$49)>0.99,(SUM(Tabulka!$AG$49)<2)),-50000+(SUM(E77:ED77)),IF(OR(SUM(Tabulka!$AG$49)<2),-90000,SUM(E77:ED77))) -> 10 | EG77: =SUM(E77:ED77) -> 10
A78: Jarda KleinPřehozy | B78: =CONCATENATE(C76," ",C77) -> Jarda Klein | C78: =Tabulka!B52 -> 0 | D78: Přehozy | E78: 3 | J78: 4 | O78: 0 | T78: 0 | Y78: 3 | AD78: 1 | AI78: 1 | AS78: 1 | AX78: 1 | BC78: 1 | BH78: 2 | BM78: 0 | BR78: 2 | CB78: 1 | CG78: 1 | EE78: =IF(AND(SUM(Tabulka!$AG$49)>0.99,(SUM(Tabulka!$AG$49)<2)),-50000+(SUM(E78:ED78)),IF(OR(SUM(Tabulka!$AG$49)<2),-90000,SUM(E78:ED78))) -> 21 | EG78: =SUM(E78:ED78) -> 21
A79: Jarda KleinPoč. kol | B79: =CONCATENATE(C76," ",C77) -> Jarda Klein | C79: =Tabulka!B53 -> 0 | D79: Poč. kol | E79: 4 | J79: 4 | O79: 4 | T79: 4 | Y79: 4 | AD79: 4 | AI79: 4 | AS79: 3 | AX79: 4 | BC79: 5 | BH79: 4 | BM79: 4 | BR79: 5 | CB79: 4 | CG79: 4 | EE79: =IF(AND(SUM(Tabulka!$AG$49)>0.99,(SUM(Tabulka!$AG$49)<2)),-50000+(SUM(E79:ED79)),IF(OR(SUM(Tabulka!$AG$49)<2),-90000,SUM(E79:ED79))) -> 61 | EG79: 61
A80: Jarda KleinPočet konečných bodů | B80: =CONCATENATE(C76," ",C77) -> Jarda Klein | D80: Počet konečných bodů | E80: 25 | F80: 0 | G80: 28 | H80: 98 | J80: 9 | K80: 95 | L80: 9 | M80: 32 | O80: 21 | P80: 0 | Q80: 0 | R80: 75 | T80: 133 | U80: 0 | V80: 0 | W80: 0 | Y80: 149 | Z80: 28 | AA80: 0 | AB80: 0 | AD80: 28 | AE80: 155 | AF80: 0 | AG80: 18 | AI80: 108 | AJ80: 26 | AK80: 11 | AL80: 149 | AS80: 39 | AT80: 14 | AU80: 0 | AX80: 8 | AY80: 0 | AZ80: 22 | BA80: 78 | BC80: 0 | BD80: 111 | BE80: 32 | BF80: 0 | BG80: 67 | BH80: 22 | BI80: 155 | BJ80: 265 | BK80: 25 | BM80: 136 | BN80: 175 | BO80: 152 | BP80: 31 | BR80: 20 | BS80: 15 | BT80: 0 | BU80: 28 | BV80: 14 | CB80: 64 | CC80: 37 | CD80: 97 | CE80: 72 | CG80: 57 | CH80: 124 | CI80: 0 | CJ80: 0 | EE80: =IF(AND(SUM(Tabulka!$AG$49)>0.99,(SUM(Tabulka!$AG$49)<2)),-50000-(SUM(E80:ED80)),IF(OR(SUM(Tabulka!$AG$49)<2),-90000,SUM(E80:ED80))) -> 3057 | EG80: =SUM(E80:ED80) -> 3057
A81: Jarda KleinPrůměr konečných bodů na kolo | B81: =CONCATENATE(C76," ",C77) -> Jarda Klein | D81: Průměr konečných bodů na kolo | E81: =IF(E80<>"",AVERAGE($E80:E80)+$EI81,"") -> 24.99999992 | F81: =IF(F80<>"",AVERAGE($E80:F80)+$EI81,"") -> 12.49999992 | G81: =IF(G80<>"",AVERAGE($E80:G80)+$EI81,"") -> 17.66666659 | H81: =IF(H80<>"",AVERAGE($E80:H80)+$EI81,"") -> 37.74999992 | I81: =IF(I80<>"",AVERAGE($E80:I80)+$EI81,"") ->  | J81: =IF(J80<>"",AVERAGE($E80:J80)+$EI81,"") -> 31.99999992 | K81: =IF(K80<>"",AVERAGE($E80:K80)+$EI81,"") -> 42.49999992 | L81: =IF(L80<>"",AVERAGE($E80:L80)+$EI81,"") -> 37.71428563 | M81: =IF(M80<>"",AVERAGE($E80:M80)+$EI81,"") -> 36.99999992 | N81: =IF(N80<>"",AVERAGE($E80:N80)+$EI81,"") ->  | O81: =IF(O80<>"",AVERAGE($E80:O80)+$EI81,"") -> 35.22222214 | P81: =IF(P80<>"",AVERAGE($E80:P80)+$EI81,"") -> 31.69999992 | Q81: =IF(Q80<>"",AVERAGE($E80:Q80)+$EI81,"") -> 28.81818174 | R81: =IF(R80<>"",AVERAGE($E80:R80)+$EI81,"") -> 32.66666659 | S81: =IF(S80<>"",AVERAGE($E80:S80)+$EI81,"") ->  | T81: =IF(T80<>"",AVERAGE($E80:T80)+$EI81,"") -> 40.3846153 | U81: =IF(U80<>"",AVERAGE($E80:U80)+$EI81,"") -> 37.49999992 | V81: =IF(V80<>"",AVERAGE($E80:V80)+$EI81,"") -> 34.99999992 | W81: =IF(W80<>"",AVERAGE($E80:W80)+$EI81,"") -> 32.81249992 | X81: =IF(X80<>"",AVERAGE($E80:X80)+$EI81,"") ->  | Y81: =IF(Y80<>"",AVERAGE($E80:Y80)+$EI81,"") -> 39.64705874 | Z81: =IF(Z80<>"",AVERAGE($E80:Z80)+$EI81,"") -> 38.99999992 | AA81: =IF(AA80<>"",AVERAGE($E80:AA80)+$EI81,"") -> 36.94736834 | AB81: =IF(AB80<>"",AVERAGE($E80:AB80)+$EI81,"") -> 35.09999992 | AC81: =IF(AC80<>"",AVERAGE($E80:AC80)+$EI81,"") ->  | AD81: =IF(AD80<>"",AVERAGE($E80:AD80)+$EI81,"") -> 34.76190468 | AE81: =IF(AE80<>"",AVERAGE($E80:AE80)+$EI81,"") -> 40.22727265 | AF81: =IF(AF80<>"",AVERAGE($E80:AF80)+$EI81,"") -> 38.47826079 | AG81: =IF(AG80<>"",AVERAGE($E80:AG80)+$EI81,"") -> 37.62499992 | AH81: =IF(AH80<>"",AVERAGE($E80:AH80)+$EI81,"") ->  | AI81: =IF(AI80<>"",AVERAGE($E80:AI80)+$EI81,"") -> 40.43999992 | AJ81: =IF(AJ80<>"",AVERAGE($E80:AJ80)+$EI81,"") -> 39.8846153 | AK81: =IF(AK80<>"",AVERAGE($E80:AK80)+$EI81,"") -> 38.81481473 | AL81: =IF(AL80<>"",AVERAGE($E80:AL80)+$EI81,"") -> 42.74999992 | AM81: =IF(AM80<>"",AVERAGE($E80:AM80)+$EI81,"") ->  | AN81: =IF(AN80<>"",AVERAGE($E80:AN80)+$EI81,"") ->  | AO81: =IF(AO80<>"",AVERAGE($E80:AO80)+$EI81,"") ->  | AP81: =IF(AP80<>"",AVERAGE($E80:AP80)+$EI81,"") ->  | AQ81: =IF(AQ80<>"",AVERAGE($E80:AQ80)+$EI81,"") ->  | AR81: =IF(AR80<>"",AVERAGE($E80:AR80)+$EI81,"") ->  | AS81: =IF(AS80<>"",AVERAGE($E80:AS80)+$EI81,"") -> 42.62068957 | AT81: =IF(AT80<>"",AVERAGE($E80:AT80)+$EI81,"") -> 41.66666659 | AU81: =IF(AU80<>"",AVERAGE($E80:AU80)+$EI81,"") -> 40.32258056 | AV81: =IF(AV80<>"",AVERAGE($E80:AV80)+$EI81,"") ->  | AW81: =IF(AW80<>"",AVERAGE($E80:AW80)+$EI81,"") ->  | AX81: =IF(AX80<>"",AVERAGE($E80:AX80)+$EI81,"") -> 39.31249992 | AY81: =IF(AY80<>"",AVERAGE($E80:AY80)+$EI81,"") -> 38.12121204 | AZ81: =IF(AZ80<>"",AVERAGE($E80:AZ80)+$EI81,"") -> 37.64705874 | BA81: =IF(BA80<>"",AVERAGE($E80:BA80)+$EI81,"") -> 38.79999992 | BB81: =IF(BB80<>"",AVERAGE($E80:BB80)+$EI81,"") ->  | BC81: =IF(BC80<>"",AVERAGE($E80:BC80)+$EI81,"") -> 37.72222214 | BD81: =IF(BD80<>"",AVERAGE($E80:BD80)+$EI81,"") -> 39.70270262 | BE81: =IF(BE80<>"",AVERAGE($E80:BE80)+$EI81,"") -> 39.49999992 | BF81: =IF(BF80<>"",AVERAGE($E80:BF80)+$EI81,"") -> 38.48717941 | BG81: =IF(BG80<>"",AVERAGE($E80:BG80)+$EI81,"") -> 39.19999992 | BH81: =IF(BH80<>"",AVERAGE($E80:BH80)+$EI81,"") -> 38.78048772 | BI81: =IF(BI80<>"",AVERAGE($E80:BI80)+$EI81,"") -> 41.54761897 | BJ81: =IF(BJ80<>"",AVERAGE($E80:BJ80)+$EI81,"") -> 46.74418597 | BK81: =IF(BK80<>"",AVERAGE($E80:BK80)+$EI81,"") -> 46.24999992 | BL81: =IF(BL80<>"",AVERAGE($E80:BL80)+$EI81,"") ->  | BM81: =IF(BM80<>"",AVERAGE($E80:BM80)+$EI81,"") -> 48.24444436 | BN81: =IF(BN80<>"",AVERAGE($E80:BN80)+$EI81,"") -> 50.99999992 | BO81: =IF(BO80<>"",AVERAGE($E80:BO80)+$EI81,"") -> 53.14893609 | BP81: =IF(BP80<>"",AVERAGE($E80:BP80)+$EI81,"") -> 52.68749992 | BQ81: =IF(BQ80<>"",AVERAGE($E80:BQ80)+$EI81,"") ->  | BR81: =IF(BR80<>"",AVERAGE($E80:BR80)+$EI81,"") -> 52.02040808 | BS81: =IF(BS80<>"",AVERAGE($E80:BS80)+$EI81,"") -> 51.27999992 | BT81: =IF(BT80<>"",AVERAGE($E80:BT80)+$EI81,"") -> 50.27450972 | BU81: =IF(BU80<>"",AVERAGE($E80:BU80)+$EI81,"") -> 49.84615377 | BV81: =IF(BV80<>"",AVERAGE($E80:BV80)+$EI81,"") -> 49.16981124 | BW81: =IF(BW80<>"",AVERAGE($E80:BW80)+$EI81,"") ->  | BX81: =IF(BX80<>"",AVERAGE($E80:BX80)+$EI81,"") ->  | BY81: =IF(BY80<>"",AVERAGE($E80:BY80)+$EI81,"") ->  | BZ81: =IF(BZ80<>"",AVERAGE($E80:BZ80)+$EI81,"") ->  | CA81: =IF(CA80<>"",AVERAGE($E80:CA80)+$EI81,"") ->  | CB81: =IF(CB80<>"",AVERAGE($E80:CB80)+$EI81,"") -> 49.44444436 | CC81: =IF(CC80<>"",AVERAGE($E80:CC80)+$EI81,"") -> 49.21818174 | CD81: =IF(CD80<>"",AVERAGE($E80:CD80)+$EI81,"") -> 50.07142849 | CE81: =IF(CE80<>"",AVERAGE($E80:CE80)+$EI81,"") -> 50.45614027 | CF81: =IF(CF80<>"",AVERAGE($E80:CF80)+$EI81,"") ->  | CG81: =IF(CG80<>"",AVERAGE($E80:CG80)+$EI81,"") -> 50.56896544 | CH81: =IF(CH80<>"",AVERAGE($E80:CH80)+$EI81,"") -> 51.81355924 | CI81: =IF(CI80<>"",AVERAGE($E80:CI80)+$EI81,"") -> 50.94999992 | CJ81: =IF(CJ80<>"",AVERAGE($E80:CJ80)+$EI81,"") -> 50.11475402 | CK81: =IF(CK80<>"",AVERAGE($E80:CK80)+$EI81,"") ->  | CL81: =IF(CL80<>"",AVERAGE($E80:CL80)+$EI81,"") ->  | CM81: =IF(CM80<>"",AVERAGE($E80:CM80)+$EI81,"") ->  | CN81: =IF(CN80<>"",AVERAGE($E80:CN80)+$EI81,"") ->  | CO81: =IF(CO80<>"",AVERAGE($E80:CO80)+$EI81,"") ->  | CP81: =IF(CP80<>"",AVERAGE($E80:CP80)+$EI81,"") ->  | CQ81: =IF(CQ80<>"",AVERAGE($E80:CQ80)+$EI81,"") ->  | CR81: =IF(CR80<>"",AVERAGE($E80:CR80)+$EI81,"") ->  | CS81: =IF(CS80<>"",AVERAGE($E80:CS80)+$EI81,"") ->  | CT81: =IF(CT80<>"",AVERAGE($E80:CT80)+$EI81,"") ->  | CU81: =IF(CU80<>"",AVERAGE($E80:CU80)+$EI81,"") ->  | CV81: =IF(CV80<>"",AVERAGE($E80:CV80)+$EI81,"") ->  | CW81: =IF(CW80<>"",AVERAGE($E80:CW80)+$EI81,"") ->  | CX81: =IF(CX80<>"",AVERAGE($E80:CX80)+$EI81,"") ->  | CY81: =IF(CY80<>"",AVERAGE($E80:CY80)+$EI81,"") ->  | CZ81: =IF(CZ80<>"",AVERAGE($E80:CZ80)+$EI81,"") ->  | DA81: =IF(DA80<>"",AVERAGE($E80:DA80)+$EI81,"") ->  | DB81: =IF(DB80<>"",AVERAGE($E80:DB80)+$EI81,"") ->  | DC81: =IF(DC80<>"",AVERAGE($E80:DC80)+$EI81,"") ->  | DD81: =IF(DD80<>"",AVERAGE($E80:DD80)+$EI81,"") ->  | DE81: =IF(DE80<>"",AVERAGE($E80:DE80)+$EI81,"") ->  | DF81: =IF(DF80<>"",AVERAGE($E80:DF80)+$EI81,"") ->  | DG81: =IF(DG80<>"",AVERAGE($E80:DG80)+$EI81,"") ->  | DH81: =IF(DH80<>"",AVERAGE($E80:DH80)+$EI81,"") ->  | DI81: =IF(DI80<>"",AVERAGE($E80:DI80)+$EI81,"") ->  | DJ81: =IF(DJ80<>"",AVERAGE($E80:DJ80)+$EI81,"") ->  | DK81: =IF(DK80<>"",AVERAGE($E80:DK80)+$EI81,"") ->  | DL81: =IF(DL80<>"",AVERAGE($E80:DL80)+$EI81,"") ->  | DM81: =IF(DM80<>"",AVERAGE($E80:DM80)+$EI81,"") ->  | DN81: =IF(DN80<>"",AVERAGE($E80:DN80)+$EI81,"") ->  | DO81: =IF(DO80<>"",AVERAGE($E80:DO80)+$EI81,"") ->  | DP81: =IF(DP80<>"",AVERAGE($E80:DP80)+$EI81,"") ->  | DQ81: =IF(DQ80<>"",AVERAGE($E80:DQ80)+$EI81,"") ->  | DR81: =IF(DR80<>"",AVERAGE($E80:DR80)+$EI81,"") ->  | DS81: =IF(DS80<>"",AVERAGE($E80:DS80)+$EI81,"") ->  | DT81: =IF(DT80<>"",AVERAGE($E80:DT80)+$EI81,"") ->  | DU81: =IF(DU80<>"",AVERAGE($E80:DU80)+$EI81,"") ->  | DV81: =IF(DV80<>"",AVERAGE($E80:DV80)+$EI81,"") ->  | DW81: =IF(DW80<>"",AVERAGE($E80:DW80)+$EI81,"") ->  | DX81: =IF(DX80<>"",AVERAGE($E80:DX80)+$EI81,"") ->  | DY81: =IF(DY80<>"",AVERAGE($E80:DY80)+$EI81,"") ->  | DZ81: =IF(DZ80<>"",AVERAGE($E80:DZ80)+$EI81,"") ->  | EA81: =IF(EA80<>"",AVERAGE($E80:EA80)+$EI81,"") ->  | EB81: =IF(EB80<>"",AVERAGE($E80:EB80)+$EI81,"") ->  | EC81: =IF(EC80<>"",AVERAGE($E80:EC80)+$EI81,"") ->  | ED81: =IF(ED80<>"",AVERAGE($E80:ED80)+$EI81,"") ->  | EE81: =IF(AND(SUM(Tabulka!$AG$49)>0.99,(SUM(Tabulka!$AG$49)<2)),-50000+(SUM(E80:ED80)/COUNT(E81:ED81)),IF(OR(SUM(Tabulka!$AG$49)<2),-90000,SUM(E80:ED80)/COUNT(E81:ED81))) -> 50.1147541 | EG81: =IFERROR(SUM(E80:ED80)/COUNT(E80:ED80),) -> 50.1147541 | EH81: =CONCATENATE(C76," ",C77) -> Jarda Klein | EI81: =INDEX(List4!$E$2:$E$17,MATCH(CONCATENATE(C76," ",C77),Tabulka1128[Jmeno_prijmeni],0),1) -> -8.1e-08
A82: Jarda KleinPočet šipek | B82: =CONCATENATE(C76," ",C77) -> Jarda Klein | D82: Počet šipek | EE82: =IF(AND(SUM(Tabulka!$AG$49)>0.99,(SUM(Tabulka!$AG$49)<2)),-50000+(SUM(E82:ED82)),IF(OR(SUM(Tabulka!$AG$49)<2),-90000,SUM(E82:ED82))) -> 0 | EG82: =SUM(E82:ED82) -> 0
A83: =CONCATENATE($C$84," ",$C$85,D83) -> Kuba ŠedivýVýhry | B83: =CONCATENATE(C84," ",C85) -> Kuba Šedivý | C83: =Tabulka!B54 -> 0 | D83: Výhry | E83: 1 | AX83: 2 | CG83: 1 | EE83: =IF(AND(SUM(Tabulka!$AG$54)>0.99,(SUM(Tabulka!$AG$54)<2)),-50000+(SUM(E83:ED83)),IF(OR(SUM(Tabulka!$AG$54)<2),-90000,SUM(E83:ED83))) -> 4 | EG83: 4
A84: Kuba ŠedivýProhry | B84: Kuba Šedivý | C84: =Tabulka!B55 -> Kuba | D84: Prohry | E84: 0 | AX84: 0 | CG84: 0.1 | EE84: =IF(AND(SUM(Tabulka!$AG$54)>0.99,(SUM(Tabulka!$AG$54)<2)),-50000+(SUM(E84:ED84)),IF(OR(SUM(Tabulka!$AG$54)<2),-90000,SUM(E84:ED84))) -> 0.1 | EF84: =SUM(EE83-EE84) -> 3.9 | EG84: 0.1
A85: Kuba ŠedivýPlaceno panáků | B85: =CONCATENATE(C84," ",C85) -> Kuba Šedivý | C85: =Tabulka!B56 -> Šedivý | D85: Placeno panáků | E85: 0 | AX85: 0 | CG85: 0 | EE85: =IF(AND(SUM(Tabulka!$AG$54)>0.99,(SUM(Tabulka!$AG$54)<2)),-50000+(SUM(E85:ED85)),IF(OR(SUM(Tabulka!$AG$54)<2),-90000,SUM(E85:ED85))) -> 0 | EG85: 0
A86: Kuba ŠedivýPřehozy | B86: =CONCATENATE(C84," ",C85) -> Kuba Šedivý | C86: =Tabulka!B57 -> 0 | D86: Přehozy | E86: 3 | AX86: 3 | CG86: 2 | EE86: =IF(AND(SUM(Tabulka!$AG$54)>0.99,(SUM(Tabulka!$AG$54)<2)),-50000+(SUM(E86:ED86)),IF(OR(SUM(Tabulka!$AG$54)<2),-90000,SUM(E86:ED86))) -> 8 | EG86: 8
A87: Kuba ŠedivýPoč. kol | B87: =CONCATENATE(C84," ",C85) -> Kuba Šedivý | C87: =Tabulka!B58 -> 0 | D87: Poč. kol | E87: 3 | AX87: 4 | CG87: 4 | EE87: =IF(AND(SUM(Tabulka!$AG$54)>0.99,(SUM(Tabulka!$AG$54)<2)),-50000+(SUM(E87:ED87)),IF(OR(SUM(Tabulka!$AG$54)<2),-90000,SUM(E87:ED87))) -> 11 | EG87: 11
A88: Kuba ŠedivýPočet konečných bodů | B88: =CONCATENATE(C84," ",C85) -> Kuba Šedivý | D88: Počet konečných bodů | E88: 0 | F88: 40 | G88: 1 | AX88: 54 | AY88: 0 | AZ88: 0 | BA88: 38 | CG88: 0 | CH88: 19 | CI88: 16 | CJ88: 110 | EE88: =IF(AND(SUM(Tabulka!$AG$54)>0.99,(SUM(Tabulka!$AG$54)<2)),-50000-(SUM(E88:ED88)),IF(OR(SUM(Tabulka!$AG$54)<2),-90000,SUM(E88:ED88))) -> 278 | EG88: 278
A89: Kuba ŠedivýPrůměr konečných bodů na kolo | B89: =CONCATENATE(C84," ",C85) -> Kuba Šedivý | D89: Průměr konečných bodů na kolo | E89: =IF(E88<>"",AVERAGE($E88:E88)+$EI89,"") -> -1.21e-07 | F89: =IF(F88<>"",AVERAGE($E88:F88)+$EI89,"") -> 19.99999988 | G89: =IF(G88<>"",AVERAGE($E88:G88)+$EI89,"") -> 13.66666655 | H89: =IF(H88<>"",AVERAGE($E88:H88)+$EI89,"") ->  | I89: =IF(I88<>"",AVERAGE($E88:I88)+$EI89,"") ->  | J89: =IF(J88<>"",AVERAGE($E88:J88)+$EI89,"") ->  | K89: =IF(K88<>"",AVERAGE($E88:K88)+$EI89,"") ->  | L89: =IF(L88<>"",AVERAGE($E88:L88)+$EI89,"") ->  | M89: =IF(M88<>"",AVERAGE($E88:M88)+$EI89,"") ->  | N89: =IF(N88<>"",AVERAGE($E88:N88)+$EI89,"") ->  | O89: =IF(O88<>"",AVERAGE($E88:O88)+$EI89,"") ->  | P89: =IF(P88<>"",AVERAGE($E88:P88)+$EI89,"") ->  | Q89: =IF(Q88<>"",AVERAGE($E88:Q88)+$EI89,"") ->  | R89: =IF(R88<>"",AVERAGE($E88:R88)+$EI89,"") ->  | S89: =IF(S88<>"",AVERAGE($E88:S88)+$EI89,"") ->  | T89: =IF(T88<>"",AVERAGE($E88:T88)+$EI89,"") ->  | U89: =IF(U88<>"",AVERAGE($E88:U88)+$EI89,"") ->  | V89: =IF(V88<>"",AVERAGE($E88:V88)+$EI89,"") ->  | W89: =IF(W88<>"",AVERAGE($E88:W88)+$EI89,"") ->  | X89: =IF(X88<>"",AVERAGE($E88:X88)+$EI89,"") ->  | Y89: =IF(Y88<>"",AVERAGE($E88:Y88)+$EI89,"") ->  | Z89: =IF(Z88<>"",AVERAGE($E88:Z88)+$EI89,"") ->  | AA89: =IF(AA88<>"",AVERAGE($E88:AA88)+$EI89,"") ->  | AB89: =IF(AB88<>"",AVERAGE($E88:AB88)+$EI89,"") ->  | AC89: =IF(AC88<>"",AVERAGE($E88:AC88)+$EI89,"") ->  | AD89: =IF(AD88<>"",AVERAGE($E88:AD88)+$EI89,"") ->  | AE89: =IF(AE88<>"",AVERAGE($E88:AE88)+$EI89,"") ->  | AF89: =IF(AF88<>"",AVERAGE($E88:AF88)+$EI89,"") ->  | AG89: =IF(AG88<>"",AVERAGE($E88:AG88)+$EI89,"") ->  | AH89: =IF(AH88<>"",AVERAGE($E88:AH88)+$EI89,"") ->  | AI89: =IF(AI88<>"",AVERAGE($E88:AI88)+$EI89,"") ->  | AJ89: =IF(AJ88<>"",AVERAGE($E88:AJ88)+$EI89,"") ->  | AK89: =IF(AK88<>"",AVERAGE($E88:AK88)+$EI89,"") ->  | AL89: =IF(AL88<>"",AVERAGE($E88:AL88)+$EI89,"") ->  | AM89: =IF(AM88<>"",AVERAGE($E88:AM88)+$EI89,"") ->  | AN89: =IF(AN88<>"",AVERAGE($E88:AN88)+$EI89,"") ->  | AO89: =IF(AO88<>"",AVERAGE($E88:AO88)+$EI89,"") ->  | AP89: =IF(AP88<>"",AVERAGE($E88:AP88)+$EI89,"") ->  | AQ89: =IF(AQ88<>"",AVERAGE($E88:AQ88)+$EI89,"") ->  | AR89: =IF(AR88<>"",AVERAGE($E88:AR88)+$EI89,"") ->  | AS89: =IF(AS88<>"",AVERAGE($E88:AS88)+$EI89,"") ->  | AT89: =IF(AT88<>"",AVERAGE($E88:AT88)+$EI89,"") ->  | AU89: =IF(AU88<>"",AVERAGE($E88:AU88)+$EI89,"") ->  | AV89: =IF(AV88<>"",AVERAGE($E88:AV88)+$EI89,"") ->  | AW89: =IF(AW88<>"",AVERAGE($E88:AW88)+$EI89,"") ->  | AX89: =IF(AX88<>"",AVERAGE($E88:AX88)+$EI89,"") -> 23.74999988 | AY89: =IF(AY88<>"",AVERAGE($E88:AY88)+$EI89,"") -> 18.99999988 | AZ89: =IF(AZ88<>"",AVERAGE($E88:AZ88)+$EI89,"") -> 15.83333321 | BA89: =IF(BA88<>"",AVERAGE($E88:BA88)+$EI89,"") -> 18.99999988 | BB89: =IF(BB88<>"",AVERAGE($E88:BB88)+$EI89,"") ->  | BC89: =IF(BC88<>"",AVERAGE($E88:BC88)+$EI89,"") ->  | BD89: =IF(BD88<>"",AVERAGE($E88:BD88)+$EI89,"") ->  | BE89: =IF(BE88<>"",AVERAGE($E88:BE88)+$EI89,"") ->  | BF89: =IF(BF88<>"",AVERAGE($E88:BF88)+$EI89,"") ->  | BG89: =IF(BG88<>"",AVERAGE($E88:BG88)+$EI89,"") ->  | BH89: =IF(BH88<>"",AVERAGE($E88:BH88)+$EI89,"") ->  | BI89: =IF(BI88<>"",AVERAGE($E88:BI88)+$EI89,"") ->  | BJ89: =IF(BJ88<>"",AVERAGE($E88:BJ88)+$EI89,"") ->  | BK89: =IF(BK88<>"",AVERAGE($E88:BK88)+$EI89,"") ->  | BL89: =IF(BL88<>"",AVERAGE($E88:BL88)+$EI89,"") ->  | BM89: =IF(BM88<>"",AVERAGE($E88:BM88)+$EI89,"") ->  | BN89: =IF(BN88<>"",AVERAGE($E88:BN88)+$EI89,"") ->  | BO89: =IF(BO88<>"",AVERAGE($E88:BO88)+$EI89,"") ->  | BP89: =IF(BP88<>"",AVERAGE($E88:BP88)+$EI89,"") ->  | BQ89: =IF(BQ88<>"",AVERAGE($E88:BQ88)+$EI89,"") ->  | BR89: =IF(BR88<>"",AVERAGE($E88:BR88)+$EI89,"") ->  | BS89: =IF(BS88<>"",AVERAGE($E88:BS88)+$EI89,"") ->  | BT89: =IF(BT88<>"",AVERAGE($E88:BT88)+$EI89,"") ->  | BU89: =IF(BU88<>"",AVERAGE($E88:BU88)+$EI89,"") ->  | BV89: =IF(BV88<>"",AVERAGE($E88:BV88)+$EI89,"") ->  | BW89: =IF(BW88<>"",AVERAGE($E88:BW88)+$EI89,"") ->  | BX89: =IF(BX88<>"",AVERAGE($E88:BX88)+$EI89,"") ->  | BY89: =IF(BY88<>"",AVERAGE($E88:BY88)+$EI89,"") ->  | BZ89: =IF(BZ88<>"",AVERAGE($E88:BZ88)+$EI89,"") ->  | CA89: =IF(CA88<>"",AVERAGE($E88:CA88)+$EI89,"") ->  | CB89: =IF(CB88<>"",AVERAGE($E88:CB88)+$EI89,"") ->  | CC89: =IF(CC88<>"",AVERAGE($E88:CC88)+$EI89,"") ->  | CD89: =IF(CD88<>"",AVERAGE($E88:CD88)+$EI89,"") ->  | CE89: =IF(CE88<>"",AVERAGE($E88:CE88)+$EI89,"") ->  | CF89: =IF(CF88<>"",AVERAGE($E88:CF88)+$EI89,"") ->  | CG89: =IF(CG88<>"",AVERAGE($E88:CG88)+$EI89,"") -> 16.62499988 | CH89: =IF(CH88<>"",AVERAGE($E88:CH88)+$EI89,"") -> 16.88888877 | CI89: =IF(CI88<>"",AVERAGE($E88:CI88)+$EI89,"") -> 16.79999988 | CJ89: =IF(CJ88<>"",AVERAGE($E88:CJ88)+$EI89,"") -> 25.27272715 | CK89: =IF(CK88<>"",AVERAGE($E88:CK88)+$EI89,"") ->  | CL89: =IF(CL88<>"",AVERAGE($E88:CL88)+$EI89,"") ->  | CM89: =IF(CM88<>"",AVERAGE($E88:CM88)+$EI89,"") ->  | CN89: =IF(CN88<>"",AVERAGE($E88:CN88)+$EI89,"") ->  | CO89: =IF(CO88<>"",AVERAGE($E88:CO88)+$EI89,"") ->  | CP89: =IF(CP88<>"",AVERAGE($E88:CP88)+$EI89,"") ->  | CQ89: =IF(CQ88<>"",AVERAGE($E88:CQ88)+$EI89,"") ->  | CR89: =IF(CR88<>"",AVERAGE($E88:CR88)+$EI89,"") ->  | CS89: =IF(CS88<>"",AVERAGE($E88:CS88)+$EI89,"") ->  | CT89: =IF(CT88<>"",AVERAGE($E88:CT88)+$EI89,"") ->  | CU89: =IF(CU88<>"",AVERAGE($E88:CU88)+$EI89,"") ->  | CV89: =IF(CV88<>"",AVERAGE($E88:CV88)+$EI89,"") ->  | CW89: =IF(CW88<>"",AVERAGE($E88:CW88)+$EI89,"") ->  | CX89: =IF(CX88<>"",AVERAGE($E88:CX88)+$EI89,"") ->  | CY89: =IF(CY88<>"",AVERAGE($E88:CY88)+$EI89,"") ->  | CZ89: =IF(CZ88<>"",AVERAGE($E88:CZ88)+$EI89,"") ->  | DA89: =IF(DA88<>"",AVERAGE($E88:DA88)+$EI89,"") ->  | DB89: =IF(DB88<>"",AVERAGE($E88:DB88)+$EI89,"") ->  | DC89: =IF(DC88<>"",AVERAGE($E88:DC88)+$EI89,"") ->  | DD89: =IF(DD88<>"",AVERAGE($E88:DD88)+$EI89,"") ->  | DE89: =IF(DE88<>"",AVERAGE($E88:DE88)+$EI89,"") ->  | DF89: =IF(DF88<>"",AVERAGE($E88:DF88)+$EI89,"") ->  | DG89: =IF(DG88<>"",AVERAGE($E88:DG88)+$EI89,"") ->  | DH89: =IF(DH88<>"",AVERAGE($E88:DH88)+$EI89,"") ->  | DI89: =IF(DI88<>"",AVERAGE($E88:DI88)+$EI89,"") ->  | DJ89: =IF(DJ88<>"",AVERAGE($E88:DJ88)+$EI89,"") ->  | DK89: =IF(DK88<>"",AVERAGE($E88:DK88)+$EI89,"") ->  | DL89: =IF(DL88<>"",AVERAGE($E88:DL88)+$EI89,"") ->  | DM89: =IF(DM88<>"",AVERAGE($E88:DM88)+$EI89,"") ->  | DN89: =IF(DN88<>"",AVERAGE($E88:DN88)+$EI89,"") ->  | DO89: =IF(DO88<>"",AVERAGE($E88:DO88)+$EI89,"") ->  | DP89: =IF(DP88<>"",AVERAGE($E88:DP88)+$EI89,"") ->  | DQ89: =IF(DQ88<>"",AVERAGE($E88:DQ88)+$EI89,"") ->  | DR89: =IF(DR88<>"",AVERAGE($E88:DR88)+$EI89,"") ->  | DS89: =IF(DS88<>"",AVERAGE($E88:DS88)+$EI89,"") ->  | DT89: =IF(DT88<>"",AVERAGE($E88:DT88)+$EI89,"") ->  | DU89: =IF(DU88<>"",AVERAGE($E88:DU88)+$EI89,"") ->  | DV89: =IF(DV88<>"",AVERAGE($E88:DV88)+$EI89,"") ->  | DW89: =IF(DW88<>"",AVERAGE($E88:DW88)+$EI89,"") ->  | DX89: =IF(DX88<>"",AVERAGE($E88:DX88)+$EI89,"") ->  | DY89: =IF(DY88<>"",AVERAGE($E88:DY88)+$EI89,"") ->  | DZ89: =IF(DZ88<>"",AVERAGE($E88:DZ88)+$EI89,"") ->  | EA89: =IF(EA88<>"",AVERAGE($E88:EA88)+$EI89,"") ->  | EB89: =IF(EB88<>"",AVERAGE($E88:EB88)+$EI89,"") ->  | EC89: =IF(EC88<>"",AVERAGE($E88:EC88)+$EI89,"") ->  | ED89: =IF(ED88<>"",AVERAGE($E88:ED88)+$EI89,"") ->  | EE89: =IF(AND(SUM(Tabulka!$AG$54)>0.99,(SUM(Tabulka!$AG$54)<2)),-50000+(SUM(E88:ED88)/COUNT(E89:ED89)),IF(OR(SUM(Tabulka!$AG$54)<2),-90000,SUM(E88:ED88)/COUNT(E89:ED89))) -> 25.27272727 | EG89: =IFERROR(SUM(E88:ED88)/COUNT(E88:ED88),) -> 25.27272727 | EH89: =CONCATENATE(C84," ",C85) -> Kuba Šedivý | EI89: =INDEX(List4!$E$2:$E$17,MATCH(CONCATENATE(C84," ",C85),Tabulka1128[Jmeno_prijmeni],0),1) -> -1.21e-07
A90: Kuba ŠedivýPočet šipek | B90: =CONCATENATE(C84," ",C85) -> Kuba Šedivý | D90: Počet šipek | EE90: =IF(AND(SUM(Tabulka!$AG$54)>0.99,(SUM(Tabulka!$AG$54)<2)),-50000+(SUM(E90:ED90)),IF(OR(SUM(Tabulka!$AG$54)<2),-90000,SUM(E90:ED90))) -> 0 | EG90: =SUM(E90:ED90) -> 0
A91: =CONCATENATE($C$92," ",$C$93,D91) -> Standa RothVýhry | B91: =CONCATENATE(C92," ",C93) -> Standa Roth | C91: =Tabulka!B59 -> 0 | D91: Výhry | E91: 0 | J91: 2 | T91: 0 | Y91: 0 | AD91: 1 | AI91: 1 | AN91: 1 | AS91: 1 | AX91: 0 | BH91: 1 | BM91: 2 | BR91: 2 | BW91: 1 | CB91: 1 | CG91: 1 | EE91: =IF(AND(SUM(Tabulka!$AG$59)>0.99,(SUM(Tabulka!$AG$59)<2)),-50000+(SUM(E91:ED91)),IF(OR(SUM(Tabulka!$AG$59)<2),-90000,SUM(E91:ED91))) -> 14 | EG91: 14
A92: Standa RothProhry | B92: Standa Roth | C92: =Tabulka!B60 -> Standa | D92: Prohry | E92: 0 | J92: 0 | T92: 0 | Y92: 1 | AD92: 0 | AI92: 1 | AN92: 0 | AS92: 0 | AX92: 2 | BH92: 0 | BM92: 0 | BR92: 0 | BW92: 0 | CB92: 0 | CG92: 0 | EE92: =IF(AND(SUM(Tabulka!$AG$59)>0.99,(SUM(Tabulka!$AG$59)<2)),-50000+(SUM(E92:ED92)),IF(OR(SUM(Tabulka!$AG$59)<2),-90000,SUM(E92:ED92))) -> 4 | EF92: =SUM(EE91-EE92) -> 10 | EG92: 4
A93: Standa RothPlaceno panáků | B93: =CONCATENATE(C92," ",C93) -> Standa Roth | C93: =Tabulka!B61 -> Roth | D93: Placeno panáků | E93: 0 | J93: 0 | T93: 0 | Y93: 2 | AD93: 0 | AI93: 1 | AN93: 0 | AS93: 0 | AX93: 4 | BH93: 0 | BM93: 0 | BR93: 0 | BW93: 0 | CB93: 0 | CG93: 0 | EE93: =IF(AND(SUM(Tabulka!$AG$59)>0.99,(SUM(Tabulka!$AG$59)<2)),-50000+(SUM(E93:ED93)),IF(OR(SUM(Tabulka!$AG$59)<2),-90000,SUM(E93:ED93))) -> 7 | EG93: 7
A94: Standa RothPřehozy | B94: =CONCATENATE(C92," ",C93) -> Standa Roth | C94: =Tabulka!B62 -> 0 | D94: Přehozy | E94: 0 | J94: 2 | T94: 2 | Y94: 0 | AD94: 0 | AI94: 0 | AN94: 0 | AS94: 0 | AX94: 3 | BH94: 0 | BM94: 0 | BR94: 1 | BW94: 0 | CB94: 1 | CG94: 1 | EE94: =IF(AND(SUM(Tabulka!$AG$59)>0.99,(SUM(Tabulka!$AG$59)<2)),-50000+(SUM(E94:ED94)),IF(OR(SUM(Tabulka!$AG$59)<2),-90000,SUM(E94:ED94))) -> 10 | EG94: 10
A95: Standa RothPoč. kol | B95: =CONCATENATE(C92," ",C93) -> Standa Roth | C95: =Tabulka!B63 -> 0 | D95: Poč. kol | E95: 4 | J95: 4 | T95: 4 | Y95: 4 | AD95: 4 | AI95: 4 | AN95: 4 | AS95: 3 | AX95: 4 | BH95: 4 | BM95: 4 | BR95: 5 | BW95: 4 | CB95: 4 | CG95: 4 | EE95: =IF(AND(SUM(Tabulka!$AG$59)>0.99,(SUM(Tabulka!$AG$59)<2)),-50000+(SUM(E95:ED95)),IF(OR(SUM(Tabulka!$AG$59)<2),-90000,SUM(E95:ED95))) -> 60 | EG95: 60
A96: Standa RothPočet konečných bodů | B96: =CONCATENATE(C92," ",C93) -> Standa Roth | D96: Počet konečných bodů | E96: 8 | F96: 116 | G96: 88 | H96: 93 | J96: 1 | K96: 72 | L96: 0 | M96: 0 | T96: 50 | U96: 44 | V96: 96 | W96: 19 | Y96: 105 | Z96: 193 | AA96: 93 | AB96: 30 | AD96: 0 | AE96: 70 | AF96: 17 | AG96: 132 | AI96: 105 | AJ96: 61 | AK96: 58 | AL96: 0 | AN96: 144 | AO96: 49 | AP96: 0 | AQ96: 16 | AS96: 0 | AT96: 64 | AU96: 115 | AX96: 45 | AY96: 75 | AZ96: 64 | BA96: 16 | BH96: 55 | BI96: 108 | BJ96: 0 | BK96: 31 | BM96: 93 | BN96: 15 | BO96: 0 | BP96: 0 | BR96: 28 | BS96: 14 | BT96: 25 | BU96: 0 | BV96: 0 | BW96: 3 | BX96: 58 | BY96: 60 | BZ96: 0 | CB96: 85 | CC96: 0 | CD96: 78 | CE96: 98 | CG96: 64 | CH96: 0 | CI96: 22 | CJ96: 66 | EE96: =IF(AND(SUM(Tabulka!$AG$59)>0.99,(SUM(Tabulka!$AG$59)<2)),-50000-(SUM(E96:ED96)),IF(OR(SUM(Tabulka!$AG$59)<2),-90000,SUM(E96:ED96))) -> 2942 | EG96: 2942
A97: Standa RothPrůměr konečných bodů na kolo | B97: =CONCATENATE(C92," ",C93) -> Standa Roth | D97: Průměr konečných bodů na kolo | E97: =IF(E96<>"",AVERAGE($E96:E96)+$EI97,"") -> 7.999999889 | F97: =IF(F96<>"",AVERAGE($E96:F96)+$EI97,"") -> 61.99999989 | G97: =IF(G96<>"",AVERAGE($E96:G96)+$EI97,"") -> 70.66666656 | H97: =IF(H96<>"",AVERAGE($E96:H96)+$EI97,"") -> 76.24999989 | I97: =IF(I96<>"",AVERAGE($E96:I96)+$EI97,"") ->  | J97: =IF(J96<>"",AVERAGE($E96:J96)+$EI97,"") -> 61.19999989 | K97: =IF(K96<>"",AVERAGE($E96:K96)+$EI97,"") -> 62.99999989 | L97: =IF(L96<>"",AVERAGE($E96:L96)+$EI97,"") -> 53.99999989 | M97: =IF(M96<>"",AVERAGE($E96:M96)+$EI97,"") -> 47.24999989 | N97: =IF(N96<>"",AVERAGE($E96:N96)+$EI97,"") ->  | O97: =IF(O96<>"",AVERAGE($E96:O96)+$EI97,"") ->  | P97: =IF(P96<>"",AVERAGE($E96:P96)+$EI97,"") ->  | Q97: =IF(Q96<>"",AVERAGE($E96:Q96)+$EI97,"") ->  | R97: =IF(R96<>"",AVERAGE($E96:R96)+$EI97,"") ->  | S97: =IF(S96<>"",AVERAGE($E96:S96)+$EI97,"") ->  | T97: =IF(T96<>"",AVERAGE($E96:T96)+$EI97,"") -> 47.55555544 | U97: =IF(U96<>"",AVERAGE($E96:U96)+$EI97,"") -> 47.19999989 | V97: =IF(V96<>"",AVERAGE($E96:V96)+$EI97,"") -> 51.63636353 | W97: =IF(W96<>"",AVERAGE($E96:W96)+$EI97,"") -> 48.91666656 | X97: =IF(X96<>"",AVERAGE($E96:X96)+$EI97,"") ->  | Y97: =IF(Y96<>"",AVERAGE($E96:Y96)+$EI97,"") -> 53.23076912 | Z97: =IF(Z96<>"",AVERAGE($E96:Z96)+$EI97,"") -> 63.2142856 | AA97: =IF(AA96<>"",AVERAGE($E96:AA96)+$EI97,"") -> 65.19999989 | AB97: =IF(AB96<>"",AVERAGE($E96:AB96)+$EI97,"") -> 62.99999989 | AC97: =IF(AC96<>"",AVERAGE($E96:AC96)+$EI97,"") ->  | AD97: =IF(AD96<>"",AVERAGE($E96:AD96)+$EI97,"") -> 59.29411754 | AE97: =IF(AE96<>"",AVERAGE($E96:AE96)+$EI97,"") -> 59.88888878 | AF97: =IF(AF96<>"",AVERAGE($E96:AF96)+$EI97,"") -> 57.63157884 | AG97: =IF(AG96<>"",AVERAGE($E96:AG96)+$EI97,"") -> 61.34999989 | AH97: =IF(AH96<>"",AVERAGE($E96:AH96)+$EI97,"") ->  | AI97: =IF(AI96<>"",AVERAGE($E96:AI96)+$EI97,"") -> 63.42857132 | AJ97: =IF(AJ96<>"",AVERAGE($E96:AJ96)+$EI97,"") -> 63.31818171 | AK97: =IF(AK96<>"",AVERAGE($E96:AK96)+$EI97,"") -> 63.08695641 | AL97: =IF(AL96<>"",AVERAGE($E96:AL96)+$EI97,"") -> 60.45833322 | AM97: =IF(AM96<>"",AVERAGE($E96:AM96)+$EI97,"") ->  | AN97: =IF(AN96<>"",AVERAGE($E96:AN96)+$EI97,"") -> 63.79999989 | AO97: =IF(AO96<>"",AVERAGE($E96:AO96)+$EI97,"") -> 63.23076912 | AP97: =IF(AP96<>"",AVERAGE($E96:AP96)+$EI97,"") -> 60.88888878 | AQ97: =IF(AQ96<>"",AVERAGE($E96:AQ96)+$EI97,"") -> 59.28571417 | AR97: =IF(AR96<>"",AVERAGE($E96:AR96)+$EI97,"") ->  | AS97: =IF(AS96<>"",AVERAGE($E96:AS96)+$EI97,"") -> 57.2413792 | AT97: =IF(AT96<>"",AVERAGE($E96:AT96)+$EI97,"") -> 57.46666656 | AU97: =IF(AU96<>"",AVERAGE($E96:AU96)+$EI97,"") -> 59.32258053 | AV97: =IF(AV96<>"",AVERAGE($E96:AV96)+$EI97,"") ->  | AW97: =IF(AW96<>"",AVERAGE($E96:AW96)+$EI97,"") ->  | AX97: =IF(AX96<>"",AVERAGE($E96:AX96)+$EI97,"") -> 58.87499989 | AY97: =IF(AY96<>"",AVERAGE($E96:AY96)+$EI97,"") -> 59.36363625 | AZ97: =IF(AZ96<>"",AVERAGE($E96:AZ96)+$EI97,"") -> 59.49999989 | BA97: =IF(BA96<>"",AVERAGE($E96:BA96)+$EI97,"") -> 58.25714275 | BB97: =IF(BB96<>"",AVERAGE($E96:BB96)+$EI97,"") ->  | BC97: =IF(BC96<>"",AVERAGE($E96:BC96)+$EI97,"") ->  | BD97: =IF(BD96<>"",AVERAGE($E96:BD96)+$EI97,"") ->  | BE97: =IF(BE96<>"",AVERAGE($E96:BE96)+$EI97,"") ->  | BF97: =IF(BF96<>"",AVERAGE($E96:BF96)+$EI97,"") ->  | BG97: =IF(BG96<>"",AVERAGE($E96:BG96)+$EI97,"") ->  | BH97: =IF(BH96<>"",AVERAGE($E96:BH96)+$EI97,"") -> 58.16666656 | BI97: =IF(BI96<>"",AVERAGE($E96:BI96)+$EI97,"") -> 59.5135134 | BJ97: =IF(BJ96<>"",AVERAGE($E96:BJ96)+$EI97,"") -> 57.94736831 | BK97: =IF(BK96<>"",AVERAGE($E96:BK96)+$EI97,"") -> 57.25641015 | BL97: =IF(BL96<>"",AVERAGE($E96:BL96)+$EI97,"") ->  | BM97: =IF(BM96<>"",AVERAGE($E96:BM96)+$EI97,"") -> 58.14999989 | BN97: =IF(BN96<>"",AVERAGE($E96:BN96)+$EI97,"") -> 57.09756086 | BO97: =IF(BO96<>"",AVERAGE($E96:BO96)+$EI97,"") -> 55.73809513 | BP97: =IF(BP96<>"",AVERAGE($E96:BP96)+$EI97,"") -> 54.44186035 | BQ97: =IF(BQ96<>"",AVERAGE($E96:BQ96)+$EI97,"") ->  | BR97: =IF(BR96<>"",AVERAGE($E96:BR96)+$EI97,"") -> 53.84090898 | BS97: =IF(BS96<>"",AVERAGE($E96:BS96)+$EI97,"") -> 52.95555544 | BT97: =IF(BT96<>"",AVERAGE($E96:BT96)+$EI97,"") -> 52.34782598 | BU97: =IF(BU96<>"",AVERAGE($E96:BU96)+$EI97,"") -> 51.23404244 | BV97: =IF(BV96<>"",AVERAGE($E96:BV96)+$EI97,"") -> 50.16666656 | BW97: =IF(BW96<>"",AVERAGE($E96:BW96)+$EI97,"") -> 49.20408152 | BX97: =IF(BX96<>"",AVERAGE($E96:BX96)+$EI97,"") -> 49.37999989 | BY97: =IF(BY96<>"",AVERAGE($E96:BY96)+$EI97,"") -> 49.58823518 | BZ97: =IF(BZ96<>"",AVERAGE($E96:BZ96)+$EI97,"") -> 48.63461527 | CA97: =IF(CA96<>"",AVERAGE($E96:CA96)+$EI97,"") ->  | CB97: =IF(CB96<>"",AVERAGE($E96:CB96)+$EI97,"") -> 49.32075461 | CC97: =IF(CC96<>"",AVERAGE($E96:CC96)+$EI97,"") -> 48.4074073 | CD97: =IF(CD96<>"",AVERAGE($E96:CD96)+$EI97,"") -> 48.94545443 | CE97: =IF(CE96<>"",AVERAGE($E96:CE96)+$EI97,"") -> 49.82142846 | CF97: =IF(CF96<>"",AVERAGE($E96:CF96)+$EI97,"") ->  | CG97: =IF(CG96<>"",AVERAGE($E96:CG96)+$EI97,"") -> 50.07017533 | CH97: =IF(CH96<>"",AVERAGE($E96:CH96)+$EI97,"") -> 49.20689644 | CI97: =IF(CI96<>"",AVERAGE($E96:CI96)+$EI97,"") -> 48.7457626 | CJ97: =IF(CJ96<>"",AVERAGE($E96:CJ96)+$EI97,"") -> 49.03333322 | CK97: =IF(CK96<>"",AVERAGE($E96:CK96)+$EI97,"") ->  | CL97: =IF(CL96<>"",AVERAGE($E96:CL96)+$EI97,"") ->  | CM97: =IF(CM96<>"",AVERAGE($E96:CM96)+$EI97,"") ->  | CN97: =IF(CN96<>"",AVERAGE($E96:CN96)+$EI97,"") ->  | CO97: =IF(CO96<>"",AVERAGE($E96:CO96)+$EI97,"") ->  | CP97: =IF(CP96<>"",AVERAGE($E96:CP96)+$EI97,"") ->  | CQ97: =IF(CQ96<>"",AVERAGE($E96:CQ96)+$EI97,"") ->  | CR97: =IF(CR96<>"",AVERAGE($E96:CR96)+$EI97,"") ->  | CS97: =IF(CS96<>"",AVERAGE($E96:CS96)+$EI97,"") ->  | CT97: =IF(CT96<>"",AVERAGE($E96:CT96)+$EI97,"") ->  | CU97: =IF(CU96<>"",AVERAGE($E96:CU96)+$EI97,"") ->  | CV97: =IF(CV96<>"",AVERAGE($E96:CV96)+$EI97,"") ->  | CW97: =IF(CW96<>"",AVERAGE($E96:CW96)+$EI97,"") ->  | CX97: =IF(CX96<>"",AVERAGE($E96:CX96)+$EI97,"") ->  | CY97: =IF(CY96<>"",AVERAGE($E96:CY96)+$EI97,"") ->  | CZ97: =IF(CZ96<>"",AVERAGE($E96:CZ96)+$EI97,"") ->  | DA97: =IF(DA96<>"",AVERAGE($E96:DA96)+$EI97,"") ->  | DB97: =IF(DB96<>"",AVERAGE($E96:DB96)+$EI97,"") ->  | DC97: =IF(DC96<>"",AVERAGE($E96:DC96)+$EI97,"") ->  | DD97: =IF(DD96<>"",AVERAGE($E96:DD96)+$EI97,"") ->  | DE97: =IF(DE96<>"",AVERAGE($E96:DE96)+$EI97,"") ->  | DF97: =IF(DF96<>"",AVERAGE($E96:DF96)+$EI97,"") ->  | DG97: =IF(DG96<>"",AVERAGE($E96:DG96)+$EI97,"") ->  | DH97: =IF(DH96<>"",AVERAGE($E96:DH96)+$EI97,"") ->  | DI97: =IF(DI96<>"",AVERAGE($E96:DI96)+$EI97,"") ->  | DJ97: =IF(DJ96<>"",AVERAGE($E96:DJ96)+$EI97,"") ->  | DK97: =IF(DK96<>"",AVERAGE($E96:DK96)+$EI97,"") ->  | DL97: =IF(DL96<>"",AVERAGE($E96:DL96)+$EI97,"") ->  | DM97: =IF(DM96<>"",AVERAGE($E96:DM96)+$EI97,"") ->  | DN97: =IF(DN96<>"",AVERAGE($E96:DN96)+$EI97,"") ->  | DO97: =IF(DO96<>"",AVERAGE($E96:DO96)+$EI97,"") ->  | DP97: =IF(DP96<>"",AVERAGE($E96:DP96)+$EI97,"") ->  | DQ97: =IF(DQ96<>"",AVERAGE($E96:DQ96)+$EI97,"") ->  | DR97: =IF(DR96<>"",AVERAGE($E96:DR96)+$EI97,"") ->  | DS97: =IF(DS96<>"",AVERAGE($E96:DS96)+$EI97,"") ->  | DT97: =IF(DT96<>"",AVERAGE($E96:DT96)+$EI97,"") ->  | DU97: =IF(DU96<>"",AVERAGE($E96:DU96)+$EI97,"") ->  | DV97: =IF(DV96<>"",AVERAGE($E96:DV96)+$EI97,"") ->  | DW97: =IF(DW96<>"",AVERAGE($E96:DW96)+$EI97,"") ->  | DX97: =IF(DX96<>"",AVERAGE($E96:DX96)+$EI97,"") ->  | DY97: =IF(DY96<>"",AVERAGE($E96:DY96)+$EI97,"") ->  | DZ97: =IF(DZ96<>"",AVERAGE($E96:DZ96)+$EI97,"") ->  | EA97: =IF(EA96<>"",AVERAGE($E96:EA96)+$EI97,"") ->  | EB97: =IF(EB96<>"",AVERAGE($E96:EB96)+$EI97,"") ->  | EC97: =IF(EC96<>"",AVERAGE($E96:EC96)+$EI97,"") ->  | ED97: =IF(ED96<>"",AVERAGE($E96:ED96)+$EI97,"") ->  | EE97: =IF(AND(SUM(Tabulka!$AG$59)>0.99,(SUM(Tabulka!$AG$59)<2)),-50000+(SUM(E96:ED96)/COUNT(E97:ED97)),IF(OR(SUM(Tabulka!$AG$59)<2),-90000,SUM(E96:ED96)/COUNT(E97:ED97))) -> 49.03333333 | EG97: =IFERROR(SUM(E96:ED96)/COUNT(E96:ED96),) -> 49.03333333 | EH97: =CONCATENATE(C92," ",C93) -> Standa Roth | EI97: =INDEX(List4!$E$2:$E$17,MATCH(CONCATENATE(C92," ",C93),Tabulka1128[Jmeno_prijmeni],0),1) -> -1.11e-07
A98: Standa RothPočet šipek | B98: =CONCATENATE(C92," ",C93) -> Standa Roth | D98: Počet šipek | EE98: =IF(AND(SUM(Tabulka!$AG$59)>0.99,(SUM(Tabulka!$AG$59)<2)),-50000+(SUM(E98:ED98)),IF(OR(SUM(Tabulka!$AG$59)<2),-90000,SUM(E98:ED98))) -> 0 | EG98: =SUM(E98:ED98) -> 0
A99: =CONCATENATE($C$100," ",$C$101,D99) -> Karel KarlVýhry | B99: =CONCATENATE(C100," ",C101) -> Karel Karl | C99: =Tabulka!B64 -> 0 | D99: Výhry | Y99: 1 | EE99: =IF(AND(SUM(Tabulka!$AG$64)>0.99,(SUM(Tabulka!$AG$64)<2)),-50000+(SUM(E99:ED99)),IF(OR(SUM(Tabulka!$AG$64)<2),-90000,SUM(E99:ED99))) -> -49999 | EG99: 1
A100: Karel KarlProhry | B100: Karel Karl | C100: =Tabulka!B65 -> Karel | D100: Prohry | Y100: 2 | EE100: =IF(AND(SUM(Tabulka!$AG$64)>0.99,(SUM(Tabulka!$AG$64)<2)),-50000+(SUM(E100:ED100)),IF(OR(SUM(Tabulka!$AG$64)<2),-90000,SUM(E100:ED100))) -> -49998 | EF100: =SUM(EE99-EE100) -> -1 | EG100: 2
A101: Karel KarlPlaceno panáků | B101: =CONCATENATE(C100," ",C101) -> Karel Karl | C101: =Tabulka!B66 -> Karl | D101: Placeno panáků | Y101: 2 | EE101: =IF(AND(SUM(Tabulka!$AG$64)>0.99,(SUM(Tabulka!$AG$64)<2)),-50000+(SUM(E101:ED101)),IF(OR(SUM(Tabulka!$AG$64)<2),-90000,SUM(E101:ED101))) -> -49998 | EG101: 2
A102: Karel KarlPřehozy | B102: =CONCATENATE(C100," ",C101) -> Karel Karl | C102: =Tabulka!B67 -> 0 | D102: Přehozy | Y102: 0 | EE102: =IF(AND(SUM(Tabulka!$AG$64)>0.99,(SUM(Tabulka!$AG$64)<2)),-50000+(SUM(E102:ED102)),IF(OR(SUM(Tabulka!$AG$64)<2),-90000,SUM(E102:ED102))) -> -50000 | EG102: 0
A103: Karel KarlPoč. kol | B103: =CONCATENATE(C100," ",C101) -> Karel Karl | C103: =Tabulka!B68 -> 0 | D103: Poč. kol | Y103: 4 | EE103: =IF(AND(SUM(Tabulka!$AG$64)>0.99,(SUM(Tabulka!$AG$64)<2)),-50000+(SUM(E103:ED103)),IF(OR(SUM(Tabulka!$AG$64)<2),-90000,SUM(E103:ED103))) -> -49996 | EG103: 4
A104: Karel KarlPočet konečných bodů | B104: =CONCATENATE(C100," ",C101) -> Karel Karl | D104: Počet konečných bodů | Y104: 240 | Z104: 273 | AA104: 0 | AB104: 53 | EE104: =IF(AND(SUM(Tabulka!$AG$64)>0.99,(SUM(Tabulka!$AG$64)<2)),-50000-(SUM(E104:ED104)),IF(OR(SUM(Tabulka!$AG$64)<2),-90000,SUM(E104:ED104))) -> -50566 | EG104: 566
A105: Karel KarlPrůměr konečných bodů na kolo | B105: =CONCATENATE(C100," ",C101) -> Karel Karl | D105: Průměr konečných bodů na kolo | E105: =IF(E104<>"",AVERAGE($E104:E104)+$EI105,"") ->  | F105: =IF(F104<>"",AVERAGE($E104:F104)+$EI105,"") ->  | G105: =IF(G104<>"",AVERAGE($E104:G104)+$EI105,"") ->  | H105: =IF(H104<>"",AVERAGE($E104:H104)+$EI105,"") ->  | I105: =IF(I104<>"",AVERAGE($E104:I104)+$EI105,"") ->  | J105: =IF(J104<>"",AVERAGE($E104:J104)+$EI105,"") ->  | K105: =IF(K104<>"",AVERAGE($E104:K104)+$EI105,"") ->  | L105: =IF(L104<>"",AVERAGE($E104:L104)+$EI105,"") ->  | M105: =IF(M104<>"",AVERAGE($E104:M104)+$EI105,"") ->  | N105: =IF(N104<>"",AVERAGE($E104:N104)+$EI105,"") ->  | O105: =IF(O104<>"",AVERAGE($E104:O104)+$EI105,"") ->  | P105: =IF(P104<>"",AVERAGE($E104:P104)+$EI105,"") ->  | Q105: =IF(Q104<>"",AVERAGE($E104:Q104)+$EI105,"") ->  | R105: =IF(R104<>"",AVERAGE($E104:R104)+$EI105,"") ->  | S105: =IF(S104<>"",AVERAGE($E104:S104)+$EI105,"") ->  | T105: =IF(T104<>"",AVERAGE($E104:T104)+$EI105,"") ->  | U105: =IF(U104<>"",AVERAGE($E104:U104)+$EI105,"") ->  | V105: =IF(V104<>"",AVERAGE($E104:V104)+$EI105,"") ->  | W105: =IF(W104<>"",AVERAGE($E104:W104)+$EI105,"") ->  | X105: =IF(X104<>"",AVERAGE($E104:X104)+$EI105,"") ->  | Y105: =IF(Y104<>"",AVERAGE($E104:Y104)+$EI105,"") -> 239.9999999 | Z105: =IF(Z104<>"",AVERAGE($E104:Z104)+$EI105,"") -> 256.4999999 | AA105: =IF(AA104<>"",AVERAGE($E104:AA104)+$EI105,"") -> 170.9999999 | AB105: =IF(AB104<>"",AVERAGE($E104:AB104)+$EI105,"") -> 141.4999999 | AC105: =IF(AC104<>"",AVERAGE($E104:AC104)+$EI105,"") ->  | AD105: =IF(AD104<>"",AVERAGE($E104:AD104)+$EI105,"") ->  | AE105: =IF(AE104<>"",AVERAGE($E104:AE104)+$EI105,"") ->  | AF105: =IF(AF104<>"",AVERAGE($E104:AF104)+$EI105,"") ->  | AG105: =IF(AG104<>"",AVERAGE($E104:AG104)+$EI105,"") ->  | AH105: =IF(AH104<>"",AVERAGE($E104:AH104)+$EI105,"") ->  | AI105: =IF(AI104<>"",AVERAGE($E104:AI104)+$EI105,"") ->  | AJ105: =IF(AJ104<>"",AVERAGE($E104:AJ104)+$EI105,"") ->  | AK105: =IF(AK104<>"",AVERAGE($E104:AK104)+$EI105,"") ->  | AL105: =IF(AL104<>"",AVERAGE($E104:AL104)+$EI105,"") ->  | AM105: =IF(AM104<>"",AVERAGE($E104:AM104)+$EI105,"") ->  | AN105: =IF(AN104<>"",AVERAGE($E104:AN104)+$EI105,"") ->  | AO105: =IF(AO104<>"",AVERAGE($E104:AO104)+$EI105,"") ->  | AP105: =IF(AP104<>"",AVERAGE($E104:AP104)+$EI105,"") ->  | AQ105: =IF(AQ104<>"",AVERAGE($E104:AQ104)+$EI105,"") ->  | AR105: =IF(AR104<>"",AVERAGE($E104:AR104)+$EI105,"") ->  | AS105: =IF(AS104<>"",AVERAGE($E104:AS104)+$EI105,"") ->  | AT105: =IF(AT104<>"",AVERAGE($E104:AT104)+$EI105,"") ->  | AU105: =IF(AU104<>"",AVERAGE($E104:AU104)+$EI105,"") ->  | AV105: =IF(AV104<>"",AVERAGE($E104:AV104)+$EI105,"") ->  | AW105: =IF(AW104<>"",AVERAGE($E104:AW104)+$EI105,"") ->  | AX105: =IF(AX104<>"",AVERAGE($E104:AX104)+$EI105,"") ->  | AY105: =IF(AY104<>"",AVERAGE($E104:AY104)+$EI105,"") ->  | AZ105: =IF(AZ104<>"",AVERAGE($E104:AZ104)+$EI105,"") ->  | BA105: =IF(BA104<>"",AVERAGE($E104:BA104)+$EI105,"") ->  | BB105: =IF(BB104<>"",AVERAGE($E104:BB104)+$EI105,"") ->  | BC105: =IF(BC104<>"",AVERAGE($E104:BC104)+$EI105,"") ->  | BD105: =IF(BD104<>"",AVERAGE($E104:BD104)+$EI105,"") ->  | BE105: =IF(BE104<>"",AVERAGE($E104:BE104)+$EI105,"") ->  | BF105: =IF(BF104<>"",AVERAGE($E104:BF104)+$EI105,"") ->  | BG105: =IF(BG104<>"",AVERAGE($E104:BG104)+$EI105,"") ->  | BH105: =IF(BH104<>"",AVERAGE($E104:BH104)+$EI105,"") ->  | BI105: =IF(BI104<>"",AVERAGE($E104:BI104)+$EI105,"") ->  | BJ105: =IF(BJ104<>"",AVERAGE($E104:BJ104)+$EI105,"") ->  | BK105: =IF(BK104<>"",AVERAGE($E104:BK104)+$EI105,"") ->  | BL105: =IF(BL104<>"",AVERAGE($E104:BL104)+$EI105,"") ->  | BM105: =IF(BM104<>"",AVERAGE($E104:BM104)+$EI105,"") ->  | BN105: =IF(BN104<>"",AVERAGE($E104:BN104)+$EI105,"") ->  | BO105: =IF(BO104<>"",AVERAGE($E104:BO104)+$EI105,"") ->  | BP105: =IF(BP104<>"",AVERAGE($E104:BP104)+$EI105,"") ->  | BQ105: =IF(BQ104<>"",AVERAGE($E104:BQ104)+$EI105,"") ->  | BR105: =IF(BR104<>"",AVERAGE($E104:BR104)+$EI105,"") ->  | BS105: =IF(BS104<>"",AVERAGE($E104:BS104)+$EI105,"") ->  | BT105: =IF(BT104<>"",AVERAGE($E104:BT104)+$EI105,"") ->  | BU105: =IF(BU104<>"",AVERAGE($E104:BU104)+$EI105,"") ->  | BV105: =IF(BV104<>"",AVERAGE($E104:BV104)+$EI105,"") ->  | BW105: =IF(BW104<>"",AVERAGE($E104:BW104)+$EI105,"") ->  | BX105: =IF(BX104<>"",AVERAGE($E104:BX104)+$EI105,"") ->  | BY105: =IF(BY104<>"",AVERAGE($E104:BY104)+$EI105,"") ->  | BZ105: =IF(BZ104<>"",AVERAGE($E104:BZ104)+$EI105,"") ->  | CA105: =IF(CA104<>"",AVERAGE($E104:CA104)+$EI105,"") ->  | CB105: =IF(CB104<>"",AVERAGE($E104:CB104)+$EI105,"") ->  | CC105: =IF(CC104<>"",AVERAGE($E104:CC104)+$EI105,"") ->  | CD105: =IF(CD104<>"",AVERAGE($E104:CD104)+$EI105,"") ->  | CE105: =IF(CE104<>"",AVERAGE($E104:CE104)+$EI105,"") ->  | CF105: =IF(CF104<>"",AVERAGE($E104:CF104)+$EI105,"") ->  | CG105: =IF(CG104<>"",AVERAGE($E104:CG104)+$EI105,"") ->  | CH105: =IF(CH104<>"",AVERAGE($E104:CH104)+$EI105,"") ->  | CI105: =IF(CI104<>"",AVERAGE($E104:CI104)+$EI105,"") ->  | CJ105: =IF(CJ104<>"",AVERAGE($E104:CJ104)+$EI105,"") ->  | CK105: =IF(CK104<>"",AVERAGE($E104:CK104)+$EI105,"") ->  | CL105: =IF(CL104<>"",AVERAGE($E104:CL104)+$EI105,"") ->  | CM105: =IF(CM104<>"",AVERAGE($E104:CM104)+$EI105,"") ->  | CN105: =IF(CN104<>"",AVERAGE($E104:CN104)+$EI105,"") ->  | CO105: =IF(CO104<>"",AVERAGE($E104:CO104)+$EI105,"") ->  | CP105: =IF(CP104<>"",AVERAGE($E104:CP104)+$EI105,"") ->  | CQ105: =IF(CQ104<>"",AVERAGE($E104:CQ104)+$EI105,"") ->  | CR105: =IF(CR104<>"",AVERAGE($E104:CR104)+$EI105,"") ->  | CS105: =IF(CS104<>"",AVERAGE($E104:CS104)+$EI105,"") ->  | CT105: =IF(CT104<>"",AVERAGE($E104:CT104)+$EI105,"") ->  | CU105: =IF(CU104<>"",AVERAGE($E104:CU104)+$EI105,"") ->  | CV105: =IF(CV104<>"",AVERAGE($E104:CV104)+$EI105,"") ->  | CW105: =IF(CW104<>"",AVERAGE($E104:CW104)+$EI105,"") ->  | CX105: =IF(CX104<>"",AVERAGE($E104:CX104)+$EI105,"") ->  | CY105: =IF(CY104<>"",AVERAGE($E104:CY104)+$EI105,"") ->  | CZ105: =IF(CZ104<>"",AVERAGE($E104:CZ104)+$EI105,"") ->  | DA105: =IF(DA104<>"",AVERAGE($E104:DA104)+$EI105,"") ->  | DB105: =IF(DB104<>"",AVERAGE($E104:DB104)+$EI105,"") ->  | DC105: =IF(DC104<>"",AVERAGE($E104:DC104)+$EI105,"") ->  | DD105: =IF(DD104<>"",AVERAGE($E104:DD104)+$EI105,"") ->  | DE105: =IF(DE104<>"",AVERAGE($E104:DE104)+$EI105,"") ->  | DF105: =IF(DF104<>"",AVERAGE($E104:DF104)+$EI105,"") ->  | DG105: =IF(DG104<>"",AVERAGE($E104:DG104)+$EI105,"") ->  | DH105: =IF(DH104<>"",AVERAGE($E104:DH104)+$EI105,"") ->  | DI105: =IF(DI104<>"",AVERAGE($E104:DI104)+$EI105,"") ->  | DJ105: =IF(DJ104<>"",AVERAGE($E104:DJ104)+$EI105,"") ->  | DK105: =IF(DK104<>"",AVERAGE($E104:DK104)+$EI105,"") ->  | DL105: =IF(DL104<>"",AVERAGE($E104:DL104)+$EI105,"") ->  | DM105: =IF(DM104<>"",AVERAGE($E104:DM104)+$EI105,"") ->  | DN105: =IF(DN104<>"",AVERAGE($E104:DN104)+$EI105,"") ->  | DO105: =IF(DO104<>"",AVERAGE($E104:DO104)+$EI105,"") ->  | DP105: =IF(DP104<>"",AVERAGE($E104:DP104)+$EI105,"") ->  | DQ105: =IF(DQ104<>"",AVERAGE($E104:DQ104)+$EI105,"") ->  | DR105: =IF(DR104<>"",AVERAGE($E104:DR104)+$EI105,"") ->  | DS105: =IF(DS104<>"",AVERAGE($E104:DS104)+$EI105,"") ->  | DT105: =IF(DT104<>"",AVERAGE($E104:DT104)+$EI105,"") ->  | DU105: =IF(DU104<>"",AVERAGE($E104:DU104)+$EI105,"") ->  | DV105: =IF(DV104<>"",AVERAGE($E104:DV104)+$EI105,"") ->  | DW105: =IF(DW104<>"",AVERAGE($E104:DW104)+$EI105,"") ->  | DX105: =IF(DX104<>"",AVERAGE($E104:DX104)+$EI105,"") ->  | DY105: =IF(DY104<>"",AVERAGE($E104:DY104)+$EI105,"") ->  | DZ105: =IF(DZ104<>"",AVERAGE($E104:DZ104)+$EI105,"") ->  | EA105: =IF(EA104<>"",AVERAGE($E104:EA104)+$EI105,"") ->  | EB105: =IF(EB104<>"",AVERAGE($E104:EB104)+$EI105,"") ->  | EC105: =IF(EC104<>"",AVERAGE($E104:EC104)+$EI105,"") ->  | ED105: =IF(ED104<>"",AVERAGE($E104:ED104)+$EI105,"") ->  | EE105: =IF(AND(SUM(Tabulka!$AG$64)>0.99,(SUM(Tabulka!$AG$64)<2)),-50000-(SUM(E104:ED104)/COUNT(E105:ED105)),IF(OR(SUM(Tabulka!$AG$64)<2),-90000,SUM(E104:ED104)/COUNT(E105:ED105))) -> -50141.5 | EG105: =IFERROR(SUM(E104:ED104)/COUNT(E104:ED104),) -> 141.5 | EH105: =CONCATENATE(C100," ",C101) -> Karel Karl | EI105: =INDEX(List4!$E$2:$E$17,MATCH(CONCATENATE(C100," ",C101),Tabulka1128[Jmeno_prijmeni],0),1) -> -7.1e-08
A106: Karel KarlPočet šipek | B106: =CONCATENATE(C100," ",C101) -> Karel Karl | D106: Počet šipek | EE106: =IF(AND(SUM(Tabulka!$AG$64)>0.99,(SUM(Tabulka!$AG$64)<2)),-50000+(SUM(E106:ED106)),IF(OR(SUM(Tabulka!$AG$64)<2),-90000,SUM(E106:ED106))) -> -50000 | EG106: 0
A107: =CONCATENATE($C$108," ",$C$109,D107) -> Míra KulhanVýhry | B107: =CONCATENATE(C108," ",C109) -> Míra Kulhan | C107: =Tabulka!B69 -> 0 | D107: Výhry | EE107: =IF(AND(SUM(Tabulka!$AG$69)>0.99,(SUM(Tabulka!$AG$69)<2)),-50000+(SUM(E107:ED107)),IF(OR(SUM(Tabulka!$AG$69)<2),-90000,SUM(E107:ED107))) -> -90000 | EG107: 0
A108: Míra KulhanProhry | B108: Míra Kulhan | C108: =Tabulka!B70 -> Míra | D108: Prohry | EE108: =IF(AND(SUM(Tabulka!$AG$69)>0.99,(SUM(Tabulka!$AG$69)<2)),-50000+(SUM(E108:ED108)),IF(OR(SUM(Tabulka!$AG$69)<2),-90000,SUM(E108:ED108))) -> -90000 | EF108: =SUM(EE107-EE108) -> 0 | EG108: 0
A109: Míra KulhanPlaceno panáků | B109: =CONCATENATE(C108," ",C109) -> Míra Kulhan | C109: =Tabulka!B71 -> Kulhan | D109: Placeno panáků | EE109: =IF(AND(SUM(Tabulka!$AG$69)>0.99,(SUM(Tabulka!$AG$69)<2)),-50000+(SUM(E109:ED109)),IF(OR(SUM(Tabulka!$AG$69)<2),-90000,SUM(E109:ED109))) -> -90000 | EG109: 0
A110: Míra KulhanPřehozy | B110: =CONCATENATE(C108," ",C109) -> Míra Kulhan | C110: =Tabulka!B72 -> 0 | D110: Přehozy | EE110: =IF(AND(SUM(Tabulka!$AG$69)>0.99,(SUM(Tabulka!$AG$69)<2)),-50000+(SUM(E110:ED110)),IF(OR(SUM(Tabulka!$AG$69)<2),-90000,SUM(E110:ED110))) -> -90000 | EG110: 0
A111: Míra KulhanPoč. kol | B111: =CONCATENATE(C108," ",C109) -> Míra Kulhan | C111: =Tabulka!B73 -> 0 | D111: Poč. kol | EE111: =IF(AND(SUM(Tabulka!$AG$69)>0.99,(SUM(Tabulka!$AG$69)<2)),-50000+(SUM(E111:ED111)),IF(OR(SUM(Tabulka!$AG$69)<2),-90000,SUM(E111:ED111))) -> -90000 | EG111: 0
A112: Míra KulhanPočet konečných bodů | B112: =CONCATENATE(C108," ",C109) -> Míra Kulhan | D112: Počet konečných bodů | EE112: =IF(AND(SUM(Tabulka!$AG$69)>0.99,(SUM(Tabulka!$AG$69)<2)),-50000-(SUM(E112:ED112)),IF(OR(SUM(Tabulka!$AG$69)<2),-90000,SUM(E112:ED112))) -> -90000 | EG112: 0
A113: Míra KulhanPrůměr konečných bodů na kolo | B113: =CONCATENATE(C108," ",C109) -> Míra Kulhan | D113: Průměr konečných bodů na kolo | E113: =IF(E112<>"",AVERAGE($E112:E112)+$EI113,"") ->  | F113: =IF(F112<>"",AVERAGE($E112:F112)+$EI113,"") ->  | G113: =IF(G112<>"",AVERAGE($E112:G112)+$EI113,"") ->  | H113: =IF(H112<>"",AVERAGE($E112:H112)+$EI113,"") ->  | I113: =IF(I112<>"",AVERAGE($E112:I112)+$EI113,"") ->  | J113: =IF(J112<>"",AVERAGE($E112:J112)+$EI113,"") ->  | K113: =IF(K112<>"",AVERAGE($E112:K112)+$EI113,"") ->  | L113: =IF(L112<>"",AVERAGE($E112:L112)+$EI113,"") ->  | M113: =IF(M112<>"",AVERAGE($E112:M112)+$EI113,"") ->  | N113: =IF(N112<>"",AVERAGE($E112:N112)+$EI113,"") ->  | O113: =IF(O112<>"",AVERAGE($E112:O112)+$EI113,"") ->  | P113: =IF(P112<>"",AVERAGE($E112:P112)+$EI113,"") ->  | Q113: =IF(Q112<>"",AVERAGE($E112:Q112)+$EI113,"") ->  | R113: =IF(R112<>"",AVERAGE($E112:R112)+$EI113,"") ->  | S113: =IF(S112<>"",AVERAGE($E112:S112)+$EI113,"") ->  | T113: =IF(T112<>"",AVERAGE($E112:T112)+$EI113,"") ->  | U113: =IF(U112<>"",AVERAGE($E112:U112)+$EI113,"") ->  | V113: =IF(V112<>"",AVERAGE($E112:V112)+$EI113,"") ->  | W113: =IF(W112<>"",AVERAGE($E112:W112)+$EI113,"") ->  | X113: =IF(X112<>"",AVERAGE($E112:X112)+$EI113,"") ->  | Y113: =IF(Y112<>"",AVERAGE($E112:Y112)+$EI113,"") ->  | Z113: =IF(Z112<>"",AVERAGE($E112:Z112)+$EI113,"") ->  | AA113: =IF(AA112<>"",AVERAGE($E112:AA112)+$EI113,"") ->  | AB113: =IF(AB112<>"",AVERAGE($E112:AB112)+$EI113,"") ->  | AC113: =IF(AC112<>"",AVERAGE($E112:AC112)+$EI113,"") ->  | AD113: =IF(AD112<>"",AVERAGE($E112:AD112)+$EI113,"") ->  | AE113: =IF(AE112<>"",AVERAGE($E112:AE112)+$EI113,"") ->  | AF113: =IF(AF112<>"",AVERAGE($E112:AF112)+$EI113,"") ->  | AG113: =IF(AG112<>"",AVERAGE($E112:AG112)+$EI113,"") ->  | AH113: =IF(AH112<>"",AVERAGE($E112:AH112)+$EI113,"") ->  | AI113: =IF(AI112<>"",AVERAGE($E112:AI112)+$EI113,"") ->  | AJ113: =IF(AJ112<>"",AVERAGE($E112:AJ112)+$EI113,"") ->  | AK113: =IF(AK112<>"",AVERAGE($E112:AK112)+$EI113,"") ->  | AL113: =IF(AL112<>"",AVERAGE($E112:AL112)+$EI113,"") ->  | AM113: =IF(AM112<>"",AVERAGE($E112:AM112)+$EI113,"") ->  | AN113: =IF(AN112<>"",AVERAGE($E112:AN112)+$EI113,"") ->  | AO113: =IF(AO112<>"",AVERAGE($E112:AO112)+$EI113,"") ->  | AP113: =IF(AP112<>"",AVERAGE($E112:AP112)+$EI113,"") ->  | AQ113: =IF(AQ112<>"",AVERAGE($E112:AQ112)+$EI113,"") ->  | AR113: =IF(AR112<>"",AVERAGE($E112:AR112)+$EI113,"") ->  | AS113: =IF(AS112<>"",AVERAGE($E112:AS112)+$EI113,"") ->  | AT113: =IF(AT112<>"",AVERAGE($E112:AT112)+$EI113,"") ->  | AU113: =IF(AU112<>"",AVERAGE($E112:AU112)+$EI113,"") ->  | AV113: =IF(AV112<>"",AVERAGE($E112:AV112)+$EI113,"") ->  | AW113: =IF(AW112<>"",AVERAGE($E112:AW112)+$EI113,"") ->  | AX113: =IF(AX112<>"",AVERAGE($E112:AX112)+$EI113,"") ->  | AY113: =IF(AY112<>"",AVERAGE($E112:AY112)+$EI113,"") ->  | AZ113: =IF(AZ112<>"",AVERAGE($E112:AZ112)+$EI113,"") ->  | BA113: =IF(BA112<>"",AVERAGE($E112:BA112)+$EI113,"") ->  | BB113: =IF(BB112<>"",AVERAGE($E112:BB112)+$EI113,"") ->  | BC113: =IF(BC112<>"",AVERAGE($E112:BC112)+$EI113,"") ->  | BD113: =IF(BD112<>"",AVERAGE($E112:BD112)+$EI113,"") ->  | BE113: =IF(BE112<>"",AVERAGE($E112:BE112)+$EI113,"") ->  | BF113: =IF(BF112<>"",AVERAGE($E112:BF112)+$EI113,"") ->  | BG113: =IF(BG112<>"",AVERAGE($E112:BG112)+$EI113,"") ->  | BH113: =IF(BH112<>"",AVERAGE($E112:BH112)+$EI113,"") ->  | BI113: =IF(BI112<>"",AVERAGE($E112:BI112)+$EI113,"") ->  | BJ113: =IF(BJ112<>"",AVERAGE($E112:BJ112)+$EI113,"") ->  | BK113: =IF(BK112<>"",AVERAGE($E112:BK112)+$EI113,"") ->  | BL113: =IF(BL112<>"",AVERAGE($E112:BL112)+$EI113,"") ->  | BM113: =IF(BM112<>"",AVERAGE($E112:BM112)+$EI113,"") ->  | BN113: =IF(BN112<>"",AVERAGE($E112:BN112)+$EI113,"") ->  | BO113: =IF(BO112<>"",AVERAGE($E112:BO112)+$EI113,"") ->  | BP113: =IF(BP112<>"",AVERAGE($E112:BP112)+$EI113,"") ->  | BQ113: =IF(BQ112<>"",AVERAGE($E112:BQ112)+$EI113,"") ->  | BR113: =IF(BR112<>"",AVERAGE($E112:BR112)+$EI113,"") ->  | BS113: =IF(BS112<>"",AVERAGE($E112:BS112)+$EI113,"") ->  | BT113: =IF(BT112<>"",AVERAGE($E112:BT112)+$EI113,"") ->  | BU113: =IF(BU112<>"",AVERAGE($E112:BU112)+$EI113,"") ->  | BV113: =IF(BV112<>"",AVERAGE($E112:BV112)+$EI113,"") ->  | BW113: =IF(BW112<>"",AVERAGE($E112:BW112)+$EI113,"") ->  | BX113: =IF(BX112<>"",AVERAGE($E112:BX112)+$EI113,"") ->  | BY113: =IF(BY112<>"",AVERAGE($E112:BY112)+$EI113,"") ->  | BZ113: =IF(BZ112<>"",AVERAGE($E112:BZ112)+$EI113,"") ->  | CA113: =IF(CA112<>"",AVERAGE($E112:CA112)+$EI113,"") ->  | CB113: =IF(CB112<>"",AVERAGE($E112:CB112)+$EI113,"") ->  | CC113: =IF(CC112<>"",AVERAGE($E112:CC112)+$EI113,"") ->  | CD113: =IF(CD112<>"",AVERAGE($E112:CD112)+$EI113,"") ->  | CE113: =IF(CE112<>"",AVERAGE($E112:CE112)+$EI113,"") ->  | CF113: =IF(CF112<>"",AVERAGE($E112:CF112)+$EI113,"") ->  | CG113: =IF(CG112<>"",AVERAGE($E112:CG112)+$EI113,"") ->  | CH113: =IF(CH112<>"",AVERAGE($E112:CH112)+$EI113,"") ->  | CI113: =IF(CI112<>"",AVERAGE($E112:CI112)+$EI113,"") ->  | CJ113: =IF(CJ112<>"",AVERAGE($E112:CJ112)+$EI113,"") ->  | CK113: =IF(CK112<>"",AVERAGE($E112:CK112)+$EI113,"") ->  | CL113: =IF(CL112<>"",AVERAGE($E112:CL112)+$EI113,"") ->  | CM113: =IF(CM112<>"",AVERAGE($E112:CM112)+$EI113,"") ->  | CN113: =IF(CN112<>"",AVERAGE($E112:CN112)+$EI113,"") ->  | CO113: =IF(CO112<>"",AVERAGE($E112:CO112)+$EI113,"") ->  | CP113: =IF(CP112<>"",AVERAGE($E112:CP112)+$EI113,"") ->  | CQ113: =IF(CQ112<>"",AVERAGE($E112:CQ112)+$EI113,"") ->  | CR113: =IF(CR112<>"",AVERAGE($E112:CR112)+$EI113,"") ->  | CS113: =IF(CS112<>"",AVERAGE($E112:CS112)+$EI113,"") ->  | CT113: =IF(CT112<>"",AVERAGE($E112:CT112)+$EI113,"") ->  | CU113: =IF(CU112<>"",AVERAGE($E112:CU112)+$EI113,"") ->  | CV113: =IF(CV112<>"",AVERAGE($E112:CV112)+$EI113,"") ->  | CW113: =IF(CW112<>"",AVERAGE($E112:CW112)+$EI113,"") ->  | CX113: =IF(CX112<>"",AVERAGE($E112:CX112)+$EI113,"") ->  | CY113: =IF(CY112<>"",AVERAGE($E112:CY112)+$EI113,"") ->  | CZ113: =IF(CZ112<>"",AVERAGE($E112:CZ112)+$EI113,"") ->  | DA113: =IF(DA112<>"",AVERAGE($E112:DA112)+$EI113,"") ->  | DB113: =IF(DB112<>"",AVERAGE($E112:DB112)+$EI113,"") ->  | DC113: =IF(DC112<>"",AVERAGE($E112:DC112)+$EI113,"") ->  | DD113: =IF(DD112<>"",AVERAGE($E112:DD112)+$EI113,"") ->  | DE113: =IF(DE112<>"",AVERAGE($E112:DE112)+$EI113,"") ->  | DF113: =IF(DF112<>"",AVERAGE($E112:DF112)+$EI113,"") ->  | DG113: =IF(DG112<>"",AVERAGE($E112:DG112)+$EI113,"") ->  | DH113: =IF(DH112<>"",AVERAGE($E112:DH112)+$EI113,"") ->  | DI113: =IF(DI112<>"",AVERAGE($E112:DI112)+$EI113,"") ->  | DJ113: =IF(DJ112<>"",AVERAGE($E112:DJ112)+$EI113,"") ->  | DK113: =IF(DK112<>"",AVERAGE($E112:DK112)+$EI113,"") ->  | DL113: =IF(DL112<>"",AVERAGE($E112:DL112)+$EI113,"") ->  | DM113: =IF(DM112<>"",AVERAGE($E112:DM112)+$EI113,"") ->  | DN113: =IF(DN112<>"",AVERAGE($E112:DN112)+$EI113,"") ->  | DO113: =IF(DO112<>"",AVERAGE($E112:DO112)+$EI113,"") ->  | DP113: =IF(DP112<>"",AVERAGE($E112:DP112)+$EI113,"") ->  | DQ113: =IF(DQ112<>"",AVERAGE($E112:DQ112)+$EI113,"") ->  | DR113: =IF(DR112<>"",AVERAGE($E112:DR112)+$EI113,"") ->  | DS113: =IF(DS112<>"",AVERAGE($E112:DS112)+$EI113,"") ->  | DT113: =IF(DT112<>"",AVERAGE($E112:DT112)+$EI113,"") ->  | DU113: =IF(DU112<>"",AVERAGE($E112:DU112)+$EI113,"") ->  | DV113: =IF(DV112<>"",AVERAGE($E112:DV112)+$EI113,"") ->  | DW113: =IF(DW112<>"",AVERAGE($E112:DW112)+$EI113,"") ->  | DX113: =IF(DX112<>"",AVERAGE($E112:DX112)+$EI113,"") ->  | DY113: =IF(DY112<>"",AVERAGE($E112:DY112)+$EI113,"") ->  | DZ113: =IF(DZ112<>"",AVERAGE($E112:DZ112)+$EI113,"") ->  | EA113: =IF(EA112<>"",AVERAGE($E112:EA112)+$EI113,"") ->  | EB113: =IF(EB112<>"",AVERAGE($E112:EB112)+$EI113,"") ->  | EC113: =IF(EC112<>"",AVERAGE($E112:EC112)+$EI113,"") ->  | ED113: =IF(ED112<>"",AVERAGE($E112:ED112)+$EI113,"") ->  | EE113: =IF(AND(SUM(Tabulka!$AG$69)>0.99,(SUM(Tabulka!$AG$69)<2)),-50000+(SUM(E112:ED112)/COUNT(E113:ED113)),IF(OR(SUM(Tabulka!$AG$69)<2),-90000,SUM(E112:ED112)/COUNT(E113:ED113))) -> -90000 | EG113: =IFERROR(SUM(E112:ED112)/COUNT(E112:ED112),) -> 0 | EH113: =CONCATENATE(C108," ",C109) -> Míra Kulhan | EI113: =INDEX(List4!$E$2:$E$17,MATCH(CONCATENATE(C108," ",C109),Tabulka1128[Jmeno_prijmeni],0),1) -> -9.1e-08
A114: Míra KulhanPočet šipek | B114: =CONCATENATE(C108," ",C109) -> Míra Kulhan | D114: Počet šipek | EE114: =IF(AND(SUM(Tabulka!$AG$69)>0.99,(SUM(Tabulka!$AG$69)<2)),-50000+(SUM(E114:ED114)),IF(OR(SUM(Tabulka!$AG$69)<2),-90000,SUM(E114:ED114))) -> -90000 | EG114: 0
A115: =CONCATENATE($C$116," ",$C$117,D115) -> Zdenek KanaďanVýhry | B115: =CONCATENATE(C116," ",C117) -> Zdenek Kanaďan | C115: =Tabulka!B74 -> 0 | D115: Výhry | BR115: 1 | EE115: =IF(AND(SUM(Tabulka!$AG$74)>0.99,(SUM(Tabulka!$AG$74)<2)),-50000+(SUM(E115:ED115)),IF(OR(SUM(Tabulka!$AG$74)<2),-90000,SUM(E115:ED115))) -> -49999 | EG115: 1
A116: Zdenek KanaďanProhry | B116: =CONCATENATE(C116," ",C117) -> Zdenek Kanaďan | C116: =Tabulka!B75 -> Zdenek | D116: Prohry | BR116: 1 | EE116: =IF(AND(SUM(Tabulka!$AG$74)>0.99,(SUM(Tabulka!$AG$74)<2)),-50000+(SUM(E116:ED116)),IF(OR(SUM(Tabulka!$AG$74)<2),-90000,SUM(E116:ED116))) -> -49999 | EF116: =SUM(EE115-EE116) -> 0 | EG116: 1
A117: Zdenek KanaďanPlaceno panáků | B117: =CONCATENATE(C116," ",C117) -> Zdenek Kanaďan | C117: =Tabulka!B76 -> Kanaďan | D117: Placeno panáků | BR117: 1 | EE117: =IF(AND(SUM(Tabulka!$AG$74)>0.99,(SUM(Tabulka!$AG$74)<2)),-50000+(SUM(E117:ED117)),IF(OR(SUM(Tabulka!$AG$74)<2),-90000,SUM(E117:ED117))) -> -49999 | EG117: 1
A118: Zdenek KanaďanPřehozy | B118: =CONCATENATE(C116," ",C117) -> Zdenek Kanaďan | C118: =Tabulka!B77 -> 0 | D118: Přehozy | BR118: 0 | EE118: =IF(AND(SUM(Tabulka!$AG$74)>0.99,(SUM(Tabulka!$AG$74)<2)),-50000+(SUM(E118:ED118)),IF(OR(SUM(Tabulka!$AG$74)<2),-90000,SUM(E118:ED118))) -> -50000 | EG118: 0
A119: Zdenek KanaďanPoč. kol | B119: =CONCATENATE(C116," ",C117) -> Zdenek Kanaďan | C119: =Tabulka!B78 -> 0 | D119: Poč. kol | BR119: 5 | EE119: =IF(AND(SUM(Tabulka!$AG$74)>0.99,(SUM(Tabulka!$AG$74)<2)),-50000+(SUM(E119:ED119)),IF(OR(SUM(Tabulka!$AG$74)<2),-90000,SUM(E119:ED119))) -> -49995 | EG119: 5
A120: Zdenek KanaďanPočet konečných bodů | B120: =CONCATENATE(C116," ",C117) -> Zdenek Kanaďan | D120: Počet konečných bodů | BR120: 82 | BS120: 0 | BT120: 111 | BU120: 50 | BV120: 89 | EE120: =IF(AND(SUM(Tabulka!$AG$74)>0.99,(SUM(Tabulka!$AG$74)<2)),-50000-(SUM(E120:ED120)),IF(OR(SUM(Tabulka!$AG$74)<2),-90000,SUM(E120:ED120))) -> -50332 | EG120: 332
A121: Zdenek KanaďanPrůměr konečných bodů na kolo | B121: =CONCATENATE(C116," ",C117) -> Zdenek Kanaďan | D121: Průměr konečných bodů na kolo | E121: =IF(E120<>"",AVERAGE($E120:E120)+$EI121,"") ->  | F121: =IF(F120<>"",AVERAGE($E120:F120)+$EI121,"") ->  | G121: =IF(G120<>"",AVERAGE($E120:G120)+$EI121,"") ->  | H121: =IF(H120<>"",AVERAGE($E120:H120)+$EI121,"") ->  | I121: =IF(I120<>"",AVERAGE($E120:I120)+$EI121,"") ->  | J121: =IF(J120<>"",AVERAGE($E120:J120)+$EI121,"") ->  | K121: =IF(K120<>"",AVERAGE($E120:K120)+$EI121,"") ->  | L121: =IF(L120<>"",AVERAGE($E120:L120)+$EI121,"") ->  | M121: =IF(M120<>"",AVERAGE($E120:M120)+$EI121,"") ->  | N121: =IF(N120<>"",AVERAGE($E120:N120)+$EI121,"") ->  | O121: =IF(O120<>"",AVERAGE($E120:O120)+$EI121,"") ->  | P121: =IF(P120<>"",AVERAGE($E120:P120)+$EI121,"") ->  | Q121: =IF(Q120<>"",AVERAGE($E120:Q120)+$EI121,"") ->  | R121: =IF(R120<>"",AVERAGE($E120:R120)+$EI121,"") ->  | S121: =IF(S120<>"",AVERAGE($E120:S120)+$EI121,"") ->  | T121: =IF(T120<>"",AVERAGE($E120:T120)+$EI121,"") ->  | U121: =IF(U120<>"",AVERAGE($E120:U120)+$EI121,"") ->  | V121: =IF(V120<>"",AVERAGE($E120:V120)+$EI121,"") ->  | W121: =IF(W120<>"",AVERAGE($E120:W120)+$EI121,"") ->  | X121: =IF(X120<>"",AVERAGE($E120:X120)+$EI121,"") ->  | Y121: =IF(Y120<>"",AVERAGE($E120:Y120)+$EI121,"") ->  | Z121: =IF(Z120<>"",AVERAGE($E120:Z120)+$EI121,"") ->  | AA121: =IF(AA120<>"",AVERAGE($E120:AA120)+$EI121,"") ->  | AB121: =IF(AB120<>"",AVERAGE($E120:AB120)+$EI121,"") ->  | AC121: =IF(AC120<>"",AVERAGE($E120:AC120)+$EI121,"") ->  | AD121: =IF(AD120<>"",AVERAGE($E120:AD120)+$EI121,"") ->  | AE121: =IF(AE120<>"",AVERAGE($E120:AE120)+$EI121,"") ->  | AF121: =IF(AF120<>"",AVERAGE($E120:AF120)+$EI121,"") ->  | AG121: =IF(AG120<>"",AVERAGE($E120:AG120)+$EI121,"") ->  | AH121: =IF(AH120<>"",AVERAGE($E120:AH120)+$EI121,"") ->  | AI121: =IF(AI120<>"",AVERAGE($E120:AI120)+$EI121,"") ->  | AJ121: =IF(AJ120<>"",AVERAGE($E120:AJ120)+$EI121,"") ->  | AK121: =IF(AK120<>"",AVERAGE($E120:AK120)+$EI121,"") ->  | AL121: =IF(AL120<>"",AVERAGE($E120:AL120)+$EI121,"") ->  | AM121: =IF(AM120<>"",AVERAGE($E120:AM120)+$EI121,"") ->  | AN121: =IF(AN120<>"",AVERAGE($E120:AN120)+$EI121,"") ->  | AO121: =IF(AO120<>"",AVERAGE($E120:AO120)+$EI121,"") ->  | AP121: =IF(AP120<>"",AVERAGE($E120:AP120)+$EI121,"") ->  | AQ121: =IF(AQ120<>"",AVERAGE($E120:AQ120)+$EI121,"") ->  | AR121: =IF(AR120<>"",AVERAGE($E120:AR120)+$EI121,"") ->  | AS121: =IF(AS120<>"",AVERAGE($E120:AS120)+$EI121,"") ->  | AT121: =IF(AT120<>"",AVERAGE($E120:AT120)+$EI121,"") ->  | AU121: =IF(AU120<>"",AVERAGE($E120:AU120)+$EI121,"") ->  | AV121: =IF(AV120<>"",AVERAGE($E120:AV120)+$EI121,"") ->  | AW121: =IF(AW120<>"",AVERAGE($E120:AW120)+$EI121,"") ->  | AX121: =IF(AX120<>"",AVERAGE($E120:AX120)+$EI121,"") ->  | AY121: =IF(AY120<>"",AVERAGE($E120:AY120)+$EI121,"") ->  | AZ121: =IF(AZ120<>"",AVERAGE($E120:AZ120)+$EI121,"") ->  | BA121: =IF(BA120<>"",AVERAGE($E120:BA120)+$EI121,"") ->  | BB121: =IF(BB120<>"",AVERAGE($E120:BB120)+$EI121,"") ->  | BC121: =IF(BC120<>"",AVERAGE($E120:BC120)+$EI121,"") ->  | BD121: =IF(BD120<>"",AVERAGE($E120:BD120)+$EI121,"") ->  | BE121: =IF(BE120<>"",AVERAGE($E120:BE120)+$EI121,"") ->  | BF121: =IF(BF120<>"",AVERAGE($E120:BF120)+$EI121,"") ->  | BG121: =IF(BG120<>"",AVERAGE($E120:BG120)+$EI121,"") ->  | BH121: =IF(BH120<>"",AVERAGE($E120:BH120)+$EI121,"") ->  | BI121: =IF(BI120<>"",AVERAGE($E120:BI120)+$EI121,"") ->  | BJ121: =IF(BJ120<>"",AVERAGE($E120:BJ120)+$EI121,"") ->  | BK121: =IF(BK120<>"",AVERAGE($E120:BK120)+$EI121,"") ->  | BL121: =IF(BL120<>"",AVERAGE($E120:BL120)+$EI121,"") ->  | BM121: =IF(BM120<>"",AVERAGE($E120:BM120)+$EI121,"") ->  | BN121: =IF(BN120<>"",AVERAGE($E120:BN120)+$EI121,"") ->  | BO121: =IF(BO120<>"",AVERAGE($E120:BO120)+$EI121,"") ->  | BP121: =IF(BP120<>"",AVERAGE($E120:BP120)+$EI121,"") ->  | BQ121: =IF(BQ120<>"",AVERAGE($E120:BQ120)+$EI121,"") ->  | BR121: =IF(BR120<>"",AVERAGE($E120:BR120)+$EI121,"") -> 81.99999994 | BS121: =IF(BS120<>"",AVERAGE($E120:BS120)+$EI121,"") -> 40.99999994 | BT121: =IF(BT120<>"",AVERAGE($E120:BT120)+$EI121,"") -> 64.33333327 | BU121: =IF(BU120<>"",AVERAGE($E120:BU120)+$EI121,"") -> 60.74999994 | BV121: =IF(BV120<>"",AVERAGE($E120:BV120)+$EI121,"") -> 66.39999994 | BW121: =IF(BW120<>"",AVERAGE($E120:BW120)+$EI121,"") ->  | BX121: =IF(BX120<>"",AVERAGE($E120:BX120)+$EI121,"") ->  | BY121: =IF(BY120<>"",AVERAGE($E120:BY120)+$EI121,"") ->  | BZ121: =IF(BZ120<>"",AVERAGE($E120:BZ120)+$EI121,"") ->  | CA121: =IF(CA120<>"",AVERAGE($E120:CA120)+$EI121,"") ->  | CB121: =IF(CB120<>"",AVERAGE($E120:CB120)+$EI121,"") ->  | CC121: =IF(CC120<>"",AVERAGE($E120:CC120)+$EI121,"") ->  | CD121: =IF(CD120<>"",AVERAGE($E120:CD120)+$EI121,"") ->  | CE121: =IF(CE120<>"",AVERAGE($E120:CE120)+$EI121,"") ->  | CF121: =IF(CF120<>"",AVERAGE($E120:CF120)+$EI121,"") ->  | CG121: =IF(CG120<>"",AVERAGE($E120:CG120)+$EI121,"") ->  | CH121: =IF(CH120<>"",AVERAGE($E120:CH120)+$EI121,"") ->  | CI121: =IF(CI120<>"",AVERAGE($E120:CI120)+$EI121,"") ->  | CJ121: =IF(CJ120<>"",AVERAGE($E120:CJ120)+$EI121,"") ->  | CK121: =IF(CK120<>"",AVERAGE($E120:CK120)+$EI121,"") ->  | CL121: =IF(CL120<>"",AVERAGE($E120:CL120)+$EI121,"") ->  | CM121: =IF(CM120<>"",AVERAGE($E120:CM120)+$EI121,"") ->  | CN121: =IF(CN120<>"",AVERAGE($E120:CN120)+$EI121,"") ->  | CO121: =IF(CO120<>"",AVERAGE($E120:CO120)+$EI121,"") ->  | CP121: =IF(CP120<>"",AVERAGE($E120:CP120)+$EI121,"") ->  | CQ121: =IF(CQ120<>"",AVERAGE($E120:CQ120)+$EI121,"") ->  | CR121: =IF(CR120<>"",AVERAGE($E120:CR120)+$EI121,"") ->  | CS121: =IF(CS120<>"",AVERAGE($E120:CS120)+$EI121,"") ->  | CT121: =IF(CT120<>"",AVERAGE($E120:CT120)+$EI121,"") ->  | CU121: =IF(CU120<>"",AVERAGE($E120:CU120)+$EI121,"") ->  | CV121: =IF(CV120<>"",AVERAGE($E120:CV120)+$EI121,"") ->  | CW121: =IF(CW120<>"",AVERAGE($E120:CW120)+$EI121,"") ->  | CX121: =IF(CX120<>"",AVERAGE($E120:CX120)+$EI121,"") ->  | CY121: =IF(CY120<>"",AVERAGE($E120:CY120)+$EI121,"") ->  | CZ121: =IF(CZ120<>"",AVERAGE($E120:CZ120)+$EI121,"") ->  | DA121: =IF(DA120<>"",AVERAGE($E120:DA120)+$EI121,"") ->  | DB121: =IF(DB120<>"",AVERAGE($E120:DB120)+$EI121,"") ->  | DC121: =IF(DC120<>"",AVERAGE($E120:DC120)+$EI121,"") ->  | DD121: =IF(DD120<>"",AVERAGE($E120:DD120)+$EI121,"") ->  | DE121: =IF(DE120<>"",AVERAGE($E120:DE120)+$EI121,"") ->  | DF121: =IF(DF120<>"",AVERAGE($E120:DF120)+$EI121,"") ->  | DG121: =IF(DG120<>"",AVERAGE($E120:DG120)+$EI121,"") ->  | DH121: =IF(DH120<>"",AVERAGE($E120:DH120)+$EI121,"") ->  | DI121: =IF(DI120<>"",AVERAGE($E120:DI120)+$EI121,"") ->  | DJ121: =IF(DJ120<>"",AVERAGE($E120:DJ120)+$EI121,"") ->  | DK121: =IF(DK120<>"",AVERAGE($E120:DK120)+$EI121,"") ->  | DL121: =IF(DL120<>"",AVERAGE($E120:DL120)+$EI121,"") ->  | DM121: =IF(DM120<>"",AVERAGE($E120:DM120)+$EI121,"") ->  | DN121: =IF(DN120<>"",AVERAGE($E120:DN120)+$EI121,"") ->  | DO121: =IF(DO120<>"",AVERAGE($E120:DO120)+$EI121,"") ->  | DP121: =IF(DP120<>"",AVERAGE($E120:DP120)+$EI121,"") ->  | DQ121: =IF(DQ120<>"",AVERAGE($E120:DQ120)+$EI121,"") ->  | DR121: =IF(DR120<>"",AVERAGE($E120:DR120)+$EI121,"") ->  | DS121: =IF(DS120<>"",AVERAGE($E120:DS120)+$EI121,"") ->  | DT121: =IF(DT120<>"",AVERAGE($E120:DT120)+$EI121,"") ->  | DU121: =IF(DU120<>"",AVERAGE($E120:DU120)+$EI121,"") ->  | DV121: =IF(DV120<>"",AVERAGE($E120:DV120)+$EI121,"") ->  | DW121: =IF(DW120<>"",AVERAGE($E120:DW120)+$EI121,"") ->  | DX121: =IF(DX120<>"",AVERAGE($E120:DX120)+$EI121,"") ->  | DY121: =IF(DY120<>"",AVERAGE($E120:DY120)+$EI121,"") ->  | DZ121: =IF(DZ120<>"",AVERAGE($E120:DZ120)+$EI121,"") ->  | EA121: =IF(EA120<>"",AVERAGE($E120:EA120)+$EI121,"") ->  | EB121: =IF(EB120<>"",AVERAGE($E120:EB120)+$EI121,"") ->  | EC121: =IF(EC120<>"",AVERAGE($E120:EC120)+$EI121,"") ->  | ED121: =IF(ED120<>"",AVERAGE($E120:ED120)+$EI121,"") ->  | EE121: =IF(AND(SUM(Tabulka!$AG$74)>0.99,(SUM(Tabulka!$AG$74)<2)),-50000+(SUM(E120:ED120)/COUNT(E121:ED121)),IF(OR(SUM(Tabulka!$AG$74)<2),-90000,SUM(E120:ED120)/COUNT(E121:ED121))) -> -49933.6 | EG121: =IFERROR(SUM(E120:ED120)/COUNT(E120:ED120),) -> 66.4 | EH121: =CONCATENATE(C116," ",C117) -> Zdenek Kanaďan | EI121: =INDEX(List4!$E$2:$E$17,MATCH(CONCATENATE(C116," ",C117),Tabulka1128[Jmeno_prijmeni],0),1) -> -6.1e-08
A122: Zdenek KanaďanPočet šipek | B122: =CONCATENATE(C116," ",C117) -> Zdenek Kanaďan | D122: Počet šipek | EE122: =IF(AND(SUM(Tabulka!$AG$74)>0.99,(SUM(Tabulka!$AG$74)<2)),-50000+(SUM(E122:ED122)),IF(OR(SUM(Tabulka!$AG$74)<2),-90000,SUM(E122:ED122))) -> -50000 | EG122: 0
A123: =CONCATENATE($C$124," ",$C$125,D123) -> Iva IvankaVýhry | B123: =CONCATENATE(C124," ",C125) -> Iva Ivanka | C123: =Tabulka!B79 -> 0 | D123: Výhry | EE123: =IF(AND(SUM(Tabulka!$AG$79)>0.99,(SUM(Tabulka!$AG$79)<2)),-50000+(SUM(E123:ED123)),IF(OR(SUM(Tabulka!$AG$79)<2),-90000,SUM(E123:ED123))) -> -90000 | EG123: 0
A124: Iva IvankaProhry | B124: Iva Ivanka | C124: =Tabulka!B80 -> Iva | D124: Prohry | EE124: =IF(AND(SUM(Tabulka!$AG$79)>0.99,(SUM(Tabulka!$AG$79)<2)),-50000+(SUM(E124:ED124)),IF(OR(SUM(Tabulka!$AG$79)<2),-90000,SUM(E124:ED124))) -> -90000 | EF124: =SUM(EE123-EE124) -> 0 | EG124: 0
A125: Iva IvankaPlaceno panáků | B125: =CONCATENATE(C124," ",C125) -> Iva Ivanka | C125: =Tabulka!B81 -> Ivanka | D125: Placeno panáků | EE125: =IF(AND(SUM(Tabulka!$AG$79)>0.99,(SUM(Tabulka!$AG$79)<2)),-50000+(SUM(E125:ED125)),IF(OR(SUM(Tabulka!$AG$79)<2),-90000,SUM(E125:ED125))) -> -90000 | EG125: 0
A126: Iva IvankaPřehozy | B126: =CONCATENATE(C124," ",C125) -> Iva Ivanka | C126: =Tabulka!B82 -> 0 | D126: Přehozy | EE126: =IF(AND(SUM(Tabulka!$AG$79)>0.99,(SUM(Tabulka!$AG$79)<2)),-50000+(SUM(E126:ED126)),IF(OR(SUM(Tabulka!$AG$79)<2),-90000,SUM(E126:ED126))) -> -90000 | EG126: 0
A127: Iva IvankaPoč. kol | B127: =CONCATENATE(C124," ",C125) -> Iva Ivanka | C127: =Tabulka!B83 -> 0 | D127: Poč. kol | EE127: =IF(AND(SUM(Tabulka!$AG$79)>0.99,(SUM(Tabulka!$AG$79)<2)),-50000+(SUM(E127:ED127)),IF(OR(SUM(Tabulka!$AG$79)<2),-90000,SUM(E127:ED127))) -> -90000 | EG127: 0
A128: Iva IvankaPočet konečných bodů | B128: =CONCATENATE(C124," ",C125) -> Iva Ivanka | D128: Počet konečných bodů | EE128: =IF(AND(SUM(Tabulka!$AG$79)>0.99,(SUM(Tabulka!$AG$79)<2)),-50000-(SUM(E128:ED128)),IF(OR(SUM(Tabulka!$AG$79)<2),-90000,SUM(E128:ED128))) -> -90000 | EG128: 0
A129: Iva IvankaPrůměr konečných bodů na kolo | B129: =CONCATENATE(C124," ",C125) -> Iva Ivanka | D129: Průměr konečných bodů na kolo | E129: =IF(E128<>"",AVERAGE($E128:E128)+$EI129,"") ->  | F129: =IF(F128<>"",AVERAGE($E128:F128)+$EI129,"") ->  | G129: =IF(G128<>"",AVERAGE($E128:G128)+$EI129,"") ->  | H129: =IF(H128<>"",AVERAGE($E128:H128)+$EI129,"") ->  | I129: =IF(I128<>"",AVERAGE($E128:I128)+$EI129,"") ->  | J129: =IF(J128<>"",AVERAGE($E128:J128)+$EI129,"") ->  | K129: =IF(K128<>"",AVERAGE($E128:K128)+$EI129,"") ->  | L129: =IF(L128<>"",AVERAGE($E128:L128)+$EI129,"") ->  | M129: =IF(M128<>"",AVERAGE($E128:M128)+$EI129,"") ->  | N129: =IF(N128<>"",AVERAGE($E128:N128)+$EI129,"") ->  | O129: =IF(O128<>"",AVERAGE($E128:O128)+$EI129,"") ->  | P129: =IF(P128<>"",AVERAGE($E128:P128)+$EI129,"") ->  | Q129: =IF(Q128<>"",AVERAGE($E128:Q128)+$EI129,"") ->  | R129: =IF(R128<>"",AVERAGE($E128:R128)+$EI129,"") ->  | S129: =IF(S128<>"",AVERAGE($E128:S128)+$EI129,"") ->  | T129: =IF(T128<>"",AVERAGE($E128:T128)+$EI129,"") ->  | U129: =IF(U128<>"",AVERAGE($E128:U128)+$EI129,"") ->  | V129: =IF(V128<>"",AVERAGE($E128:V128)+$EI129,"") ->  | W129: =IF(W128<>"",AVERAGE($E128:W128)+$EI129,"") ->  | X129: =IF(X128<>"",AVERAGE($E128:X128)+$EI129,"") ->  | Y129: =IF(Y128<>"",AVERAGE($E128:Y128)+$EI129,"") ->  | Z129: =IF(Z128<>"",AVERAGE($E128:Z128)+$EI129,"") ->  | AA129: =IF(AA128<>"",AVERAGE($E128:AA128)+$EI129,"") ->  | AB129: =IF(AB128<>"",AVERAGE($E128:AB128)+$EI129,"") ->  | AC129: =IF(AC128<>"",AVERAGE($E128:AC128)+$EI129,"") ->  | AD129: =IF(AD128<>"",AVERAGE($E128:AD128)+$EI129,"") ->  | AE129: =IF(AE128<>"",AVERAGE($E128:AE128)+$EI129,"") ->  | AF129: =IF(AF128<>"",AVERAGE($E128:AF128)+$EI129,"") ->  | AG129: =IF(AG128<>"",AVERAGE($E128:AG128)+$EI129,"") ->  | AH129: =IF(AH128<>"",AVERAGE($E128:AH128)+$EI129,"") ->  | AI129: =IF(AI128<>"",AVERAGE($E128:AI128)+$EI129,"") ->  | AJ129: =IF(AJ128<>"",AVERAGE($E128:AJ128)+$EI129,"") ->  | AK129: =IF(AK128<>"",AVERAGE($E128:AK128)+$EI129,"") ->  | AL129: =IF(AL128<>"",AVERAGE($E128:AL128)+$EI129,"") ->  | AM129: =IF(AM128<>"",AVERAGE($E128:AM128)+$EI129,"") ->  | AN129: =IF(AN128<>"",AVERAGE($E128:AN128)+$EI129,"") ->  | AO129: =IF(AO128<>"",AVERAGE($E128:AO128)+$EI129,"") ->  | AP129: =IF(AP128<>"",AVERAGE($E128:AP128)+$EI129,"") ->  | AQ129: =IF(AQ128<>"",AVERAGE($E128:AQ128)+$EI129,"") ->  | AR129: =IF(AR128<>"",AVERAGE($E128:AR128)+$EI129,"") ->  | AS129: =IF(AS128<>"",AVERAGE($E128:AS128)+$EI129,"") ->  | AT129: =IF(AT128<>"",AVERAGE($E128:AT128)+$EI129,"") ->  | AU129: =IF(AU128<>"",AVERAGE($E128:AU128)+$EI129,"") ->  | AV129: =IF(AV128<>"",AVERAGE($E128:AV128)+$EI129,"") ->  | AW129: =IF(AW128<>"",AVERAGE($E128:AW128)+$EI129,"") ->  | AX129: =IF(AX128<>"",AVERAGE($E128:AX128)+$EI129,"") ->  | AY129: =IF(AY128<>"",AVERAGE($E128:AY128)+$EI129,"") ->  | AZ129: =IF(AZ128<>"",AVERAGE($E128:AZ128)+$EI129,"") ->  | BA129: =IF(BA128<>"",AVERAGE($E128:BA128)+$EI129,"") ->  | BB129: =IF(BB128<>"",AVERAGE($E128:BB128)+$EI129,"") ->  | BC129: =IF(BC128<>"",AVERAGE($E128:BC128)+$EI129,"") ->  | BD129: =IF(BD128<>"",AVERAGE($E128:BD128)+$EI129,"") ->  | BE129: =IF(BE128<>"",AVERAGE($E128:BE128)+$EI129,"") ->  | BF129: =IF(BF128<>"",AVERAGE($E128:BF128)+$EI129,"") ->  | BG129: =IF(BG128<>"",AVERAGE($E128:BG128)+$EI129,"") ->  | BH129: =IF(BH128<>"",AVERAGE($E128:BH128)+$EI129,"") ->  | BI129: =IF(BI128<>"",AVERAGE($E128:BI128)+$EI129,"") ->  | BJ129: =IF(BJ128<>"",AVERAGE($E128:BJ128)+$EI129,"") ->  | BK129: =IF(BK128<>"",AVERAGE($E128:BK128)+$EI129,"") ->  | BL129: =IF(BL128<>"",AVERAGE($E128:BL128)+$EI129,"") ->  | BM129: =IF(BM128<>"",AVERAGE($E128:BM128)+$EI129,"") ->  | BN129: =IF(BN128<>"",AVERAGE($E128:BN128)+$EI129,"") ->  | BO129: =IF(BO128<>"",AVERAGE($E128:BO128)+$EI129,"") ->  | BP129: =IF(BP128<>"",AVERAGE($E128:BP128)+$EI129,"") ->  | BQ129: =IF(BQ128<>"",AVERAGE($E128:BQ128)+$EI129,"") ->  | BR129: =IF(BR128<>"",AVERAGE($E128:BR128)+$EI129,"") ->  | BS129: =IF(BS128<>"",AVERAGE($E128:BS128)+$EI129,"") ->  | BT129: =IF(BT128<>"",AVERAGE($E128:BT128)+$EI129,"") ->  | BU129: =IF(BU128<>"",AVERAGE($E128:BU128)+$EI129,"") ->  | BV129: =IF(BV128<>"",AVERAGE($E128:BV128)+$EI129,"") ->  | BW129: =IF(BW128<>"",AVERAGE($E128:BW128)+$EI129,"") ->  | BX129: =IF(BX128<>"",AVERAGE($E128:BX128)+$EI129,"") ->  | BY129: =IF(BY128<>"",AVERAGE($E128:BY128)+$EI129,"") ->  | BZ129: =IF(BZ128<>"",AVERAGE($E128:BZ128)+$EI129,"") ->  | CA129: =IF(CA128<>"",AVERAGE($E128:CA128)+$EI129,"") ->  | CB129: =IF(CB128<>"",AVERAGE($E128:CB128)+$EI129,"") ->  | CC129: =IF(CC128<>"",AVERAGE($E128:CC128)+$EI129,"") ->  | CD129: =IF(CD128<>"",AVERAGE($E128:CD128)+$EI129,"") ->  | CE129: =IF(CE128<>"",AVERAGE($E128:CE128)+$EI129,"") ->  | CF129: =IF(CF128<>"",AVERAGE($E128:CF128)+$EI129,"") ->  | CG129: =IF(CG128<>"",AVERAGE($E128:CG128)+$EI129,"") ->  | CH129: =IF(CH128<>"",AVERAGE($E128:CH128)+$EI129,"") ->  | CI129: =IF(CI128<>"",AVERAGE($E128:CI128)+$EI129,"") ->  | CJ129: =IF(CJ128<>"",AVERAGE($E128:CJ128)+$EI129,"") ->  | CK129: =IF(CK128<>"",AVERAGE($E128:CK128)+$EI129,"") ->  | CL129: =IF(CL128<>"",AVERAGE($E128:CL128)+$EI129,"") ->  | CM129: =IF(CM128<>"",AVERAGE($E128:CM128)+$EI129,"") ->  | CN129: =IF(CN128<>"",AVERAGE($E128:CN128)+$EI129,"") ->  | CO129: =IF(CO128<>"",AVERAGE($E128:CO128)+$EI129,"") ->  | CP129: =IF(CP128<>"",AVERAGE($E128:CP128)+$EI129,"") ->  | CQ129: =IF(CQ128<>"",AVERAGE($E128:CQ128)+$EI129,"") ->  | CR129: =IF(CR128<>"",AVERAGE($E128:CR128)+$EI129,"") ->  | CS129: =IF(CS128<>"",AVERAGE($E128:CS128)+$EI129,"") ->  | CT129: =IF(CT128<>"",AVERAGE($E128:CT128)+$EI129,"") ->  | CU129: =IF(CU128<>"",AVERAGE($E128:CU128)+$EI129,"") ->  | CV129: =IF(CV128<>"",AVERAGE($E128:CV128)+$EI129,"") ->  | CW129: =IF(CW128<>"",AVERAGE($E128:CW128)+$EI129,"") ->  | CX129: =IF(CX128<>"",AVERAGE($E128:CX128)+$EI129,"") ->  | CY129: =IF(CY128<>"",AVERAGE($E128:CY128)+$EI129,"") ->  | CZ129: =IF(CZ128<>"",AVERAGE($E128:CZ128)+$EI129,"") ->  | DA129: =IF(DA128<>"",AVERAGE($E128:DA128)+$EI129,"") ->  | DB129: =IF(DB128<>"",AVERAGE($E128:DB128)+$EI129,"") ->  | DC129: =IF(DC128<>"",AVERAGE($E128:DC128)+$EI129,"") ->  | DD129: =IF(DD128<>"",AVERAGE($E128:DD128)+$EI129,"") ->  | DE129: =IF(DE128<>"",AVERAGE($E128:DE128)+$EI129,"") ->  | DF129: =IF(DF128<>"",AVERAGE($E128:DF128)+$EI129,"") ->  | DG129: =IF(DG128<>"",AVERAGE($E128:DG128)+$EI129,"") ->  | DH129: =IF(DH128<>"",AVERAGE($E128:DH128)+$EI129,"") ->  | DI129: =IF(DI128<>"",AVERAGE($E128:DI128)+$EI129,"") ->  | DJ129: =IF(DJ128<>"",AVERAGE($E128:DJ128)+$EI129,"") ->  | DK129: =IF(DK128<>"",AVERAGE($E128:DK128)+$EI129,"") ->  | DL129: =IF(DL128<>"",AVERAGE($E128:DL128)+$EI129,"") ->  | DM129: =IF(DM128<>"",AVERAGE($E128:DM128)+$EI129,"") ->  | DN129: =IF(DN128<>"",AVERAGE($E128:DN128)+$EI129,"") ->  | DO129: =IF(DO128<>"",AVERAGE($E128:DO128)+$EI129,"") ->  | DP129: =IF(DP128<>"",AVERAGE($E128:DP128)+$EI129,"") ->  | DQ129: =IF(DQ128<>"",AVERAGE($E128:DQ128)+$EI129,"") ->  | DR129: =IF(DR128<>"",AVERAGE($E128:DR128)+$EI129,"") ->  | DS129: =IF(DS128<>"",AVERAGE($E128:DS128)+$EI129,"") ->  | DT129: =IF(DT128<>"",AVERAGE($E128:DT128)+$EI129,"") ->  | DU129: =IF(DU128<>"",AVERAGE($E128:DU128)+$EI129,"") ->  | DV129: =IF(DV128<>"",AVERAGE($E128:DV128)+$EI129,"") ->  | DW129: =IF(DW128<>"",AVERAGE($E128:DW128)+$EI129,"") ->  | DX129: =IF(DX128<>"",AVERAGE($E128:DX128)+$EI129,"") ->  | DY129: =IF(DY128<>"",AVERAGE($E128:DY128)+$EI129,"") ->  | DZ129: =IF(DZ128<>"",AVERAGE($E128:DZ128)+$EI129,"") ->  | EA129: =IF(EA128<>"",AVERAGE($E128:EA128)+$EI129,"") ->  | EB129: =IF(EB128<>"",AVERAGE($E128:EB128)+$EI129,"") ->  | EC129: =IF(EC128<>"",AVERAGE($E128:EC128)+$EI129,"") ->  | ED129: =IF(ED128<>"",AVERAGE($E128:ED128)+$EI129,"") ->  | EE129: =IF(AND(SUM(Tabulka!$AG$79)>0.99,(SUM(Tabulka!$AG$79)<2)),-50000+(SUM(E128:ED128)/COUNT(E129:ED129)),IF(OR(SUM(Tabulka!$AG$79)<2),-90000,SUM(E128:ED128)/COUNT(E129:ED129))) -> -90000 | EG129: =IFERROR(SUM(E128:ED128)/COUNT(E128:ED128),) -> 0 | EH129: =CONCATENATE(C124," ",C125) -> Iva Ivanka | EI129: =INDEX(List4!$E$2:$E$17,MATCH(CONCATENATE(C124," ",C125),Tabulka1128[Jmeno_prijmeni],0),1) -> -5.1e-08
A130: Iva IvankaPočet šipek | B130: =CONCATENATE(C124," ",C125) -> Iva Ivanka | D130: Počet šipek | EE130: =IF(AND(SUM(Tabulka!$AG$79)>0.99,(SUM(Tabulka!$AG$79)<2)),-50000+(SUM(E130:ED130)),IF(OR(SUM(Tabulka!$AG$79)<2),-90000,SUM(E130:ED130))) -> -90000 | EG130: 0
C142: 6

Sheet Tabulka
B1: sipy.zlatyruce.cz
B2: =Přehled_body!C1 -> 2021 | C2: =Přehled_body!D1 -> 2. pololetí | D2: =IFERROR(Přehled_body!E1,"") -> 2021-07-13 | E2: =IFERROR(IF(INDEX(Přehled_body!$E$1:$ED$1,1,MATCH(Tabulka!D2,Přehled_body!$D$1:$ED$1,0)+4)="","",INDEX(Přehled_body!$E$1:$ED$1,1,MATCH(Tabulka!D2,Přehled_body!$D$1:$ED$1,0)+4)),"") -> 2021-07-20 | F2: =IFERROR(IF(INDEX(Přehled_body!$E$1:$ED$1,1,MATCH(Tabulka!E2,Přehled_body!$D$1:$ED$1,0)+4)="","",INDEX(Přehled_body!$E$1:$ED$1,1,MATCH(Tabulka!E2,Přehled_body!$D$1:$ED$1,0)+4)),"") -> 2021-07-27 | G2: =IFERROR(IF(INDEX(Přehled_body!$E$1:$ED$1,1,MATCH(Tabulka!F2,Přehled_body!$D$1:$ED$1,0)+4)="","",INDEX(Přehled_body!$E$1:$ED$1,1,MATCH(Tabulka!F2,Přehled_body!$D$1:$ED$1,0)+4)),"") -> 2021-08-10 | H2: =IFERROR(IF(INDEX(Přehled_body!$E$1:$ED$1,1,MATCH(Tabulka!G2,Přehled_body!$D$1:$ED$1,0)+4)="","",INDEX(Přehled_body!$E$1:$ED$1,1,MATCH(Tabulka!G2,Přehled_body!$D$1:$ED$1,0)+4)),"") -> 2021-08-31 | I2: =IFERROR(IF(INDEX(Přehled_body!$E$1:$ED$1,1,MATCH(Tabulka!H2,Přehled_body!$D$1:$ED$1,0)+4)="","",INDEX(Přehled_body!$E$1:$ED$1,1,MATCH(Tabulka!H2,Přehled_body!$D$1:$ED$1,0)+4)),"") -> 2021-09-07 | J2: =IFERROR(IF(INDEX(Přehled_body!$E$1:$ED$1,1,MATCH(Tabulka!I2,Přehled_body!$D$1:$ED$1,0)+4)="","",INDEX(Přehled_body!$E$1:$ED$1,1,MATCH(Tabulka!I2,Přehled_body!$D$1:$ED$1,0)+4)),"") -> 2021-09-14 | K2: =IFERROR(IF(INDEX(Přehled_body!$E$1:$ED$1,1,MATCH(Tabulka!J2,Přehled_body!$D$1:$ED$1,0)+4)="","",INDEX(Přehled_body!$E$1:$ED$1,1,MATCH(Tabulka!J2,Přehled_body!$D$1:$ED$1,0)+4)),"") -> 2021-09-21 | L2: =IFERROR(IF(INDEX(Přehled_body!$E$1:$ED$1,1,MATCH(Tabulka!K2,Přehled_body!$D$1:$ED$1,0)+4)="","",INDEX(Přehled_body!$E$1:$ED$1,1,MATCH(Tabulka!K2,Přehled_body!$D$1:$ED$1,0)+4)),"") -> 2021-10-05 | M2: =IFERROR(IF(INDEX(Přehled_body!$E$1:$ED$1,1,MATCH(Tabulka!L2,Přehled_body!$D$1:$ED$1,0)+4)="","",INDEX(Přehled_body!$E$1:$ED$1,1,MATCH(Tabulka!L2,Přehled_body!$D$1:$ED$1,0)+4)),"") -> 2021-10-12 | N2: =IFERROR(IF(INDEX(Přehled_body!$E$1:$ED$1,1,MATCH(Tabulka!M2,Přehled_body!$D$1:$ED$1,0)+4)="","",INDEX(Přehled_body!$E$1:$ED$1,1,MATCH(Tabulka!M2,Přehled_body!$D$1:$ED$1,0)+4)),"") -> 2021-10-19 | O2: =IFERROR(IF(INDEX(Přehled_body!$E$1:$ED$1,1,MATCH(Tabulka!N2,Přehled_body!$D$1:$ED$1,0)+4)="","",INDEX(Přehled_body!$E$1:$ED$1,1,MATCH(Tabulka!N2,Přehled_body!$D$1:$ED$1,0)+4)),"") -> 2021-10-26 | P2: =IFERROR(IF(INDEX(Přehled_body!$E$1:$ED$1,1,MATCH(Tabulka!O2,Přehled_body!$D$1:$ED$1,0)+4)="","",INDEX(Přehled_body!$E$1:$ED$1,1,MATCH(Tabulka!O2,Přehled_body!$D$1:$ED$1,0)+4)),"") -> 2021-11-02 | Q2: =IFERROR(IF(INDEX(Přehled_body!$E$1:$ED$1,1,MATCH(Tabulka!P2,Přehled_body!$D$1:$ED$1,0)+4)="","",INDEX(Přehled_body!$E$1:$ED$1,1,MATCH(Tabulka!P2,Přehled_body!$D$1:$ED$1,0)+4)),"") -> 2021-11-09 | R2: =IFERROR(IF(INDEX(Přehled_body!$E$1:$ED$1,1,MATCH(Tabulka!Q2,Přehled_body!$D$1:$ED$1,0)+4)="","",INDEX(Přehled_body!$E$1:$ED$1,1,MATCH(Tabulka!Q2,Přehled_body!$D$1:$ED$1,0)+4)),"") -> 2021-11-23 | S2: =IFERROR(IF(INDEX(Přehled_body!$E$1:$ED$1,1,MATCH(Tabulka!R2,Přehled_body!$D$1:$ED$1,0)+4)="","",INDEX(Přehled_body!$E$1:$ED$1,1,MATCH(Tabulka!R2,Přehled_body!$D$1:$ED$1,0)+4)),"") -> 2021-11-30 | T2: =IFERROR(IF(INDEX(Přehled_body!$E$1:$ED$1,1,MATCH(Tabulka!S2,Přehled_body!$D$1:$ED$1,0)+4)="","",INDEX(Přehled_body!$E$1:$ED$1,1,MATCH(Tabulka!S2,Přehled_body!$D$1:$ED$1,0)+4)),"") -> 2021-12-07 | U2: =IFERROR(IF(INDEX(Přehled_body!$E$1:$ED$1,1,MATCH(Tabulka!T2,Přehled_body!$D$1:$ED$1,0)+4)="","",INDEX(Přehled_body!$E$1:$ED$1,1,MATCH(Tabulka!T2,Přehled_body!$D$1:$ED$1,0)+4)),"") ->  | V2: =IFERROR(IF(INDEX(Přehled_body!$E$1:$ED$1,1,MATCH(Tabulka!U2,Přehled_body!$D$1:$ED$1,0)+4)="","",INDEX(Přehled_body!$E$1:$ED$1,1,MATCH(Tabulka!U2,Přehled_body!$D$1:$ED$1,0)+4)),"") ->  | W2: =IFERROR(IF(INDEX(Přehled_body!$E$1:$ED$1,1,MATCH(Tabulka!V2,Přehled_body!$D$1:$ED$1,0)+4)="","",INDEX(Přehled_body!$E$1:$ED$1,1,MATCH(Tabulka!V2,Přehled_body!$D$1:$ED$1,0)+4)),"") ->  | X2: =IFERROR(IF(INDEX(Přehled_body!$E$1:$ED$1,1,MATCH(Tabulka!W2,Přehled_body!$D$1:$ED$1,0)+4)="","",INDEX(Přehled_body!$E$1:$ED$1,1,MATCH(Tabulka!W2,Přehled_body!$D$1:$ED$1,0)+4)),"") ->  | Y2: =IFERROR(IF(INDEX(Přehled_body!$E$1:$ED$1,1,MATCH(Tabulka!X2,Přehled_body!$D$1:$ED$1,0)+4)="","",INDEX(Přehled_body!$E$1:$ED$1,1,MATCH(Tabulka!X2,Přehled_body!$D$1:$ED$1,0)+4)),"") ->  | Z2: =IFERROR(IF(INDEX(Přehled_body!$E$1:$ED$1,1,MATCH(Tabulka!Y2,Přehled_body!$D$1:$ED$1,0)+4)="","",INDEX(Přehled_body!$E$1:$ED$1,1,MATCH(Tabulka!Y2,Přehled_body!$D$1:$ED$1,0)+4)),"") ->  | AA2: =IFERROR(IF(INDEX(Přehled_body!$E$1:$ED$1,1,MATCH(Tabulka!Z2,Přehled_body!$D$1:$ED$1,0)+4)="","",INDEX(Přehled_body!$E$1:$ED$1,1,MATCH(Tabulka!Z2,Přehled_body!$D$1:$ED$1,0)+4)),"") ->  | AB2: =IFERROR(IF(INDEX(Přehled_body!$E$1:$ED$1,1,MATCH(Tabulka!AA2,Přehled_body!$D$1:$ED$1,0)+4)="","",INDEX(Přehled_body!$E$1:$ED$1,1,MATCH(Tabulka!AA2,Přehled_body!$D$1:$ED$1,0)+4)),"") ->  | AC2: =IFERROR(IF(INDEX(Přehled_body!$E$1:$ED$1,1,MATCH(Tabulka!AB2,Přehled_body!$D$1:$ED$1,0)+4)="","",INDEX(Přehled_body!$E$1:$ED$1,1,MATCH(Tabulka!AB2,Přehled_body!$D$1:$ED$1,0)+4)),"") ->  | AD2: =IFERROR(IF(INDEX(Přehled_body!$E$1:$ED$1,1,MATCH(Tabulka!AC2,Přehled_body!$D$1:$ED$1,0)+4)="","",INDEX(Přehled_body!$E$1:$ED$1,1,MATCH(Tabulka!AC2,Přehled_body!$D$1:$ED$1,0)+4)),"") ->  | AE2: Součet | AF2: Body | AG2: Účast dny
C3: Počet hrájících | D3: =IF(D2="","",IF(D8>0,1,0)+IF(D13>0,1,0)+IF(D18>0,1,0)+IF(D23>0,1,0)+IF(D28>0,1,0)+IF(D33>0,1,0)+IF(D38>0,1,0)+IF(D43>0,1,0)+IF(D48>0,1,0)+IF(D53>0,1,0)+IF(D58>0,1,0)+IF(D63>0,1,0)+IF(D68>0,1,0)+IF(D73>0,1,0)+IF(D78>0,1,0)+IF(D83>0,1,0)) -> 8 | E3: =IF(E2="","",IF(E8>0,1,0)+IF(E13>0,1,0)+IF(E18>0,1,0)+IF(E23>0,1,0)+IF(E28>0,1,0)+IF(E33>0,1,0)+IF(E38>0,1,0)+IF(E43>0,1,0)+IF(E48>0,1,0)+IF(E53>0,1,0)+IF(E58>0,1,0)+IF(E63>0,1,0)+IF(E68>0,1,0)+IF(E73>0,1,0)+IF(E78>0,1,0)+IF(E83>0,1,0)) -> 5 | F3: 6 | G3: 7 | H3: 7 | I3: 6 | J3: 7 | K3: 6 | L3: 6 | M3: 6 | N3: 5 | O3: 6 | P3: 6 | Q3: 7 | R3: 5 | S3: 5 | T3: 7 | AE3: celkem
A4: 1 | C4: Výhry | D4: =IF(IFERROR(INDEX(Přehled_body!$E$3:$ED$130,MATCH(Tabulka!$AI4,Přehled_body!$A$3:$A$130,0),MATCH(Tabulka!D$2,Přehled_body!$E$1:$ED$1,0)),)="",,IF(IFERROR(INDEX(Přehled_body!$E$3:$ED$130,MATCH(Tabulka!$AI4,Přehled_body!$A$3:$A$130,0),MATCH(Tabulka!D$2,Přehled_body!$E$1:$ED$1,0)),)=0,0.00000000001,IFERROR(INDEX(Přehled_body!$E$3:$ED$130,MATCH(Tabulka!$AI4,Přehled_body!$A$3:$A$130,0),MATCH(Tabulka!D$2,Přehled_body!$E$1:$ED$1,0)),))) -> 0 | E4: =IF(IFERROR(INDEX(Přehled_body!$E$3:$ED$130,MATCH(Tabulka!$AI4,Přehled_body!$A$3:$A$130,0),MATCH(Tabulka!E$2,Přehled_body!$E$1:$ED$1,0)),)="",,IF(IFERROR(INDEX(Přehled_body!$E$3:$ED$130,MATCH(Tabulka!$AI4,Přehled_body!$A$3:$A$130,0),MATCH(Tabulka!E$2,Přehled_body!$E$1:$ED$1,0)),)=0,0.00000000001,IFERROR(INDEX(Přehled_body!$E$3:$ED$130,MATCH(Tabulka!$AI4,Přehled_body!$A$3:$A$130,0),MATCH(Tabulka!E$2,Přehled_body!$E$1:$ED$1,0)),))) -> 0 | F4: =IF(IFERROR(INDEX(Přehled_body!$E$3:$ED$130,MATCH(Tabulka!$AI4,Přehled_body!$A$3:$A$130,0),MATCH(Tabulka!F$2,Přehled_body!$E$1:$ED$1,0)),)="",,IF(IFERROR(INDEX(Přehled_body!$E$3:$ED$130,MATCH(Tabulka!$AI4,Přehled_body!$A$3:$A$130,0),MATCH(Tabulka!F$2,Přehled_body!$E$1:$ED$1,0)),)=0,0.00000000001,IFERROR(INDEX(Přehled_body!$E$3:$ED$130,MATCH(Tabulka!$AI4,Přehled_body!$A$3:$A$130,0),MATCH(Tabulka!F$2,Přehled_body!$E$1:$ED$1,0)),))) -> 0 | G4: =IF(IFERROR(INDEX(Přehled_body!$E$3:$ED$130,MATCH(Tabulka!$AI4,Přehled_body!$A$3:$A$130,0),MATCH(Tabulka!G$2,Přehled_body!$E$1:$ED$1,0)),)="",,IF(IFERROR(INDEX(Přehled_body!$E$3:$ED$130,MATCH(Tabulka!$AI4,Přehled_body!$A$3:$A$130,0),MATCH(Tabulka!G$2,Přehled_body!$E$1:$ED$1,0)),)=0,0.00000000001,IFERROR(INDEX(Přehled_body!$E$3:$ED$130,MATCH(Tabulka!$AI4,Přehled_body!$A$3:$A$130,0),MATCH(Tabulka!G$2,Přehled_body!$E$1:$ED$1,0)),))) -> 0 | H4: =IF(IFERROR(INDEX(Přehled_body!$E$3:$ED$130,MATCH(Tabulka!$AI4,Přehled_body!$A$3:$A$130,0),MATCH(Tabulka!H$2,Přehled_body!$E$1:$ED$1,0)),)="",,IF(IFERROR(INDEX(Přehled_body!$E$3:$ED$130,MATCH(Tabulka!$AI4,Přehled_body!$A$3:$A$130,0),MATCH(Tabulka!H$2,Přehled_body!$E$1:$ED$1,0)),)=0,0.00000000001,IFERROR(INDEX(Přehled_body!$E$3:$ED$130,MATCH(Tabulka!$AI4,Přehled_body!$A$3:$A$130,0),MATCH(Tabulka!H$2,Přehled_body!$E$1:$ED$1,0)),))) -> 0 | I4: =IF(IFERROR(INDEX(Přehled_body!$E$3:$ED$130,MATCH(Tabulka!$AI4,Přehled_body!$A$3:$A$130,0),MATCH(Tabulka!I$2,Přehled_body!$E$1:$ED$1,0)),)="",,IF(IFERROR(INDEX(Přehled_body!$E$3:$ED$130,MATCH(Tabulka!$AI4,Přehled_body!$A$3:$A$130,0),MATCH(Tabulka!I$2,Přehled_body!$E$1:$ED$1,0)),)=0,0.00000000001,IFERROR(INDEX(Přehled_body!$E$3:$ED$130,MATCH(Tabulka!$AI4,Přehled_body!$A$3:$A$130,0),MATCH(Tabulka!I$2,Přehled_body!$E$1:$ED$1,0)),))) -> 0 | J4: =IF(IFERROR(INDEX(Přehled_body!$E$3:$ED$130,MATCH(Tabulka!$AI4,Přehled_body!$A$3:$A$130,0),MATCH(Tabulka!J$2,Přehled_body!$E$1:$ED$1,0)),)="",,IF(IFERROR(INDEX(Přehled_body!$E$3:$ED$130,MATCH(Tabulka!$AI4,Přehled_body!$A$3:$A$130,0),MATCH(Tabulka!J$2,Přehled_body!$E$1:$ED$1,0)),)=0,0.00000000001,IFERROR(INDEX(Přehled_body!$E$3:$ED$130,MATCH(Tabulka!$AI4,Přehled_body!$A$3:$A$130,0),MATCH(Tabulka!J$2,Přehled_body!$E$1:$ED$1,0)),))) -> 0 | K4: =IF(IFERROR(INDEX(Přehled_body!$E$3:$ED$130,MATCH(Tabulka!$AI4,Přehled_body!$A$3:$A$130,0),MATCH(Tabulka!K$2,Přehled_body!$E$1:$ED$1,0)),)="",,IF(IFERROR(INDEX(Přehled_body!$E$3:$ED$130,MATCH(Tabulka!$AI4,Přehled_body!$A$3:$A$130,0),MATCH(Tabulka!K$2,Přehled_body!$E$1:$ED$1,0)),)=0,0.00000000001,IFERROR(INDEX(Přehled_body!$E$3:$ED$130,MATCH(Tabulka!$AI4,Přehled_body!$A$3:$A$130,0),MATCH(Tabulka!K$2,Přehled_body!$E$1:$ED$1,0)),))) -> 0 | L4: =IF(IFERROR(INDEX(Přehled_body!$E$3:$ED$130,MATCH(Tabulka!$AI4,Přehled_body!$A$3:$A$130,0),MATCH(Tabulka!L$2,Přehled_body!$E$1:$ED$1,0)),)="",,IF(IFERROR(INDEX(Přehled_body!$E$3:$ED$130,MATCH(Tabulka!$AI4,Přehled_body!$A$3:$A$130,0),MATCH(Tabulka!L$2,Přehled_body!$E$1:$ED$1,0)),)=0,0.00000000001,IFERROR(INDEX(Přehled_body!$E$3:$ED$130,MATCH(Tabulka!$AI4,Přehled_body!$A$3:$A$130,0),MATCH(Tabulka!L$2,Přehled_body!$E$1:$ED$1,0)),))) -> 0 | M4: =IF(IFERROR(INDEX(Přehled_body!$E$3:$ED$130,MATCH(Tabulka!$AI4,Přehled_body!$A$3:$A$130,0),MATCH(Tabulka!M$2,Přehled_body!$E$1:$ED$1,0)),)="",,IF(IFERROR(INDEX(Přehled_body!$E$3:$ED$130,MATCH(Tabulka!$AI4,Přehled_body!$A$3:$A$130,0),MATCH(Tabulka!M$2,Přehled_body!$E$1:$ED$1,0)),)=0,0.00000000001,IFERROR(INDEX(Přehled_body!$E$3:$ED$130,MATCH(Tabulka!$AI4,Přehled_body!$A$3:$A$130,0),MATCH(Tabulka!M$2,Přehled_body!$E$1:$ED$1,0)),))) -> 0 | N4: =IF(IFERROR(INDEX(Přehled_body!$E$3:$ED$130,MATCH(Tabulka!$AI4,Přehled_body!$A$3:$A$130,0),MATCH(Tabulka!N$2,Přehled_body!$E$1:$ED$1,0)),)="",,IF(IFERROR(INDEX(Přehled_body!$E$3:$ED$130,MATCH(Tabulka!$AI4,Přehled_body!$A$3:$A$130,0),MATCH(Tabulka!N$2,Přehled_body!$E$1:$ED$1,0)),)=0,0.00000000001,IFERROR(INDEX(Přehled_body!$E$3:$ED$130,MATCH(Tabulka!$AI4,Přehled_body!$A$3:$A$130,0),MATCH(Tabulka!N$2,Přehled_body!$E$1:$ED$1,0)),))) -> 0 | O4: =IF(IFERROR(INDEX(Přehled_body!$E$3:$ED$130,MATCH(Tabulka!$AI4,Přehled_body!$A$3:$A$130,0),MATCH(Tabulka!O$2,Přehled_body!$E$1:$ED$1,0)),)="",,IF(IFERROR(INDEX(Přehled_body!$E$3:$ED$130,MATCH(Tabulka!$AI4,Přehled_body!$A$3:$A$130,0),MATCH(Tabulka!O$2,Přehled_body!$E$1:$ED$1,0)),)=0,0.00000000001,IFERROR(INDEX(Přehled_body!$E$3:$ED$130,MATCH(Tabulka!$AI4,Přehled_body!$A$3:$A$130,0),MATCH(Tabulka!O$2,Přehled_body!$E$1:$ED$1,0)),))) -> 0 | P4: =IF(IFERROR(INDEX(Přehled_body!$E$3:$ED$130,MATCH(Tabulka!$AI4,Přehled_body!$A$3:$A$130,0),MATCH(Tabulka!P$2,Přehled_body!$E$1:$ED$1,0)),)="",,IF(IFERROR(INDEX(Přehled_body!$E$3:$ED$130,MATCH(Tabulka!$AI4,Přehled_body!$A$3:$A$130,0),MATCH(Tabulka!P$2,Přehled_body!$E$1:$ED$1,0)),)=0,0.00000000001,IFERROR(INDEX(Přehled_body!$E$3:$ED$130,MATCH(Tabulka!$AI4,Přehled_body!$A$3:$A$130,0),MATCH(Tabulka!P$2,Přehled_body!$E$1:$ED$1,0)),))) -> 0 | Q4: =IF(IFERROR(INDEX(Přehled_body!$E$3:$ED$130,MATCH(Tabulka!$AI4,Přehled_body!$A$3:$A$130,0),MATCH(Tabulka!Q$2,Přehled_body!$E$1:$ED$1,0)),)="",,IF(IFERROR(INDEX(Přehled_body!$E$3:$ED$130,MATCH(Tabulka!$AI4,Přehled_body!$A$3:$A$130,0),MATCH(Tabulka!Q$2,Přehled_body!$E$1:$ED$1,0)),)=0,0.00000000001,IFERROR(INDEX(Přehled_body!$E$3:$ED$130,MATCH(Tabulka!$AI4,Přehled_body!$A$3:$A$130,0),MATCH(Tabulka!Q$2,Přehled_body!$E$1:$ED$1,0)),))) -> 0 | R4: =IF(IFERROR(INDEX(Přehled_body!$E$3:$ED$130,MATCH(Tabulka!$AI4,Přehled_body!$A$3:$A$130,0),MATCH(Tabulka!R$2,Přehled_body!$E$1:$ED$1,0)),)="",,IF(IFERROR(INDEX(Přehled_body!$E$3:$ED$130,MATCH(Tabulka!$AI4,Přehled_body!$A$3:$A$130,0),MATCH(Tabulka!R$2,Přehled_body!$E$1:$ED$1,0)),)=0,0.00000000001,IFERROR(INDEX(Přehled_body!$E$3:$ED$130,MATCH(Tabulka!$AI4,Přehled_body!$A$3:$A$130,0),MATCH(Tabulka!R$2,Přehled_body!$E$1:$ED$1,0)),))) -> 0 | S4: =IF(IFERROR(INDEX(Přehled_body!$E$3:$ED$130,MATCH(Tabulka!$AI4,Přehled_body!$A$3:$A$130,0),MATCH(Tabulka!S$2,Přehled_body!$E$1:$ED$1,0)),)="",,IF(IFERROR(INDEX(Přehled_body!$E$3:$ED$130,MATCH(Tabulka!$AI4,Přehled_body!$A$3:$A$130,0),MATCH(Tabulka!S$2,Přehled_body!$E$1:$ED$1,0)),)=0,0.00000000001,IFERROR(INDEX(Přehled_body!$E$3:$ED$130,MATCH(Tabulka!$AI4,Přehled_body!$A$3:$A$130,0),MATCH(Tabulka!S$2,Přehled_body!$E$1:$ED$1,0)),))) -> 0 | T4: =IF(IFERROR(INDEX(Přehled_body!$E$3:$ED$130,MATCH(Tabulka!$AI4,Přehled_body!$A$3:$A$130,0),MATCH(Tabulka!T$2,Přehled_body!$E$1:$ED$1,0)),)="",,IF(IFERROR(INDEX(Přehled_body!$E$3:$ED$130,MATCH(Tabulka!$AI4,Přehled_body!$A$3:$A$130,0),MATCH(Tabulka!T$2,Přehled_body!$E$1:$ED$1,0)),)=0,0.00000000001,IFERROR(INDEX(Přehled_body!$E$3:$ED$130,MATCH(Tabulka!$AI4,Přehled_body!$A$3:$A$130,0),MATCH(Tabulka!T$2,Přehled_body!$E$1:$ED$1,0)),))) -> 0 | U4: =IF(IFERROR(INDEX(Přehled_body!$E$3:$ED$130,MATCH(Tabulka!$AI4,Přehled_body!$A$3:$A$130,0),MATCH(Tabulka!U$2,Přehled_body!$E$1:$ED$1,0)),)="",,IF(IFERROR(INDEX(Přehled_body!$E$3:$ED$130,MATCH(Tabulka!$AI4,Přehled_body!$A$3:$A$130,0),MATCH(Tabulka!U$2,Přehled_body!$E$1:$ED$1,0)),)=0,0.00000000001,IFERROR(INDEX(Přehled_body!$E$3:$ED$130,MATCH(Tabulka!$AI4,Přehled_body!$A$3:$A$130,0),MATCH(Tabulka!U$2,Přehled_body!$E$1:$ED$1,0)),))) -> 0 | V4: =IF(IFERROR(INDEX(Přehled_body!$E$3:$ED$130,MATCH(Tabulka!$AI4,Přehled_body!$A$3:$A$130,0),MATCH(Tabulka!V$2,Přehled_body!$E$1:$ED$1,0)),)="",,IF(IFERROR(INDEX(Přehled_body!$E$3:$ED$130,MATCH(Tabulka!$AI4,Přehled_body!$A$3:$A$130,0),MATCH(Tabulka!V$2,Přehled_body!$E$1:$ED$1,0)),)=0,0.00000000001,IFERROR(INDEX(Přehled_body!$E$3:$ED$130,MATCH(Tabulka!$AI4,Přehled_body!$A$3:$A$130,0),MATCH(Tabulka!V$2,Přehled_body!$E$1:$ED$1,0)),))) -> 0 | W4: =IF(IFERROR(INDEX(Přehled_body!$E$3:$ED$130,MATCH(Tabulka!$AI4,Přehled_body!$A$3:$A$130,0),MATCH(Tabulka!W$2,Přehled_body!$E$1:$ED$1,0)),)="",,IF(IFERROR(INDEX(Přehled_body!$E$3:$ED$130,MATCH(Tabulka!$AI4,Přehled_body!$A$3:$A$130,0),MATCH(Tabulka!W$2,Přehled_body!$E$1:$ED$1,0)),)=0,0.00000000001,IFERROR(INDEX(Přehled_body!$E$3:$ED$130,MATCH(Tabulka!$AI4,Přehled_body!$A$3:$A$130,0),MATCH(Tabulka!W$2,Přehled_body!$E$1:$ED$1,0)),))) -> 0 | X4: =IF(IFERROR(INDEX(Přehled_body!$E$3:$ED$130,MATCH(Tabulka!$AI4,Přehled_body!$A$3:$A$130,0),MATCH(Tabulka!X$2,Přehled_body!$E$1:$ED$1,0)),)="",,IF(IFERROR(INDEX(Přehled_body!$E$3:$ED$130,MATCH(Tabulka!$AI4,Přehled_body!$A$3:$A$130,0),MATCH(Tabulka!X$2,Přehled_body!$E$1:$ED$1,0)),)=0,0.00000000001,IFERROR(INDEX(Přehled_body!$E$3:$ED$130,MATCH(Tabulka!$AI4,Přehled_body!$A$3:$A$130,0),MATCH(Tabulka!X$2,Přehled_body!$E$1:$ED$1,0)),))) -> 0 | Y4: =IF(IFERROR(INDEX(Přehled_body!$E$3:$ED$130,MATCH(Tabulka!$AI4,Přehled_body!$A$3:$A$130,0),MATCH(Tabulka!Y$2,Přehled_body!$E$1:$ED$1,0)),)="",,IF(IFERROR(INDEX(Přehled_body!$E$3:$ED$130,MATCH(Tabulka!$AI4,Přehled_body!$A$3:$A$130,0),MATCH(Tabulka!Y$2,Přehled_body!$E$1:$ED$1,0)),)=0,0.00000000001,IFERROR(INDEX(Přehled_body!$E$3:$ED$130,MATCH(Tabulka!$AI4,Přehled_body!$A$3:$A$130,0),MATCH(Tabulka!Y$2,Přehled_body!$E$1:$ED$1,0)),))) -> 0 | Z4: =IF(IFERROR(INDEX(Přehled_body!$E$3:$ED$130,MATCH(Tabulka!$AI4,Přehled_body!$A$3:$A$130,0),MATCH(Tabulka!Z$2,Přehled_body!$E$1:$ED$1,0)),)="",,IF(IFERROR(INDEX(Přehled_body!$E$3:$ED$130,MATCH(Tabulka!$AI4,Přehled_body!$A$3:$A$130,0),MATCH(Tabulka!Z$2,Přehled_body!$E$1:$ED$1,0)),)=0,0.00000000001,IFERROR(INDEX(Přehled_body!$E$3:$ED$130,MATCH(Tabulka!$AI4,Přehled_body!$A$3:$A$130,0),MATCH(Tabulka!Z$2,Přehled_body!$E$1:$ED$1,0)),))) -> 0 | AA4: =IF(IFERROR(INDEX(Přehled_body!$E$3:$ED$130,MATCH(Tabulka!$AI4,Přehled_body!$A$3:$A$130,0),MATCH(Tabulka!AA$2,Přehled_body!$E$1:$ED$1,0)),)="",,IF(IFERROR(INDEX(Přehled_body!$E$3:$ED$130,MATCH(Tabulka!$AI4,Přehled_body!$A$3:$A$130,0),MATCH(Tabulka!AA$2,Přehled_body!$E$1:$ED$1,0)),)=0,0.00000000001,IFERROR(INDEX(Přehled_body!$E$3:$ED$130,MATCH(Tabulka!$AI4,Přehled_body!$A$3:$A$130,0),MATCH(Tabulka!AA$2,Přehled_body!$E$1:$ED$1,0)),))) -> 0 | AB4: =IF(IFERROR(INDEX(Přehled_body!$E$3:$ED$130,MATCH(Tabulka!$AI4,Přehled_body!$A$3:$A$130,0),MATCH(Tabulka!AB$2,Přehled_body!$E$1:$ED$1,0)),)="",,IF(IFERROR(INDEX(Přehled_body!$E$3:$ED$130,MATCH(Tabulka!$AI4,Přehled_body!$A$3:$A$130,0),MATCH(Tabulka!AB$2,Přehled_body!$E$1:$ED$1,0)),)=0,0.00000000001,IFERROR(INDEX(Přehled_body!$E$3:$ED$130,MATCH(Tabulka!$AI4,Přehled_body!$A$3:$A$130,0),MATCH(Tabulka!AB$2,Přehled_body!$E$1:$ED$1,0)),))) -> 0 | AC4: =IF(IFERROR(INDEX(Přehled_body!$E$3:$ED$130,MATCH(Tabulka!$AI4,Přehled_body!$A$3:$A$130,0),MATCH(Tabulka!AC$2,Přehled_body!$E$1:$ED$1,0)),)="",,IF(IFERROR(INDEX(Přehled_body!$E$3:$ED$130,MATCH(Tabulka!$AI4,Přehled_body!$A$3:$A$130,0),MATCH(Tabulka!AC$2,Přehled_body!$E$1:$ED$1,0)),)=0,0.00000000001,IFERROR(INDEX(Přehled_body!$E$3:$ED$130,MATCH(Tabulka!$AI4,Přehled_body!$A$3:$A$130,0),MATCH(Tabulka!AC$2,Přehled_body!$E$1:$ED$1,0)),))) -> 0 | AD4: =IF(IFERROR(INDEX(Přehled_body!$E$3:$ED$130,MATCH(Tabulka!$AI4,Přehled_body!$A$3:$A$130,0),MATCH(Tabulka!AD$2,Přehled_body!$E$1:$ED$1,0)),)="",,IF(IFERROR(INDEX(Přehled_body!$E$3:$ED$130,MATCH(Tabulka!$AI4,Přehled_body!$A$3:$A$130,0),MATCH(Tabulka!AD$2,Přehled_body!$E$1:$ED$1,0)),)=0,0.00000000001,IFERROR(INDEX(Přehled_body!$E$3:$ED$130,MATCH(Tabulka!$AI4,Přehled_body!$A$3:$A$130,0),MATCH(Tabulka!AD$2,Přehled_body!$E$1:$ED$1,0)),))) -> 0 | AE4: =IF(SUM(AG4)<2,-90000+SUM(D4:AD4),SUM(D4:AD4)) -> -90000 | AG4: =COUNTIF(D4:AD4,">0") -> 0 | AH4: =SUM(D4:AD4) -> 0 | AI4: =CONCATENATE($B$5," ",$B$6,C4) -> Jiří FialaVýhry | AL4: =COUNTIF(D4:AD4,">0") -> 0
A5: =CONCATENATE(B5," ",B6) -> Jiří Fiala | B5: Jiří | C5: Prohry | D5: =IF(IFERROR(INDEX(Přehled_body!$E$3:$ED$130,MATCH(Tabulka!$AI5,Přehled_body!$A$3:$A$130,0),MATCH(Tabulka!D$2,Přehled_body!$E$1:$ED$1,0)),)="",,IF(IFERROR(INDEX(Přehled_body!$E$3:$ED$130,MATCH(Tabulka!$AI5,Přehled_body!$A$3:$A$130,0),MATCH(Tabulka!D$2,Přehled_body!$E$1:$ED$1,0)),)=0,0.00000000001,IFERROR(INDEX(Přehled_body!$E$3:$ED$130,MATCH(Tabulka!$AI5,Přehled_body!$A$3:$A$130,0),MATCH(Tabulka!D$2,Přehled_body!$E$1:$ED$1,0)),))) -> 0 | E5: =IF(IFERROR(INDEX(Přehled_body!$E$3:$ED$130,MATCH(Tabulka!$AI5,Přehled_body!$A$3:$A$130,0),MATCH(Tabulka!E$2,Přehled_body!$E$1:$ED$1,0)),)="",,IF(IFERROR(INDEX(Přehled_body!$E$3:$ED$130,MATCH(Tabulka!$AI5,Přehled_body!$A$3:$A$130,0),MATCH(Tabulka!E$2,Přehled_body!$E$1:$ED$1,0)),)=0,0.00000000001,IFERROR(INDEX(Přehled_body!$E$3:$ED$130,MATCH(Tabulka!$AI5,Přehled_body!$A$3:$A$130,0),MATCH(Tabulka!E$2,Přehled_body!$E$1:$ED$1,0)),))) -> 0 | F5: =IF(IFERROR(INDEX(Přehled_body!$E$3:$ED$130,MATCH(Tabulka!$AI5,Přehled_body!$A$3:$A$130,0),MATCH(Tabulka!F$2,Přehled_body!$E$1:$ED$1,0)),)="",,IF(IFERROR(INDEX(Přehled_body!$E$3:$ED$130,MATCH(Tabulka!$AI5,Přehled_body!$A$3:$A$130,0),MATCH(Tabulka!F$2,Přehled_body!$E$1:$ED$1,0)),)=0,0.00000000001,IFERROR(INDEX(Přehled_body!$E$3:$ED$130,MATCH(Tabulka!$AI5,Přehled_body!$A$3:$A$130,0),MATCH(Tabulka!F$2,Přehled_body!$E$1:$ED$1,0)),))) -> 0 | G5: =IF(IFERROR(INDEX(Přehled_body!$E$3:$ED$130,MATCH(Tabulka!$AI5,Přehled_body!$A$3:$A$130,0),MATCH(Tabulka!G$2,Přehled_body!$E$1:$ED$1,0)),)="",,IF(IFERROR(INDEX(Přehled_body!$E$3:$ED$130,MATCH(Tabulka!$AI5,Přehled_body!$A$3:$A$130,0),MATCH(Tabulka!G$2,Přehled_body!$E$1:$ED$1,0)),)=0,0.00000000001,IFERROR(INDEX(Přehled_body!$E$3:$ED$130,MATCH(Tabulka!$AI5,Přehled_body!$A$3:$A$130,0),MATCH(Tabulka!G$2,Přehled_body!$E$1:$ED$1,0)),))) -> 0 | H5: =IF(IFERROR(INDEX(Přehled_body!$E$3:$ED$130,MATCH(Tabulka!$AI5,Přehled_body!$A$3:$A$130,0),MATCH(Tabulka!H$2,Přehled_body!$E$1:$ED$1,0)),)="",,IF(IFERROR(INDEX(Přehled_body!$E$3:$ED$130,MATCH(Tabulka!$AI5,Přehled_body!$A$3:$A$130,0),MATCH(Tabulka!H$2,Přehled_body!$E$1:$ED$1,0)),)=0,0.00000000001,IFERROR(INDEX(Přehled_body!$E$3:$ED$130,MATCH(Tabulka!$AI5,Přehled_body!$A$3:$A$130,0),MATCH(Tabulka!H$2,Přehled_body!$E$1:$ED$1,0)),))) -> 0 | I5: =IF(IFERROR(INDEX(Přehled_body!$E$3:$ED$130,MATCH(Tabulka!$AI5,Přehled_body!$A$3:$A$130,0),MATCH(Tabulka!I$2,Přehled_body!$E$1:$ED$1,0)),)="",,IF(IFERROR(INDEX(Přehled_body!$E$3:$ED$130,MATCH(Tabulka!$AI5,Přehled_body!$A$3:$A$130,0),MATCH(Tabulka!I$2,Přehled_body!$E$1:$ED$1,0)),)=0,0.00000000001,IFERROR(INDEX(Přehled_body!$E$3:$ED$130,MATCH(Tabulka!$AI5,Přehled_body!$A$3:$A$130,0),MATCH(Tabulka!I$2,Přehled_body!$E$1:$ED$1,0)),))) -> 0 | J5: =IF(IFERROR(INDEX(Přehled_body!$E$3:$ED$130,MATCH(Tabulka!$AI5,Přehled_body!$A$3:$A$130,0),MATCH(Tabulka!J$2,Přehled_body!$E$1:$ED$1,0)),)="",,IF(IFERROR(INDEX(Přehled_body!$E$3:$ED$130,MATCH(Tabulka!$AI5,Přehled_body!$A$3:$A$130,0),MATCH(Tabulka!J$2,Přehled_body!$E$1:$ED$1,0)),)=0,0.00000000001,IFERROR(INDEX(Přehled_body!$E$3:$ED$130,MATCH(Tabulka!$AI5,Přehled_body!$A$3:$A$130,0),MATCH(Tabulka!J$2,Přehled_body!$E$1:$ED$1,0)),))) -> 0 | K5: =IF(IFERROR(INDEX(Přehled_body!$E$3:$ED$130,MATCH(Tabulka!$AI5,Přehled_body!$A$3:$A$130,0),MATCH(Tabulka!K$2,Přehled_body!$E$1:$ED$1,0)),)="",,IF(IFERROR(INDEX(Přehled_body!$E$3:$ED$130,MATCH(Tabulka!$AI5,Přehled_body!$A$3:$A$130,0),MATCH(Tabulka!K$2,Přehled_body!$E$1:$ED$1,0)),)=0,0.00000000001,IFERROR(INDEX(Přehled_body!$E$3:$ED$130,MATCH(Tabulka!$AI5,Přehled_body!$A$3:$A$130,0),MATCH(Tabulka!K$2,Přehled_body!$E$1:$ED$1,0)),))) -> 0 | L5: =IF(IFERROR(INDEX(Přehled_body!$E$3:$ED$130,MATCH(Tabulka!$AI5,Přehled_body!$A$3:$A$130,0),MATCH(Tabulka!L$2,Přehled_body!$E$1:$ED$1,0)),)="",,IF(IFERROR(INDEX(Přehled_body!$E$3:$ED$130,MATCH(Tabulka!$AI5,Přehled_body!$A$3:$A$130,0),MATCH(Tabulka!L$2,Přehled_body!$E$1:$ED$1,0)),)=0,0.00000000001,IFERROR(INDEX(Přehled_body!$E$3:$ED$130,MATCH(Tabulka!$AI5,Přehled_body!$A$3:$A$130,0),MATCH(Tabulka!L$2,Přehled_body!$E$1:$ED$1,0)),))) -> 0 | M5: =IF(IFERROR(INDEX(Přehled_body!$E$3:$ED$130,MATCH(Tabulka!$AI5,Přehled_body!$A$3:$A$130,0),MATCH(Tabulka!M$2,Přehled_body!$E$1:$ED$1,0)),)="",,IF(IFERROR(INDEX(Přehled_body!$E$3:$ED$130,MATCH(Tabulka!$AI5,Přehled_body!$A$3:$A$130,0),MATCH(Tabulka!M$2,Přehled_body!$E$1:$ED$1,0)),)=0,0.00000000001,IFERROR(INDEX(Přehled_body!$E$3:$ED$130,MATCH(Tabulka!$AI5,Přehled_body!$A$3:$A$130,0),MATCH(Tabulka!M$2,Přehled_body!$E$1:$ED$1,0)),))) -> 0 | N5: =IF(IFERROR(INDEX(Přehled_body!$E$3:$ED$130,MATCH(Tabulka!$AI5,Přehled_body!$A$3:$A$130,0),MATCH(Tabulka!N$2,Přehled_body!$E$1:$ED$1,0)),)="",,IF(IFERROR(INDEX(Přehled_body!$E$3:$ED$130,MATCH(Tabulka!$AI5,Přehled_body!$A$3:$A$130,0),MATCH(Tabulka!N$2,Přehled_body!$E$1:$ED$1,0)),)=0,0.00000000001,IFERROR(INDEX(Přehled_body!$E$3:$ED$130,MATCH(Tabulka!$AI5,Přehled_body!$A$3:$A$130,0),MATCH(Tabulka!N$2,Přehled_body!$E$1:$ED$1,0)),))) -> 0 | O5: =IF(IFERROR(INDEX(Přehled_body!$E$3:$ED$130,MATCH(Tabulka!$AI5,Přehled_body!$A$3:$A$130,0),MATCH(Tabulka!O$2,Přehled_body!$E$1:$ED$1,0)),)="",,IF(IFERROR(INDEX(Přehled_body!$E$3:$ED$130,MATCH(Tabulka!$AI5,Přehled_body!$A$3:$A$130,0),MATCH(Tabulka!O$2,Přehled_body!$E$1:$ED$1,0)),)=0,0.00000000001,IFERROR(INDEX(Přehled_body!$E$3:$ED$130,MATCH(Tabulka!$AI5,Přehled_body!$A$3:$A$130,0),MATCH(Tabulka!O$2,Přehled_body!$E$1:$ED$1,0)),))) -> 0 | P5: =IF(IFERROR(INDEX(Přehled_body!$E$3:$ED$130,MATCH(Tabulka!$AI5,Přehled_body!$A$3:$A$130,0),MATCH(Tabulka!P$2,Přehled_body!$E$1:$ED$1,0)),)="",,IF(IFERROR(INDEX(Přehled_body!$E$3:$ED$130,MATCH(Tabulka!$AI5,Přehled_body!$A$3:$A$130,0),MATCH(Tabulka!P$2,Přehled_body!$E$1:$ED$1,0)),)=0,0.00000000001,IFERROR(INDEX(Přehled_body!$E$3:$ED$130,MATCH(Tabulka!$AI5,Přehled_body!$A$3:$A$130,0),MATCH(Tabulka!P$2,Přehled_body!$E$1:$ED$1,0)),))) -> 0 | Q5: =IF(IFERROR(INDEX(Přehled_body!$E$3:$ED$130,MATCH(Tabulka!$AI5,Přehled_body!$A$3:$A$130,0),MATCH(Tabulka!Q$2,Přehled_body!$E$1:$ED$1,0)),)="",,IF(IFERROR(INDEX(Přehled_body!$E$3:$ED$130,MATCH(Tabulka!$AI5,Přehled_body!$A$3:$A$130,0),MATCH(Tabulka!Q$2,Přehled_body!$E$1:$ED$1,0)),)=0,0.00000000001,IFERROR(INDEX(Přehled_body!$E$3:$ED$130,MATCH(Tabulka!$AI5,Přehled_body!$A$3:$A$130,0),MATCH(Tabulka!Q$2,Přehled_body!$E$1:$ED$1,0)),))) -> 0 | R5: =IF(IFERROR(INDEX(Přehled_body!$E$3:$ED$130,MATCH(Tabulka!$AI5,Přehled_body!$A$3:$A$130,0),MATCH(Tabulka!R$2,Přehled_body!$E$1:$ED$1,0)),)="",,IF(IFERROR(INDEX(Přehled_body!$E$3:$ED$130,MATCH(Tabulka!$AI5,Přehled_body!$A$3:$A$130,0),MATCH(Tabulka!R$2,Přehled_body!$E$1:$ED$1,0)),)=0,0.00000000001,IFERROR(INDEX(Přehled_body!$E$3:$ED$130,MATCH(Tabulka!$AI5,Přehled_body!$A$3:$A$130,0),MATCH(Tabulka!R$2,Přehled_body!$E$1:$ED$1,0)),))) -> 0 | S5: =IF(IFERROR(INDEX(Přehled_body!$E$3:$ED$130,MATCH(Tabulka!$AI5,Přehled_body!$A$3:$A$130,0),MATCH(Tabulka!S$2,Přehled_body!$E$1:$ED$1,0)),)="",,IF(IFERROR(INDEX(Přehled_body!$E$3:$ED$130,MATCH(Tabulka!$AI5,Přehled_body!$A$3:$A$130,0),MATCH(Tabulka!S$2,Přehled_body!$E$1:$ED$1,0)),)=0,0.00000000001,IFERROR(INDEX(Přehled_body!$E$3:$ED$130,MATCH(Tabulka!$AI5,Přehled_body!$A$3:$A$130,0),MATCH(Tabulka!S$2,Přehled_body!$E$1:$ED$1,0)),))) -> 0 | T5: =IF(IFERROR(INDEX(Přehled_body!$E$3:$ED$130,MATCH(Tabulka!$AI5,Přehled_body!$A$3:$A$130,0),MATCH(Tabulka!T$2,Přehled_body!$E$1:$ED$1,0)),)="",,IF(IFERROR(INDEX(Přehled_body!$E$3:$ED$130,MATCH(Tabulka!$AI5,Přehled_body!$A$3:$A$130,0),MATCH(Tabulka!T$2,Přehled_body!$E$1:$ED$1,0)),)=0,0.00000000001,IFERROR(INDEX(Přehled_body!$E$3:$ED$130,MATCH(Tabulka!$AI5,Přehled_body!$A$3:$A$130,0),MATCH(Tabulka!T$2,Přehled_body!$E$1:$ED$1,0)),))) -> 0 | U5: =IF(IFERROR(INDEX(Přehled_body!$E$3:$ED$130,MATCH(Tabulka!$AI5,Přehled_body!$A$3:$A$130,0),MATCH(Tabulka!U$2,Přehled_body!$E$1:$ED$1,0)),)="",,IF(IFERROR(INDEX(Přehled_body!$E$3:$ED$130,MATCH(Tabulka!$AI5,Přehled_body!$A$3:$A$130,0),MATCH(Tabulka!U$2,Přehled_body!$E$1:$ED$1,0)),)=0,0.00000000001,IFERROR(INDEX(Přehled_body!$E$3:$ED$130,MATCH(Tabulka!$AI5,Přehled_body!$A$3:$A$130,0),MATCH(Tabulka!U$2,Přehled_body!$E$1:$ED$1,0)),))) -> 0 | V5: =IF(IFERROR(INDEX(Přehled_body!$E$3:$ED$130,MATCH(Tabulka!$AI5,Přehled_body!$A$3:$A$130,0),MATCH(Tabulka!V$2,Přehled_body!$E$1:$ED$1,0)),)="",,IF(IFERROR(INDEX(Přehled_body!$E$3:$ED$130,MATCH(Tabulka!$AI5,Přehled_body!$A$3:$A$130,0),MATCH(Tabulka!V$2,Přehled_body!$E$1:$ED$1,0)),)=0,0.00000000001,IFERROR(INDEX(Přehled_body!$E$3:$ED$130,MATCH(Tabulka!$AI5,Přehled_body!$A$3:$A$130,0),MATCH(Tabulka!V$2,Přehled_body!$E$1:$ED$1,0)),))) -> 0 | W5: =IF(IFERROR(INDEX(Přehled_body!$E$3:$ED$130,MATCH(Tabulka!$AI5,Přehled_body!$A$3:$A$130,0),MATCH(Tabulka!W$2,Přehled_body!$E$1:$ED$1,0)),)="",,IF(IFERROR(INDEX(Přehled_body!$E$3:$ED$130,MATCH(Tabulka!$AI5,Přehled_body!$A$3:$A$130,0),MATCH(Tabulka!W$2,Přehled_body!$E$1:$ED$1,0)),)=0,0.00000000001,IFERROR(INDEX(Přehled_body!$E$3:$ED$130,MATCH(Tabulka!$AI5,Přehled_body!$A$3:$A$130,0),MATCH(Tabulka!W$2,Přehled_body!$E$1:$ED$1,0)),))) -> 0 | X5: =IF(IFERROR(INDEX(Přehled_body!$E$3:$ED$130,MATCH(Tabulka!$AI5,Přehled_body!$A$3:$A$130,0),MATCH(Tabulka!X$2,Přehled_body!$E$1:$ED$1,0)),)="",,IF(IFERROR(INDEX(Přehled_body!$E$3:$ED$130,MATCH(Tabulka!$AI5,Přehled_body!$A$3:$A$130,0),MATCH(Tabulka!X$2,Přehled_body!$E$1:$ED$1,0)),)=0,0.00000000001,IFERROR(INDEX(Přehled_body!$E$3:$ED$130,MATCH(Tabulka!$AI5,Přehled_body!$A$3:$A$130,0),MATCH(Tabulka!X$2,Přehled_body!$E$1:$ED$1,0)),))) -> 0 | Y5: =IF(IFERROR(INDEX(Přehled_body!$E$3:$ED$130,MATCH(Tabulka!$AI5,Přehled_body!$A$3:$A$130,0),MATCH(Tabulka!Y$2,Přehled_body!$E$1:$ED$1,0)),)="",,IF(IFERROR(INDEX(Přehled_body!$E$3:$ED$130,MATCH(Tabulka!$AI5,Přehled_body!$A$3:$A$130,0),MATCH(Tabulka!Y$2,Přehled_body!$E$1:$ED$1,0)),)=0,0.00000000001,IFERROR(INDEX(Přehled_body!$E$3:$ED$130,MATCH(Tabulka!$AI5,Přehled_body!$A$3:$A$130,0),MATCH(Tabulka!Y$2,Přehled_body!$E$1:$ED$1,0)),))) -> 0 | Z5: =IF(IFERROR(INDEX(Přehled_body!$E$3:$ED$130,MATCH(Tabulka!$AI5,Přehled_body!$A$3:$A$130,0),MATCH(Tabulka!Z$2,Přehled_body!$E$1:$ED$1,0)),)="",,IF(IFERROR(INDEX(Přehled_body!$E$3:$ED$130,MATCH(Tabulka!$AI5,Přehled_body!$A$3:$A$130,0),MATCH(Tabulka!Z$2,Přehled_body!$E$1:$ED$1,0)),)=0,0.00000000001,IFERROR(INDEX(Přehled_body!$E$3:$ED$130,MATCH(Tabulka!$AI5,Přehled_body!$A$3:$A$130,0),MATCH(Tabulka!Z$2,Přehled_body!$E$1:$ED$1,0)),))) -> 0 | AA5: =IF(IFERROR(INDEX(Přehled_body!$E$3:$ED$130,MATCH(Tabulka!$AI5,Přehled_body!$A$3:$A$130,0),MATCH(Tabulka!AA$2,Přehled_body!$E$1:$ED$1,0)),)="",,IF(IFERROR(INDEX(Přehled_body!$E$3:$ED$130,MATCH(Tabulka!$AI5,Přehled_body!$A$3:$A$130,0),MATCH(Tabulka!AA$2,Přehled_body!$E$1:$ED$1,0)),)=0,0.00000000001,IFERROR(INDEX(Přehled_body!$E$3:$ED$130,MATCH(Tabulka!$AI5,Přehled_body!$A$3:$A$130,0),MATCH(Tabulka!AA$2,Přehled_body!$E$1:$ED$1,0)),))) -> 0 | AB5: =IF(IFERROR(INDEX(Přehled_body!$E$3:$ED$130,MATCH(Tabulka!$AI5,Přehled_body!$A$3:$A$130,0),MATCH(Tabulka!AB$2,Přehled_body!$E$1:$ED$1,0)),)="",,IF(IFERROR(INDEX(Přehled_body!$E$3:$ED$130,MATCH(Tabulka!$AI5,Přehled_body!$A$3:$A$130,0),MATCH(Tabulka!AB$2,Přehled_body!$E$1:$ED$1,0)),)=0,0.00000000001,IFERROR(INDEX(Přehled_body!$E$3:$ED$130,MATCH(Tabulka!$AI5,Přehled_body!$A$3:$A$130,0),MATCH(Tabulka!AB$2,Přehled_body!$E$1:$ED$1,0)),))) -> 0 | AC5: =IF(IFERROR(INDEX(Přehled_body!$E$3:$ED$130,MATCH(Tabulka!$AI5,Přehled_body!$A$3:$A$130,0),MATCH(Tabulka!AC$2,Přehled_body!$E$1:$ED$1,0)),)="",,IF(IFERROR(INDEX(Přehled_body!$E$3:$ED$130,MATCH(Tabulka!$AI5,Přehled_body!$A$3:$A$130,0),MATCH(Tabulka!AC$2,Přehled_body!$E$1:$ED$1,0)),)=0,0.00000000001,IFERROR(INDEX(Přehled_body!$E$3:$ED$130,MATCH(Tabulka!$AI5,Přehled_body!$A$3:$A$130,0),MATCH(Tabulka!AC$2,Přehled_body!$E$1:$ED$1,0)),))) -> 0 | AD5: =IF(IFERROR(INDEX(Přehled_body!$E$3:$ED$130,MATCH(Tabulka!$AI5,Přehled_body!$A$3:$A$130,0),MATCH(Tabulka!AD$2,Přehled_body!$E$1:$ED$1,0)),)="",,IF(IFERROR(INDEX(Přehled_body!$E$3:$ED$130,MATCH(Tabulka!$AI5,Přehled_body!$A$3:$A$130,0),MATCH(Tabulka!AD$2,Přehled_body!$E$1:$ED$1,0)),)=0,0.00000000001,IFERROR(INDEX(Přehled_body!$E$3:$ED$130,MATCH(Tabulka!$AI5,Přehled_body!$A$3:$A$130,0),MATCH(Tabulka!AD$2,Přehled_body!$E$1:$ED$1,0)),))) -> 0 | AE5: =IF(SUM(AG4)<2,-90000+SUM(D5:AD5),SUM(D5:AD5)) -> -90000 | AF5: =SUM(AE4-AE5) -> 0 | AH5: 0 | AI5: =CONCATENATE($B$5," ",$B$6,C5) -> Jiří FialaProhry | AL5: 0 | AO5: Jiří | AP5: 1
A6: =CONCATENATE(B6," ",B5) -> Fiala Jiří | B6: Fiala | C6: Placeno panáků | D6: =IF(IFERROR(INDEX(Přehled_body!$E$3:$ED$130,MATCH(Tabulka!$AI6,Přehled_body!$A$3:$A$130,0),MATCH(Tabulka!D$2,Přehled_body!$E$1:$ED$1,0)),)="",,IF(IFERROR(INDEX(Přehled_body!$E$3:$ED$130,MATCH(Tabulka!$AI6,Přehled_body!$A$3:$A$130,0),MATCH(Tabulka!D$2,Přehled_body!$E$1:$ED$1,0)),)=0,0.00000000001,IFERROR(INDEX(Přehled_body!$E$3:$ED$130,MATCH(Tabulka!$AI6,Přehled_body!$A$3:$A$130,0),MATCH(Tabulka!D$2,Přehled_body!$E$1:$ED$1,0)),))) -> 0 | E6: =IF(IFERROR(INDEX(Přehled_body!$E$3:$ED$130,MATCH(Tabulka!$AI6,Přehled_body!$A$3:$A$130,0),MATCH(Tabulka!E$2,Přehled_body!$E$1:$ED$1,0)),)="",,IF(IFERROR(INDEX(Přehled_body!$E$3:$ED$130,MATCH(Tabulka!$AI6,Přehled_body!$A$3:$A$130,0),MATCH(Tabulka!E$2,Přehled_body!$E$1:$ED$1,0)),)=0,0.00000000001,IFERROR(INDEX(Přehled_body!$E$3:$ED$130,MATCH(Tabulka!$AI6,Přehled_body!$A$3:$A$130,0),MATCH(Tabulka!E$2,Přehled_body!$E$1:$ED$1,0)),))) -> 0 | F6: =IF(IFERROR(INDEX(Přehled_body!$E$3:$ED$130,MATCH(Tabulka!$AI6,Přehled_body!$A$3:$A$130,0),MATCH(Tabulka!F$2,Přehled_body!$E$1:$ED$1,0)),)="",,IF(IFERROR(INDEX(Přehled_body!$E$3:$ED$130,MATCH(Tabulka!$AI6,Přehled_body!$A$3:$A$130,0),MATCH(Tabulka!F$2,Přehled_body!$E$1:$ED$1,0)),)=0,0.00000000001,IFERROR(INDEX(Přehled_body!$E$3:$ED$130,MATCH(Tabulka!$AI6,Přehled_body!$A$3:$A$130,0),MATCH(Tabulka!F$2,Přehled_body!$E$1:$ED$1,0)),))) -> 0 | G6: =IF(IFERROR(INDEX(Přehled_body!$E$3:$ED$130,MATCH(Tabulka!$AI6,Přehled_body!$A$3:$A$130,0),MATCH(Tabulka!G$2,Přehled_body!$E$1:$ED$1,0)),)="",,IF(IFERROR(INDEX(Přehled_body!$E$3:$ED$130,MATCH(Tabulka!$AI6,Přehled_body!$A$3:$A$130,0),MATCH(Tabulka!G$2,Přehled_body!$E$1:$ED$1,0)),)=0,0.00000000001,IFERROR(INDEX(Přehled_body!$E$3:$ED$130,MATCH(Tabulka!$AI6,Přehled_body!$A$3:$A$130,0),MATCH(Tabulka!G$2,Přehled_body!$E$1:$ED$1,0)),))) -> 0 | H6: =IF(IFERROR(INDEX(Přehled_body!$E$3:$ED$130,MATCH(Tabulka!$AI6,Přehled_body!$A$3:$A$130,0),MATCH(Tabulka!H$2,Přehled_body!$E$1:$ED$1,0)),)="",,IF(IFERROR(INDEX(Přehled_body!$E$3:$ED$130,MATCH(Tabulka!$AI6,Přehled_body!$A$3:$A$130,0),MATCH(Tabulka!H$2,Přehled_body!$E$1:$ED$1,0)),)=0,0.00000000001,IFERROR(INDEX(Přehled_body!$E$3:$ED$130,MATCH(Tabulka!$AI6,Přehled_body!$A$3:$A$130,0),MATCH(Tabulka!H$2,Přehled_body!$E$1:$ED$1,0)),))) -> 0 | I6: =IF(IFERROR(INDEX(Přehled_body!$E$3:$ED$130,MATCH(Tabulka!$AI6,Přehled_body!$A$3:$A$130,0),MATCH(Tabulka!I$2,Přehled_body!$E$1:$ED$1,0)),)="",,IF(IFERROR(INDEX(Přehled_body!$E$3:$ED$130,MATCH(Tabulka!$AI6,Přehled_body!$A$3:$A$130,0),MATCH(Tabulka!I$2,Přehled_body!$E$1:$ED$1,0)),)=0,0.00000000001,IFERROR(INDEX(Přehled_body!$E$3:$ED$130,MATCH(Tabulka!$AI6,Přehled_body!$A$3:$A$130,0),MATCH(Tabulka!I$2,Přehled_body!$E$1:$ED$1,0)),))) -> 0 | J6: =IF(IFERROR(INDEX(Přehled_body!$E$3:$ED$130,MATCH(Tabulka!$AI6,Přehled_body!$A$3:$A$130,0),MATCH(Tabulka!J$2,Přehled_body!$E$1:$ED$1,0)),)="",,IF(IFERROR(INDEX(Přehled_body!$E$3:$ED$130,MATCH(Tabulka!$AI6,Přehled_body!$A$3:$A$130,0),MATCH(Tabulka!J$2,Přehled_body!$E$1:$ED$1,0)),)=0,0.00000000001,IFERROR(INDEX(Přehled_body!$E$3:$ED$130,MATCH(Tabulka!$AI6,Přehled_body!$A$3:$A$130,0),MATCH(Tabulka!J$2,Přehled_body!$E$1:$ED$1,0)),))) -> 0 | K6: =IF(IFERROR(INDEX(Přehled_body!$E$3:$ED$130,MATCH(Tabulka!$AI6,Přehled_body!$A$3:$A$130,0),MATCH(Tabulka!K$2,Přehled_body!$E$1:$ED$1,0)),)="",,IF(IFERROR(INDEX(Přehled_body!$E$3:$ED$130,MATCH(Tabulka!$AI6,Přehled_body!$A$3:$A$130,0),MATCH(Tabulka!K$2,Přehled_body!$E$1:$ED$1,0)),)=0,0.00000000001,IFERROR(INDEX(Přehled_body!$E$3:$ED$130,MATCH(Tabulka!$AI6,Přehled_body!$A$3:$A$130,0),MATCH(Tabulka!K$2,Přehled_body!$E$1:$ED$1,0)),))) -> 0 | L6: =IF(IFERROR(INDEX(Přehled_body!$E$3:$ED$130,MATCH(Tabulka!$AI6,Přehled_body!$A$3:$A$130,0),MATCH(Tabulka!L$2,Přehled_body!$E$1:$ED$1,0)),)="",,IF(IFERROR(INDEX(Přehled_body!$E$3:$ED$130,MATCH(Tabulka!$AI6,Přehled_body!$A$3:$A$130,0),MATCH(Tabulka!L$2,Přehled_body!$E$1:$ED$1,0)),)=0,0.00000000001,IFERROR(INDEX(Přehled_body!$E$3:$ED$130,MATCH(Tabulka!$AI6,Přehled_body!$A$3:$A$130,0),MATCH(Tabulka!L$2,Přehled_body!$E$1:$ED$1,0)),))) -> 0 | M6: =IF(IFERROR(INDEX(Přehled_body!$E$3:$ED$130,MATCH(Tabulka!$AI6,Přehled_body!$A$3:$A$130,0),MATCH(Tabulka!M$2,Přehled_body!$E$1:$ED$1,0)),)="",,IF(IFERROR(INDEX(Přehled_body!$E$3:$ED$130,MATCH(Tabulka!$AI6,Přehled_body!$A$3:$A$130,0),MATCH(Tabulka!M$2,Přehled_body!$E$1:$ED$1,0)),)=0,0.00000000001,IFERROR(INDEX(Přehled_body!$E$3:$ED$130,MATCH(Tabulka!$AI6,Přehled_body!$A$3:$A$130,0),MATCH(Tabulka!M$2,Přehled_body!$E$1:$ED$1,0)),))) -> 0 | N6: =IF(IFERROR(INDEX(Přehled_body!$E$3:$ED$130,MATCH(Tabulka!$AI6,Přehled_body!$A$3:$A$130,0),MATCH(Tabulka!N$2,Přehled_body!$E$1:$ED$1,0)),)="",,IF(IFERROR(INDEX(Přehled_body!$E$3:$ED$130,MATCH(Tabulka!$AI6,Přehled_body!$A$3:$A$130,0),MATCH(Tabulka!N$2,Přehled_body!$E$1:$ED$1,0)),)=0,0.00000000001,IFERROR(INDEX(Přehled_body!$E$3:$ED$130,MATCH(Tabulka!$AI6,Přehled_body!$A$3:$A$130,0),MATCH(Tabulka!N$2,Přehled_body!$E$1:$ED$1,0)),))) -> 0 | O6: =IF(IFERROR(INDEX(Přehled_body!$E$3:$ED$130,MATCH(Tabulka!$AI6,Přehled_body!$A$3:$A$130,0),MATCH(Tabulka!O$2,Přehled_body!$E$1:$ED$1,0)),)="",,IF(IFERROR(INDEX(Přehled_body!$E$3:$ED$130,MATCH(Tabulka!$AI6,Přehled_body!$A$3:$A$130,0),MATCH(Tabulka!O$2,Přehled_body!$E$1:$ED$1,0)),)=0,0.00000000001,IFERROR(INDEX(Přehled_body!$E$3:$ED$130,MATCH(Tabulka!$AI6,Přehled_body!$A$3:$A$130,0),MATCH(Tabulka!O$2,Přehled_body!$E$1:$ED$1,0)),))) -> 0 | P6: =IF(IFERROR(INDEX(Přehled_body!$E$3:$ED$130,MATCH(Tabulka!$AI6,Přehled_body!$A$3:$A$130,0),MATCH(Tabulka!P$2,Přehled_body!$E$1:$ED$1,0)),)="",,IF(IFERROR(INDEX(Přehled_body!$E$3:$ED$130,MATCH(Tabulka!$AI6,Přehled_body!$A$3:$A$130,0),MATCH(Tabulka!P$2,Přehled_body!$E$1:$ED$1,0)),)=0,0.00000000001,IFERROR(INDEX(Přehled_body!$E$3:$ED$130,MATCH(Tabulka!$AI6,Přehled_body!$A$3:$A$130,0),MATCH(Tabulka!P$2,Přehled_body!$E$1:$ED$1,0)),))) -> 0 | Q6: =IF(IFERROR(INDEX(Přehled_body!$E$3:$ED$130,MATCH(Tabulka!$AI6,Přehled_body!$A$3:$A$130,0),MATCH(Tabulka!Q$2,Přehled_body!$E$1:$ED$1,0)),)="",,IF(IFERROR(INDEX(Přehled_body!$E$3:$ED$130,MATCH(Tabulka!$AI6,Přehled_body!$A$3:$A$130,0),MATCH(Tabulka!Q$2,Přehled_body!$E$1:$ED$1,0)),)=0,0.00000000001,IFERROR(INDEX(Přehled_body!$E$3:$ED$130,MATCH(Tabulka!$AI6,Přehled_body!$A$3:$A$130,0),MATCH(Tabulka!Q$2,Přehled_body!$E$1:$ED$1,0)),))) -> 0 | R6: =IF(IFERROR(INDEX(Přehled_body!$E$3:$ED$130,MATCH(Tabulka!$AI6,Přehled_body!$A$3:$A$130,0),MATCH(Tabulka!R$2,Přehled_body!$E$1:$ED$1,0)),)="",,IF(IFERROR(INDEX(Přehled_body!$E$3:$ED$130,MATCH(Tabulka!$AI6,Přehled_body!$A$3:$A$130,0),MATCH(Tabulka!R$2,Přehled_body!$E$1:$ED$1,0)),)=0,0.00000000001,IFERROR(INDEX(Přehled_body!$E$3:$ED$130,MATCH(Tabulka!$AI6,Přehled_body!$A$3:$A$130,0),MATCH(Tabulka!R$2,Přehled_body!$E$1:$ED$1,0)),))) -> 0 | S6: =IF(IFERROR(INDEX(Přehled_body!$E$3:$ED$130,MATCH(Tabulka!$AI6,Přehled_body!$A$3:$A$130,0),MATCH(Tabulka!S$2,Přehled_body!$E$1:$ED$1,0)),)="",,IF(IFERROR(INDEX(Přehled_body!$E$3:$ED$130,MATCH(Tabulka!$AI6,Přehled_body!$A$3:$A$130,0),MATCH(Tabulka!S$2,Přehled_body!$E$1:$ED$1,0)),)=0,0.00000000001,IFERROR(INDEX(Přehled_body!$E$3:$ED$130,MATCH(Tabulka!$AI6,Přehled_body!$A$3:$A$130,0),MATCH(Tabulka!S$2,Přehled_body!$E$1:$ED$1,0)),))) -> 0 | T6: =IF(IFERROR(INDEX(Přehled_body!$E$3:$ED$130,MATCH(Tabulka!$AI6,Přehled_body!$A$3:$A$130,0),MATCH(Tabulka!T$2,Přehled_body!$E$1:$ED$1,0)),)="",,IF(IFERROR(INDEX(Přehled_body!$E$3:$ED$130,MATCH(Tabulka!$AI6,Přehled_body!$A$3:$A$130,0),MATCH(Tabulka!T$2,Přehled_body!$E$1:$ED$1,0)),)=0,0.00000000001,IFERROR(INDEX(Přehled_body!$E$3:$ED$130,MATCH(Tabulka!$AI6,Přehled_body!$A$3:$A$130,0),MATCH(Tabulka!T$2,Přehled_body!$E$1:$ED$1,0)),))) -> 0 | U6: =IF(IFERROR(INDEX(Přehled_body!$E$3:$ED$130,MATCH(Tabulka!$AI6,Přehled_body!$A$3:$A$130,0),MATCH(Tabulka!U$2,Přehled_body!$E$1:$ED$1,0)),)="",,IF(IFERROR(INDEX(Přehled_body!$E$3:$ED$130,MATCH(Tabulka!$AI6,Přehled_body!$A$3:$A$130,0),MATCH(Tabulka!U$2,Přehled_body!$E$1:$ED$1,0)),)=0,0.00000000001,IFERROR(INDEX(Přehled_body!$E$3:$ED$130,MATCH(Tabulka!$AI6,Přehled_body!$A$3:$A$130,0),MATCH(Tabulka!U$2,Přehled_body!$E$1:$ED$1,0)),))) -> 0 | V6: =IF(IFERROR(INDEX(Přehled_body!$E$3:$ED$130,MATCH(Tabulka!$AI6,Přehled_body!$A$3:$A$130,0),MATCH(Tabulka!V$2,Přehled_body!$E$1:$ED$1,0)),)="",,IF(IFERROR(INDEX(Přehled_body!$E$3:$ED$130,MATCH(Tabulka!$AI6,Přehled_body!$A$3:$A$130,0),MATCH(Tabulka!V$2,Přehled_body!$E$1:$ED$1,0)),)=0,0.00000000001,IFERROR(INDEX(Přehled_body!$E$3:$ED$130,MATCH(Tabulka!$AI6,Přehled_body!$A$3:$A$130,0),MATCH(Tabulka!V$2,Přehled_body!$E$1:$ED$1,0)),))) -> 0 | W6: =IF(IFERROR(INDEX(Přehled_body!$E$3:$ED$130,MATCH(Tabulka!$AI6,Přehled_body!$A$3:$A$130,0),MATCH(Tabulka!W$2,Přehled_body!$E$1:$ED$1,0)),)="",,IF(IFERROR(INDEX(Přehled_body!$E$3:$ED$130,MATCH(Tabulka!$AI6,Přehled_body!$A$3:$A$130,0),MATCH(Tabulka!W$2,Přehled_body!$E$1:$ED$1,0)),)=0,0.00000000001,IFERROR(INDEX(Přehled_body!$E$3:$ED$130,MATCH(Tabulka!$AI6,Přehled_body!$A$3:$A$130,0),MATCH(Tabulka!W$2,Přehled_body!$E$1:$ED$1,0)),))) -> 0 | X6: =IF(IFERROR(INDEX(Přehled_body!$E$3:$ED$130,MATCH(Tabulka!$AI6,Přehled_body!$A$3:$A$130,0),MATCH(Tabulka!X$2,Přehled_body!$E$1:$ED$1,0)),)="",,IF(IFERROR(INDEX(Přehled_body!$E$3:$ED$130,MATCH(Tabulka!$AI6,Přehled_body!$A$3:$A$130,0),MATCH(Tabulka!X$2,Přehled_body!$E$1:$ED$1,0)),)=0,0.00000000001,IFERROR(INDEX(Přehled_body!$E$3:$ED$130,MATCH(Tabulka!$AI6,Přehled_body!$A$3:$A$130,0),MATCH(Tabulka!X$2,Přehled_body!$E$1:$ED$1,0)),))) -> 0 | Y6: =IF(IFERROR(INDEX(Přehled_body!$E$3:$ED$130,MATCH(Tabulka!$AI6,Přehled_body!$A$3:$A$130,0),MATCH(Tabulka!Y$2,Přehled_body!$E$1:$ED$1,0)),)="",,IF(IFERROR(INDEX(Přehled_body!$E$3:$ED$130,MATCH(Tabulka!$AI6,Přehled_body!$A$3:$A$130,0),MATCH(Tabulka!Y$2,Přehled_body!$E$1:$ED$1,0)),)=0,0.00000000001,IFERROR(INDEX(Přehled_body!$E$3:$ED$130,MATCH(Tabulka!$AI6,Přehled_body!$A$3:$A$130,0),MATCH(Tabulka!Y$2,Přehled_body!$E$1:$ED$1,0)),))) -> 0 | Z6: =IF(IFERROR(INDEX(Přehled_body!$E$3:$ED$130,MATCH(Tabulka!$AI6,Přehled_body!$A$3:$A$130,0),MATCH(Tabulka!Z$2,Přehled_body!$E$1:$ED$1,0)),)="",,IF(IFERROR(INDEX(Přehled_body!$E$3:$ED$130,MATCH(Tabulka!$AI6,Přehled_body!$A$3:$A$130,0),MATCH(Tabulka!Z$2,Přehled_body!$E$1:$ED$1,0)),)=0,0.00000000001,IFERROR(INDEX(Přehled_body!$E$3:$ED$130,MATCH(Tabulka!$AI6,Přehled_body!$A$3:$A$130,0),MATCH(Tabulka!Z$2,Přehled_body!$E$1:$ED$1,0)),))) -> 0 | AA6: =IF(IFERROR(INDEX(Přehled_body!$E$3:$ED$130,MATCH(Tabulka!$AI6,Přehled_body!$A$3:$A$130,0),MATCH(Tabulka!AA$2,Přehled_body!$E$1:$ED$1,0)),)="",,IF(IFERROR(INDEX(Přehled_body!$E$3:$ED$130,MATCH(Tabulka!$AI6,Přehled_body!$A$3:$A$130,0),MATCH(Tabulka!AA$2,Přehled_body!$E$1:$ED$1,0)),)=0,0.00000000001,IFERROR(INDEX(Přehled_body!$E$3:$ED$130,MATCH(Tabulka!$AI6,Přehled_body!$A$3:$A$130,0),MATCH(Tabulka!AA$2,Přehled_body!$E$1:$ED$1,0)),))) -> 0 | AB6: =IF(IFERROR(INDEX(Přehled_body!$E$3:$ED$130,MATCH(Tabulka!$AI6,Přehled_body!$A$3:$A$130,0),MATCH(Tabulka!AB$2,Přehled_body!$E$1:$ED$1,0)),)="",,IF(IFERROR(INDEX(Přehled_body!$E$3:$ED$130,MATCH(Tabulka!$AI6,Přehled_body!$A$3:$A$130,0),MATCH(Tabulka!AB$2,Přehled_body!$E$1:$ED$1,0)),)=0,0.00000000001,IFERROR(INDEX(Přehled_body!$E$3:$ED$130,MATCH(Tabulka!$AI6,Přehled_body!$A$3:$A$130,0),MATCH(Tabulka!AB$2,Přehled_body!$E$1:$ED$1,0)),))) -> 0 | AC6: =IF(IFERROR(INDEX(Přehled_body!$E$3:$ED$130,MATCH(Tabulka!$AI6,Přehled_body!$A$3:$A$130,0),MATCH(Tabulka!AC$2,Přehled_body!$E$1:$ED$1,0)),)="",,IF(IFERROR(INDEX(Přehled_body!$E$3:$ED$130,MATCH(Tabulka!$AI6,Přehled_body!$A$3:$A$130,0),MATCH(Tabulka!AC$2,Přehled_body!$E$1:$ED$1,0)),)=0,0.00000000001,IFERROR(INDEX(Přehled_body!$E$3:$ED$130,MATCH(Tabulka!$AI6,Přehled_body!$A$3:$A$130,0),MATCH(Tabulka!AC$2,Přehled_body!$E$1:$ED$1,0)),))) -> 0 | AD6: =IF(IFERROR(INDEX(Přehled_body!$E$3:$ED$130,MATCH(Tabulka!$AI6,Přehled_body!$A$3:$A$130,0),MATCH(Tabulka!AD$2,Přehled_body!$E$1:$ED$1,0)),)="",,IF(IFERROR(INDEX(Přehled_body!$E$3:$ED$130,MATCH(Tabulka!$AI6,Přehled_body!$A$3:$A$130,0),MATCH(Tabulka!AD$2,Přehled_body!$E$1:$ED$1,0)),)=0,0.00000000001,IFERROR(INDEX(Přehled_body!$E$3:$ED$130,MATCH(Tabulka!$AI6,Přehled_body!$A$3:$A$130,0),MATCH(Tabulka!AD$2,Přehled_body!$E$1:$ED$1,0)),))) -> 0 | AE6: =IF(SUM(AG4)<2,-90000+SUM(D6:AD6),SUM(D6:AD6)) -> -90000 | AH6: =SUM(D6:AD6)+INDEX(List4!$D$2:$F$17,MATCH(Tabulka!A5,List4!$D$2:$D$17,0),3) -> 2.1e-08 | AI6: =CONCATENATE($B$5," ",$B$6,C6) -> Jiří FialaPlaceno panáků | AL6: 0 | AO6: Fiala | AP6: =CONCATENATE(AQ6," ",AQ7) -> Libor Hruška | AQ6: Libor
C7: Přehozy | D7: =IF(IFERROR(INDEX(Přehled_body!$E$3:$ED$130,MATCH(Tabulka!$AI7,Přehled_body!$A$3:$A$130,0),MATCH(Tabulka!D$2,Přehled_body!$E$1:$ED$1,0)),)="",,IF(IFERROR(INDEX(Přehled_body!$E$3:$ED$130,MATCH(Tabulka!$AI7,Přehled_body!$A$3:$A$130,0),MATCH(Tabulka!D$2,Přehled_body!$E$1:$ED$1,0)),)=0,0.00000000001,IFERROR(INDEX(Přehled_body!$E$3:$ED$130,MATCH(Tabulka!$AI7,Přehled_body!$A$3:$A$130,0),MATCH(Tabulka!D$2,Přehled_body!$E$1:$ED$1,0)),))) -> 0 | E7: =IF(IFERROR(INDEX(Přehled_body!$E$3:$ED$130,MATCH(Tabulka!$AI7,Přehled_body!$A$3:$A$130,0),MATCH(Tabulka!E$2,Přehled_body!$E$1:$ED$1,0)),)="",,IF(IFERROR(INDEX(Přehled_body!$E$3:$ED$130,MATCH(Tabulka!$AI7,Přehled_body!$A$3:$A$130,0),MATCH(Tabulka!E$2,Přehled_body!$E$1:$ED$1,0)),)=0,0.00000000001,IFERROR(INDEX(Přehled_body!$E$3:$ED$130,MATCH(Tabulka!$AI7,Přehled_body!$A$3:$A$130,0),MATCH(Tabulka!E$2,Přehled_body!$E$1:$ED$1,0)),))) -> 0 | F7: =IF(IFERROR(INDEX(Přehled_body!$E$3:$ED$130,MATCH(Tabulka!$AI7,Přehled_body!$A$3:$A$130,0),MATCH(Tabulka!F$2,Přehled_body!$E$1:$ED$1,0)),)="",,IF(IFERROR(INDEX(Přehled_body!$E$3:$ED$130,MATCH(Tabulka!$AI7,Přehled_body!$A$3:$A$130,0),MATCH(Tabulka!F$2,Přehled_body!$E$1:$ED$1,0)),)=0,0.00000000001,IFERROR(INDEX(Přehled_body!$E$3:$ED$130,MATCH(Tabulka!$AI7,Přehled_body!$A$3:$A$130,0),MATCH(Tabulka!F$2,Přehled_body!$E$1:$ED$1,0)),))) -> 0 | G7: =IF(IFERROR(INDEX(Přehled_body!$E$3:$ED$130,MATCH(Tabulka!$AI7,Přehled_body!$A$3:$A$130,0),MATCH(Tabulka!G$2,Přehled_body!$E$1:$ED$1,0)),)="",,IF(IFERROR(INDEX(Přehled_body!$E$3:$ED$130,MATCH(Tabulka!$AI7,Přehled_body!$A$3:$A$130,0),MATCH(Tabulka!G$2,Přehled_body!$E$1:$ED$1,0)),)=0,0.00000000001,IFERROR(INDEX(Přehled_body!$E$3:$ED$130,MATCH(Tabulka!$AI7,Přehled_body!$A$3:$A$130,0),MATCH(Tabulka!G$2,Přehled_body!$E$1:$ED$1,0)),))) -> 0 | H7: =IF(IFERROR(INDEX(Přehled_body!$E$3:$ED$130,MATCH(Tabulka!$AI7,Přehled_body!$A$3:$A$130,0),MATCH(Tabulka!H$2,Přehled_body!$E$1:$ED$1,0)),)="",,IF(IFERROR(INDEX(Přehled_body!$E$3:$ED$130,MATCH(Tabulka!$AI7,Přehled_body!$A$3:$A$130,0),MATCH(Tabulka!H$2,Přehled_body!$E$1:$ED$1,0)),)=0,0.00000000001,IFERROR(INDEX(Přehled_body!$E$3:$ED$130,MATCH(Tabulka!$AI7,Přehled_body!$A$3:$A$130,0),MATCH(Tabulka!H$2,Přehled_body!$E$1:$ED$1,0)),))) -> 0 | I7: =IF(IFERROR(INDEX(Přehled_body!$E$3:$ED$130,MATCH(Tabulka!$AI7,Přehled_body!$A$3:$A$130,0),MATCH(Tabulka!I$2,Přehled_body!$E$1:$ED$1,0)),)="",,IF(IFERROR(INDEX(Přehled_body!$E$3:$ED$130,MATCH(Tabulka!$AI7,Přehled_body!$A$3:$A$130,0),MATCH(Tabulka!I$2,Přehled_body!$E$1:$ED$1,0)),)=0,0.00000000001,IFERROR(INDEX(Přehled_body!$E$3:$ED$130,MATCH(Tabulka!$AI7,Přehled_body!$A$3:$A$130,0),MATCH(Tabulka!I$2,Přehled_body!$E$1:$ED$1,0)),))) -> 0 | J7: =IF(IFERROR(INDEX(Přehled_body!$E$3:$ED$130,MATCH(Tabulka!$AI7,Přehled_body!$A$3:$A$130,0),MATCH(Tabulka!J$2,Přehled_body!$E$1:$ED$1,0)),)="",,IF(IFERROR(INDEX(Přehled_body!$E$3:$ED$130,MATCH(Tabulka!$AI7,Přehled_body!$A$3:$A$130,0),MATCH(Tabulka!J$2,Přehled_body!$E$1:$ED$1,0)),)=0,0.00000000001,IFERROR(INDEX(Přehled_body!$E$3:$ED$130,MATCH(Tabulka!$AI7,Přehled_body!$A$3:$A$130,0),MATCH(Tabulka!J$2,Přehled_body!$E$1:$ED$1,0)),))) -> 0 | K7: =IF(IFERROR(INDEX(Přehled_body!$E$3:$ED$130,MATCH(Tabulka!$AI7,Přehled_body!$A$3:$A$130,0),MATCH(Tabulka!K$2,Přehled_body!$E$1:$ED$1,0)),)="",,IF(IFERROR(INDEX(Přehled_body!$E$3:$ED$130,MATCH(Tabulka!$AI7,Přehled_body!$A$3:$A$130,0),MATCH(Tabulka!K$2,Přehled_body!$E$1:$ED$1,0)),)=0,0.00000000001,IFERROR(INDEX(Přehled_body!$E$3:$ED$130,MATCH(Tabulka!$AI7,Přehled_body!$A$3:$A$130,0),MATCH(Tabulka!K$2,Přehled_body!$E$1:$ED$1,0)),))) -> 0 | L7: =IF(IFERROR(INDEX(Přehled_body!$E$3:$ED$130,MATCH(Tabulka!$AI7,Přehled_body!$A$3:$A$130,0),MATCH(Tabulka!L$2,Přehled_body!$E$1:$ED$1,0)),)="",,IF(IFERROR(INDEX(Přehled_body!$E$3:$ED$130,MATCH(Tabulka!$AI7,Přehled_body!$A$3:$A$130,0),MATCH(Tabulka!L$2,Přehled_body!$E$1:$ED$1,0)),)=0,0.00000000001,IFERROR(INDEX(Přehled_body!$E$3:$ED$130,MATCH(Tabulka!$AI7,Přehled_body!$A$3:$A$130,0),MATCH(Tabulka!L$2,Přehled_body!$E$1:$ED$1,0)),))) -> 0 | M7: =IF(IFERROR(INDEX(Přehled_body!$E$3:$ED$130,MATCH(Tabulka!$AI7,Přehled_body!$A$3:$A$130,0),MATCH(Tabulka!M$2,Přehled_body!$E$1:$ED$1,0)),)="",,IF(IFERROR(INDEX(Přehled_body!$E$3:$ED$130,MATCH(Tabulka!$AI7,Přehled_body!$A$3:$A$130,0),MATCH(Tabulka!M$2,Přehled_body!$E$1:$ED$1,0)),)=0,0.00000000001,IFERROR(INDEX(Přehled_body!$E$3:$ED$130,MATCH(Tabulka!$AI7,Přehled_body!$A$3:$A$130,0),MATCH(Tabulka!M$2,Přehled_body!$E$1:$ED$1,0)),))) -> 0 | N7: =IF(IFERROR(INDEX(Přehled_body!$E$3:$ED$130,MATCH(Tabulka!$AI7,Přehled_body!$A$3:$A$130,0),MATCH(Tabulka!N$2,Přehled_body!$E$1:$ED$1,0)),)="",,IF(IFERROR(INDEX(Přehled_body!$E$3:$ED$130,MATCH(Tabulka!$AI7,Přehled_body!$A$3:$A$130,0),MATCH(Tabulka!N$2,Přehled_body!$E$1:$ED$1,0)),)=0,0.00000000001,IFERROR(INDEX(Přehled_body!$E$3:$ED$130,MATCH(Tabulka!$AI7,Přehled_body!$A$3:$A$130,0),MATCH(Tabulka!N$2,Přehled_body!$E$1:$ED$1,0)),))) -> 0 | O7: =IF(IFERROR(INDEX(Přehled_body!$E$3:$ED$130,MATCH(Tabulka!$AI7,Přehled_body!$A$3:$A$130,0),MATCH(Tabulka!O$2,Přehled_body!$E$1:$ED$1,0)),)="",,IF(IFERROR(INDEX(Přehled_body!$E$3:$ED$130,MATCH(Tabulka!$AI7,Přehled_body!$A$3:$A$130,0),MATCH(Tabulka!O$2,Přehled_body!$E$1:$ED$1,0)),)=0,0.00000000001,IFERROR(INDEX(Přehled_body!$E$3:$ED$130,MATCH(Tabulka!$AI7,Přehled_body!$A$3:$A$130,0),MATCH(Tabulka!O$2,Přehled_body!$E$1:$ED$1,0)),))) -> 0 | P7: =IF(IFERROR(INDEX(Přehled_body!$E$3:$ED$130,MATCH(Tabulka!$AI7,Přehled_body!$A$3:$A$130,0),MATCH(Tabulka!P$2,Přehled_body!$E$1:$ED$1,0)),)="",,IF(IFERROR(INDEX(Přehled_body!$E$3:$ED$130,MATCH(Tabulka!$AI7,Přehled_body!$A$3:$A$130,0),MATCH(Tabulka!P$2,Přehled_body!$E$1:$ED$1,0)),)=0,0.00000000001,IFERROR(INDEX(Přehled_body!$E$3:$ED$130,MATCH(Tabulka!$AI7,Přehled_body!$A$3:$A$130,0),MATCH(Tabulka!P$2,Přehled_body!$E$1:$ED$1,0)),))) -> 0 | Q7: =IF(IFERROR(INDEX(Přehled_body!$E$3:$ED$130,MATCH(Tabulka!$AI7,Přehled_body!$A$3:$A$130,0),MATCH(Tabulka!Q$2,Přehled_body!$E$1:$ED$1,0)),)="",,IF(IFERROR(INDEX(Přehled_body!$E$3:$ED$130,MATCH(Tabulka!$AI7,Přehled_body!$A$3:$A$130,0),MATCH(Tabulka!Q$2,Přehled_body!$E$1:$ED$1,0)),)=0,0.00000000001,IFERROR(INDEX(Přehled_body!$E$3:$ED$130,MATCH(Tabulka!$AI7,Přehled_body!$A$3:$A$130,0),MATCH(Tabulka!Q$2,Přehled_body!$E$1:$ED$1,0)),))) -> 0 | R7: =IF(IFERROR(INDEX(Přehled_body!$E$3:$ED$130,MATCH(Tabulka!$AI7,Přehled_body!$A$3:$A$130,0),MATCH(Tabulka!R$2,Přehled_body!$E$1:$ED$1,0)),)="",,IF(IFERROR(INDEX(Přehled_body!$E$3:$ED$130,MATCH(Tabulka!$AI7,Přehled_body!$A$3:$A$130,0),MATCH(Tabulka!R$2,Přehled_body!$E$1:$ED$1,0)),)=0,0.00000000001,IFERROR(INDEX(Přehled_body!$E$3:$ED$130,MATCH(Tabulka!$AI7,Přehled_body!$A$3:$A$130,0),MATCH(Tabulka!R$2,Přehled_body!$E$1:$ED$1,0)),))) -> 0 | S7: =IF(IFERROR(INDEX(Přehled_body!$E$3:$ED$130,MATCH(Tabulka!$AI7,Přehled_body!$A$3:$A$130,0),MATCH(Tabulka!S$2,Přehled_body!$E$1:$ED$1,0)),)="",,IF(IFERROR(INDEX(Přehled_body!$E$3:$ED$130,MATCH(Tabulka!$AI7,Přehled_body!$A$3:$A$130,0),MATCH(Tabulka!S$2,Přehled_body!$E$1:$ED$1,0)),)=0,0.00000000001,IFERROR(INDEX(Přehled_body!$E$3:$ED$130,MATCH(Tabulka!$AI7,Přehled_body!$A$3:$A$130,0),MATCH(Tabulka!S$2,Přehled_body!$E$1:$ED$1,0)),))) -> 0 | T7: =IF(IFERROR(INDEX(Přehled_body!$E$3:$ED$130,MATCH(Tabulka!$AI7,Přehled_body!$A$3:$A$130,0),MATCH(Tabulka!T$2,Přehled_body!$E$1:$ED$1,0)),)="",,IF(IFERROR(INDEX(Přehled_body!$E$3:$ED$130,MATCH(Tabulka!$AI7,Přehled_body!$A$3:$A$130,0),MATCH(Tabulka!T$2,Přehled_body!$E$1:$ED$1,0)),)=0,0.00000000001,IFERROR(INDEX(Přehled_body!$E$3:$ED$130,MATCH(Tabulka!$AI7,Přehled_body!$A$3:$A$130,0),MATCH(Tabulka!T$2,Přehled_body!$E$1:$ED$1,0)),))) -> 0 | U7: =IF(IFERROR(INDEX(Přehled_body!$E$3:$ED$130,MATCH(Tabulka!$AI7,Přehled_body!$A$3:$A$130,0),MATCH(Tabulka!U$2,Přehled_body!$E$1:$ED$1,0)),)="",,IF(IFERROR(INDEX(Přehled_body!$E$3:$ED$130,MATCH(Tabulka!$AI7,Přehled_body!$A$3:$A$130,0),MATCH(Tabulka!U$2,Přehled_body!$E$1:$ED$1,0)),)=0,0.00000000001,IFERROR(INDEX(Přehled_body!$E$3:$ED$130,MATCH(Tabulka!$AI7,Přehled_body!$A$3:$A$130,0),MATCH(Tabulka!U$2,Přehled_body!$E$1:$ED$1,0)),))) -> 0 | V7: =IF(IFERROR(INDEX(Přehled_body!$E$3:$ED$130,MATCH(Tabulka!$AI7,Přehled_body!$A$3:$A$130,0),MATCH(Tabulka!V$2,Přehled_body!$E$1:$ED$1,0)),)="",,IF(IFERROR(INDEX(Přehled_body!$E$3:$ED$130,MATCH(Tabulka!$AI7,Přehled_body!$A$3:$A$130,0),MATCH(Tabulka!V$2,Přehled_body!$E$1:$ED$1,0)),)=0,0.00000000001,IFERROR(INDEX(Přehled_body!$E$3:$ED$130,MATCH(Tabulka!$AI7,Přehled_body!$A$3:$A$130,0),MATCH(Tabulka!V$2,Přehled_body!$E$1:$ED$1,0)),))) -> 0 | W7: =IF(IFERROR(INDEX(Přehled_body!$E$3:$ED$130,MATCH(Tabulka!$AI7,Přehled_body!$A$3:$A$130,0),MATCH(Tabulka!W$2,Přehled_body!$E$1:$ED$1,0)),)="",,IF(IFERROR(INDEX(Přehled_body!$E$3:$ED$130,MATCH(Tabulka!$AI7,Přehled_body!$A$3:$A$130,0),MATCH(Tabulka!W$2,Přehled_body!$E$1:$ED$1,0)),)=0,0.00000000001,IFERROR(INDEX(Přehled_body!$E$3:$ED$130,MATCH(Tabulka!$AI7,Přehled_body!$A$3:$A$130,0),MATCH(Tabulka!W$2,Přehled_body!$E$1:$ED$1,0)),))) -> 0 | X7: =IF(IFERROR(INDEX(Přehled_body!$E$3:$ED$130,MATCH(Tabulka!$AI7,Přehled_body!$A$3:$A$130,0),MATCH(Tabulka!X$2,Přehled_body!$E$1:$ED$1,0)),)="",,IF(IFERROR(INDEX(Přehled_body!$E$3:$ED$130,MATCH(Tabulka!$AI7,Přehled_body!$A$3:$A$130,0),MATCH(Tabulka!X$2,Přehled_body!$E$1:$ED$1,0)),)=0,0.00000000001,IFERROR(INDEX(Přehled_body!$E$3:$ED$130,MATCH(Tabulka!$AI7,Přehled_body!$A$3:$A$130,0),MATCH(Tabulka!X$2,Přehled_body!$E$1:$ED$1,0)),))) -> 0 | Y7: =IF(IFERROR(INDEX(Přehled_body!$E$3:$ED$130,MATCH(Tabulka!$AI7,Přehled_body!$A$3:$A$130,0),MATCH(Tabulka!Y$2,Přehled_body!$E$1:$ED$1,0)),)="",,IF(IFERROR(INDEX(Přehled_body!$E$3:$ED$130,MATCH(Tabulka!$AI7,Přehled_body!$A$3:$A$130,0),MATCH(Tabulka!Y$2,Přehled_body!$E$1:$ED$1,0)),)=0,0.00000000001,IFERROR(INDEX(Přehled_body!$E$3:$ED$130,MATCH(Tabulka!$AI7,Přehled_body!$A$3:$A$130,0),MATCH(Tabulka!Y$2,Přehled_body!$E$1:$ED$1,0)),))) -> 0 | Z7: =IF(IFERROR(INDEX(Přehled_body!$E$3:$ED$130,MATCH(Tabulka!$AI7,Přehled_body!$A$3:$A$130,0),MATCH(Tabulka!Z$2,Přehled_body!$E$1:$ED$1,0)),)="",,IF(IFERROR(INDEX(Přehled_body!$E$3:$ED$130,MATCH(Tabulka!$AI7,Přehled_body!$A$3:$A$130,0),MATCH(Tabulka!Z$2,Přehled_body!$E$1:$ED$1,0)),)=0,0.00000000001,IFERROR(INDEX(Přehled_body!$E$3:$ED$130,MATCH(Tabulka!$AI7,Přehled_body!$A$3:$A$130,0),MATCH(Tabulka!Z$2,Přehled_body!$E$1:$ED$1,0)),))) -> 0 | AA7: =IF(IFERROR(INDEX(Přehled_body!$E$3:$ED$130,MATCH(Tabulka!$AI7,Přehled_body!$A$3:$A$130,0),MATCH(Tabulka!AA$2,Přehled_body!$E$1:$ED$1,0)),)="",,IF(IFERROR(INDEX(Přehled_body!$E$3:$ED$130,MATCH(Tabulka!$AI7,Přehled_body!$A$3:$A$130,0),MATCH(Tabulka!AA$2,Přehled_body!$E$1:$ED$1,0)),)=0,0.00000000001,IFERROR(INDEX(Přehled_body!$E$3:$ED$130,MATCH(Tabulka!$AI7,Přehled_body!$A$3:$A$130,0),MATCH(Tabulka!AA$2,Přehled_body!$E$1:$ED$1,0)),))) -> 0 | AB7: =IF(IFERROR(INDEX(Přehled_body!$E$3:$ED$130,MATCH(Tabulka!$AI7,Přehled_body!$A$3:$A$130,0),MATCH(Tabulka!AB$2,Přehled_body!$E$1:$ED$1,0)),)="",,IF(IFERROR(INDEX(Přehled_body!$E$3:$ED$130,MATCH(Tabulka!$AI7,Přehled_body!$A$3:$A$130,0),MATCH(Tabulka!AB$2,Přehled_body!$E$1:$ED$1,0)),)=0,0.00000000001,IFERROR(INDEX(Přehled_body!$E$3:$ED$130,MATCH(Tabulka!$AI7,Přehled_body!$A$3:$A$130,0),MATCH(Tabulka!AB$2,Přehled_body!$E$1:$ED$1,0)),))) -> 0 | AC7: =IF(IFERROR(INDEX(Přehled_body!$E$3:$ED$130,MATCH(Tabulka!$AI7,Přehled_body!$A$3:$A$130,0),MATCH(Tabulka!AC$2,Přehled_body!$E$1:$ED$1,0)),)="",,IF(IFERROR(INDEX(Přehled_body!$E$3:$ED$130,MATCH(Tabulka!$AI7,Přehled_body!$A$3:$A$130,0),MATCH(Tabulka!AC$2,Přehled_body!$E$1:$ED$1,0)),)=0,0.00000000001,IFERROR(INDEX(Přehled_body!$E$3:$ED$130,MATCH(Tabulka!$AI7,Přehled_body!$A$3:$A$130,0),MATCH(Tabulka!AC$2,Přehled_body!$E$1:$ED$1,0)),))) -> 0 | AD7: =IF(IFERROR(INDEX(Přehled_body!$E$3:$ED$130,MATCH(Tabulka!$AI7,Přehled_body!$A$3:$A$130,0),MATCH(Tabulka!AD$2,Přehled_body!$E$1:$ED$1,0)),)="",,IF(IFERROR(INDEX(Přehled_body!$E$3:$ED$130,MATCH(Tabulka!$AI7,Přehled_body!$A$3:$A$130,0),MATCH(Tabulka!AD$2,Přehled_body!$E$1:$ED$1,0)),)=0,0.00000000001,IFERROR(INDEX(Přehled_body!$E$3:$ED$130,MATCH(Tabulka!$AI7,Přehled_body!$A$3:$A$130,0),MATCH(Tabulka!AD$2,Přehled_body!$E$1:$ED$1,0)),))) -> 0 | AE7: =IF(SUM(AG4)<2,-90000+SUM(D7:AD7),SUM(D7:AD7)) -> -90000 | AH7: 0 | AI7: =CONCATENATE($B$5," ",$B$6,C7) -> Jiří FialaPřehozy | AL7: 0 | AP7: =CONCATENATE(AQ7," ",AQ6) -> Hruška Libor | AQ7: Hruška
C8: Poč. kol | D8: =IF(IFERROR(INDEX(Přehled_body!$E$3:$ED$130,MATCH(Tabulka!$AI8,Přehled_body!$A$3:$A$130,0),MATCH(Tabulka!D$2,Přehled_body!$E$1:$ED$1,0)),)="",,IF(IFERROR(INDEX(Přehled_body!$E$3:$ED$130,MATCH(Tabulka!$AI8,Přehled_body!$A$3:$A$130,0),MATCH(Tabulka!D$2,Přehled_body!$E$1:$ED$1,0)),)=0,0.00000000001,IFERROR(INDEX(Přehled_body!$E$3:$ED$130,MATCH(Tabulka!$AI8,Přehled_body!$A$3:$A$130,0),MATCH(Tabulka!D$2,Přehled_body!$E$1:$ED$1,0)),))) -> 0 | E8: =IF(IFERROR(INDEX(Přehled_body!$E$3:$ED$130,MATCH(Tabulka!$AI8,Přehled_body!$A$3:$A$130,0),MATCH(Tabulka!E$2,Přehled_body!$E$1:$ED$1,0)),)="",,IF(IFERROR(INDEX(Přehled_body!$E$3:$ED$130,MATCH(Tabulka!$AI8,Přehled_body!$A$3:$A$130,0),MATCH(Tabulka!E$2,Přehled_body!$E$1:$ED$1,0)),)=0,0.00000000001,IFERROR(INDEX(Přehled_body!$E$3:$ED$130,MATCH(Tabulka!$AI8,Přehled_body!$A$3:$A$130,0),MATCH(Tabulka!E$2,Přehled_body!$E$1:$ED$1,0)),))) -> 0 | F8: =IF(IFERROR(INDEX(Přehled_body!$E$3:$ED$130,MATCH(Tabulka!$AI8,Přehled_body!$A$3:$A$130,0),MATCH(Tabulka!F$2,Přehled_body!$E$1:$ED$1,0)),)="",,IF(IFERROR(INDEX(Přehled_body!$E$3:$ED$130,MATCH(Tabulka!$AI8,Přehled_body!$A$3:$A$130,0),MATCH(Tabulka!F$2,Přehled_body!$E$1:$ED$1,0)),)=0,0.00000000001,IFERROR(INDEX(Přehled_body!$E$3:$ED$130,MATCH(Tabulka!$AI8,Přehled_body!$A$3:$A$130,0),MATCH(Tabulka!F$2,Přehled_body!$E$1:$ED$1,0)),))) -> 0 | G8: =IF(IFERROR(INDEX(Přehled_body!$E$3:$ED$130,MATCH(Tabulka!$AI8,Přehled_body!$A$3:$A$130,0),MATCH(Tabulka!G$2,Přehled_body!$E$1:$ED$1,0)),)="",,IF(IFERROR(INDEX(Přehled_body!$E$3:$ED$130,MATCH(Tabulka!$AI8,Přehled_body!$A$3:$A$130,0),MATCH(Tabulka!G$2,Přehled_body!$E$1:$ED$1,0)),)=0,0.00000000001,IFERROR(INDEX(Přehled_body!$E$3:$ED$130,MATCH(Tabulka!$AI8,Přehled_body!$A$3:$A$130,0),MATCH(Tabulka!G$2,Přehled_body!$E$1:$ED$1,0)),))) -> 0 | H8: =IF(IFERROR(INDEX(Přehled_body!$E$3:$ED$130,MATCH(Tabulka!$AI8,Přehled_body!$A$3:$A$130,0),MATCH(Tabulka!H$2,Přehled_body!$E$1:$ED$1,0)),)="",,IF(IFERROR(INDEX(Přehled_body!$E$3:$ED$130,MATCH(Tabulka!$AI8,Přehled_body!$A$3:$A$130,0),MATCH(Tabulka!H$2,Přehled_body!$E$1:$ED$1,0)),)=0,0.00000000001,IFERROR(INDEX(Přehled_body!$E$3:$ED$130,MATCH(Tabulka!$AI8,Přehled_body!$A$3:$A$130,0),MATCH(Tabulka!H$2,Přehled_body!$E$1:$ED$1,0)),))) -> 0 | I8: =IF(IFERROR(INDEX(Přehled_body!$E$3:$ED$130,MATCH(Tabulka!$AI8,Přehled_body!$A$3:$A$130,0),MATCH(Tabulka!I$2,Přehled_body!$E$1:$ED$1,0)),)="",,IF(IFERROR(INDEX(Přehled_body!$E$3:$ED$130,MATCH(Tabulka!$AI8,Přehled_body!$A$3:$A$130,0),MATCH(Tabulka!I$2,Přehled_body!$E$1:$ED$1,0)),)=0,0.00000000001,IFERROR(INDEX(Přehled_body!$E$3:$ED$130,MATCH(Tabulka!$AI8,Přehled_body!$A$3:$A$130,0),MATCH(Tabulka!I$2,Přehled_body!$E$1:$ED$1,0)),))) -> 0 | J8: =IF(IFERROR(INDEX(Přehled_body!$E$3:$ED$130,MATCH(Tabulka!$AI8,Přehled_body!$A$3:$A$130,0),MATCH(Tabulka!J$2,Přehled_body!$E$1:$ED$1,0)),)="",,IF(IFERROR(INDEX(Přehled_body!$E$3:$ED$130,MATCH(Tabulka!$AI8,Přehled_body!$A$3:$A$130,0),MATCH(Tabulka!J$2,Přehled_body!$E$1:$ED$1,0)),)=0,0.00000000001,IFERROR(INDEX(Přehled_body!$E$3:$ED$130,MATCH(Tabulka!$AI8,Přehled_body!$A$3:$A$130,0),MATCH(Tabulka!J$2,Přehled_body!$E$1:$ED$1,0)),))) -> 0 | K8: =IF(IFERROR(INDEX(Přehled_body!$E$3:$ED$130,MATCH(Tabulka!$AI8,Přehled_body!$A$3:$A$130,0),MATCH(Tabulka!K$2,Přehled_body!$E$1:$ED$1,0)),)="",,IF(IFERROR(INDEX(Přehled_body!$E$3:$ED$130,MATCH(Tabulka!$AI8,Přehled_body!$A$3:$A$130,0),MATCH(Tabulka!K$2,Přehled_body!$E$1:$ED$1,0)),)=0,0.00000000001,IFERROR(INDEX(Přehled_body!$E$3:$ED$130,MATCH(Tabulka!$AI8,Přehled_body!$A$3:$A$130,0),MATCH(Tabulka!K$2,Přehled_body!$E$1:$ED$1,0)),))) -> 0 | L8: =IF(IFERROR(INDEX(Přehled_body!$E$3:$ED$130,MATCH(Tabulka!$AI8,Přehled_body!$A$3:$A$130,0),MATCH(Tabulka!L$2,Přehled_body!$E$1:$ED$1,0)),)="",,IF(IFERROR(INDEX(Přehled_body!$E$3:$ED$130,MATCH(Tabulka!$AI8,Přehled_body!$A$3:$A$130,0),MATCH(Tabulka!L$2,Přehled_body!$E$1:$ED$1,0)),)=0,0.00000000001,IFERROR(INDEX(Přehled_body!$E$3:$ED$130,MATCH(Tabulka!$AI8,Přehled_body!$A$3:$A$130,0),MATCH(Tabulka!L$2,Přehled_body!$E$1:$ED$1,0)),))) -> 0 | M8: =IF(IFERROR(INDEX(Přehled_body!$E$3:$ED$130,MATCH(Tabulka!$AI8,Přehled_body!$A$3:$A$130,0),MATCH(Tabulka!M$2,Přehled_body!$E$1:$ED$1,0)),)="",,IF(IFERROR(INDEX(Přehled_body!$E$3:$ED$130,MATCH(Tabulka!$AI8,Přehled_body!$A$3:$A$130,0),MATCH(Tabulka!M$2,Přehled_body!$E$1:$ED$1,0)),)=0,0.00000000001,IFERROR(INDEX(Přehled_body!$E$3:$ED$130,MATCH(Tabulka!$AI8,Přehled_body!$A$3:$A$130,0),MATCH(Tabulka!M$2,Přehled_body!$E$1:$ED$1,0)),))) -> 0 | N8: =IF(IFERROR(INDEX(Přehled_body!$E$3:$ED$130,MATCH(Tabulka!$AI8,Přehled_body!$A$3:$A$130,0),MATCH(Tabulka!N$2,Přehled_body!$E$1:$ED$1,0)),)="",,IF(IFERROR(INDEX(Přehled_body!$E$3:$ED$130,MATCH(Tabulka!$AI8,Přehled_body!$A$3:$A$130,0),MATCH(Tabulka!N$2,Přehled_body!$E$1:$ED$1,0)),)=0,0.00000000001,IFERROR(INDEX(Přehled_body!$E$3:$ED$130,MATCH(Tabulka!$AI8,Přehled_body!$A$3:$A$130,0),MATCH(Tabulka!N$2,Přehled_body!$E$1:$ED$1,0)),))) -> 0 | O8: =IF(IFERROR(INDEX(Přehled_body!$E$3:$ED$130,MATCH(Tabulka!$AI8,Přehled_body!$A$3:$A$130,0),MATCH(Tabulka!O$2,Přehled_body!$E$1:$ED$1,0)),)="",,IF(IFERROR(INDEX(Přehled_body!$E$3:$ED$130,MATCH(Tabulka!$AI8,Přehled_body!$A$3:$A$130,0),MATCH(Tabulka!O$2,Přehled_body!$E$1:$ED$1,0)),)=0,0.00000000001,IFERROR(INDEX(Přehled_body!$E$3:$ED$130,MATCH(Tabulka!$AI8,Přehled_body!$A$3:$A$130,0),MATCH(Tabulka!O$2,Přehled_body!$E$1:$ED$1,0)),))) -> 0 | P8: =IF(IFERROR(INDEX(Přehled_body!$E$3:$ED$130,MATCH(Tabulka!$AI8,Přehled_body!$A$3:$A$130,0),MATCH(Tabulka!P$2,Přehled_body!$E$1:$ED$1,0)),)="",,IF(IFERROR(INDEX(Přehled_body!$E$3:$ED$130,MATCH(Tabulka!$AI8,Přehled_body!$A$3:$A$130,0),MATCH(Tabulka!P$2,Přehled_body!$E$1:$ED$1,0)),)=0,0.00000000001,IFERROR(INDEX(Přehled_body!$E$3:$ED$130,MATCH(Tabulka!$AI8,Přehled_body!$A$3:$A$130,0),MATCH(Tabulka!P$2,Přehled_body!$E$1:$ED$1,0)),))) -> 0 | Q8: =IF(IFERROR(INDEX(Přehled_body!$E$3:$ED$130,MATCH(Tabulka!$AI8,Přehled_body!$A$3:$A$130,0),MATCH(Tabulka!Q$2,Přehled_body!$E$1:$ED$1,0)),)="",,IF(IFERROR(INDEX(Přehled_body!$E$3:$ED$130,MATCH(Tabulka!$AI8,Přehled_body!$A$3:$A$130,0),MATCH(Tabulka!Q$2,Přehled_body!$E$1:$ED$1,0)),)=0,0.00000000001,IFERROR(INDEX(Přehled_body!$E$3:$ED$130,MATCH(Tabulka!$AI8,Přehled_body!$A$3:$A$130,0),MATCH(Tabulka!Q$2,Přehled_body!$E$1:$ED$1,0)),))) -> 0 | R8: =IF(IFERROR(INDEX(Přehled_body!$E$3:$ED$130,MATCH(Tabulka!$AI8,Přehled_body!$A$3:$A$130,0),MATCH(Tabulka!R$2,Přehled_body!$E$1:$ED$1,0)),)="",,IF(IFERROR(INDEX(Přehled_body!$E$3:$ED$130,MATCH(Tabulka!$AI8,Přehled_body!$A$3:$A$130,0),MATCH(Tabulka!R$2,Přehled_body!$E$1:$ED$1,0)),)=0,0.00000000001,IFERROR(INDEX(Přehled_body!$E$3:$ED$130,MATCH(Tabulka!$AI8,Přehled_body!$A$3:$A$130,0),MATCH(Tabulka!R$2,Přehled_body!$E$1:$ED$1,0)),))) -> 0 | S8: =IF(IFERROR(INDEX(Přehled_body!$E$3:$ED$130,MATCH(Tabulka!$AI8,Přehled_body!$A$3:$A$130,0),MATCH(Tabulka!S$2,Přehled_body!$E$1:$ED$1,0)),)="",,IF(IFERROR(INDEX(Přehled_body!$E$3:$ED$130,MATCH(Tabulka!$AI8,Přehled_body!$A$3:$A$130,0),MATCH(Tabulka!S$2,Přehled_body!$E$1:$ED$1,0)),)=0,0.00000000001,IFERROR(INDEX(Přehled_body!$E$3:$ED$130,MATCH(Tabulka!$AI8,Přehled_body!$A$3:$A$130,0),MATCH(Tabulka!S$2,Přehled_body!$E$1:$ED$1,0)),))) -> 0 | T8: =IF(IFERROR(INDEX(Přehled_body!$E$3:$ED$130,MATCH(Tabulka!$AI8,Přehled_body!$A$3:$A$130,0),MATCH(Tabulka!T$2,Přehled_body!$E$1:$ED$1,0)),)="",,IF(IFERROR(INDEX(Přehled_body!$E$3:$ED$130,MATCH(Tabulka!$AI8,Přehled_body!$A$3:$A$130,0),MATCH(Tabulka!T$2,Přehled_body!$E$1:$ED$1,0)),)=0,0.00000000001,IFERROR(INDEX(Přehled_body!$E$3:$ED$130,MATCH(Tabulka!$AI8,Přehled_body!$A$3:$A$130,0),MATCH(Tabulka!T$2,Přehled_body!$E$1:$ED$1,0)),))) -> 0 | U8: =IF(IFERROR(INDEX(Přehled_body!$E$3:$ED$130,MATCH(Tabulka!$AI8,Přehled_body!$A$3:$A$130,0),MATCH(Tabulka!U$2,Přehled_body!$E$1:$ED$1,0)),)="",,IF(IFERROR(INDEX(Přehled_body!$E$3:$ED$130,MATCH(Tabulka!$AI8,Přehled_body!$A$3:$A$130,0),MATCH(Tabulka!U$2,Přehled_body!$E$1:$ED$1,0)),)=0,0.00000000001,IFERROR(INDEX(Přehled_body!$E$3:$ED$130,MATCH(Tabulka!$AI8,Přehled_body!$A$3:$A$130,0),MATCH(Tabulka!U$2,Přehled_body!$E$1:$ED$1,0)),))) -> 0 | V8: =IF(IFERROR(INDEX(Přehled_body!$E$3:$ED$130,MATCH(Tabulka!$AI8,Přehled_body!$A$3:$A$130,0),MATCH(Tabulka!V$2,Přehled_body!$E$1:$ED$1,0)),)="",,IF(IFERROR(INDEX(Přehled_body!$E$3:$ED$130,MATCH(Tabulka!$AI8,Přehled_body!$A$3:$A$130,0),MATCH(Tabulka!V$2,Přehled_body!$E$1:$ED$1,0)),)=0,0.00000000001,IFERROR(INDEX(Přehled_body!$E$3:$ED$130,MATCH(Tabulka!$AI8,Přehled_body!$A$3:$A$130,0),MATCH(Tabulka!V$2,Přehled_body!$E$1:$ED$1,0)),))) -> 0 | W8: =IF(IFERROR(INDEX(Přehled_body!$E$3:$ED$130,MATCH(Tabulka!$AI8,Přehled_body!$A$3:$A$130,0),MATCH(Tabulka!W$2,Přehled_body!$E$1:$ED$1,0)),)="",,IF(IFERROR(INDEX(Přehled_body!$E$3:$ED$130,MATCH(Tabulka!$AI8,Přehled_body!$A$3:$A$130,0),MATCH(Tabulka!W$2,Přehled_body!$E$1:$ED$1,0)),)=0,0.00000000001,IFERROR(INDEX(Přehled_body!$E$3:$ED$130,MATCH(Tabulka!$AI8,Přehled_body!$A$3:$A$130,0),MATCH(Tabulka!W$2,Přehled_body!$E$1:$ED$1,0)),))) -> 0 | X8: =IF(IFERROR(INDEX(Přehled_body!$E$3:$ED$130,MATCH(Tabulka!$AI8,Přehled_body!$A$3:$A$130,0),MATCH(Tabulka!X$2,Přehled_body!$E$1:$ED$1,0)),)="",,IF(IFERROR(INDEX(Přehled_body!$E$3:$ED$130,MATCH(Tabulka!$AI8,Přehled_body!$A$3:$A$130,0),MATCH(Tabulka!X$2,Přehled_body!$E$1:$ED$1,0)),)=0,0.00000000001,IFERROR(INDEX(Přehled_body!$E$3:$ED$130,MATCH(Tabulka!$AI8,Přehled_body!$A$3:$A$130,0),MATCH(Tabulka!X$2,Přehled_body!$E$1:$ED$1,0)),))) -> 0 | Y8: =IF(IFERROR(INDEX(Přehled_body!$E$3:$ED$130,MATCH(Tabulka!$AI8,Přehled_body!$A$3:$A$130,0),MATCH(Tabulka!Y$2,Přehled_body!$E$1:$ED$1,0)),)="",,IF(IFERROR(INDEX(Přehled_body!$E$3:$ED$130,MATCH(Tabulka!$AI8,Přehled_body!$A$3:$A$130,0),MATCH(Tabulka!Y$2,Přehled_body!$E$1:$ED$1,0)),)=0,0.00000000001,IFERROR(INDEX(Přehled_body!$E$3:$ED$130,MATCH(Tabulka!$AI8,Přehled_body!$A$3:$A$130,0),MATCH(Tabulka!Y$2,Přehled_body!$E$1:$ED$1,0)),))) -> 0 | Z8: =IF(IFERROR(INDEX(Přehled_body!$E$3:$ED$130,MATCH(Tabulka!$AI8,Přehled_body!$A$3:$A$130,0),MATCH(Tabulka!Z$2,Přehled_body!$E$1:$ED$1,0)),)="",,IF(IFERROR(INDEX(Přehled_body!$E$3:$ED$130,MATCH(Tabulka!$AI8,Přehled_body!$A$3:$A$130,0),MATCH(Tabulka!Z$2,Přehled_body!$E$1:$ED$1,0)),)=0,0.00000000001,IFERROR(INDEX(Přehled_body!$E$3:$ED$130,MATCH(Tabulka!$AI8,Přehled_body!$A$3:$A$130,0),MATCH(Tabulka!Z$2,Přehled_body!$E$1:$ED$1,0)),))) -> 0 | AA8: =IF(IFERROR(INDEX(Přehled_body!$E$3:$ED$130,MATCH(Tabulka!$AI8,Přehled_body!$A$3:$A$130,0),MATCH(Tabulka!AA$2,Přehled_body!$E$1:$ED$1,0)),)="",,IF(IFERROR(INDEX(Přehled_body!$E$3:$ED$130,MATCH(Tabulka!$AI8,Přehled_body!$A$3:$A$130,0),MATCH(Tabulka!AA$2,Přehled_body!$E$1:$ED$1,0)),)=0,0.00000000001,IFERROR(INDEX(Přehled_body!$E$3:$ED$130,MATCH(Tabulka!$AI8,Přehled_body!$A$3:$A$130,0),MATCH(Tabulka!AA$2,Přehled_body!$E$1:$ED$1,0)),))) -> 0 | AB8: =IF(IFERROR(INDEX(Přehled_body!$E$3:$ED$130,MATCH(Tabulka!$AI8,Přehled_body!$A$3:$A$130,0),MATCH(Tabulka!AB$2,Přehled_body!$E$1:$ED$1,0)),)="",,IF(IFERROR(INDEX(Přehled_body!$E$3:$ED$130,MATCH(Tabulka!$AI8,Přehled_body!$A$3:$A$130,0),MATCH(Tabulka!AB$2,Přehled_body!$E$1:$ED$1,0)),)=0,0.00000000001,IFERROR(INDEX(Přehled_body!$E$3:$ED$130,MATCH(Tabulka!$AI8,Přehled_body!$A$3:$A$130,0),MATCH(Tabulka!AB$2,Přehled_body!$E$1:$ED$1,0)),))) -> 0 | AC8: =IF(IFERROR(INDEX(Přehled_body!$E$3:$ED$130,MATCH(Tabulka!$AI8,Přehled_body!$A$3:$A$130,0),MATCH(Tabulka!AC$2,Přehled_body!$E$1:$ED$1,0)),)="",,IF(IFERROR(INDEX(Přehled_body!$E$3:$ED$130,MATCH(Tabulka!$AI8,Přehled_body!$A$3:$A$130,0),MATCH(Tabulka!AC$2,Přehled_body!$E$1:$ED$1,0)),)=0,0.00000000001,IFERROR(INDEX(Přehled_body!$E$3:$ED$130,MATCH(Tabulka!$AI8,Přehled_body!$A$3:$A$130,0),MATCH(Tabulka!AC$2,Přehled_body!$E$1:$ED$1,0)),))) -> 0 | AD8: =IF(IFERROR(INDEX(Přehled_body!$E$3:$ED$130,MATCH(Tabulka!$AI8,Přehled_body!$A$3:$A$130,0),MATCH(Tabulka!AD$2,Přehled_body!$E$1:$ED$1,0)),)="",,IF(IFERROR(INDEX(Přehled_body!$E$3:$ED$130,MATCH(Tabulka!$AI8,Přehled_body!$A$3:$A$130,0),MATCH(Tabulka!AD$2,Přehled_body!$E$1:$ED$1,0)),)=0,0.00000000001,IFERROR(INDEX(Přehled_body!$E$3:$ED$130,MATCH(Tabulka!$AI8,Přehled_body!$A$3:$A$130,0),MATCH(Tabulka!AD$2,Přehled_body!$E$1:$ED$1,0)),))) -> 0 | AE8: =IF(SUM(AG4)<2,-90000+SUM(D8:AD8),SUM(D8:AD8)) -> -90000 | AH8: 0 | AI8: =CONCATENATE($B$5," ",$B$6,C8) -> Jiří FialaPoč. kol | AL8: 0
A9: 2 | C9: Výhry | D9: =IF(IFERROR(INDEX(Přehled_body!$E$3:$ED$130,MATCH(Tabulka!$AI9,Přehled_body!$A$3:$A$130,0),MATCH(Tabulka!D$2,Přehled_body!$E$1:$ED$1,0)),)="",,IF(IFERROR(INDEX(Přehled_body!$E$3:$ED$130,MATCH(Tabulka!$AI9,Přehled_body!$A$3:$A$130,0),MATCH(Tabulka!D$2,Přehled_body!$E$1:$ED$1,0)),)=0,0.00000000001,IFERROR(INDEX(Přehled_body!$E$3:$ED$130,MATCH(Tabulka!$AI9,Přehled_body!$A$3:$A$130,0),MATCH(Tabulka!D$2,Přehled_body!$E$1:$ED$1,0)),))) -> 1 | E9: =IF(IFERROR(INDEX(Přehled_body!$E$3:$ED$130,MATCH(Tabulka!$AI9,Přehled_body!$A$3:$A$130,0),MATCH(Tabulka!E$2,Přehled_body!$E$1:$ED$1,0)),)="",,IF(IFERROR(INDEX(Přehled_body!$E$3:$ED$130,MATCH(Tabulka!$AI9,Přehled_body!$A$3:$A$130,0),MATCH(Tabulka!E$2,Přehled_body!$E$1:$ED$1,0)),)=0,0.00000000001,IFERROR(INDEX(Přehled_body!$E$3:$ED$130,MATCH(Tabulka!$AI9,Přehled_body!$A$3:$A$130,0),MATCH(Tabulka!E$2,Přehled_body!$E$1:$ED$1,0)),))) -> 3 | F9: =IF(IFERROR(INDEX(Přehled_body!$E$3:$ED$130,MATCH(Tabulka!$AI9,Přehled_body!$A$3:$A$130,0),MATCH(Tabulka!F$2,Přehled_body!$E$1:$ED$1,0)),)="",,IF(IFERROR(INDEX(Přehled_body!$E$3:$ED$130,MATCH(Tabulka!$AI9,Přehled_body!$A$3:$A$130,0),MATCH(Tabulka!F$2,Přehled_body!$E$1:$ED$1,0)),)=0,0.00000000001,IFERROR(INDEX(Přehled_body!$E$3:$ED$130,MATCH(Tabulka!$AI9,Přehled_body!$A$3:$A$130,0),MATCH(Tabulka!F$2,Přehled_body!$E$1:$ED$1,0)),))) -> 1 | G9: =IF(IFERROR(INDEX(Přehled_body!$E$3:$ED$130,MATCH(Tabulka!$AI9,Přehled_body!$A$3:$A$130,0),MATCH(Tabulka!G$2,Přehled_body!$E$1:$ED$1,0)),)="",,IF(IFERROR(INDEX(Přehled_body!$E$3:$ED$130,MATCH(Tabulka!$AI9,Přehled_body!$A$3:$A$130,0),MATCH(Tabulka!G$2,Přehled_body!$E$1:$ED$1,0)),)=0,0.00000000001,IFERROR(INDEX(Přehled_body!$E$3:$ED$130,MATCH(Tabulka!$AI9,Přehled_body!$A$3:$A$130,0),MATCH(Tabulka!G$2,Přehled_body!$E$1:$ED$1,0)),))) -> 1 | H9: =IF(IFERROR(INDEX(Přehled_body!$E$3:$ED$130,MATCH(Tabulka!$AI9,Přehled_body!$A$3:$A$130,0),MATCH(Tabulka!H$2,Přehled_body!$E$1:$ED$1,0)),)="",,IF(IFERROR(INDEX(Přehled_body!$E$3:$ED$130,MATCH(Tabulka!$AI9,Přehled_body!$A$3:$A$130,0),MATCH(Tabulka!H$2,Přehled_body!$E$1:$ED$1,0)),)=0,0.00000000001,IFERROR(INDEX(Přehled_body!$E$3:$ED$130,MATCH(Tabulka!$AI9,Přehled_body!$A$3:$A$130,0),MATCH(Tabulka!H$2,Přehled_body!$E$1:$ED$1,0)),))) -> 1e-11 | I9: =IF(IFERROR(INDEX(Přehled_body!$E$3:$ED$130,MATCH(Tabulka!$AI9,Přehled_body!$A$3:$A$130,0),MATCH(Tabulka!I$2,Přehled_body!$E$1:$ED$1,0)),)="",,IF(IFERROR(INDEX(Přehled_body!$E$3:$ED$130,MATCH(Tabulka!$AI9,Přehled_body!$A$3:$A$130,0),MATCH(Tabulka!I$2,Přehled_body!$E$1:$ED$1,0)),)=0,0.00000000001,IFERROR(INDEX(Přehled_body!$E$3:$ED$130,MATCH(Tabulka!$AI9,Přehled_body!$A$3:$A$130,0),MATCH(Tabulka!I$2,Přehled_body!$E$1:$ED$1,0)),))) -> 1e-11 | J9: =IF(IFERROR(INDEX(Přehled_body!$E$3:$ED$130,MATCH(Tabulka!$AI9,Přehled_body!$A$3:$A$130,0),MATCH(Tabulka!J$2,Přehled_body!$E$1:$ED$1,0)),)="",,IF(IFERROR(INDEX(Přehled_body!$E$3:$ED$130,MATCH(Tabulka!$AI9,Přehled_body!$A$3:$A$130,0),MATCH(Tabulka!J$2,Přehled_body!$E$1:$ED$1,0)),)=0,0.00000000001,IFERROR(INDEX(Přehled_body!$E$3:$ED$130,MATCH(Tabulka!$AI9,Přehled_body!$A$3:$A$130,0),MATCH(Tabulka!J$2,Přehled_body!$E$1:$ED$1,0)),))) -> 1 | K9: =IF(IFERROR(INDEX(Přehled_body!$E$3:$ED$130,MATCH(Tabulka!$AI9,Přehled_body!$A$3:$A$130,0),MATCH(Tabulka!K$2,Přehled_body!$E$1:$ED$1,0)),)="",,IF(IFERROR(INDEX(Přehled_body!$E$3:$ED$130,MATCH(Tabulka!$AI9,Přehled_body!$A$3:$A$130,0),MATCH(Tabulka!K$2,Přehled_body!$E$1:$ED$1,0)),)=0,0.00000000001,IFERROR(INDEX(Přehled_body!$E$3:$ED$130,MATCH(Tabulka!$AI9,Přehled_body!$A$3:$A$130,0),MATCH(Tabulka!K$2,Přehled_body!$E$1:$ED$1,0)),))) -> 1e-11 | L9: =IF(IFERROR(INDEX(Přehled_body!$E$3:$ED$130,MATCH(Tabulka!$AI9,Přehled_body!$A$3:$A$130,0),MATCH(Tabulka!L$2,Přehled_body!$E$1:$ED$1,0)),)="",,IF(IFERROR(INDEX(Přehled_body!$E$3:$ED$130,MATCH(Tabulka!$AI9,Přehled_body!$A$3:$A$130,0),MATCH(Tabulka!L$2,Přehled_body!$E$1:$ED$1,0)),)=0,0.00000000001,IFERROR(INDEX(Přehled_body!$E$3:$ED$130,MATCH(Tabulka!$AI9,Přehled_body!$A$3:$A$130,0),MATCH(Tabulka!L$2,Přehled_body!$E$1:$ED$1,0)),))) -> 1 | M9: =IF(IFERROR(INDEX(Přehled_body!$E$3:$ED$130,MATCH(Tabulka!$AI9,Přehled_body!$A$3:$A$130,0),MATCH(Tabulka!M$2,Přehled_body!$E$1:$ED$1,0)),)="",,IF(IFERROR(INDEX(Přehled_body!$E$3:$ED$130,MATCH(Tabulka!$AI9,Přehled_body!$A$3:$A$130,0),MATCH(Tabulka!M$2,Přehled_body!$E$1:$ED$1,0)),)=0,0.00000000001,IFERROR(INDEX(Přehled_body!$E$3:$ED$130,MATCH(Tabulka!$AI9,Přehled_body!$A$3:$A$130,0),MATCH(Tabulka!M$2,Přehled_body!$E$1:$ED$1,0)),))) -> 1e-11 | N9: =IF(IFERROR(INDEX(Přehled_body!$E$3:$ED$130,MATCH(Tabulka!$AI9,Přehled_body!$A$3:$A$130,0),MATCH(Tabulka!N$2,Přehled_body!$E$1:$ED$1,0)),)="",,IF(IFERROR(INDEX(Přehled_body!$E$3:$ED$130,MATCH(Tabulka!$AI9,Přehled_body!$A$3:$A$130,0),MATCH(Tabulka!N$2,Přehled_body!$E$1:$ED$1,0)),)=0,0.00000000001,IFERROR(INDEX(Přehled_body!$E$3:$ED$130,MATCH(Tabulka!$AI9,Přehled_body!$A$3:$A$130,0),MATCH(Tabulka!N$2,Přehled_body!$E$1:$ED$1,0)),))) -> 1 | O9: =IF(IFERROR(INDEX(Přehled_body!$E$3:$ED$130,MATCH(Tabulka!$AI9,Přehled_body!$A$3:$A$130,0),MATCH(Tabulka!O$2,Přehled_body!$E$1:$ED$1,0)),)="",,IF(IFERROR(INDEX(Přehled_body!$E$3:$ED$130,MATCH(Tabulka!$AI9,Přehled_body!$A$3:$A$130,0),MATCH(Tabulka!O$2,Přehled_body!$E$1:$ED$1,0)),)=0,0.00000000001,IFERROR(INDEX(Přehled_body!$E$3:$ED$130,MATCH(Tabulka!$AI9,Přehled_body!$A$3:$A$130,0),MATCH(Tabulka!O$2,Přehled_body!$E$1:$ED$1,0)),))) -> 1e-11 | P9: =IF(IFERROR(INDEX(Přehled_body!$E$3:$ED$130,MATCH(Tabulka!$AI9,Přehled_body!$A$3:$A$130,0),MATCH(Tabulka!P$2,Přehled_body!$E$1:$ED$1,0)),)="",,IF(IFERROR(INDEX(Přehled_body!$E$3:$ED$130,MATCH(Tabulka!$AI9,Přehled_body!$A$3:$A$130,0),MATCH(Tabulka!P$2,Přehled_body!$E$1:$ED$1,0)),)=0,0.00000000001,IFERROR(INDEX(Přehled_body!$E$3:$ED$130,MATCH(Tabulka!$AI9,Přehled_body!$A$3:$A$130,0),MATCH(Tabulka!P$2,Přehled_body!$E$1:$ED$1,0)),))) -> 1 | Q9: =IF(IFERROR(INDEX(Přehled_body!$E$3:$ED$130,MATCH(Tabulka!$AI9,Přehled_body!$A$3:$A$130,0),MATCH(Tabulka!Q$2,Přehled_body!$E$1:$ED$1,0)),)="",,IF(IFERROR(INDEX(Přehled_body!$E$3:$ED$130,MATCH(Tabulka!$AI9,Přehled_body!$A$3:$A$130,0),MATCH(Tabulka!Q$2,Přehled_body!$E$1:$ED$1,0)),)=0,0.00000000001,IFERROR(INDEX(Přehled_body!$E$3:$ED$130,MATCH(Tabulka!$AI9,Přehled_body!$A$3:$A$130,0),MATCH(Tabulka!Q$2,Přehled_body!$E$1:$ED$1,0)),))) -> 1e-11 | R9: =IF(IFERROR(INDEX(Přehled_body!$E$3:$ED$130,MATCH(Tabulka!$AI9,Přehled_body!$A$3:$A$130,0),MATCH(Tabulka!R$2,Přehled_body!$E$1:$ED$1,0)),)="",,IF(IFERROR(INDEX(Přehled_body!$E$3:$ED$130,MATCH(Tabulka!$AI9,Přehled_body!$A$3:$A$130,0),MATCH(Tabulka!R$2,Přehled_body!$E$1:$ED$1,0)),)=0,0.00000000001,IFERROR(INDEX(Přehled_body!$E$3:$ED$130,MATCH(Tabulka!$AI9,Přehled_body!$A$3:$A$130,0),MATCH(Tabulka!R$2,Přehled_body!$E$1:$ED$1,0)),))) -> 2 | S9: =IF(IFERROR(INDEX(Přehled_body!$E$3:$ED$130,MATCH(Tabulka!$AI9,Přehled_body!$A$3:$A$130,0),MATCH(Tabulka!S$2,Přehled_body!$E$1:$ED$1,0)),)="",,IF(IFERROR(INDEX(Přehled_body!$E$3:$ED$130,MATCH(Tabulka!$AI9,Přehled_body!$A$3:$A$130,0),MATCH(Tabulka!S$2,Přehled_body!$E$1:$ED$1,0)),)=0,0.00000000001,IFERROR(INDEX(Přehled_body!$E$3:$ED$130,MATCH(Tabulka!$AI9,Přehled_body!$A$3:$A$130,0),MATCH(Tabulka!S$2,Přehled_body!$E$1:$ED$1,0)),))) -> 1e-11 | T9: =IF(IFERROR(INDEX(Přehled_body!$E$3:$ED$130,MATCH(Tabulka!$AI9,Přehled_body!$A$3:$A$130,0),MATCH(Tabulka!T$2,Přehled_body!$E$1:$ED$1,0)),)="",,IF(IFERROR(INDEX(Přehled_body!$E$3:$ED$130,MATCH(Tabulka!$AI9,Přehled_body!$A$3:$A$130,0),MATCH(Tabulka!T$2,Přehled_body!$E$1:$ED$1,0)),)=0,0.00000000001,IFERROR(INDEX(Přehled_body!$E$3:$ED$130,MATCH(Tabulka!$AI9,Přehled_body!$A$3:$A$130,0),MATCH(Tabulka!T$2,Přehled_body!$E$1:$ED$1,0)),))) -> 1e-11 | U9: =IF(IFERROR(INDEX(Přehled_body!$E$3:$ED$130,MATCH(Tabulka!$AI9,Přehled_body!$A$3:$A$130,0),MATCH(Tabulka!U$2,Přehled_body!$E$1:$ED$1,0)),)="",,IF(IFERROR(INDEX(Přehled_body!$E$3:$ED$130,MATCH(Tabulka!$AI9,Přehled_body!$A$3:$A$130,0),MATCH(Tabulka!U$2,Přehled_body!$E$1:$ED$1,0)),)=0,0.00000000001,IFERROR(INDEX(Přehled_body!$E$3:$ED$130,MATCH(Tabulka!$AI9,Přehled_body!$A$3:$A$130,0),MATCH(Tabulka!U$2,Přehled_body!$E$1:$ED$1,0)),))) -> 0 | V9: =IF(IFERROR(INDEX(Přehled_body!$E$3:$ED$130,MATCH(Tabulka!$AI9,Přehled_body!$A$3:$A$130,0),MATCH(Tabulka!V$2,Přehled_body!$E$1:$ED$1,0)),)="",,IF(IFERROR(INDEX(Přehled_body!$E$3:$ED$130,MATCH(Tabulka!$AI9,Přehled_body!$A$3:$A$130,0),MATCH(Tabulka!V$2,Přehled_body!$E$1:$ED$1,0)),)=0,0.00000000001,IFERROR(INDEX(Přehled_body!$E$3:$ED$130,MATCH(Tabulka!$AI9,Přehled_body!$A$3:$A$130,0),MATCH(Tabulka!V$2,Přehled_body!$E$1:$ED$1,0)),))) -> 0 | W9: =IF(IFERROR(INDEX(Přehled_body!$E$3:$ED$130,MATCH(Tabulka!$AI9,Přehled_body!$A$3:$A$130,0),MATCH(Tabulka!W$2,Přehled_body!$E$1:$ED$1,0)),)="",,IF(IFERROR(INDEX(Přehled_body!$E$3:$ED$130,MATCH(Tabulka!$AI9,Přehled_body!$A$3:$A$130,0),MATCH(Tabulka!W$2,Přehled_body!$E$1:$ED$1,0)),)=0,0.00000000001,IFERROR(INDEX(Přehled_body!$E$3:$ED$130,MATCH(Tabulka!$AI9,Přehled_body!$A$3:$A$130,0),MATCH(Tabulka!W$2,Přehled_body!$E$1:$ED$1,0)),))) -> 0 | X9: =IF(IFERROR(INDEX(Přehled_body!$E$3:$ED$130,MATCH(Tabulka!$AI9,Přehled_body!$A$3:$A$130,0),MATCH(Tabulka!X$2,Přehled_body!$E$1:$ED$1,0)),)="",,IF(IFERROR(INDEX(Přehled_body!$E$3:$ED$130,MATCH(Tabulka!$AI9,Přehled_body!$A$3:$A$130,0),MATCH(Tabulka!X$2,Přehled_body!$E$1:$ED$1,0)),)=0,0.00000000001,IFERROR(INDEX(Přehled_body!$E$3:$ED$130,MATCH(Tabulka!$AI9,Přehled_body!$A$3:$A$130,0),MATCH(Tabulka!X$2,Přehled_body!$E$1:$ED$1,0)),))) -> 0 | Y9: =IF(IFERROR(INDEX(Přehled_body!$E$3:$ED$130,MATCH(Tabulka!$AI9,Přehled_body!$A$3:$A$130,0),MATCH(Tabulka!Y$2,Přehled_body!$E$1:$ED$1,0)),)="",,IF(IFERROR(INDEX(Přehled_body!$E$3:$ED$130,MATCH(Tabulka!$AI9,Přehled_body!$A$3:$A$130,0),MATCH(Tabulka!Y$2,Přehled_body!$E$1:$ED$1,0)),)=0,0.00000000001,IFERROR(INDEX(Přehled_body!$E$3:$ED$130,MATCH(Tabulka!$AI9,Přehled_body!$A$3:$A$130,0),MATCH(Tabulka!Y$2,Přehled_body!$E$1:$ED$1,0)),))) -> 0 | Z9: =IF(IFERROR(INDEX(Přehled_body!$E$3:$ED$130,MATCH(Tabulka!$AI9,Přehled_body!$A$3:$A$130,0),MATCH(Tabulka!Z$2,Přehled_body!$E$1:$ED$1,0)),)="",,IF(IFERROR(INDEX(Přehled_body!$E$3:$ED$130,MATCH(Tabulka!$AI9,Přehled_body!$A$3:$A$130,0),MATCH(Tabulka!Z$2,Přehled_body!$E$1:$ED$1,0)),)=0,0.00000000001,IFERROR(INDEX(Přehled_body!$E$3:$ED$130,MATCH(Tabulka!$AI9,Přehled_body!$A$3:$A$130,0),MATCH(Tabulka!Z$2,Přehled_body!$E$1:$ED$1,0)),))) -> 0 | AA9: =IF(IFERROR(INDEX(Přehled_body!$E$3:$ED$130,MATCH(Tabulka!$AI9,Přehled_body!$A$3:$A$130,0),MATCH(Tabulka!AA$2,Přehled_body!$E$1:$ED$1,0)),)="",,IF(IFERROR(INDEX(Přehled_body!$E$3:$ED$130,MATCH(Tabulka!$AI9,Přehled_body!$A$3:$A$130,0),MATCH(Tabulka!AA$2,Přehled_body!$E$1:$ED$1,0)),)=0,0.00000000001,IFERROR(INDEX(Přehled_body!$E$3:$ED$130,MATCH(Tabulka!$AI9,Přehled_body!$A$3:$A$130,0),MATCH(Tabulka!AA$2,Přehled_body!$E$1:$ED$1,0)),))) -> 0 | AB9: =IF(IFERROR(INDEX(Přehled_body!$E$3:$ED$130,MATCH(Tabulka!$AI9,Přehled_body!$A$3:$A$130,0),MATCH(Tabulka!AB$2,Přehled_body!$E$1:$ED$1,0)),)="",,IF(IFERROR(INDEX(Přehled_body!$E$3:$ED$130,MATCH(Tabulka!$AI9,Přehled_body!$A$3:$A$130,0),MATCH(Tabulka!AB$2,Přehled_body!$E$1:$ED$1,0)),)=0,0.00000000001,IFERROR(INDEX(Přehled_body!$E$3:$ED$130,MATCH(Tabulka!$AI9,Přehled_body!$A$3:$A$130,0),MATCH(Tabulka!AB$2,Přehled_body!$E$1:$ED$1,0)),))) -> 0 | AC9: =IF(IFERROR(INDEX(Přehled_body!$E$3:$ED$130,MATCH(Tabulka!$AI9,Přehled_body!$A$3:$A$130,0),MATCH(Tabulka!AC$2,Přehled_body!$E$1:$ED$1,0)),)="",,IF(IFERROR(INDEX(Přehled_body!$E$3:$ED$130,MATCH(Tabulka!$AI9,Přehled_body!$A$3:$A$130,0),MATCH(Tabulka!AC$2,Přehled_body!$E$1:$ED$1,0)),)=0,0.00000000001,IFERROR(INDEX(Přehled_body!$E$3:$ED$130,MATCH(Tabulka!$AI9,Přehled_body!$A$3:$A$130,0),MATCH(Tabulka!AC$2,Přehled_body!$E$1:$ED$1,0)),))) -> 0 | AD9: =IF(IFERROR(INDEX(Přehled_body!$E$3:$ED$130,MATCH(Tabulka!$AI9,Přehled_body!$A$3:$A$130,0),MATCH(Tabulka!AD$2,Přehled_body!$E$1:$ED$1,0)),)="",,IF(IFERROR(INDEX(Přehled_body!$E$3:$ED$130,MATCH(Tabulka!$AI9,Přehled_body!$A$3:$A$130,0),MATCH(Tabulka!AD$2,Přehled_body!$E$1:$ED$1,0)),)=0,0.00000000001,IFERROR(INDEX(Přehled_body!$E$3:$ED$130,MATCH(Tabulka!$AI9,Přehled_body!$A$3:$A$130,0),MATCH(Tabulka!AD$2,Přehled_body!$E$1:$ED$1,0)),))) -> 0 | AE9: =IF(SUM(AG9)<2,-90000+SUM(D9:AD9),SUM(D9:AD9)) -> 12 | AG9: =COUNTIF(D9:AD9,">0") -> 17 | AH9: 12 | AI9: =CONCATENATE($B$10," ",$B$11,C9) -> Libor HruškaVýhry | AL9: =COUNTIF(D9:AD9,">0") -> 17
A10: =CONCATENATE(B10," ",B11) -> Libor Hruška | B10: Libor | C10: Prohry | D10: =IF(IFERROR(INDEX(Přehled_body!$E$3:$ED$130,MATCH(Tabulka!$AI10,Přehled_body!$A$3:$A$130,0),MATCH(Tabulka!D$2,Přehled_body!$E$1:$ED$1,0)),)="",,IF(IFERROR(INDEX(Přehled_body!$E$3:$ED$130,MATCH(Tabulka!$AI10,Přehled_body!$A$3:$A$130,0),MATCH(Tabulka!D$2,Přehled_body!$E$1:$ED$1,0)),)=0,0.00000000001,IFERROR(INDEX(Přehled_body!$E$3:$ED$130,MATCH(Tabulka!$AI10,Přehled_body!$A$3:$A$130,0),MATCH(Tabulka!D$2,Přehled_body!$E$1:$ED$1,0)),))) -> 1e-11 | E10: =IF(IFERROR(INDEX(Přehled_body!$E$3:$ED$130,MATCH(Tabulka!$AI10,Přehled_body!$A$3:$A$130,0),MATCH(Tabulka!E$2,Přehled_body!$E$1:$ED$1,0)),)="",,IF(IFERROR(INDEX(Přehled_body!$E$3:$ED$130,MATCH(Tabulka!$AI10,Přehled_body!$A$3:$A$130,0),MATCH(Tabulka!E$2,Přehled_body!$E$1:$ED$1,0)),)=0,0.00000000001,IFERROR(INDEX(Přehled_body!$E$3:$ED$130,MATCH(Tabulka!$AI10,Přehled_body!$A$3:$A$130,0),MATCH(Tabulka!E$2,Přehled_body!$E$1:$ED$1,0)),))) -> 1e-11 | F10: =IF(IFERROR(INDEX(Přehled_body!$E$3:$ED$130,MATCH(Tabulka!$AI10,Přehled_body!$A$3:$A$130,0),MATCH(Tabulka!F$2,Přehled_body!$E$1:$ED$1,0)),)="",,IF(IFERROR(INDEX(Přehled_body!$E$3:$ED$130,MATCH(Tabulka!$AI10,Přehled_body!$A$3:$A$130,0),MATCH(Tabulka!F$2,Přehled_body!$E$1:$ED$1,0)),)=0,0.00000000001,IFERROR(INDEX(Přehled_body!$E$3:$ED$130,MATCH(Tabulka!$AI10,Přehled_body!$A$3:$A$130,0),MATCH(Tabulka!F$2,Přehled_body!$E$1:$ED$1,0)),))) -> 1e-11 | G10: =IF(IFERROR(INDEX(Přehled_body!$E$3:$ED$130,MATCH(Tabulka!$AI10,Přehled_body!$A$3:$A$130,0),MATCH(Tabulka!G$2,Přehled_body!$E$1:$ED$1,0)),)="",,IF(IFERROR(INDEX(Přehled_body!$E$3:$ED$130,MATCH(Tabulka!$AI10,Přehled_body!$A$3:$A$130,0),MATCH(Tabulka!G$2,Přehled_body!$E$1:$ED$1,0)),)=0,0.00000000001,IFERROR(INDEX(Přehled_body!$E$3:$ED$130,MATCH(Tabulka!$AI10,Přehled_body!$A$3:$A$130,0),MATCH(Tabulka!G$2,Přehled_body!$E$1:$ED$1,0)),))) -> 2 | H10: =IF(IFERROR(INDEX(Přehled_body!$E$3:$ED$130,MATCH(Tabulka!$AI10,Přehled_body!$A$3:$A$130,0),MATCH(Tabulka!H$2,Přehled_body!$E$1:$ED$1,0)),)="",,IF(IFERROR(INDEX(Přehled_body!$E$3:$ED$130,MATCH(Tabulka!$AI10,Přehled_body!$A$3:$A$130,0),MATCH(Tabulka!H$2,Přehled_body!$E$1:$ED$1,0)),)=0,0.00000000001,IFERROR(INDEX(Přehled_body!$E$3:$ED$130,MATCH(Tabulka!$AI10,Přehled_body!$A$3:$A$130,0),MATCH(Tabulka!H$2,Přehled_body!$E$1:$ED$1,0)),))) -> 1e-11 | I10: =IF(IFERROR(INDEX(Přehled_body!$E$3:$ED$130,MATCH(Tabulka!$AI10,Přehled_body!$A$3:$A$130,0),MATCH(Tabulka!I$2,Přehled_body!$E$1:$ED$1,0)),)="",,IF(IFERROR(INDEX(Přehled_body!$E$3:$ED$130,MATCH(Tabulka!$AI10,Přehled_body!$A$3:$A$130,0),MATCH(Tabulka!I$2,Přehled_body!$E$1:$ED$1,0)),)=0,0.00000000001,IFERROR(INDEX(Přehled_body!$E$3:$ED$130,MATCH(Tabulka!$AI10,Přehled_body!$A$3:$A$130,0),MATCH(Tabulka!I$2,Přehled_body!$E$1:$ED$1,0)),))) -> 1e-11 | J10: =IF(IFERROR(INDEX(Přehled_body!$E$3:$ED$130,MATCH(Tabulka!$AI10,Přehled_body!$A$3:$A$130,0),MATCH(Tabulka!J$2,Přehled_body!$E$1:$ED$1,0)),)="",,IF(IFERROR(INDEX(Přehled_body!$E$3:$ED$130,MATCH(Tabulka!$AI10,Přehled_body!$A$3:$A$130,0),MATCH(Tabulka!J$2,Přehled_body!$E$1:$ED$1,0)),)=0,0.00000000001,IFERROR(INDEX(Přehled_body!$E$3:$ED$130,MATCH(Tabulka!$AI10,Přehled_body!$A$3:$A$130,0),MATCH(Tabulka!J$2,Přehled_body!$E$1:$ED$1,0)),))) -> 1e-11 | K10: =IF(IFERROR(INDEX(Přehled_body!$E$3:$ED$130,MATCH(Tabulka!$AI10,Přehled_body!$A$3:$A$130,0),MATCH(Tabulka!K$2,Přehled_body!$E$1:$ED$1,0)),)="",,IF(IFERROR(INDEX(Přehled_body!$E$3:$ED$130,MATCH(Tabulka!$AI10,Přehled_body!$A$3:$A$130,0),MATCH(Tabulka!K$2,Přehled_body!$E$1:$ED$1,0)),)=0,0.00000000001,IFERROR(INDEX(Přehled_body!$E$3:$ED$130,MATCH(Tabulka!$AI10,Přehled_body!$A$3:$A$130,0),MATCH(Tabulka!K$2,Přehled_body!$E$1:$ED$1,0)),))) -> 1e-11 | L10: =IF(IFERROR(INDEX(Přehled_body!$E$3:$ED$130,MATCH(Tabulka!$AI10,Přehled_body!$A$3:$A$130,0),MATCH(Tabulka!L$2,Přehled_body!$E$1:$ED$1,0)),)="",,IF(IFERROR(INDEX(Přehled_body!$E$3:$ED$130,MATCH(Tabulka!$AI10,Přehled_body!$A$3:$A$130,0),MATCH(Tabulka!L$2,Přehled_body!$E$1:$ED$1,0)),)=0,0.00000000001,IFERROR(INDEX(Přehled_body!$E$3:$ED$130,MATCH(Tabulka!$AI10,Přehled_body!$A$3:$A$130,0),MATCH(Tabulka!L$2,Přehled_body!$E$1:$ED$1,0)),))) -> 1e-11 | M10: =IF(IFERROR(INDEX(Přehled_body!$E$3:$ED$130,MATCH(Tabulka!$AI10,Přehled_body!$A$3:$A$130,0),MATCH(Tabulka!M$2,Přehled_body!$E$1:$ED$1,0)),)="",,IF(IFERROR(INDEX(Přehled_body!$E$3:$ED$130,MATCH(Tabulka!$AI10,Přehled_body!$A$3:$A$130,0),MATCH(Tabulka!M$2,Přehled_body!$E$1:$ED$1,0)),)=0,0.00000000001,IFERROR(INDEX(Přehled_body!$E$3:$ED$130,MATCH(Tabulka!$AI10,Přehled_body!$A$3:$A$130,0),MATCH(Tabulka!M$2,Přehled_body!$E$1:$ED$1,0)),))) -> 1e-11 | N10: =IF(IFERROR(INDEX(Přehled_body!$E$3:$ED$130,MATCH(Tabulka!$AI10,Přehled_body!$A$3:$A$130,0),MATCH(Tabulka!N$2,Přehled_body!$E$1:$ED$1,0)),)="",,IF(IFERROR(INDEX(Přehled_body!$E$3:$ED$130,MATCH(Tabulka!$AI10,Přehled_body!$A$3:$A$130,0),MATCH(Tabulka!N$2,Přehled_body!$E$1:$ED$1,0)),)=0,0.00000000001,IFERROR(INDEX(Přehled_body!$E$3:$ED$130,MATCH(Tabulka!$AI10,Přehled_body!$A$3:$A$130,0),MATCH(Tabulka!N$2,Přehled_body!$E$1:$ED$1,0)),))) -> 2 | O10: =IF(IFERROR(INDEX(Přehled_body!$E$3:$ED$130,MATCH(Tabulka!$AI10,Přehled_body!$A$3:$A$130,0),MATCH(Tabulka!O$2,Přehled_body!$E$1:$ED$1,0)),)="",,IF(IFERROR(INDEX(Přehled_body!$E$3:$ED$130,MATCH(Tabulka!$AI10,Přehled_body!$A$3:$A$130,0),MATCH(Tabulka!O$2,Přehled_body!$E$1:$ED$1,0)),)=0,0.00000000001,IFERROR(INDEX(Přehled_body!$E$3:$ED$130,MATCH(Tabulka!$AI10,Přehled_body!$A$3:$A$130,0),MATCH(Tabulka!O$2,Přehled_body!$E$1:$ED$1,0)),))) -> 1e-11 | P10: =IF(IFERROR(INDEX(Přehled_body!$E$3:$ED$130,MATCH(Tabulka!$AI10,Přehled_body!$A$3:$A$130,0),MATCH(Tabulka!P$2,Přehled_body!$E$1:$ED$1,0)),)="",,IF(IFERROR(INDEX(Přehled_body!$E$3:$ED$130,MATCH(Tabulka!$AI10,Přehled_body!$A$3:$A$130,0),MATCH(Tabulka!P$2,Přehled_body!$E$1:$ED$1,0)),)=0,0.00000000001,IFERROR(INDEX(Přehled_body!$E$3:$ED$130,MATCH(Tabulka!$AI10,Přehled_body!$A$3:$A$130,0),MATCH(Tabulka!P$2,Přehled_body!$E$1:$ED$1,0)),))) -> 1e-11 | Q10: =IF(IFERROR(INDEX(Přehled_body!$E$3:$ED$130,MATCH(Tabulka!$AI10,Přehled_body!$A$3:$A$130,0),MATCH(Tabulka!Q$2,Přehled_body!$E$1:$ED$1,0)),)="",,IF(IFERROR(INDEX(Přehled_body!$E$3:$ED$130,MATCH(Tabulka!$AI10,Přehled_body!$A$3:$A$130,0),MATCH(Tabulka!Q$2,Přehled_body!$E$1:$ED$1,0)),)=0,0.00000000001,IFERROR(INDEX(Přehled_body!$E$3:$ED$130,MATCH(Tabulka!$AI10,Přehled_body!$A$3:$A$130,0),MATCH(Tabulka!Q$2,Přehled_body!$E$1:$ED$1,0)),))) -> 1 | R10: =IF(IFERROR(INDEX(Přehled_body!$E$3:$ED$130,MATCH(Tabulka!$AI10,Přehled_body!$A$3:$A$130,0),MATCH(Tabulka!R$2,Přehled_body!$E$1:$ED$1,0)),)="",,IF(IFERROR(INDEX(Přehled_body!$E$3:$ED$130,MATCH(Tabulka!$AI10,Přehled_body!$A$3:$A$130,0),MATCH(Tabulka!R$2,Přehled_body!$E$1:$ED$1,0)),)=0,0.00000000001,IFERROR(INDEX(Přehled_body!$E$3:$ED$130,MATCH(Tabulka!$AI10,Přehled_body!$A$3:$A$130,0),MATCH(Tabulka!R$2,Přehled_body!$E$1:$ED$1,0)),))) -> 1e-11 | S10: =IF(IFERROR(INDEX(Přehled_body!$E$3:$ED$130,MATCH(Tabulka!$AI10,Přehled_body!$A$3:$A$130,0),MATCH(Tabulka!S$2,Přehled_body!$E$1:$ED$1,0)),)="",,IF(IFERROR(INDEX(Přehled_body!$E$3:$ED$130,MATCH(Tabulka!$AI10,Přehled_body!$A$3:$A$130,0),MATCH(Tabulka!S$2,Přehled_body!$E$1:$ED$1,0)),)=0,0.00000000001,IFERROR(INDEX(Přehled_body!$E$3:$ED$130,MATCH(Tabulka!$AI10,Přehled_body!$A$3:$A$130,0),MATCH(Tabulka!S$2,Přehled_body!$E$1:$ED$1,0)),))) -> 1 | T10: =IF(IFERROR(INDEX(Přehled_body!$E$3:$ED$130,MATCH(Tabulka!$AI10,Přehled_body!$A$3:$A$130,0),MATCH(Tabulka!T$2,Přehled_body!$E$1:$ED$1,0)),)="",,IF(IFERROR(INDEX(Přehled_body!$E$3:$ED$130,MATCH(Tabulka!$AI10,Přehled_body!$A$3:$A$130,0),MATCH(Tabulka!T$2,Přehled_body!$E$1:$ED$1,0)),)=0,0.00000000001,IFERROR(INDEX(Přehled_body!$E$3:$ED$130,MATCH(Tabulka!$AI10,Přehled_body!$A$3:$A$130,0),MATCH(Tabulka!T$2,Přehled_body!$E$1:$ED$1,0)),))) -> 1e-11 | U10: =IF(IFERROR(INDEX(Přehled_body!$E$3:$ED$130,MATCH(Tabulka!$AI10,Přehled_body!$A$3:$A$130,0),MATCH(Tabulka!U$2,Přehled_body!$E$1:$ED$1,0)),)="",,IF(IFERROR(INDEX(Přehled_body!$E$3:$ED$130,MATCH(Tabulka!$AI10,Přehled_body!$A$3:$A$130,0),MATCH(Tabulka!U$2,Přehled_body!$E$1:$ED$1,0)),)=0,0.00000000001,IFERROR(INDEX(Přehled_body!$E$3:$ED$130,MATCH(Tabulka!$AI10,Přehled_body!$A$3:$A$130,0),MATCH(Tabulka!U$2,Přehled_body!$E$1:$ED$1,0)),))) -> 0 | V10: =IF(IFERROR(INDEX(Přehled_body!$E$3:$ED$130,MATCH(Tabulka!$AI10,Přehled_body!$A$3:$A$130,0),MATCH(Tabulka!V$2,Přehled_body!$E$1:$ED$1,0)),)="",,IF(IFERROR(INDEX(Přehled_body!$E$3:$ED$130,MATCH(Tabulka!$AI10,Přehled_body!$A$3:$A$130,0),MATCH(Tabulka!V$2,Přehled_body!$E$1:$ED$1,0)),)=0,0.00000000001,IFERROR(INDEX(Přehled_body!$E$3:$ED$130,MATCH(Tabulka!$AI10,Přehled_body!$A$3:$A$130,0),MATCH(Tabulka!V$2,Přehled_body!$E$1:$ED$1,0)),))) -> 0 | W10: =IF(IFERROR(INDEX(Přehled_body!$E$3:$ED$130,MATCH(Tabulka!$AI10,Přehled_body!$A$3:$A$130,0),MATCH(Tabulka!W$2,Přehled_body!$E$1:$ED$1,0)),)="",,IF(IFERROR(INDEX(Přehled_body!$E$3:$ED$130,MATCH(Tabulka!$AI10,Přehled_body!$A$3:$A$130,0),MATCH(Tabulka!W$2,Přehled_body!$E$1:$ED$1,0)),)=0,0.00000000001,IFERROR(INDEX(Přehled_body!$E$3:$ED$130,MATCH(Tabulka!$AI10,Přehled_body!$A$3:$A$130,0),MATCH(Tabulka!W$2,Přehled_body!$E$1:$ED$1,0)),))) -> 0 | X10: =IF(IFERROR(INDEX(Přehled_body!$E$3:$ED$130,MATCH(Tabulka!$AI10,Přehled_body!$A$3:$A$130,0),MATCH(Tabulka!X$2,Přehled_body!$E$1:$ED$1,0)),)="",,IF(IFERROR(INDEX(Přehled_body!$E$3:$ED$130,MATCH(Tabulka!$AI10,Přehled_body!$A$3:$A$130,0),MATCH(Tabulka!X$2,Přehled_body!$E$1:$ED$1,0)),)=0,0.00000000001,IFERROR(INDEX(Přehled_body!$E$3:$ED$130,MATCH(Tabulka!$AI10,Přehled_body!$A$3:$A$130,0),MATCH(Tabulka!X$2,Přehled_body!$E$1:$ED$1,0)),))) -> 0 | Y10: =IF(IFERROR(INDEX(Přehled_body!$E$3:$ED$130,MATCH(Tabulka!$AI10,Přehled_body!$A$3:$A$130,0),MATCH(Tabulka!Y$2,Přehled_body!$E$1:$ED$1,0)),)="",,IF(IFERROR(INDEX(Přehled_body!$E$3:$ED$130,MATCH(Tabulka!$AI10,Přehled_body!$A$3:$A$130,0),MATCH(Tabulka!Y$2,Přehled_body!$E$1:$ED$1,0)),)=0,0.00000000001,IFERROR(INDEX(Přehled_body!$E$3:$ED$130,MATCH(Tabulka!$AI10,Přehled_body!$A$3:$A$130,0),MATCH(Tabulka!Y$2,Přehled_body!$E$1:$ED$1,0)),))) -> 0 | Z10: =IF(IFERROR(INDEX(Přehled_body!$E$3:$ED$130,MATCH(Tabulka!$AI10,Přehled_body!$A$3:$A$130,0),MATCH(Tabulka!Z$2,Přehled_body!$E$1:$ED$1,0)),)="",,IF(IFERROR(INDEX(Přehled_body!$E$3:$ED$130,MATCH(Tabulka!$AI10,Přehled_body!$A$3:$A$130,0),MATCH(Tabulka!Z$2,Přehled_body!$E$1:$ED$1,0)),)=0,0.00000000001,IFERROR(INDEX(Přehled_body!$E$3:$ED$130,MATCH(Tabulka!$AI10,Přehled_body!$A$3:$A$130,0),MATCH(Tabulka!Z$2,Přehled_body!$E$1:$ED$1,0)),))) -> 0 | AA10: =IF(IFERROR(INDEX(Přehled_body!$E$3:$ED$130,MATCH(Tabulka!$AI10,Přehled_body!$A$3:$A$130,0),MATCH(Tabulka!AA$2,Přehled_body!$E$1:$ED$1,0)),)="",,IF(IFERROR(INDEX(Přehled_body!$E$3:$ED$130,MATCH(Tabulka!$AI10,Přehled_body!$A$3:$A$130,0),MATCH(Tabulka!AA$2,Přehled_body!$E$1:$ED$1,0)),)=0,0.00000000001,IFERROR(INDEX(Přehled_body!$E$3:$ED$130,MATCH(Tabulka!$AI10,Přehled_body!$A$3:$A$130,0),MATCH(Tabulka!AA$2,Přehled_body!$E$1:$ED$1,0)),))) -> 0 | AB10: =IF(IFERROR(INDEX(Přehled_body!$E$3:$ED$130,MATCH(Tabulka!$AI10,Přehled_body!$A$3:$A$130,0),MATCH(Tabulka!AB$2,Přehled_body!$E$1:$ED$1,0)),)="",,IF(IFERROR(INDEX(Přehled_body!$E$3:$ED$130,MATCH(Tabulka!$AI10,Přehled_body!$A$3:$A$130,0),MATCH(Tabulka!AB$2,Přehled_body!$E$1:$ED$1,0)),)=0,0.00000000001,IFERROR(INDEX(Přehled_body!$E$3:$ED$130,MATCH(Tabulka!$AI10,Přehled_body!$A$3:$A$130,0),MATCH(Tabulka!AB$2,Přehled_body!$E$1:$ED$1,0)),))) -> 0 | AC10: =IF(IFERROR(INDEX(Přehled_body!$E$3:$ED$130,MATCH(Tabulka!$AI10,Přehled_body!$A$3:$A$130,0),MATCH(Tabulka!AC$2,Přehled_body!$E$1:$ED$1,0)),)="",,IF(IFERROR(INDEX(Přehled_body!$E$3:$ED$130,MATCH(Tabulka!$AI10,Přehled_body!$A$3:$A$130,0),MATCH(Tabulka!AC$2,Přehled_body!$E$1:$ED$1,0)),)=0,0.00000000001,IFERROR(INDEX(Přehled_body!$E$3:$ED$130,MATCH(Tabulka!$AI10,Přehled_body!$A$3:$A$130,0),MATCH(Tabulka!AC$2,Přehled_body!$E$1:$ED$1,0)),))) -> 0 | AD10: =IF(IFERROR(INDEX(Přehled_body!$E$3:$ED$130,MATCH(Tabulka!$AI10,Přehled_body!$A$3:$A$130,0),MATCH(Tabulka!AD$2,Přehled_body!$E$1:$ED$1,0)),)="",,IF(IFERROR(INDEX(Přehled_body!$E$3:$ED$130,MATCH(Tabulka!$AI10,Přehled_body!$A$3:$A$130,0),MATCH(Tabulka!AD$2,Přehled_body!$E$1:$ED$1,0)),)=0,0.00000000001,IFERROR(INDEX(Přehled_body!$E$3:$ED$130,MATCH(Tabulka!$AI10,Přehled_body!$A$3:$A$130,0),MATCH(Tabulka!AD$2,Přehled_body!$E$1:$ED$1,0)),))) -> 0 | AE10: =IF(SUM(AG9)<2,-90000+SUM(D10:AD10),SUM(D10:AD10)) -> 6 | AF10: =SUM(AE9-AE10) -> 6 | AH10: 6 | AI10: =CONCATENATE($B$10," ",$B$11,C10) -> Libor HruškaProhry | AL10: 17 | AO10: Libor | AP10: 2
A11: =CONCATENATE(B11," ",B10) -> Hruška Libor | B11: Hruška | C11: Placeno panáků | D11: =IF(IFERROR(INDEX(Přehled_body!$E$3:$ED$130,MATCH(Tabulka!$AI11,Přehled_body!$A$3:$A$130,0),MATCH(Tabulka!D$2,Přehled_body!$E$1:$ED$1,0)),)="",,IF(IFERROR(INDEX(Přehled_body!$E$3:$ED$130,MATCH(Tabulka!$AI11,Přehled_body!$A$3:$A$130,0),MATCH(Tabulka!D$2,Přehled_body!$E$1:$ED$1,0)),)=0,0.00000000001,IFERROR(INDEX(Přehled_body!$E$3:$ED$130,MATCH(Tabulka!$AI11,Přehled_body!$A$3:$A$130,0),MATCH(Tabulka!D$2,Přehled_body!$E$1:$ED$1,0)),))) -> 1e-11 | E11: =IF(IFERROR(INDEX(Přehled_body!$E$3:$ED$130,MATCH(Tabulka!$AI11,Přehled_body!$A$3:$A$130,0),MATCH(Tabulka!E$2,Přehled_body!$E$1:$ED$1,0)),)="",,IF(IFERROR(INDEX(Přehled_body!$E$3:$ED$130,MATCH(Tabulka!$AI11,Přehled_body!$A$3:$A$130,0),MATCH(Tabulka!E$2,Přehled_body!$E$1:$ED$1,0)),)=0,0.00000000001,IFERROR(INDEX(Přehled_body!$E$3:$ED$130,MATCH(Tabulka!$AI11,Přehled_body!$A$3:$A$130,0),MATCH(Tabulka!E$2,Přehled_body!$E$1:$ED$1,0)),))) -> 1e-11 | F11: =IF(IFERROR(INDEX(Přehled_body!$E$3:$ED$130,MATCH(Tabulka!$AI11,Přehled_body!$A$3:$A$130,0),MATCH(Tabulka!F$2,Přehled_body!$E$1:$ED$1,0)),)="",,IF(IFERROR(INDEX(Přehled_body!$E$3:$ED$130,MATCH(Tabulka!$AI11,Přehled_body!$A$3:$A$130,0),MATCH(Tabulka!F$2,Přehled_body!$E$1:$ED$1,0)),)=0,0.00000000001,IFERROR(INDEX(Přehled_body!$E$3:$ED$130,MATCH(Tabulka!$AI11,Přehled_body!$A$3:$A$130,0),MATCH(Tabulka!F$2,Přehled_body!$E$1:$ED$1,0)),))) -> 1e-11 | G11: =IF(IFERROR(INDEX(Přehled_body!$E$3:$ED$130,MATCH(Tabulka!$AI11,Přehled_body!$A$3:$A$130,0),MATCH(Tabulka!G$2,Přehled_body!$E$1:$ED$1,0)),)="",,IF(IFERROR(INDEX(Přehled_body!$E$3:$ED$130,MATCH(Tabulka!$AI11,Přehled_body!$A$3:$A$130,0),MATCH(Tabulka!G$2,Přehled_body!$E$1:$ED$1,0)),)=0,0.00000000001,IFERROR(INDEX(Přehled_body!$E$3:$ED$130,MATCH(Tabulka!$AI11,Přehled_body!$A$3:$A$130,0),MATCH(Tabulka!G$2,Přehled_body!$E$1:$ED$1,0)),))) -> 2 | H11: =IF(IFERROR(INDEX(Přehled_body!$E$3:$ED$130,MATCH(Tabulka!$AI11,Přehled_body!$A$3:$A$130,0),MATCH(Tabulka!H$2,Přehled_body!$E$1:$ED$1,0)),)="",,IF(IFERROR(INDEX(Přehled_body!$E$3:$ED$130,MATCH(Tabulka!$AI11,Přehled_body!$A$3:$A$130,0),MATCH(Tabulka!H$2,Přehled_body!$E$1:$ED$1,0)),)=0,0.00000000001,IFERROR(INDEX(Přehled_body!$E$3:$ED$130,MATCH(Tabulka!$AI11,Přehled_body!$A$3:$A$130,0),MATCH(Tabulka!H$2,Přehled_body!$E$1:$ED$1,0)),))) -> 1e-11 | I11: =IF(IFERROR(INDEX(Přehled_body!$E$3:$ED$130,MATCH(Tabulka!$AI11,Přehled_body!$A$3:$A$130,0),MATCH(Tabulka!I$2,Přehled_body!$E$1:$ED$1,0)),)="",,IF(IFERROR(INDEX(Přehled_body!$E$3:$ED$130,MATCH(Tabulka!$AI11,Přehled_body!$A$3:$A$130,0),MATCH(Tabulka!I$2,Přehled_body!$E$1:$ED$1,0)),)=0,0.00000000001,IFERROR(INDEX(Přehled_body!$E$3:$ED$130,MATCH(Tabulka!$AI11,Přehled_body!$A$3:$A$130,0),MATCH(Tabulka!I$2,Přehled_body!$E$1:$ED$1,0)),))) -> 1e-11 | J11: =IF(IFERROR(INDEX(Přehled_body!$E$3:$ED$130,MATCH(Tabulka!$AI11,Přehled_body!$A$3:$A$130,0),MATCH(Tabulka!J$2,Přehled_body!$E$1:$ED$1,0)),)="",,IF(IFERROR(INDEX(Přehled_body!$E$3:$ED$130,MATCH(Tabulka!$AI11,Přehled_body!$A$3:$A$130,0),MATCH(Tabulka!J$2,Přehled_body!$E$1:$ED$1,0)),)=0,0.00000000001,IFERROR(INDEX(Přehled_body!$E$3:$ED$130,MATCH(Tabulka!$AI11,Přehled_body!$A$3:$A$130,0),MATCH(Tabulka!J$2,Přehled_body!$E$1:$ED$1,0)),))) -> 1e-11 | K11: =IF(IFERROR(INDEX(Přehled_body!$E$3:$ED$130,MATCH(Tabulka!$AI11,Přehled_body!$A$3:$A$130,0),MATCH(Tabulka!K$2,Přehled_body!$E$1:$ED$1,0)),)="",,IF(IFERROR(INDEX(Přehled_body!$E$3:$ED$130,MATCH(Tabulka!$AI11,Přehled_body!$A$3:$A$130,0),MATCH(Tabulka!K$2,Přehled_body!$E$1:$ED$1,0)),)=0,0.00000000001,IFERROR(INDEX(Přehled_body!$E$3:$ED$130,MATCH(Tabulka!$AI11,Přehled_body!$A$3:$A$130,0),MATCH(Tabulka!K$2,Přehled_body!$E$1:$ED$1,0)),))) -> 1e-11 | L11: =IF(IFERROR(INDEX(Přehled_body!$E$3:$ED$130,MATCH(Tabulka!$AI11,Přehled_body!$A$3:$A$130,0),MATCH(Tabulka!L$2,Přehled_body!$E$1:$ED$1,0)),)="",,IF(IFERROR(INDEX(Přehled_body!$E$3:$ED$130,MATCH(Tabulka!$AI11,Přehled_body!$A$3:$A$130,0),MATCH(Tabulka!L$2,Přehled_body!$E$1:$ED$1,0)),)=0,0.00000000001,IFERROR(INDEX(Přehled_body!$E$3:$ED$130,MATCH(Tabulka!$AI11,Přehled_body!$A$3:$A$130,0),MATCH(Tabulka!L$2,Přehled_body!$E$1:$ED$1,0)),))) -> 1e-11 | M11: =IF(IFERROR(INDEX(Přehled_body!$E$3:$ED$130,MATCH(Tabulka!$AI11,Přehled_body!$A$3:$A$130,0),MATCH(Tabulka!M$2,Přehled_body!$E$1:$ED$1,0)),)="",,IF(IFERROR(INDEX(Přehled_body!$E$3:$ED$130,MATCH(Tabulka!$AI11,Přehled_body!$A$3:$A$130,0),MATCH(Tabulka!M$2,Přehled_body!$E$1:$ED$1,0)),)=0,0.00000000001,IFERROR(INDEX(Přehled_body!$E$3:$ED$130,MATCH(Tabulka!$AI11,Přehled_body!$A$3:$A$130,0),MATCH(Tabulka!M$2,Přehled_body!$E$1:$ED$1,0)),))) -> 1e-11 | N11: =IF(IFERROR(INDEX(Přehled_body!$E$3:$ED$130,MATCH(Tabulka!$AI11,Přehled_body!$A$3:$A$130,0),MATCH(Tabulka!N$2,Přehled_body!$E$1:$ED$1,0)),)="",,IF(IFERROR(INDEX(Přehled_body!$E$3:$ED$130,MATCH(Tabulka!$AI11,Přehled_body!$A$3:$A$130,0),MATCH(Tabulka!N$2,Přehled_body!$E$1:$ED$1,0)),)=0,0.00000000001,IFERROR(INDEX(Přehled_body!$E$3:$ED$130,MATCH(Tabulka!$AI11,Přehled_body!$A$3:$A$130,0),MATCH(Tabulka!N$2,Přehled_body!$E$1:$ED$1,0)),))) -> 6 | O11: =IF(IFERROR(INDEX(Přehled_body!$E$3:$ED$130,MATCH(Tabulka!$AI11,Přehled_body!$A$3:$A$130,0),MATCH(Tabulka!O$2,Přehled_body!$E$1:$ED$1,0)),)="",,IF(IFERROR(INDEX(Přehled_body!$E$3:$ED$130,MATCH(Tabulka!$AI11,Přehled_body!$A$3:$A$130,0),MATCH(Tabulka!O$2,Přehled_body!$E$1:$ED$1,0)),)=0,0.00000000001,IFERROR(INDEX(Přehled_body!$E$3:$ED$130,MATCH(Tabulka!$AI11,Přehled_body!$A$3:$A$130,0),MATCH(Tabulka!O$2,Přehled_body!$E$1:$ED$1,0)),))) -> 1e-11 | P11: =IF(IFERROR(INDEX(Přehled_body!$E$3:$ED$130,MATCH(Tabulka!$AI11,Přehled_body!$A$3:$A$130,0),MATCH(Tabulka!P$2,Přehled_body!$E$1:$ED$1,0)),)="",,IF(IFERROR(INDEX(Přehled_body!$E$3:$ED$130,MATCH(Tabulka!$AI11,Přehled_body!$A$3:$A$130,0),MATCH(Tabulka!P$2,Přehled_body!$E$1:$ED$1,0)),)=0,0.00000000001,IFERROR(INDEX(Přehled_body!$E$3:$ED$130,MATCH(Tabulka!$AI11,Přehled_body!$A$3:$A$130,0),MATCH(Tabulka!P$2,Přehled_body!$E$1:$ED$1,0)),))) -> 1e-11 | Q11: =IF(IFERROR(INDEX(Přehled_body!$E$3:$ED$130,MATCH(Tabulka!$AI11,Přehled_body!$A$3:$A$130,0),MATCH(Tabulka!Q$2,Přehled_body!$E$1:$ED$1,0)),)="",,IF(IFERROR(INDEX(Přehled_body!$E$3:$ED$130,MATCH(Tabulka!$AI11,Přehled_body!$A$3:$A$130,0),MATCH(Tabulka!Q$2,Přehled_body!$E$1:$ED$1,0)),)=0,0.00000000001,IFERROR(INDEX(Přehled_body!$E$3:$ED$130,MATCH(Tabulka!$AI11,Přehled_body!$A$3:$A$130,0),MATCH(Tabulka!Q$2,Přehled_body!$E$1:$ED$1,0)),))) -> 1 | R11: =IF(IFERROR(INDEX(Přehled_body!$E$3:$ED$130,MATCH(Tabulka!$AI11,Přehled_body!$A$3:$A$130,0),MATCH(Tabulka!R$2,Přehled_body!$E$1:$ED$1,0)),)="",,IF(IFERROR(INDEX(Přehled_body!$E$3:$ED$130,MATCH(Tabulka!$AI11,Přehled_body!$A$3:$A$130,0),MATCH(Tabulka!R$2,Přehled_body!$E$1:$ED$1,0)),)=0,0.00000000001,IFERROR(INDEX(Přehled_body!$E$3:$ED$130,MATCH(Tabulka!$AI11,Přehled_body!$A$3:$A$130,0),MATCH(Tabulka!R$2,Přehled_body!$E$1:$ED$1,0)),))) -> 1e-11 | S11: =IF(IFERROR(INDEX(Přehled_body!$E$3:$ED$130,MATCH(Tabulka!$AI11,Přehled_body!$A$3:$A$130,0),MATCH(Tabulka!S$2,Přehled_body!$E$1:$ED$1,0)),)="",,IF(IFERROR(INDEX(Přehled_body!$E$3:$ED$130,MATCH(Tabulka!$AI11,Přehled_body!$A$3:$A$130,0),MATCH(Tabulka!S$2,Přehled_body!$E$1:$ED$1,0)),)=0,0.00000000001,IFERROR(INDEX(Přehled_body!$E$3:$ED$130,MATCH(Tabulka!$AI11,Přehled_body!$A$3:$A$130,0),MATCH(Tabulka!S$2,Přehled_body!$E$1:$ED$1,0)),))) -> 1 | T11: =IF(IFERROR(INDEX(Přehled_body!$E$3:$ED$130,MATCH(Tabulka!$AI11,Přehled_body!$A$3:$A$130,0),MATCH(Tabulka!T$2,Přehled_body!$E$1:$ED$1,0)),)="",,IF(IFERROR(INDEX(Přehled_body!$E$3:$ED$130,MATCH(Tabulka!$AI11,Přehled_body!$A$3:$A$130,0),MATCH(Tabulka!T$2,Přehled_body!$E$1:$ED$1,0)),)=0,0.00000000001,IFERROR(INDEX(Přehled_body!$E$3:$ED$130,MATCH(Tabulka!$AI11,Přehled_body!$A$3:$A$130,0),MATCH(Tabulka!T$2,Přehled_body!$E$1:$ED$1,0)),))) -> 1e-11 | U11: =IF(IFERROR(INDEX(Přehled_body!$E$3:$ED$130,MATCH(Tabulka!$AI11,Přehled_body!$A$3:$A$130,0),MATCH(Tabulka!U$2,Přehled_body!$E$1:$ED$1,0)),)="",,IF(IFERROR(INDEX(Přehled_body!$E$3:$ED$130,MATCH(Tabulka!$AI11,Přehled_body!$A$3:$A$130,0),MATCH(Tabulka!U$2,Přehled_body!$E$1:$ED$1,0)),)=0,0.00000000001,IFERROR(INDEX(Přehled_body!$E$3:$ED$130,MATCH(Tabulka!$AI11,Přehled_body!$A$3:$A$130,0),MATCH(Tabulka!U$2,Přehled_body!$E$1:$ED$1,0)),))) -> 0 | V11: =IF(IFERROR(INDEX(Přehled_body!$E$3:$ED$130,MATCH(Tabulka!$AI11,Přehled_body!$A$3:$A$130,0),MATCH(Tabulka!V$2,Přehled_body!$E$1:$ED$1,0)),)="",,IF(IFERROR(INDEX(Přehled_body!$E$3:$ED$130,MATCH(Tabulka!$AI11,Přehled_body!$A$3:$A$130,0),MATCH(Tabulka!V$2,Přehled_body!$E$1:$ED$1,0)),)=0,0.00000000001,IFERROR(INDEX(Přehled_body!$E$3:$ED$130,MATCH(Tabulka!$AI11,Přehled_body!$A$3:$A$130,0),MATCH(Tabulka!V$2,Přehled_body!$E$1:$ED$1,0)),))) -> 0 | W11: =IF(IFERROR(INDEX(Přehled_body!$E$3:$ED$130,MATCH(Tabulka!$AI11,Přehled_body!$A$3:$A$130,0),MATCH(Tabulka!W$2,Přehled_body!$E$1:$ED$1,0)),)="",,IF(IFERROR(INDEX(Přehled_body!$E$3:$ED$130,MATCH(Tabulka!$AI11,Přehled_body!$A$3:$A$130,0),MATCH(Tabulka!W$2,Přehled_body!$E$1:$ED$1,0)),)=0,0.00000000001,IFERROR(INDEX(Přehled_body!$E$3:$ED$130,MATCH(Tabulka!$AI11,Přehled_body!$A$3:$A$130,0),MATCH(Tabulka!W$2,Přehled_body!$E$1:$ED$1,0)),))) -> 0 | X11: =IF(IFERROR(INDEX(Přehled_body!$E$3:$ED$130,MATCH(Tabulka!$AI11,Přehled_body!$A$3:$A$130,0),MATCH(Tabulka!X$2,Přehled_body!$E$1:$ED$1,0)),)="",,IF(IFERROR(INDEX(Přehled_body!$E$3:$ED$130,MATCH(Tabulka!$AI11,Přehled_body!$A$3:$A$130,0),MATCH(Tabulka!X$2,Přehled_body!$E$1:$ED$1,0)),)=0,0.00000000001,IFERROR(INDEX(Přehled_body!$E$3:$ED$130,MATCH(Tabulka!$AI11,Přehled_body!$A$3:$A$130,0),MATCH(Tabulka!X$2,Přehled_body!$E$1:$ED$1,0)),))) -> 0 | Y11: =IF(IFERROR(INDEX(Přehled_body!$E$3:$ED$130,MATCH(Tabulka!$AI11,Přehled_body!$A$3:$A$130,0),MATCH(Tabulka!Y$2,Přehled_body!$E$1:$ED$1,0)),)="",,IF(IFERROR(INDEX(Přehled_body!$E$3:$ED$130,MATCH(Tabulka!$AI11,Přehled_body!$A$3:$A$130,0),MATCH(Tabulka!Y$2,Přehled_body!$E$1:$ED$1,0)),)=0,0.00000000001,IFERROR(INDEX(Přehled_body!$E$3:$ED$130,MATCH(Tabulka!$AI11,Přehled_body!$A$3:$A$130,0),MATCH(Tabulka!Y$2,Přehled_body!$E$1:$ED$1,0)),))) -> 0 | Z11: =IF(IFERROR(INDEX(Přehled_body!$E$3:$ED$130,MATCH(Tabulka!$AI11,Přehled_body!$A$3:$A$130,0),MATCH(Tabulka!Z$2,Přehled_body!$E$1:$ED$1,0)),)="",,IF(IFERROR(INDEX(Přehled_body!$E$3:$ED$130,MATCH(Tabulka!$AI11,Přehled_body!$A$3:$A$130,0),MATCH(Tabulka!Z$2,Přehled_body!$E$1:$ED$1,0)),)=0,0.00000000001,IFERROR(INDEX(Přehled_body!$E$3:$ED$130,MATCH(Tabulka!$AI11,Přehled_body!$A$3:$A$130,0),MATCH(Tabulka!Z$2,Přehled_body!$E$1:$ED$1,0)),))) -> 0 | AA11: =IF(IFERROR(INDEX(Přehled_body!$E$3:$ED$130,MATCH(Tabulka!$AI11,Přehled_body!$A$3:$A$130,0),MATCH(Tabulka!AA$2,Přehled_body!$E$1:$ED$1,0)),)="",,IF(IFERROR(INDEX(Přehled_body!$E$3:$ED$130,MATCH(Tabulka!$AI11,Přehled_body!$A$3:$A$130,0),MATCH(Tabulka!AA$2,Přehled_body!$E$1:$ED$1,0)),)=0,0.00000000001,IFERROR(INDEX(Přehled_body!$E$3:$ED$130,MATCH(Tabulka!$AI11,Přehled_body!$A$3:$A$130,0),MATCH(Tabulka!AA$2,Přehled_body!$E$1:$ED$1,0)),))) -> 0 | AB11: =IF(IFERROR(INDEX(Přehled_body!$E$3:$ED$130,MATCH(Tabulka!$AI11,Přehled_body!$A$3:$A$130,0),MATCH(Tabulka!AB$2,Přehled_body!$E$1:$ED$1,0)),)="",,IF(IFERROR(INDEX(Přehled_body!$E$3:$ED$130,MATCH(Tabulka!$AI11,Přehled_body!$A$3:$A$130,0),MATCH(Tabulka!AB$2,Přehled_body!$E$1:$ED$1,0)),)=0,0.00000000001,IFERROR(INDEX(Přehled_body!$E$3:$ED$130,MATCH(Tabulka!$AI11,Přehled_body!$A$3:$A$130,0),MATCH(Tabulka!AB$2,Přehled_body!$E$1:$ED$1,0)),))) -> 0 | AC11: =IF(IFERROR(INDEX(Přehled_body!$E$3:$ED$130,MATCH(Tabulka!$AI11,Přehled_body!$A$3:$A$130,0),MATCH(Tabulka!AC$2,Přehled_body!$E$1:$ED$1,0)),)="",,IF(IFERROR(INDEX(Přehled_body!$E$3:$ED$130,MATCH(Tabulka!$AI11,Přehled_body!$A$3:$A$130,0),MATCH(Tabulka!AC$2,Přehled_body!$E$1:$ED$1,0)),)=0,0.00000000001,IFERROR(INDEX(Přehled_body!$E$3:$ED$130,MATCH(Tabulka!$AI11,Přehled_body!$A$3:$A$130,0),MATCH(Tabulka!AC$2,Přehled_body!$E$1:$ED$1,0)),))) -> 0 | AD11: =IF(IFERROR(INDEX(Přehled_body!$E$3:$ED$130,MATCH(Tabulka!$AI11,Přehled_body!$A$3:$A$130,0),MATCH(Tabulka!AD$2,Přehled_body!$E$1:$ED$1,0)),)="",,IF(IFERROR(INDEX(Přehled_body!$E$3:$ED$130,MATCH(Tabulka!$AI11,Přehled_body!$A$3:$A$130,0),MATCH(Tabulka!AD$2,Přehled_body!$E$1:$ED$1,0)),)=0,0.00000000001,IFERROR(INDEX(Přehled_body!$E$3:$ED$130,MATCH(Tabulka!$AI11,Přehled_body!$A$3:$A$130,0),MATCH(Tabulka!AD$2,Přehled_body!$E$1:$ED$1,0)),))) -> 0 | AE11: =IF(SUM(AG9)<2,-90000+SUM(D11:AD11),SUM(D11:AD11)) -> 10 | AH11: =SUM(D11:AD11)+INDEX(List4!$D$2:$F$17,MATCH(Tabulka!A10,List4!$D$2:$D$17,0),3) -> 10.00000003 | AI11: =CONCATENATE($B$10," ",$B$11,C11) -> Libor HruškaPlaceno panáků | AL11: 17 | AO11: Hruška | AP11: =CONCATENATE(AQ11," ",AQ12) -> Milan Veselý | AQ11: Milan
C12: Přehozy | D12: =IF(IFERROR(INDEX(Přehled_body!$E$3:$ED$130,MATCH(Tabulka!$AI12,Přehled_body!$A$3:$A$130,0),MATCH(Tabulka!D$2,Přehled_body!$E$1:$ED$1,0)),)="",,IF(IFERROR(INDEX(Přehled_body!$E$3:$ED$130,MATCH(Tabulka!$AI12,Přehled_body!$A$3:$A$130,0),MATCH(Tabulka!D$2,Přehled_body!$E$1:$ED$1,0)),)=0,0.00000000001,IFERROR(INDEX(Přehled_body!$E$3:$ED$130,MATCH(Tabulka!$AI12,Přehled_body!$A$3:$A$130,0),MATCH(Tabulka!D$2,Přehled_body!$E$1:$ED$1,0)),))) -> 1 | E12: =IF(IFERROR(INDEX(Přehled_body!$E$3:$ED$130,MATCH(Tabulka!$AI12,Přehled_body!$A$3:$A$130,0),MATCH(Tabulka!E$2,Přehled_body!$E$1:$ED$1,0)),)="",,IF(IFERROR(INDEX(Přehled_body!$E$3:$ED$130,MATCH(Tabulka!$AI12,Přehled_body!$A$3:$A$130,0),MATCH(Tabulka!E$2,Přehled_body!$E$1:$ED$1,0)),)=0,0.00000000001,IFERROR(INDEX(Přehled_body!$E$3:$ED$130,MATCH(Tabulka!$AI12,Přehled_body!$A$3:$A$130,0),MATCH(Tabulka!E$2,Přehled_body!$E$1:$ED$1,0)),))) -> 2 | F12: =IF(IFERROR(INDEX(Přehled_body!$E$3:$ED$130,MATCH(Tabulka!$AI12,Přehled_body!$A$3:$A$130,0),MATCH(Tabulka!F$2,Přehled_body!$E$1:$ED$1,0)),)="",,IF(IFERROR(INDEX(Přehled_body!$E$3:$ED$130,MATCH(Tabulka!$AI12,Přehled_body!$A$3:$A$130,0),MATCH(Tabulka!F$2,Přehled_body!$E$1:$ED$1,0)),)=0,0.00000000001,IFERROR(INDEX(Přehled_body!$E$3:$ED$130,MATCH(Tabulka!$AI12,Přehled_body!$A$3:$A$130,0),MATCH(Tabulka!F$2,Přehled_body!$E$1:$ED$1,0)),))) -> 1e-11 | G12: =IF(IFERROR(INDEX(Přehled_body!$E$3:$ED$130,MATCH(Tabulka!$AI12,Přehled_body!$A$3:$A$130,0),MATCH(Tabulka!G$2,Přehled_body!$E$1:$ED$1,0)),)="",,IF(IFERROR(INDEX(Přehled_body!$E$3:$ED$130,MATCH(Tabulka!$AI12,Přehled_body!$A$3:$A$130,0),MATCH(Tabulka!G$2,Přehled_body!$E$1:$ED$1,0)),)=0,0.00000000001,IFERROR(INDEX(Přehled_body!$E$3:$ED$130,MATCH(Tabulka!$AI12,Přehled_body!$A$3:$A$130,0),MATCH(Tabulka!G$2,Přehled_body!$E$1:$ED$1,0)),))) -> 1 | H12: =IF(IFERROR(INDEX(Přehled_body!$E$3:$ED$130,MATCH(Tabulka!$AI12,Přehled_body!$A$3:$A$130,0),MATCH(Tabulka!H$2,Přehled_body!$E$1:$ED$1,0)),)="",,IF(IFERROR(INDEX(Přehled_body!$E$3:$ED$130,MATCH(Tabulka!$AI12,Přehled_body!$A$3:$A$130,0),MATCH(Tabulka!H$2,Přehled_body!$E$1:$ED$1,0)),)=0,0.00000000001,IFERROR(INDEX(Přehled_body!$E$3:$ED$130,MATCH(Tabulka!$AI12,Přehled_body!$A$3:$A$130,0),MATCH(Tabulka!H$2,Přehled_body!$E$1:$ED$1,0)),))) -> 1 | I12: =IF(IFERROR(INDEX(Přehled_body!$E$3:$ED$130,MATCH(Tabulka!$AI12,Přehled_body!$A$3:$A$130,0),MATCH(Tabulka!I$2,Přehled_body!$E$1:$ED$1,0)),)="",,IF(IFERROR(INDEX(Přehled_body!$E$3:$ED$130,MATCH(Tabulka!$AI12,Přehled_body!$A$3:$A$130,0),MATCH(Tabulka!I$2,Přehled_body!$E$1:$ED$1,0)),)=0,0.00000000001,IFERROR(INDEX(Přehled_body!$E$3:$ED$130,MATCH(Tabulka!$AI12,Přehled_body!$A$3:$A$130,0),MATCH(Tabulka!I$2,Přehled_body!$E$1:$ED$1,0)),))) -> 3 | J12: =IF(IFERROR(INDEX(Přehled_body!$E$3:$ED$130,MATCH(Tabulka!$AI12,Přehled_body!$A$3:$A$130,0),MATCH(Tabulka!J$2,Přehled_body!$E$1:$ED$1,0)),)="",,IF(IFERROR(INDEX(Přehled_body!$E$3:$ED$130,MATCH(Tabulka!$AI12,Přehled_body!$A$3:$A$130,0),MATCH(Tabulka!J$2,Přehled_body!$E$1:$ED$1,0)),)=0,0.00000000001,IFERROR(INDEX(Přehled_body!$E$3:$ED$130,MATCH(Tabulka!$AI12,Přehled_body!$A$3:$A$130,0),MATCH(Tabulka!J$2,Přehled_body!$E$1:$ED$1,0)),))) -> 1e-11 | K12: =IF(IFERROR(INDEX(Přehled_body!$E$3:$ED$130,MATCH(Tabulka!$AI12,Přehled_body!$A$3:$A$130,0),MATCH(Tabulka!K$2,Přehled_body!$E$1:$ED$1,0)),)="",,IF(IFERROR(INDEX(Přehled_body!$E$3:$ED$130,MATCH(Tabulka!$AI12,Přehled_body!$A$3:$A$130,0),MATCH(Tabulka!K$2,Přehled_body!$E$1:$ED$1,0)),)=0,0.00000000001,IFERROR(INDEX(Přehled_body!$E$3:$ED$130,MATCH(Tabulka!$AI12,Přehled_body!$A$3:$A$130,0),MATCH(Tabulka!K$2,Přehled_body!$E$1:$ED$1,0)),))) -> 1e-11 | L12: =IF(IFERROR(INDEX(Přehled_body!$E$3:$ED$130,MATCH(Tabulka!$AI12,Přehled_body!$A$3:$A$130,0),MATCH(Tabulka!L$2,Přehled_body!$E$1:$ED$1,0)),)="",,IF(IFERROR(INDEX(Přehled_body!$E$3:$ED$130,MATCH(Tabulka!$AI12,Přehled_body!$A$3:$A$130,0),MATCH(Tabulka!L$2,Přehled_body!$E$1:$ED$1,0)),)=0,0.00000000001,IFERROR(INDEX(Přehled_body!$E$3:$ED$130,MATCH(Tabulka!$AI12,Přehled_body!$A$3:$A$130,0),MATCH(Tabulka!L$2,Přehled_body!$E$1:$ED$1,0)),))) -> 1e-11 | M12: =IF(IFERROR(INDEX(Přehled_body!$E$3:$ED$130,MATCH(Tabulka!$AI12,Přehled_body!$A$3:$A$130,0),MATCH(Tabulka!M$2,Přehled_body!$E$1:$ED$1,0)),)="",,IF(IFERROR(INDEX(Přehled_body!$E$3:$ED$130,MATCH(Tabulka!$AI12,Přehled_body!$A$3:$A$130,0),MATCH(Tabulka!M$2,Přehled_body!$E$1:$ED$1,0)),)=0,0.00000000001,IFERROR(INDEX(Přehled_body!$E$3:$ED$130,MATCH(Tabulka!$AI12,Přehled_body!$A$3:$A$130,0),MATCH(Tabulka!M$2,Přehled_body!$E$1:$ED$1,0)),))) -> 2 | N12: =IF(IFERROR(INDEX(Přehled_body!$E$3:$ED$130,MATCH(Tabulka!$AI12,Přehled_body!$A$3:$A$130,0),MATCH(Tabulka!N$2,Přehled_body!$E$1:$ED$1,0)),)="",,IF(IFERROR(INDEX(Přehled_body!$E$3:$ED$130,MATCH(Tabulka!$AI12,Přehled_body!$A$3:$A$130,0),MATCH(Tabulka!N$2,Přehled_body!$E$1:$ED$1,0)),)=0,0.00000000001,IFERROR(INDEX(Přehled_body!$E$3:$ED$130,MATCH(Tabulka!$AI12,Přehled_body!$A$3:$A$130,0),MATCH(Tabulka!N$2,Přehled_body!$E$1:$ED$1,0)),))) -> 2 | O12: =IF(IFERROR(INDEX(Přehled_body!$E$3:$ED$130,MATCH(Tabulka!$AI12,Přehled_body!$A$3:$A$130,0),MATCH(Tabulka!O$2,Přehled_body!$E$1:$ED$1,0)),)="",,IF(IFERROR(INDEX(Přehled_body!$E$3:$ED$130,MATCH(Tabulka!$AI12,Přehled_body!$A$3:$A$130,0),MATCH(Tabulka!O$2,Přehled_body!$E$1:$ED$1,0)),)=0,0.00000000001,IFERROR(INDEX(Přehled_body!$E$3:$ED$130,MATCH(Tabulka!$AI12,Přehled_body!$A$3:$A$130,0),MATCH(Tabulka!O$2,Přehled_body!$E$1:$ED$1,0)),))) -> 1 | P12: =IF(IFERROR(INDEX(Přehled_body!$E$3:$ED$130,MATCH(Tabulka!$AI12,Přehled_body!$A$3:$A$130,0),MATCH(Tabulka!P$2,Přehled_body!$E$1:$ED$1,0)),)="",,IF(IFERROR(INDEX(Přehled_body!$E$3:$ED$130,MATCH(Tabulka!$AI12,Přehled_body!$A$3:$A$130,0),MATCH(Tabulka!P$2,Přehled_body!$E$1:$ED$1,0)),)=0,0.00000000001,IFERROR(INDEX(Přehled_body!$E$3:$ED$130,MATCH(Tabulka!$AI12,Přehled_body!$A$3:$A$130,0),MATCH(Tabulka!P$2,Přehled_body!$E$1:$ED$1,0)),))) -> 1 | Q12: =IF(IFERROR(INDEX(Přehled_body!$E$3:$ED$130,MATCH(Tabulka!$AI12,Přehled_body!$A$3:$A$130,0),MATCH(Tabulka!Q$2,Přehled_body!$E$1:$ED$1,0)),)="",,IF(IFERROR(INDEX(Přehled_body!$E$3:$ED$130,MATCH(Tabulka!$AI12,Přehled_body!$A$3:$A$130,0),MATCH(Tabulka!Q$2,Přehled_body!$E$1:$ED$1,0)),)=0,0.00000000001,IFERROR(INDEX(Přehled_body!$E$3:$ED$130,MATCH(Tabulka!$AI12,Přehled_body!$A$3:$A$130,0),MATCH(Tabulka!Q$2,Přehled_body!$E$1:$ED$1,0)),))) -> 1 | R12: =IF(IFERROR(INDEX(Přehled_body!$E$3:$ED$130,MATCH(Tabulka!$AI12,Přehled_body!$A$3:$A$130,0),MATCH(Tabulka!R$2,Přehled_body!$E$1:$ED$1,0)),)="",,IF(IFERROR(INDEX(Přehled_body!$E$3:$ED$130,MATCH(Tabulka!$AI12,Přehled_body!$A$3:$A$130,0),MATCH(Tabulka!R$2,Přehled_body!$E$1:$ED$1,0)),)=0,0.00000000001,IFERROR(INDEX(Přehled_body!$E$3:$ED$130,MATCH(Tabulka!$AI12,Přehled_body!$A$3:$A$130,0),MATCH(Tabulka!R$2,Přehled_body!$E$1:$ED$1,0)),))) -> 1e-11 | S12: =IF(IFERROR(INDEX(Přehled_body!$E$3:$ED$130,MATCH(Tabulka!$AI12,Přehled_body!$A$3:$A$130,0),MATCH(Tabulka!S$2,Přehled_body!$E$1:$ED$1,0)),)="",,IF(IFERROR(INDEX(Přehled_body!$E$3:$ED$130,MATCH(Tabulka!$AI12,Přehled_body!$A$3:$A$130,0),MATCH(Tabulka!S$2,Přehled_body!$E$1:$ED$1,0)),)=0,0.00000000001,IFERROR(INDEX(Přehled_body!$E$3:$ED$130,MATCH(Tabulka!$AI12,Přehled_body!$A$3:$A$130,0),MATCH(Tabulka!S$2,Přehled_body!$E$1:$ED$1,0)),))) -> 1e-11 | T12: =IF(IFERROR(INDEX(Přehled_body!$E$3:$ED$130,MATCH(Tabulka!$AI12,Přehled_body!$A$3:$A$130,0),MATCH(Tabulka!T$2,Přehled_body!$E$1:$ED$1,0)),)="",,IF(IFERROR(INDEX(Přehled_body!$E$3:$ED$130,MATCH(Tabulka!$AI12,Přehled_body!$A$3:$A$130,0),MATCH(Tabulka!T$2,Přehled_body!$E$1:$ED$1,0)),)=0,0.00000000001,IFERROR(INDEX(Přehled_body!$E$3:$ED$130,MATCH(Tabulka!$AI12,Přehled_body!$A$3:$A$130,0),MATCH(Tabulka!T$2,Přehled_body!$E$1:$ED$1,0)),))) -> 1e-11 | U12: =IF(IFERROR(INDEX(Přehled_body!$E$3:$ED$130,MATCH(Tabulka!$AI12,Přehled_body!$A$3:$A$130,0),MATCH(Tabulka!U$2,Přehled_body!$E$1:$ED$1,0)),)="",,IF(IFERROR(INDEX(Přehled_body!$E$3:$ED$130,MATCH(Tabulka!$AI12,Přehled_body!$A$3:$A$130,0),MATCH(Tabulka!U$2,Přehled_body!$E$1:$ED$1,0)),)=0,0.00000000001,IFERROR(INDEX(Přehled_body!$E$3:$ED$130,MATCH(Tabulka!$AI12,Přehled_body!$A$3:$A$130,0),MATCH(Tabulka!U$2,Přehled_body!$E$1:$ED$1,0)),))) -> 0 | V12: =IF(IFERROR(INDEX(Přehled_body!$E$3:$ED$130,MATCH(Tabulka!$AI12,Přehled_body!$A$3:$A$130,0),MATCH(Tabulka!V$2,Přehled_body!$E$1:$ED$1,0)),)="",,IF(IFERROR(INDEX(Přehled_body!$E$3:$ED$130,MATCH(Tabulka!$AI12,Přehled_body!$A$3:$A$130,0),MATCH(Tabulka!V$2,Přehled_body!$E$1:$ED$1,0)),)=0,0.00000000001,IFERROR(INDEX(Přehled_body!$E$3:$ED$130,MATCH(Tabulka!$AI12,Přehled_body!$A$3:$A$130,0),MATCH(Tabulka!V$2,Přehled_body!$E$1:$ED$1,0)),))) -> 0 | W12: =IF(IFERROR(INDEX(Přehled_body!$E$3:$ED$130,MATCH(Tabulka!$AI12,Přehled_body!$A$3:$A$130,0),MATCH(Tabulka!W$2,Přehled_body!$E$1:$ED$1,0)),)="",,IF(IFERROR(INDEX(Přehled_body!$E$3:$ED$130,MATCH(Tabulka!$AI12,Přehled_body!$A$3:$A$130,0),MATCH(Tabulka!W$2,Přehled_body!$E$1:$ED$1,0)),)=0,0.00000000001,IFERROR(INDEX(Přehled_body!$E$3:$ED$130,MATCH(Tabulka!$AI12,Přehled_body!$A$3:$A$130,0),MATCH(Tabulka!W$2,Přehled_body!$E$1:$ED$1,0)),))) -> 0 | X12: =IF(IFERROR(INDEX(Přehled_body!$E$3:$ED$130,MATCH(Tabulka!$AI12,Přehled_body!$A$3:$A$130,0),MATCH(Tabulka!X$2,Přehled_body!$E$1:$ED$1,0)),)="",,IF(IFERROR(INDEX(Přehled_body!$E$3:$ED$130,MATCH(Tabulka!$AI12,Přehled_body!$A$3:$A$130,0),MATCH(Tabulka!X$2,Přehled_body!$E$1:$ED$1,0)),)=0,0.00000000001,IFERROR(INDEX(Přehled_body!$E$3:$ED$130,MATCH(Tabulka!$AI12,Přehled_body!$A$3:$A$130,0),MATCH(Tabulka!X$2,Přehled_body!$E$1:$ED$1,0)),))) -> 0 | Y12: =IF(IFERROR(INDEX(Přehled_body!$E$3:$ED$130,MATCH(Tabulka!$AI12,Přehled_body!$A$3:$A$130,0),MATCH(Tabulka!Y$2,Přehled_body!$E$1:$ED$1,0)),)="",,IF(IFERROR(INDEX(Přehled_body!$E$3:$ED$130,MATCH(Tabulka!$AI12,Přehled_body!$A$3:$A$130,0),MATCH(Tabulka!Y$2,Přehled_body!$E$1:$ED$1,0)),)=0,0.00000000001,IFERROR(INDEX(Přehled_body!$E$3:$ED$130,MATCH(Tabulka!$AI12,Přehled_body!$A$3:$A$130,0),MATCH(Tabulka!Y$2,Přehled_body!$E$1:$ED$1,0)),))) -> 0 | Z12: =IF(IFERROR(INDEX(Přehled_body!$E$3:$ED$130,MATCH(Tabulka!$AI12,Přehled_body!$A$3:$A$130,0),MATCH(Tabulka!Z$2,Přehled_body!$E$1:$ED$1,0)),)="",,IF(IFERROR(INDEX(Přehled_body!$E$3:$ED$130,MATCH(Tabulka!$AI12,Přehled_body!$A$3:$A$130,0),MATCH(Tabulka!Z$2,Přehled_body!$E$1:$ED$1,0)),)=0,0.00000000001,IFERROR(INDEX(Přehled_body!$E$3:$ED$130,MATCH(Tabulka!$AI12,Přehled_body!$A$3:$A$130,0),MATCH(Tabulka!Z$2,Přehled_body!$E$1:$ED$1,0)),))) -> 0 | AA12: =IF(IFERROR(INDEX(Přehled_body!$E$3:$ED$130,MATCH(Tabulka!$AI12,Přehled_body!$A$3:$A$130,0),MATCH(Tabulka!AA$2,Přehled_body!$E$1:$ED$1,0)),)="",,IF(IFERROR(INDEX(Přehled_body!$E$3:$ED$130,MATCH(Tabulka!$AI12,Přehled_body!$A$3:$A$130,0),MATCH(Tabulka!AA$2,Přehled_body!$E$1:$ED$1,0)),)=0,0.00000000001,IFERROR(INDEX(Přehled_body!$E$3:$ED$130,MATCH(Tabulka!$AI12,Přehled_body!$A$3:$A$130,0),MATCH(Tabulka!AA$2,Přehled_body!$E$1:$ED$1,0)),))) -> 0 | AB12: =IF(IFERROR(INDEX(Přehled_body!$E$3:$ED$130,MATCH(Tabulka!$AI12,Přehled_body!$A$3:$A$130,0),MATCH(Tabulka!AB$2,Přehled_body!$E$1:$ED$1,0)),)="",,IF(IFERROR(INDEX(Přehled_body!$E$3:$ED$130,MATCH(Tabulka!$AI12,Přehled_body!$A$3:$A$130,0),MATCH(Tabulka!AB$2,Přehled_body!$E$1:$ED$1,0)),)=0,0.00000000001,IFERROR(INDEX(Přehled_body!$E$3:$ED$130,MATCH(Tabulka!$AI12,Přehled_body!$A$3:$A$130,0),MATCH(Tabulka!AB$2,Přehled_body!$E$1:$ED$1,0)),))) -> 0 | AC12: =IF(IFERROR(INDEX(Přehled_body!$E$3:$ED$130,MATCH(Tabulka!$AI12,Přehled_body!$A$3:$A$130,0),MATCH(Tabulka!AC$2,Přehled_body!$E$1:$ED$1,0)),)="",,IF(IFERROR(INDEX(Přehled_body!$E$3:$ED$130,MATCH(Tabulka!$AI12,Přehled_body!$A$3:$A$130,0),MATCH(Tabulka!AC$2,Přehled_body!$E$1:$ED$1,0)),)=0,0.00000000001,IFERROR(INDEX(Přehled_body!$E$3:$ED$130,MATCH(Tabulka!$AI12,Přehled_body!$A$3:$A$130,0),MATCH(Tabulka!AC$2,Přehled_body!$E$1:$ED$1,0)),))) -> 0 | AD12: =IF(IFERROR(INDEX(Přehled_body!$E$3:$ED$130,MATCH(Tabulka!$AI12,Přehled_body!$A$3:$A$130,0),MATCH(Tabulka!AD$2,Přehled_body!$E$1:$ED$1,0)),)="",,IF(IFERROR(INDEX(Přehled_body!$E$3:$ED$130,MATCH(Tabulka!$AI12,Přehled_body!$A$3:$A$130,0),MATCH(Tabulka!AD$2,Přehled_body!$E$1:$ED$1,0)),)=0,0.00000000001,IFERROR(INDEX(Přehled_body!$E$3:$ED$130,MATCH(Tabulka!$AI12,Přehled_body!$A$3:$A$130,0),MATCH(Tabulka!AD$2,Přehled_body!$E$1:$ED$1,0)),))) -> 0 | AE12: =IF(SUM(AG9)<2,-90000+SUM(D12:AD12),SUM(D12:AD12)) -> 15 | AH12: 15 | AI12: =CONCATENATE($B$10," ",$B$11,C12) -> Libor HruškaPřehozy | AL12: 17 | AP12: =CONCATENATE(AQ12," ",AQ11) -> Veselý Milan | AQ12: Veselý
C13: Poč. kol | D13: =IF(IFERROR(INDEX(Přehled_body!$E$3:$ED$130,MATCH(Tabulka!$AI13,Přehled_body!$A$3:$A$130,0),MATCH(Tabulka!D$2,Přehled_body!$E$1:$ED$1,0)),)="",,IF(IFERROR(INDEX(Přehled_body!$E$3:$ED$130,MATCH(Tabulka!$AI13,Přehled_body!$A$3:$A$130,0),MATCH(Tabulka!D$2,Přehled_body!$E$1:$ED$1,0)),)=0,0.00000000001,IFERROR(INDEX(Přehled_body!$E$3:$ED$130,MATCH(Tabulka!$AI13,Přehled_body!$A$3:$A$130,0),MATCH(Tabulka!D$2,Přehled_body!$E$1:$ED$1,0)),))) -> 4 | E13: =IF(IFERROR(INDEX(Přehled_body!$E$3:$ED$130,MATCH(Tabulka!$AI13,Přehled_body!$A$3:$A$130,0),MATCH(Tabulka!E$2,Přehled_body!$E$1:$ED$1,0)),)="",,IF(IFERROR(INDEX(Přehled_body!$E$3:$ED$130,MATCH(Tabulka!$AI13,Přehled_body!$A$3:$A$130,0),MATCH(Tabulka!E$2,Přehled_body!$E$1:$ED$1,0)),)=0,0.00000000001,IFERROR(INDEX(Přehled_body!$E$3:$ED$130,MATCH(Tabulka!$AI13,Přehled_body!$A$3:$A$130,0),MATCH(Tabulka!E$2,Přehled_body!$E$1:$ED$1,0)),))) -> 4 | F13: =IF(IFERROR(INDEX(Přehled_body!$E$3:$ED$130,MATCH(Tabulka!$AI13,Přehled_body!$A$3:$A$130,0),MATCH(Tabulka!F$2,Přehled_body!$E$1:$ED$1,0)),)="",,IF(IFERROR(INDEX(Přehled_body!$E$3:$ED$130,MATCH(Tabulka!$AI13,Přehled_body!$A$3:$A$130,0),MATCH(Tabulka!F$2,Přehled_body!$E$1:$ED$1,0)),)=0,0.00000000001,IFERROR(INDEX(Přehled_body!$E$3:$ED$130,MATCH(Tabulka!$AI13,Přehled_body!$A$3:$A$130,0),MATCH(Tabulka!F$2,Přehled_body!$E$1:$ED$1,0)),))) -> 4 | G13: =IF(IFERROR(INDEX(Přehled_body!$E$3:$ED$130,MATCH(Tabulka!$AI13,Přehled_body!$A$3:$A$130,0),MATCH(Tabulka!G$2,Přehled_body!$E$1:$ED$1,0)),)="",,IF(IFERROR(INDEX(Přehled_body!$E$3:$ED$130,MATCH(Tabulka!$AI13,Přehled_body!$A$3:$A$130,0),MATCH(Tabulka!G$2,Přehled_body!$E$1:$ED$1,0)),)=0,0.00000000001,IFERROR(INDEX(Přehled_body!$E$3:$ED$130,MATCH(Tabulka!$AI13,Přehled_body!$A$3:$A$130,0),MATCH(Tabulka!G$2,Přehled_body!$E$1:$ED$1,0)),))) -> 4 | H13: =IF(IFERROR(INDEX(Přehled_body!$E$3:$ED$130,MATCH(Tabulka!$AI13,Přehled_body!$A$3:$A$130,0),MATCH(Tabulka!H$2,Přehled_body!$E$1:$ED$1,0)),)="",,IF(IFERROR(INDEX(Přehled_body!$E$3:$ED$130,MATCH(Tabulka!$AI13,Přehled_body!$A$3:$A$130,0),MATCH(Tabulka!H$2,Přehled_body!$E$1:$ED$1,0)),)=0,0.00000000001,IFERROR(INDEX(Přehled_body!$E$3:$ED$130,MATCH(Tabulka!$AI13,Přehled_body!$A$3:$A$130,0),MATCH(Tabulka!H$2,Přehled_body!$E$1:$ED$1,0)),))) -> 4 | I13: =IF(IFERROR(INDEX(Přehled_body!$E$3:$ED$130,MATCH(Tabulka!$AI13,Přehled_body!$A$3:$A$130,0),MATCH(Tabulka!I$2,Přehled_body!$E$1:$ED$1,0)),)="",,IF(IFERROR(INDEX(Přehled_body!$E$3:$ED$130,MATCH(Tabulka!$AI13,Přehled_body!$A$3:$A$130,0),MATCH(Tabulka!I$2,Přehled_body!$E$1:$ED$1,0)),)=0,0.00000000001,IFERROR(INDEX(Přehled_body!$E$3:$ED$130,MATCH(Tabulka!$AI13,Přehled_body!$A$3:$A$130,0),MATCH(Tabulka!I$2,Přehled_body!$E$1:$ED$1,0)),))) -> 4 | J13: =IF(IFERROR(INDEX(Přehled_body!$E$3:$ED$130,MATCH(Tabulka!$AI13,Přehled_body!$A$3:$A$130,0),MATCH(Tabulka!J$2,Přehled_body!$E$1:$ED$1,0)),)="",,IF(IFERROR(INDEX(Přehled_body!$E$3:$ED$130,MATCH(Tabulka!$AI13,Přehled_body!$A$3:$A$130,0),MATCH(Tabulka!J$2,Přehled_body!$E$1:$ED$1,0)),)=0,0.00000000001,IFERROR(INDEX(Přehled_body!$E$3:$ED$130,MATCH(Tabulka!$AI13,Přehled_body!$A$3:$A$130,0),MATCH(Tabulka!J$2,Přehled_body!$E$1:$ED$1,0)),))) -> 4 | K13: =IF(IFERROR(INDEX(Přehled_body!$E$3:$ED$130,MATCH(Tabulka!$AI13,Přehled_body!$A$3:$A$130,0),MATCH(Tabulka!K$2,Přehled_body!$E$1:$ED$1,0)),)="",,IF(IFERROR(INDEX(Přehled_body!$E$3:$ED$130,MATCH(Tabulka!$AI13,Přehled_body!$A$3:$A$130,0),MATCH(Tabulka!K$2,Přehled_body!$E$1:$ED$1,0)),)=0,0.00000000001,IFERROR(INDEX(Přehled_body!$E$3:$ED$130,MATCH(Tabulka!$AI13,Přehled_body!$A$3:$A$130,0),MATCH(Tabulka!K$2,Přehled_body!$E$1:$ED$1,0)),))) -> 4 | L13: =IF(IFERROR(INDEX(Přehled_body!$E$3:$ED$130,MATCH(Tabulka!$AI13,Přehled_body!$A$3:$A$130,0),MATCH(Tabulka!L$2,Přehled_body!$E$1:$ED$1,0)),)="",,IF(IFERROR(INDEX(Přehled_body!$E$3:$ED$130,MATCH(Tabulka!$AI13,Přehled_body!$A$3:$A$130,0),MATCH(Tabulka!L$2,Přehled_body!$E$1:$ED$1,0)),)=0,0.00000000001,IFERROR(INDEX(Přehled_body!$E$3:$ED$130,MATCH(Tabulka!$AI13,Přehled_body!$A$3:$A$130,0),MATCH(Tabulka!L$2,Přehled_body!$E$1:$ED$1,0)),))) -> 3 | M13: =IF(IFERROR(INDEX(Přehled_body!$E$3:$ED$130,MATCH(Tabulka!$AI13,Přehled_body!$A$3:$A$130,0),MATCH(Tabulka!M$2,Přehled_body!$E$1:$ED$1,0)),)="",,IF(IFERROR(INDEX(Přehled_body!$E$3:$ED$130,MATCH(Tabulka!$AI13,Přehled_body!$A$3:$A$130,0),MATCH(Tabulka!M$2,Přehled_body!$E$1:$ED$1,0)),)=0,0.00000000001,IFERROR(INDEX(Přehled_body!$E$3:$ED$130,MATCH(Tabulka!$AI13,Přehled_body!$A$3:$A$130,0),MATCH(Tabulka!M$2,Přehled_body!$E$1:$ED$1,0)),))) -> 4 | N13: =IF(IFERROR(INDEX(Přehled_body!$E$3:$ED$130,MATCH(Tabulka!$AI13,Přehled_body!$A$3:$A$130,0),MATCH(Tabulka!N$2,Přehled_body!$E$1:$ED$1,0)),)="",,IF(IFERROR(INDEX(Přehled_body!$E$3:$ED$130,MATCH(Tabulka!$AI13,Přehled_body!$A$3:$A$130,0),MATCH(Tabulka!N$2,Přehled_body!$E$1:$ED$1,0)),)=0,0.00000000001,IFERROR(INDEX(Přehled_body!$E$3:$ED$130,MATCH(Tabulka!$AI13,Přehled_body!$A$3:$A$130,0),MATCH(Tabulka!N$2,Přehled_body!$E$1:$ED$1,0)),))) -> 5 | O13: =IF(IFERROR(INDEX(Přehled_body!$E$3:$ED$130,MATCH(Tabulka!$AI13,Přehled_body!$A$3:$A$130,0),MATCH(Tabulka!O$2,Přehled_body!$E$1:$ED$1,0)),)="",,IF(IFERROR(INDEX(Přehled_body!$E$3:$ED$130,MATCH(Tabulka!$AI13,Přehled_body!$A$3:$A$130,0),MATCH(Tabulka!O$2,Přehled_body!$E$1:$ED$1,0)),)=0,0.00000000001,IFERROR(INDEX(Přehled_body!$E$3:$ED$130,MATCH(Tabulka!$AI13,Přehled_body!$A$3:$A$130,0),MATCH(Tabulka!O$2,Přehled_body!$E$1:$ED$1,0)),))) -> 4 | P13: =IF(IFERROR(INDEX(Přehled_body!$E$3:$ED$130,MATCH(Tabulka!$AI13,Přehled_body!$A$3:$A$130,0),MATCH(Tabulka!P$2,Přehled_body!$E$1:$ED$1,0)),)="",,IF(IFERROR(INDEX(Přehled_body!$E$3:$ED$130,MATCH(Tabulka!$AI13,Přehled_body!$A$3:$A$130,0),MATCH(Tabulka!P$2,Přehled_body!$E$1:$ED$1,0)),)=0,0.00000000001,IFERROR(INDEX(Přehled_body!$E$3:$ED$130,MATCH(Tabulka!$AI13,Přehled_body!$A$3:$A$130,0),MATCH(Tabulka!P$2,Přehled_body!$E$1:$ED$1,0)),))) -> 4 | Q13: =IF(IFERROR(INDEX(Přehled_body!$E$3:$ED$130,MATCH(Tabulka!$AI13,Přehled_body!$A$3:$A$130,0),MATCH(Tabulka!Q$2,Přehled_body!$E$1:$ED$1,0)),)="",,IF(IFERROR(INDEX(Přehled_body!$E$3:$ED$130,MATCH(Tabulka!$AI13,Přehled_body!$A$3:$A$130,0),MATCH(Tabulka!Q$2,Přehled_body!$E$1:$ED$1,0)),)=0,0.00000000001,IFERROR(INDEX(Přehled_body!$E$3:$ED$130,MATCH(Tabulka!$AI13,Přehled_body!$A$3:$A$130,0),MATCH(Tabulka!Q$2,Přehled_body!$E$1:$ED$1,0)),))) -> 5 | R13: =IF(IFERROR(INDEX(Přehled_body!$E$3:$ED$130,MATCH(Tabulka!$AI13,Přehled_body!$A$3:$A$130,0),MATCH(Tabulka!R$2,Přehled_body!$E$1:$ED$1,0)),)="",,IF(IFERROR(INDEX(Přehled_body!$E$3:$ED$130,MATCH(Tabulka!$AI13,Přehled_body!$A$3:$A$130,0),MATCH(Tabulka!R$2,Přehled_body!$E$1:$ED$1,0)),)=0,0.00000000001,IFERROR(INDEX(Přehled_body!$E$3:$ED$130,MATCH(Tabulka!$AI13,Přehled_body!$A$3:$A$130,0),MATCH(Tabulka!R$2,Přehled_body!$E$1:$ED$1,0)),))) -> 4 | S13: =IF(IFERROR(INDEX(Přehled_body!$E$3:$ED$130,MATCH(Tabulka!$AI13,Přehled_body!$A$3:$A$130,0),MATCH(Tabulka!S$2,Přehled_body!$E$1:$ED$1,0)),)="",,IF(IFERROR(INDEX(Přehled_body!$E$3:$ED$130,MATCH(Tabulka!$AI13,Přehled_body!$A$3:$A$130,0),MATCH(Tabulka!S$2,Přehled_body!$E$1:$ED$1,0)),)=0,0.00000000001,IFERROR(INDEX(Přehled_body!$E$3:$ED$130,MATCH(Tabulka!$AI13,Přehled_body!$A$3:$A$130,0),MATCH(Tabulka!S$2,Přehled_body!$E$1:$ED$1,0)),))) -> 4 | T13: =IF(IFERROR(INDEX(Přehled_body!$E$3:$ED$130,MATCH(Tabulka!$AI13,Přehled_body!$A$3:$A$130,0),MATCH(Tabulka!T$2,Přehled_body!$E$1:$ED$1,0)),)="",,IF(IFERROR(INDEX(Přehled_body!$E$3:$ED$130,MATCH(Tabulka!$AI13,Přehled_body!$A$3:$A$130,0),MATCH(Tabulka!T$2,Přehled_body!$E$1:$ED$1,0)),)=0,0.00000000001,IFERROR(INDEX(Přehled_body!$E$3:$ED$130,MATCH(Tabulka!$AI13,Přehled_body!$A$3:$A$130,0),MATCH(Tabulka!T$2,Přehled_body!$E$1:$ED$1,0)),))) -> 4 | U13: =IF(IFERROR(INDEX(Přehled_body!$E$3:$ED$130,MATCH(Tabulka!$AI13,Přehled_body!$A$3:$A$130,0),MATCH(Tabulka!U$2,Přehled_body!$E$1:$ED$1,0)),)="",,IF(IFERROR(INDEX(Přehled_body!$E$3:$ED$130,MATCH(Tabulka!$AI13,Přehled_body!$A$3:$A$130,0),MATCH(Tabulka!U$2,Přehled_body!$E$1:$ED$1,0)),)=0,0.00000000001,IFERROR(INDEX(Přehled_body!$E$3:$ED$130,MATCH(Tabulka!$AI13,Přehled_body!$A$3:$A$130,0),MATCH(Tabulka!U$2,Přehled_body!$E$1:$ED$1,0)),))) -> 0 | V13: =IF(IFERROR(INDEX(Přehled_body!$E$3:$ED$130,MATCH(Tabulka!$AI13,Přehled_body!$A$3:$A$130,0),MATCH(Tabulka!V$2,Přehled_body!$E$1:$ED$1,0)),)="",,IF(IFERROR(INDEX(Přehled_body!$E$3:$ED$130,MATCH(Tabulka!$AI13,Přehled_body!$A$3:$A$130,0),MATCH(Tabulka!V$2,Přehled_body!$E$1:$ED$1,0)),)=0,0.00000000001,IFERROR(INDEX(Přehled_body!$E$3:$ED$130,MATCH(Tabulka!$AI13,Přehled_body!$A$3:$A$130,0),MATCH(Tabulka!V$2,Přehled_body!$E$1:$ED$1,0)),))) -> 0 | W13: =IF(IFERROR(INDEX(Přehled_body!$E$3:$ED$130,MATCH(Tabulka!$AI13,Přehled_body!$A$3:$A$130,0),MATCH(Tabulka!W$2,Přehled_body!$E$1:$ED$1,0)),)="",,IF(IFERROR(INDEX(Přehled_body!$E$3:$ED$130,MATCH(Tabulka!$AI13,Přehled_body!$A$3:$A$130,0),MATCH(Tabulka!W$2,Přehled_body!$E$1:$ED$1,0)),)=0,0.00000000001,IFERROR(INDEX(Přehled_body!$E$3:$ED$130,MATCH(Tabulka!$AI13,Přehled_body!$A$3:$A$130,0),MATCH(Tabulka!W$2,Přehled_body!$E$1:$ED$1,0)),))) -> 0 | X13: =IF(IFERROR(INDEX(Přehled_body!$E$3:$ED$130,MATCH(Tabulka!$AI13,Přehled_body!$A$3:$A$130,0),MATCH(Tabulka!X$2,Přehled_body!$E$1:$ED$1,0)),)="",,IF(IFERROR(INDEX(Přehled_body!$E$3:$ED$130,MATCH(Tabulka!$AI13,Přehled_body!$A$3:$A$130,0),MATCH(Tabulka!X$2,Přehled_body!$E$1:$ED$1,0)),)=0,0.00000000001,IFERROR(INDEX(Přehled_body!$E$3:$ED$130,MATCH(Tabulka!$AI13,Přehled_body!$A$3:$A$130,0),MATCH(Tabulka!X$2,Přehled_body!$E$1:$ED$1,0)),))) -> 0 | Y13: =IF(IFERROR(INDEX(Přehled_body!$E$3:$ED$130,MATCH(Tabulka!$AI13,Přehled_body!$A$3:$A$130,0),MATCH(Tabulka!Y$2,Přehled_body!$E$1:$ED$1,0)),)="",,IF(IFERROR(INDEX(Přehled_body!$E$3:$ED$130,MATCH(Tabulka!$AI13,Přehled_body!$A$3:$A$130,0),MATCH(Tabulka!Y$2,Přehled_body!$E$1:$ED$1,0)),)=0,0.00000000001,IFERROR(INDEX(Přehled_body!$E$3:$ED$130,MATCH(Tabulka!$AI13,Přehled_body!$A$3:$A$130,0),MATCH(Tabulka!Y$2,Přehled_body!$E$1:$ED$1,0)),))) -> 0 | Z13: =IF(IFERROR(INDEX(Přehled_body!$E$3:$ED$130,MATCH(Tabulka!$AI13,Přehled_body!$A$3:$A$130,0),MATCH(Tabulka!Z$2,Přehled_body!$E$1:$ED$1,0)),)="",,IF(IFERROR(INDEX(Přehled_body!$E$3:$ED$130,MATCH(Tabulka!$AI13,Přehled_body!$A$3:$A$130,0),MATCH(Tabulka!Z$2,Přehled_body!$E$1:$ED$1,0)),)=0,0.00000000001,IFERROR(INDEX(Přehled_body!$E$3:$ED$130,MATCH(Tabulka!$AI13,Přehled_body!$A$3:$A$130,0),MATCH(Tabulka!Z$2,Přehled_body!$E$1:$ED$1,0)),))) -> 0 | AA13: =IF(IFERROR(INDEX(Přehled_body!$E$3:$ED$130,MATCH(Tabulka!$AI13,Přehled_body!$A$3:$A$130,0),MATCH(Tabulka!AA$2,Přehled_body!$E$1:$ED$1,0)),)="",,IF(IFERROR(INDEX(Přehled_body!$E$3:$ED$130,MATCH(Tabulka!$AI13,Přehled_body!$A$3:$A$130,0),MATCH(Tabulka!AA$2,Přehled_body!$E$1:$ED$1,0)),)=0,0.00000000001,IFERROR(INDEX(Přehled_body!$E$3:$ED$130,MATCH(Tabulka!$AI13,Přehled_body!$A$3:$A$130,0),MATCH(Tabulka!AA$2,Přehled_body!$E$1:$ED$1,0)),))) -> 0 | AB13: =IF(IFERROR(INDEX(Přehled_body!$E$3:$ED$130,MATCH(Tabulka!$AI13,Přehled_body!$A$3:$A$130,0),MATCH(Tabulka!AB$2,Přehled_body!$E$1:$ED$1,0)),)="",,IF(IFERROR(INDEX(Přehled_body!$E$3:$ED$130,MATCH(Tabulka!$AI13,Přehled_body!$A$3:$A$130,0),MATCH(Tabulka!AB$2,Přehled_body!$E$1:$ED$1,0)),)=0,0.00000000001,IFERROR(INDEX(Přehled_body!$E$3:$ED$130,MATCH(Tabulka!$AI13,Přehled_body!$A$3:$A$130,0),MATCH(Tabulka!AB$2,Přehled_body!$E$1:$ED$1,0)),))) -> 0 | AC13: =IF(IFERROR(INDEX(Přehled_body!$E$3:$ED$130,MATCH(Tabulka!$AI13,Přehled_body!$A$3:$A$130,0),MATCH(Tabulka!AC$2,Přehled_body!$E$1:$ED$1,0)),)="",,IF(IFERROR(INDEX(Přehled_body!$E$3:$ED$130,MATCH(Tabulka!$AI13,Přehled_body!$A$3:$A$130,0),MATCH(Tabulka!AC$2,Přehled_body!$E$1:$ED$1,0)),)=0,0.00000000001,IFERROR(INDEX(Přehled_body!$E$3:$ED$130,MATCH(Tabulka!$AI13,Přehled_body!$A$3:$A$130,0),MATCH(Tabulka!AC$2,Přehled_body!$E$1:$ED$1,0)),))) -> 0 | AD13: =IF(IFERROR(INDEX(Přehled_body!$E$3:$ED$130,MATCH(Tabulka!$AI13,Přehled_body!$A$3:$A$130,0),MATCH(Tabulka!AD$2,Přehled_body!$E$1:$ED$1,0)),)="",,IF(IFERROR(INDEX(Přehled_body!$E$3:$ED$130,MATCH(Tabulka!$AI13,Přehled_body!$A$3:$A$130,0),MATCH(Tabulka!AD$2,Přehled_body!$E$1:$ED$1,0)),)=0,0.00000000001,IFERROR(INDEX(Přehled_body!$E$3:$ED$130,MATCH(Tabulka!$AI13,Přehled_body!$A$3:$A$130,0),MATCH(Tabulka!AD$2,Přehled_body!$E$1:$ED$1,0)),))) -> 0 | AE13: =IF(SUM(AG9)<2,-90000+SUM(D13:AD13),SUM(D13:AD13)) -> 69 | AH13: 69 | AI13: =CONCATENATE($B$10," ",$B$11,C13) -> Libor HruškaPoč. kol | AL13: 17
